Workbook

Sheet Stałe
A1: Seria | B1: Kod ISIN | C1: Wykup | D1: Kupon | E1: Kupon #01 | F1: Kupon #01 | G1: Kupon #01 | H1: Kupon #01 | I1: Kupon #01 | J1: Kupon #02 | K1: Kupon #02 | L1: Kupon #02 | M1: Kupon #02 | N1: Kupon #02 | O1: Kupon #03 | P1: Kupon #03 | Q1: Kupon #03 | R1: Kupon #03 | S1: Kupon #03 | T1: Kupon #04 | U1: Kupon #04 | V1: Kupon #04 | W1: Kupon #04 | X1: Kupon #04 | Y1: Kupon #05 | Z1: Kupon #05 | AA1: Kupon #05 | AB1: Kupon #05 | AC1: Kupon #05 | AD1: Kupon #06 | AE1: Kupon #06 | AF1: Kupon #06 | AG1: Kupon #06 | AH1: Kupon #06 | AI1: Kupon #07 | AJ1: Kupon #07 | AK1: Kupon #07 | AL1: Kupon #07 | AM1: Kupon #07 | AN1: Kupon #08 | AO1: Kupon #08 | AP1: Kupon #08 | AQ1: Kupon #08 | AR1: Kupon #08 | AS1: Kupon #09 | AT1: Kupon #09 | AU1: Kupon #09 | AV1: Kupon #09 | AW1: Kupon #09 | AX1: Kupon #10 | AY1: Kupon #10 | AZ1: Kupon #10 | BA1: Kupon #10 | BB1: Kupon #10 | BC1: Kupon #11 | BD1: Kupon #11 | BE1: Kupon #11 | BF1: Kupon #11 | BG1: Kupon #11 | BH1: Kupon #12 | BI1: Kupon #12 | BJ1: Kupon #12 | BK1: Kupon #12 | BL1: Kupon #12 | BM1: Kupon #13 | BN1: Kupon #13 | BO1: Kupon #13 | BP1: Kupon #13 | BQ1: Kupon #13 | BR1: Kupon #14 | BS1: Kupon #14 | BT1: Kupon #14 | BU1: Kupon #14 | BV1: Kupon #14 | BW1: Kupon #15 | BX1: Kupon #15 | BY1: Kupon #15 | BZ1: Kupon #15 | CA1: Kupon #15 | CB1: Kupon #16 | CC1: Kupon #16 | CD1: Kupon #16 | CE1: Kupon #16 | CF1: Kupon #16 | CG1: Kupon #17 | CH1: Kupon #17 | CI1: Kupon #17 | CJ1: Kupon #17 | CK1: Kupon #17 | CL1: Kupon #18 | CM1: Kupon #18 | CN1: Kupon #18 | CO1: Kupon #18 | CP1: Kupon #18 | CQ1: Kupon #19 | CR1: Kupon #19 | CS1: Kupon #19 | CT1: Kupon #19 | CU1: Kupon #19 | CV1: Kupon #20 | CW1: Kupon #20 | CX1: Kupon #20 | CY1: Kupon #20 | CZ1: Kupon #20 | DA1: Kupon #21 | DB1: Kupon #21 | DC1: Kupon #21 | DD1: Kupon #21 | DE1: Kupon #21 | DF1: Kupon #22 | DG1: Kupon #22 | DH1: Kupon #22 | DI1: Kupon #22 | DJ1: Kupon #22 | DK1: Kupon #23 | DL1: Kupon #23 | DM1: Kupon #23 | DN1: Kupon #23 | DO1: Kupon #23 | DP1: Kupon #24 | DQ1: Kupon #24 | DR1: Kupon #24 | DS1: Kupon #24 | DT1: Kupon #24 | DU1: Kupon #25 | DV1: Kupon #25 | DW1: Kupon #25 | DX1: Kupon #25 | DY1: Kupon #25 | DZ1: Kupon #26 | EA1: Kupon #26 | EB1: Kupon #26 | EC1: Kupon #26 | ED1: Kupon #26 | EE1: Kupon #27 | EF1: Kupon #27 | EG1: Kupon #27 | EH1: Kupon #27 | EI1: Kupon #27 | EJ1: Kupon #28 | EK1: Kupon #28 | EL1: Kupon #28 | EM1: Kupon #28 | EN1: Kupon #28 | EO1: Kupon #29 | EP1: Kupon #29 | EQ1: Kupon #29 | ER1: Kupon #29 | ES1: Kupon #29 | ET1: Kupon #30 | EU1: Kupon #30 | EV1: Kupon #30 | EW1: Kupon #30 | EX1: Kupon #30 | EY1: Kupon #31 | EZ1: Kupon #31 | FA1: Kupon #31 | FB1: Kupon #31 | FC1: Kupon #31
E2: Początek okresu | F2: Koniec okresu | G2: Dzień ustalenia praw | H2: Data wymagalności | I2: Odsetki (PLN) | J2: Początek okresu | K2: Koniec okresu | L2: Dzień ustalenia praw | M2: Data wymagalności | N2: Odsetki (PLN) | O2: Początek okresu | P2: Koniec okresu | Q2: Dzień ustalenia praw | R2: Data wymagalności | S2: Odsetki (PLN) | T2: Początek okresu | U2: Koniec okresu | V2: Dzień ustalenia praw | W2: Data wymagalności | X2: Odsetki (PLN) | Y2: Początek okresu | Z2: Koniec okresu | AA2: Dzień ustalenia praw | AB2: Data wymagalności | AC2: Odsetki (PLN) | AD2: Początek okresu | AE2: Koniec okresu | AF2: Dzień ustalenia praw | AG2: Data wymagalności | AH2: Odsetki (PLN) | AI2: Początek okresu | AJ2: Koniec okresu | AK2: Dzień ustalenia praw | AL2: Data wymagalności | AM2: Odsetki (PLN) | AN2: Początek okresu | AO2: Koniec okresu | AP2: Dzień ustalenia praw | AQ2: Data wymagalności | AR2: Odsetki (PLN) | AS2: Początek okresu | AT2: Koniec okresu | AU2: Dzień ustalenia praw | AV2: Data wymagalności | AW2: Odsetki (PLN) | AX2: Początek okresu | AY2: Koniec okresu | AZ2: Dzień ustalenia praw | BA2: Data wymagalności | BB2: Odsetki (PLN) | BC2: Początek okresu | BD2: Koniec okresu | BE2: Dzień ustalenia praw | BF2: Data wymagalności | BG2: Odsetki (PLN) | BH2: Początek okresu | BI2: Koniec okresu | BJ2: Dzień ustalenia praw | BK2: Data wymagalności | BL2: Odsetki (PLN) | BM2: Początek okresu | BN2: Koniec okresu | BO2: Dzień ustalenia praw | BP2: Data wymagalności | BQ2: Odsetki (PLN) | BR2: Początek okresu | BS2: Koniec okresu | BT2: Dzień ustalenia praw | BU2: Data wymagalności | BV2: Odsetki (PLN) | BW2: Początek okresu | BX2: Koniec okresu | BY2: Dzień ustalenia praw | BZ2: Data wymagalności | CA2: Odsetki (PLN) | CB2: Początek okresu | CC2: Koniec okresu | CD2: Dzień ustalenia praw | CE2: Data wymagalności | CF2: Odsetki (PLN) | CG2: Początek okresu | CH2: Koniec okresu | CI2: Dzień ustalenia praw | CJ2: Data wymagalności | CK2: Odsetki (PLN) | CL2: Początek okresu | CM2: Koniec okresu | CN2: Dzień ustalenia praw | CO2: Data wymagalności | CP2: Odsetki (PLN) | CQ2: Początek okresu | CR2: Koniec okresu | CS2: Dzień ustalenia praw | CT2: Data wymagalności | CU2: Odsetki (PLN) | CV2: Początek okresu | CW2: Koniec okresu | CX2: Dzień ustalenia praw | CY2: Data wymagalności | CZ2: Odsetki (PLN) | DA2: Początek okresu | DB2: Koniec okresu | DC2: Dzień ustalenia praw | DD2: Data wymagalności | DE2: Odsetki (PLN) | DF2: Początek okresu | DG2: Koniec okresu | DH2: Dzień ustalenia praw | DI2: Data wymagalności | DJ2: Odsetki (PLN) | DK2: Początek okresu | DL2: Koniec okresu | DM2: Dzień ustalenia praw | DN2: Data wymagalności | DO2: Odsetki (PLN) | DP2: Początek okresu | DQ2: Koniec okresu | DR2: Dzień ustalenia praw | DS2: Data wymagalności | DT2: Odsetki (PLN) | DU2: Początek okresu | DV2: Koniec okresu | DW2: Dzień ustalenia praw | DX2: Data wymagalności | DY2: Odsetki (PLN) | DZ2: Początek okresu | EA2: Koniec okresu | EB2: Dzień ustalenia praw | EC2: Data wymagalności | ED2: Odsetki (PLN) | EE2: Początek okresu | EF2: Koniec okresu | EG2: Dzień ustalenia praw | EH2: Data wymagalności | EI2: Odsetki (PLN) | EJ2: Początek okresu | EK2: Koniec okresu | EL2: Dzień ustalenia praw | EM2: Data wymagalności | EN2: Odsetki (PLN) | EO2: Początek okresu | EP2: Koniec okresu | EQ2: Dzień ustalenia praw | ER2: Data wymagalności | ES2: Odsetki (PLN) | ET2: Początek okresu | EU2: Koniec okresu | EV2: Dzień ustalenia praw | EW2: Data wymagalności | EX2: Odsetki (PLN) | EY2: Początek okresu | EZ2: Koniec okresu | FA2: Dzień ustalenia praw | FB2: Data wymagalności | FC2: Odsetki (PLN)
A3: OS0696 | B3: PL0000100178 | C3: 1996-06-12 | D3: 0.18 | E3: 1994-03-05 | F3: 1994-06-12 | G3: 1994-05-28 | H3: 1994-06-13 | I3: 48.82 | J3: 1994-06-12 | K3: 1995-06-12 | L3: 1995-05-28 | M3: 1995-06-12 | N3: 180 | O3: 1995-06-12 | P3: 1996-06-12 | Q3: 1996-05-28 | R3: 1996-06-12 | S3: 180 | T3: - | U3: - | V3: - | W3: - | X3: - | Y3: - | Z3: - | AA3: - | AB3: - | AC3: - | AD3: - | AE3: - | AF3: - | AG3: - | AH3: - | AI3: - | AJ3: - | AK3: - | AL3: - | AM3: - | AN3: - | AO3: - | AP3: - | AQ3: - | AR3: - | AS3: - | AT3: - | AU3: - | AV3: - | AW3: - | AX3: - | AY3: - | AZ3: - | BA3: - | BB3: - | BC3: - | BD3: - | BE3: - | BF3: - | BG3: - | BH3: - | BI3: - | BJ3: - | BK3: - | BL3: - | BM3: - | BN3: - | BO3: - | BP3: - | BQ3: - | BR3: - | BS3: - | BT3: - | BU3: - | BV3: - | BW3: - | BX3: - | BY3: - | BZ3: - | CA3: - | CB3: - | CC3: - | CD3: - | CE3: - | CF3: - | CG3: - | CH3: - | CI3: - | CJ3: - | CK3: - | CL3: - | CM3: - | CN3: - | CO3: - | CP3: - | CQ3: - | CR3: - | CS3: - | CT3: - | CU3: - | CV3: - | CW3: - | CX3: - | CY3: - | CZ3: - | DA3: - | DB3: - | DC3: - | DD3: - | DE3: - | DF3: - | DG3: - | DH3: - | DI3: - | DJ3: - | DK3: - | DL3: - | DM3: - | DN3: - | DO3: - | DP3: - | DQ3: - | DR3: - | DS3: - | DT3: - | DU3: - | DV3: - | DW3: - | DX3: - | DY3: - | DZ3: - | EA3: - | EB3: - | EC3: - | ED3: - | EE3: - | EF3: - | EG3: - | EH3: - | EI3: - | EJ3: - | EK3: - | EL3: - | EM3: - | EN3: - | EO3: - | EP3: - | EQ3: - | ER3: - | ES3: - | ET3: - | EU3: - | EV3: - | EW3: - | EX3: -
A4: OS1096 | B4: PL0000100202 | C4: 1996-10-12 | D4: 0.18 | E4: 1994-07-05 | F4: 1994-10-12 | G4: 1994-10-05 | H4: 1994-10-12 | I4: 48.82 | J4: 1994-10-12 | K4: 1995-10-12 | L4: 1995-10-05 | M4: 1995-10-12 | N4: 180 | O4: 1995-10-12 | P4: 1996-10-12 | Q4: 1996-10-05 | R4: 1996-10-14 | S4: 180 | T4: - | U4: - | V4: - | W4: - | X4: - | Y4: - | Z4: - | AA4: - | AB4: - | AC4: - | AD4: - | AE4: - | AF4: - | AG4: - | AH4: - | AI4: - | AJ4: - | AK4: - | AL4: - | AM4: - | AN4: - | AO4: - | AP4: - | AQ4: - | AR4: - | AS4: - | AT4: - | AU4: - | AV4: - | AW4: - | AX4: - | AY4: - | AZ4: - | BA4: - | BB4: - | BC4: - | BD4: - | BE4: - | BF4: - | BG4: - | BH4: - | BI4: - | BJ4: - | BK4: - | BL4: - | BM4: - | BN4: - | BO4: - | BP4: - | BQ4: - | BR4: - | BS4: - | BT4: - | BU4: - | BV4: - | BW4: - | BX4: - | BY4: - | BZ4: - | CA4: - | CB4: - | CC4: - | CD4: - | CE4: - | CF4: - | CG4: - | CH4: - | CI4: - | CJ4: - | CK4: - | CL4: - | CM4: - | CN4: - | CO4: - | CP4: - | CQ4: - | CR4: - | CS4: - | CT4: - | CU4: - | CV4: - | CW4: - | CX4: - | CY4: - | CZ4: - | DA4: - | DB4: - | DC4: - | DD4: - | DE4: - | DF4: - | DG4: - | DH4: - | DI4: - | DJ4: - | DK4: - | DL4: - | DM4: - | DN4: - | DO4: - | DP4: - | DQ4: - | DR4: - | DS4: - | DT4: - | DU4: - | DV4: - | DW4: - | DX4: - | DY4: - | DZ4: - | EA4: - | EB4: - | EC4: - | ED4: - | EE4: - | EF4: - | EG4: - | EH4: - | EI4: - | EJ4: - | EK4: - | EL4: - | EM4: - | EN4: - | EO4: - | EP4: - | EQ4: - | ER4: - | ES4: - | ET4: - | EU4: - | EV4: - | EW4: - | EX4: -
A5: OS0297 | B5: PL0000100251 | C5: 1997-02-12 | D5: 0.17 | E5: 1994-11-05 | F5: 1995-02-12 | G5: 1995-02-05 | H5: 1995-02-13 | I5: 46.11 | J5: 1995-02-12 | K5: 1996-02-12 | L5: 1996-02-05 | M5: 1996-02-12 | N5: 170 | O5: 1996-02-12 | P5: 1997-02-12 | Q5: 1997-02-05 | R5: 1997-02-12 | S5: 170 | T5: - | U5: - | V5: - | W5: - | X5: - | Y5: - | Z5: - | AA5: - | AB5: - | AC5: - | AD5: - | AE5: - | AF5: - | AG5: - | AH5: - | AI5: - | AJ5: - | AK5: - | AL5: - | AM5: - | AN5: - | AO5: - | AP5: - | AQ5: - | AR5: - | AS5: - | AT5: - | AU5: - | AV5: - | AW5: - | AX5: - | AY5: - | AZ5: - | BA5: - | BB5: - | BC5: - | BD5: - | BE5: - | BF5: - | BG5: - | BH5: - | BI5: - | BJ5: - | BK5: - | BL5: - | BM5: - | BN5: - | BO5: - | BP5: - | BQ5: - | BR5: - | BS5: - | BT5: - | BU5: - | BV5: - | BW5: - | BX5: - | BY5: - | BZ5: - | CA5: - | CB5: - | CC5: - | CD5: - | CE5: - | CF5: - | CG5: - | CH5: - | CI5: - | CJ5: - | CK5: - | CL5: - | CM5: - | CN5: - | CO5: - | CP5: - | CQ5: - | CR5: - | CS5: - | CT5: - | CU5: - | CV5: - | CW5: - | CX5: - | CY5: - | CZ5: - | DA5: - | DB5: - | DC5: - | DD5: - | DE5: - | DF5: - | DG5: - | DH5: - | DI5: - | DJ5: - | DK5: - | DL5: - | DM5: - | DN5: - | DO5: - | DP5: - | DQ5: - | DR5: - | DS5: - | DT5: - | DU5: - | DV5: - | DW5: - | DX5: - | DY5: - | DZ5: - | EA5: - | EB5: - | EC5: - | ED5: - | EE5: - | EF5: - | EG5: - | EH5: - | EI5: - | EJ5: - | EK5: - | EL5: - | EM5: - | EN5: - | EO5: - | EP5: - | EQ5: - | ER5: - | ES5: - | ET5: - | EU5: - | EV5: - | EW5: - | EX5: -
A6: OS0697 | B6: PL0000100293 | C6: 1997-06-12 | D6: 0.17 | E6: 1995-02-05 | F6: 1995-06-12 | G6: 1995-06-05 | H6: 1995-06-12 | I6: 59.15 | J6: 1995-06-12 | K6: 1996-06-12 | L6: 1996-06-05 | M6: 1996-06-12 | N6: 170 | O6: 1996-06-12 | P6: 1997-06-12 | Q6: 1997-06-05 | R6: 1997-06-12 | S6: 170 | T6: - | U6: - | V6: - | W6: - | X6: - | Y6: - | Z6: - | AA6: - | AB6: - | AC6: - | AD6: - | AE6: - | AF6: - | AG6: - | AH6: - | AI6: - | AJ6: - | AK6: - | AL6: - | AM6: - | AN6: - | AO6: - | AP6: - | AQ6: - | AR6: - | AS6: - | AT6: - | AU6: - | AV6: - | AW6: - | AX6: - | AY6: - | AZ6: - | BA6: - | BB6: - | BC6: - | BD6: - | BE6: - | BF6: - | BG6: - | BH6: - | BI6: - | BJ6: - | BK6: - | BL6: - | BM6: - | BN6: - | BO6: - | BP6: - | BQ6: - | BR6: - | BS6: - | BT6: - | BU6: - | BV6: - | BW6: - | BX6: - | BY6: - | BZ6: - | CA6: - | CB6: - | CC6: - | CD6: - | CE6: - | CF6: - | CG6: - | CH6: - | CI6: - | CJ6: - | CK6: - | CL6: - | CM6: - | CN6: - | CO6: - | CP6: - | CQ6: - | CR6: - | CS6: - | CT6: - | CU6: - | CV6: - | CW6: - | CX6: - | CY6: - | CZ6: - | DA6: - | DB6: - | DC6: - | DD6: - | DE6: - | DF6: - | DG6: - | DH6: - | DI6: - | DJ6: - | DK6: - | DL6: - | DM6: - | DN6: - | DO6: - | DP6: - | DQ6: - | DR6: - | DS6: - | DT6: - | DU6: - | DV6: - | DW6: - | DX6: - | DY6: - | DZ6: - | EA6: - | EB6: - | EC6: - | ED6: - | EE6: - | EF6: - | EG6: - | EH6: - | EI6: - | EJ6: - | EK6: - | EL6: - | EM6: - | EN6: - | EO6: - | EP6: - | EQ6: - | ER6: - | ES6: - | ET6: - | EU6: - | EV6: - | EW6: - | EX6: -
A7: OS0797 | B7: PL0000100327 | C7: 1997-07-12 | D7: 0.17 | E7: 1995-04-05 | F7: 1995-07-12 | G7: 1995-07-05 | H7: 1995-07-12 | I7: 45.64 | J7: 1995-07-12 | K7: 1996-07-12 | L7: 1996-07-05 | M7: 1996-07-12 | N7: 170 | O7: 1996-07-12 | P7: 1997-07-12 | Q7: 1997-07-05 | R7: 1997-07-14 | S7: 170 | T7: - | U7: - | V7: - | W7: - | X7: - | Y7: - | Z7: - | AA7: - | AB7: - | AC7: - | AD7: - | AE7: - | AF7: - | AG7: - | AH7: - | AI7: - | AJ7: - | AK7: - | AL7: - | AM7: - | AN7: - | AO7: - | AP7: - | AQ7: - | AR7: - | AS7: - | AT7: - | AU7: - | AV7: - | AW7: - | AX7: - | AY7: - | AZ7: - | BA7: - | BB7: - | BC7: - | BD7: - | BE7: - | BF7: - | BG7: - | BH7: - | BI7: - | BJ7: - | BK7: - | BL7: - | BM7: - | BN7: - | BO7: - | BP7: - | BQ7: - | BR7: - | BS7: - | BT7: - | BU7: - | BV7: - | BW7: - | BX7: - | BY7: - | BZ7: - | CA7: - | CB7: - | CC7: - | CD7: - | CE7: - | CF7: - | CG7: - | CH7: - | CI7: - | CJ7: - | CK7: - | CL7: - | CM7: - | CN7: - | CO7: - | CP7: - | CQ7: - | CR7: - | CS7: - | CT7: - | CU7: - | CV7: - | CW7: - | CX7: - | CY7: - | CZ7: - | DA7: - | DB7: - | DC7: - | DD7: - | DE7: - | DF7: - | DG7: - | DH7: - | DI7: - | DJ7: - | DK7: - | DL7: - | DM7: - | DN7: - | DO7: - | DP7: - | DQ7: - | DR7: - | DS7: - | DT7: - | DU7: - | DV7: - | DW7: - | DX7: - | DY7: - | DZ7: - | EA7: - | EB7: - | EC7: - | ED7: - | EE7: - | EF7: - | EG7: - | EH7: - | EI7: - | EJ7: - | EK7: - | EL7: - | EM7: - | EN7: - | EO7: - | EP7: - | EQ7: - | ER7: - | ES7: - | ET7: - | EU7: - | EV7: - | EW7: - | EX7: -
A8: OS0897 | B8: PL0000100350 | C8: 1997-08-12 | D8: 0.17 | E8: 1995-05-05 | F8: 1995-08-12 | G8: 1995-08-05 | H8: 1995-08-14 | I8: 46.11 | J8: 1995-08-12 | K8: 1996-08-12 | L8: 1996-08-05 | M8: 1996-08-12 | N8: 170 | O8: 1996-08-12 | P8: 1997-08-12 | Q8: 1997-08-05 | R8: 1997-08-12 | S8: 170 | T8: - | U8: - | V8: - | W8: - | X8: - | Y8: - | Z8: - | AA8: - | AB8: - | AC8: - | AD8: - | AE8: - | AF8: - | AG8: - | AH8: - | AI8: - | AJ8: - | AK8: - | AL8: - | AM8: - | AN8: - | AO8: - | AP8: - | AQ8: - | AR8: - | AS8: - | AT8: - | AU8: - | AV8: - | AW8: - | AX8: - | AY8: - | AZ8: - | BA8: - | BB8: - | BC8: - | BD8: - | BE8: - | BF8: - | BG8: - | BH8: - | BI8: - | BJ8: - | BK8: - | BL8: - | BM8: - | BN8: - | BO8: - | BP8: - | BQ8: - | BR8: - | BS8: - | BT8: - | BU8: - | BV8: - | BW8: - | BX8: - | BY8: - | BZ8: - | CA8: - | CB8: - | CC8: - | CD8: - | CE8: - | CF8: - | CG8: - | CH8: - | CI8: - | CJ8: - | CK8: - | CL8: - | CM8: - | CN8: - | CO8: - | CP8: - | CQ8: - | CR8: - | CS8: - | CT8: - | CU8: - | CV8: - | CW8: - | CX8: - | CY8: - | CZ8: - | DA8: - | DB8: - | DC8: - | DD8: - | DE8: - | DF8: - | DG8: - | DH8: - | DI8: - | DJ8: - | DK8: - | DL8: - | DM8: - | DN8: - | DO8: - | DP8: - | DQ8: - | DR8: - | DS8: - | DT8: - | DU8: - | DV8: - | DW8: - | DX8: - | DY8: - | DZ8: - | EA8: - | EB8: - | EC8: - | ED8: - | EE8: - | EF8: - | EG8: - | EH8: - | EI8: - | EJ8: - | EK8: - | EL8: - | EM8: - | EN8: - | EO8: - | EP8: - | EQ8: - | ER8: - | ES8: - | ET8: - | EU8: - | EV8: - | EW8: - | EX8: -
A9: OS1097 | B9: PL0000100400 | C9: 1997-10-12 | D9: 0.17 | E9: 1995-09-05 | F9: 1995-10-12 | G9: 1995-10-05 | H9: 1995-10-12 | I9: 17.23 | J9: 1995-10-12 | K9: 1996-10-12 | L9: 1996-10-01 | M9: 1996-10-14 | N9: 170 | O9: 1996-10-12 | P9: 1997-10-12 | Q9: 1997-09-30 | R9: 1997-10-13 | S9: 170 | T9: - | U9: - | V9: - | W9: - | X9: - | Y9: - | Z9: - | AA9: - | AB9: - | AC9: - | AD9: - | AE9: - | AF9: - | AG9: - | AH9: - | AI9: - | AJ9: - | AK9: - | AL9: - | AM9: - | AN9: - | AO9: - | AP9: - | AQ9: - | AR9: - | AS9: - | AT9: - | AU9: - | AV9: - | AW9: - | AX9: - | AY9: - | AZ9: - | BA9: - | BB9: - | BC9: - | BD9: - | BE9: - | BF9: - | BG9: - | BH9: - | BI9: - | BJ9: - | BK9: - | BL9: - | BM9: - | BN9: - | BO9: - | BP9: - | BQ9: - | BR9: - | BS9: - | BT9: - | BU9: - | BV9: - | BW9: - | BX9: - | BY9: - | BZ9: - | CA9: - | CB9: - | CC9: - | CD9: - | CE9: - | CF9: - | CG9: - | CH9: - | CI9: - | CJ9: - | CK9: - | CL9: - | CM9: - | CN9: - | CO9: - | CP9: - | CQ9: - | CR9: - | CS9: - | CT9: - | CU9: - | CV9: - | CW9: - | CX9: - | CY9: - | CZ9: - | DA9: - | DB9: - | DC9: - | DD9: - | DE9: - | DF9: - | DG9: - | DH9: - | DI9: - | DJ9: - | DK9: - | DL9: - | DM9: - | DN9: - | DO9: - | DP9: - | DQ9: - | DR9: - | DS9: - | DT9: - | DU9: - | DV9: - | DW9: - | DX9: - | DY9: - | DZ9: - | EA9: - | EB9: - | EC9: - | ED9: - | EE9: - | EF9: - | EG9: - | EH9: - | EI9: - | EJ9: - | EK9: - | EL9: - | EM9: - | EN9: - | EO9: - | EP9: - | EQ9: - | ER9: - | ES9: - | ET9: - | EU9: - | EV9: - | EW9: - | EX9: -
A10: OS0298 | B10: PL0000100434 | C10: 1998-02-12 | D10: 0.17 | E10: 1995-11-05 | F10: 1996-02-12 | G10: 1996-02-05 | H10: 1996-02-12 | I10: 46.11 | J10: 1996-02-12 | K10: 1997-02-12 | L10: 1997-01-30 | M10: 1997-02-12 | N10: 170 | O10: 1997-02-12 | P10: 1998-02-12 | Q10: 1998-01-30 | R10: 1998-02-12 | S10: 170 | T10: - | U10: - | V10: - | W10: - | X10: - | Y10: - | Z10: - | AA10: - | AB10: - | AC10: - | AD10: - | AE10: - | AF10: - | AG10: - | AH10: - | AI10: - | AJ10: - | AK10: - | AL10: - | AM10: - | AN10: - | AO10: - | AP10: - | AQ10: - | AR10: - | AS10: - | AT10: - | AU10: - | AV10: - | AW10: - | AX10: - | AY10: - | AZ10: - | BA10: - | BB10: - | BC10: - | BD10: - | BE10: - | BF10: - | BG10: - | BH10: - | BI10: - | BJ10: - | BK10: - | BL10: - | BM10: - | BN10: - | BO10: - | BP10: - | BQ10: - | BR10: - | BS10: - | BT10: - | BU10: - | BV10: - | BW10: - | BX10: - | BY10: - | BZ10: - | CA10: - | CB10: - | CC10: - | CD10: - | CE10: - | CF10: - | CG10: - | CH10: - | CI10: - | CJ10: - | CK10: - | CL10: - | CM10: - | CN10: - | CO10: - | CP10: - | CQ10: - | CR10: - | CS10: - | CT10: - | CU10: - | CV10: - | CW10: - | CX10: - | CY10: - | CZ10: - | DA10: - | DB10: - | DC10: - | DD10: - | DE10: - | DF10: - | DG10: - | DH10: - | DI10: - | DJ10: - | DK10: - | DL10: - | DM10: - | DN10: - | DO10: - | DP10: - | DQ10: - | DR10: - | DS10: - | DT10: - | DU10: - | DV10: - | DW10: - | DX10: - | DY10: - | DZ10: - | EA10: - | EB10: - | EC10: - | ED10: - | EE10: - | EF10: - | EG10: - | EH10: - | EI10: - | EJ10: - | EK10: - | EL10: - | EM10: - | EN10: - | EO10: - | EP10: - | EQ10: - | ER10: - | ES10: - | ET10: - | EU10: - | EV10: - | EW10: - | EX10: -
A11: OS0698 | B11: PL0000100491 | C11: 1998-06-12 | D11: 0.16 | E11: 1996-03-05 | F11: 1996-06-12 | G11: 1996-06-05 | H11: 1996-06-12 | I11: 43.4 | J11: 1996-06-12 | K11: 1997-06-12 | L11: 1997-05-30 | M11: 1997-06-12 | N11: 160 | O11: 1997-06-12 | P11: 1998-06-12 | Q11: 1998-05-29 | R11: 1998-06-12 | S11: 160 | T11: - | U11: - | V11: - | W11: - | X11: - | Y11: - | Z11: - | AA11: - | AB11: - | AC11: - | AD11: - | AE11: - | AF11: - | AG11: - | AH11: - | AI11: - | AJ11: - | AK11: - | AL11: - | AM11: - | AN11: - | AO11: - | AP11: - | AQ11: - | AR11: - | AS11: - | AT11: - | AU11: - | AV11: - | AW11: - | AX11: - | AY11: - | AZ11: - | BA11: - | BB11: - | BC11: - | BD11: - | BE11: - | BF11: - | BG11: - | BH11: - | BI11: - | BJ11: - | BK11: - | BL11: - | BM11: - | BN11: - | BO11: - | BP11: - | BQ11: - | BR11: - | BS11: - | BT11: - | BU11: - | BV11: - | BW11: - | BX11: - | BY11: - | BZ11: - | CA11: - | CB11: - | CC11: - | CD11: - | CE11: - | CF11: - | CG11: - | CH11: - | CI11: - | CJ11: - | CK11: - | CL11: - | CM11: - | CN11: - | CO11: - | CP11: - | CQ11: - | CR11: - | CS11: - | CT11: - | CU11: - | CV11: - | CW11: - | CX11: - | CY11: - | CZ11: - | DA11: - | DB11: - | DC11: - | DD11: - | DE11: - | DF11: - | DG11: - | DH11: - | DI11: - | DJ11: - | DK11: - | DL11: - | DM11: - | DN11: - | DO11: - | DP11: - | DQ11: - | DR11: - | DS11: - | DT11: - | DU11: - | DV11: - | DW11: - | DX11: - | DY11: - | DZ11: - | EA11: - | EB11: - | EC11: - | ED11: - | EE11: - | EF11: - | EG11: - | EH11: - | EI11: - | EJ11: - | EK11: - | EL11: - | EM11: - | EN11: - | EO11: - | EP11: - | EQ11: - | ER11: - | ES11: - | ET11: - | EU11: - | EV11: - | EW11: - | EX11: -
A12: OS1098 | B12: PL0000100566 | C12: 1998-10-12 | D12: 0.16 | E12: 1996-07-05 | F12: 1996-10-12 | G12: 1996-10-05 | H12: 1996-10-14 | I12: 43.4 | J12: 1996-10-12 | K12: 1997-10-12 | L12: 1997-09-30 | M12: 1997-10-13 | N12: 160 | O12: 1997-10-12 | P12: 1998-10-12 | Q12: 1998-09-29 | R12: 1998-10-12 | S12: 160 | T12: - | U12: - | V12: - | W12: - | X12: - | Y12: - | Z12: - | AA12: - | AB12: - | AC12: - | AD12: - | AE12: - | AF12: - | AG12: - | AH12: - | AI12: - | AJ12: - | AK12: - | AL12: - | AM12: - | AN12: - | AO12: - | AP12: - | AQ12: - | AR12: - | AS12: - | AT12: - | AU12: - | AV12: - | AW12: - | AX12: - | AY12: - | AZ12: - | BA12: - | BB12: - | BC12: - | BD12: - | BE12: - | BF12: - | BG12: - | BH12: - | BI12: - | BJ12: - | BK12: - | BL12: - | BM12: - | BN12: - | BO12: - | BP12: - | BQ12: - | BR12: - | BS12: - | BT12: - | BU12: - | BV12: - | BW12: - | BX12: - | BY12: - | BZ12: - | CA12: - | CB12: - | CC12: - | CD12: - | CE12: - | CF12: - | CG12: - | CH12: - | CI12: - | CJ12: - | CK12: - | CL12: - | CM12: - | CN12: - | CO12: - | CP12: - | CQ12: - | CR12: - | CS12: - | CT12: - | CU12: - | CV12: - | CW12: - | CX12: - | CY12: - | CZ12: - | DA12: - | DB12: - | DC12: - | DD12: - | DE12: - | DF12: - | DG12: - | DH12: - | DI12: - | DJ12: - | DK12: - | DL12: - | DM12: - | DN12: - | DO12: - | DP12: - | DQ12: - | DR12: - | DS12: - | DT12: - | DU12: - | DV12: - | DW12: - | DX12: - | DY12: - | DZ12: - | EA12: - | EB12: - | EC12: - | ED12: - | EE12: - | EF12: - | EG12: - | EH12: - | EI12: - | EJ12: - | EK12: - | EL12: - | EM12: - | EN12: - | EO12: - | EP12: - | EQ12: - | ER12: - | ES12: - | ET12: - | EU12: - | EV12: - | EW12: - | EX12: -
A13: OS0299 | B13: PL0000100624 | C13: 1999-02-12 | D13: 0.16 | E13: 1996-11-05 | F13: 1997-02-12 | G13: 1997-02-05 | H13: 1997-02-12 | I13: 43.4 | J13: 1997-02-12 | K13: 1998-02-12 | L13: 1998-01-30 | M13: 1998-02-12 | N13: 160 | O13: 1998-02-12 | P13: 1999-02-12 | Q13: 1999-02-01 | R13: 1999-02-12 | S13: 160 | T13: - | U13: - | V13: - | W13: - | X13: - | Y13: - | Z13: - | AA13: - | AB13: - | AC13: - | AD13: - | AE13: - | AF13: - | AG13: - | AH13: - | AI13: - | AJ13: - | AK13: - | AL13: - | AM13: - | AN13: - | AO13: - | AP13: - | AQ13: - | AR13: - | AS13: - | AT13: - | AU13: - | AV13: - | AW13: - | AX13: - | AY13: - | AZ13: - | BA13: - | BB13: - | BC13: - | BD13: - | BE13: - | BF13: - | BG13: - | BH13: - | BI13: - | BJ13: - | BK13: - | BL13: - | BM13: - | BN13: - | BO13: - | BP13: - | BQ13: - | BR13: - | BS13: - | BT13: - | BU13: - | BV13: - | BW13: - | BX13: - | BY13: - | BZ13: - | CA13: - | CB13: - | CC13: - | CD13: - | CE13: - | CF13: - | CG13: - | CH13: - | CI13: - | CJ13: - | CK13: - | CL13: - | CM13: - | CN13: - | CO13: - | CP13: - | CQ13: - | CR13: - | CS13: - | CT13: - | CU13: - | CV13: - | CW13: - | CX13: - | CY13: - | CZ13: - | DA13: - | DB13: - | DC13: - | DD13: - | DE13: - | DF13: - | DG13: - | DH13: - | DI13: - | DJ13: - | DK13: - | DL13: - | DM13: - | DN13: - | DO13: - | DP13: - | DQ13: - | DR13: - | DS13: - | DT13: - | DU13: - | DV13: - | DW13: - | DX13: - | DY13: - | DZ13: - | EA13: - | EB13: - | EC13: - | ED13: - | EE13: - | EF13: - | EG13: - | EH13: - | EI13: - | EJ13: - | EK13: - | EL13: - | EM13: - | EN13: - | EO13: - | EP13: - | EQ13: - | ER13: - | ES13: - | ET13: - | EU13: - | EV13: - | EW13: - | EX13: -
A14: AS0699 | B14: PL0000100715 | C14: 1999-06-12 | D14: 0.15 | E14: 1997-02-12 | F14: 1997-06-12 | G14: 1997-05-28 | H14: 1997-06-12 | I14: 49.32 | J14: 1997-06-12 | K14: 1998-06-12 | L14: 1998-05-28 | M14: 1998-06-12 | N14: 150 | O14: 1998-06-12 | P14: 1999-06-12 | Q14: 1999-05-28 | R14: 1999-06-14 | S14: 150 | T14: - | U14: - | V14: - | W14: - | X14: - | Y14: - | Z14: - | AA14: - | AB14: - | AC14: - | AD14: - | AE14: - | AF14: - | AG14: - | AH14: - | AI14: - | AJ14: - | AK14: - | AL14: - | AM14: - | AN14: - | AO14: - | AP14: - | AQ14: - | AR14: - | AS14: - | AT14: - | AU14: - | AV14: - | AW14: - | AX14: - | AY14: - | AZ14: - | BA14: - | BB14: - | BC14: - | BD14: - | BE14: - | BF14: - | BG14: - | BH14: - | BI14: - | BJ14: - | BK14: - | BL14: - | BM14: - | BN14: - | BO14: - | BP14: - | BQ14: - | BR14: - | BS14: - | BT14: - | BU14: - | BV14: - | BW14: - | BX14: - | BY14: - | BZ14: - | CA14: - | CB14: - | CC14: - | CD14: - | CE14: - | CF14: - | CG14: - | CH14: - | CI14: - | CJ14: - | CK14: - | CL14: - | CM14: - | CN14: - | CO14: - | CP14: - | CQ14: - | CR14: - | CS14: - | CT14: - | CU14: - | CV14: - | CW14: - | CX14: - | CY14: - | CZ14: - | DA14: - | DB14: - | DC14: - | DD14: - | DE14: - | DF14: - | DG14: - | DH14: - | DI14: - | DJ14: - | DK14: - | DL14: - | DM14: - | DN14: - | DO14: - | DP14: - | DQ14: - | DR14: - | DS14: - | DT14: - | DU14: - | DV14: - | DW14: - | DX14: - | DY14: - | DZ14: - | EA14: - | EB14: - | EC14: - | ED14: - | EE14: - | EF14: - | EG14: - | EH14: - | EI14: - | EJ14: - | EK14: - | EL14: - | EM14: - | EN14: - | EO14: - | EP14: - | EQ14: - | ER14: - | ES14: - | ET14: - | EU14: - | EV14: - | EW14: - | EX14: -
A15: OS0699 | B15: PL0000100186 | C15: 1999-06-12 | D15: 0.15 | E15: 1994-03-12 | F15: 1994-06-12 | G15: 1994-05-28 | H15: 1994-06-13 | I15: 37.81 | J15: 1994-06-12 | K15: 1995-06-12 | L15: 1995-05-28 | M15: 1995-06-12 | N15: 150 | O15: 1995-06-12 | P15: 1996-06-12 | Q15: 1996-05-28 | R15: 1996-06-12 | S15: 150 | T15: 1996-06-12 | U15: 1997-06-12 | V15: 1997-05-28 | W15: 1997-06-12 | X15: 150 | Y15: 1997-06-12 | Z15: 1998-06-12 | AA15: 1998-05-28 | AB15: 1998-06-12 | AC15: 150 | AD15: 1998-06-12 | AE15: 1999-06-12 | AF15: 1999-05-28 | AG15: 1999-06-14 | AH15: 150 | AI15: - | AJ15: - | AK15: - | AL15: - | AM15: - | AN15: - | AO15: - | AP15: - | AQ15: - | AR15: - | AS15: - | AT15: - | AU15: - | AV15: - | AW15: - | AX15: - | AY15: - | AZ15: - | BA15: - | BB15: - | BC15: - | BD15: - | BE15: - | BF15: - | BG15: - | BH15: - | BI15: - | BJ15: - | BK15: - | BL15: - | BM15: - | BN15: - | BO15: - | BP15: - | BQ15: - | BR15: - | BS15: - | BT15: - | BU15: - | BV15: - | BW15: - | BX15: - | BY15: - | BZ15: - | CA15: - | CB15: - | CC15: - | CD15: - | CE15: - | CF15: - | CG15: - | CH15: - | CI15: - | CJ15: - | CK15: - | CL15: - | CM15: - | CN15: - | CO15: - | CP15: - | CQ15: - | CR15: - | CS15: - | CT15: - | CU15: - | CV15: - | CW15: - | CX15: - | CY15: - | CZ15: - | DA15: - | DB15: - | DC15: - | DD15: - | DE15: - | DF15: - | DG15: - | DH15: - | DI15: - | DJ15: - | DK15: - | DL15: - | DM15: - | DN15: - | DO15: - | DP15: - | DQ15: - | DR15: - | DS15: - | DT15: - | DU15: - | DV15: - | DW15: - | DX15: - | DY15: - | DZ15: - | EA15: - | EB15: - | EC15: - | ED15: - | EE15: - | EF15: - | EG15: - | EH15: - | EI15: - | EJ15: - | EK15: - | EL15: - | EM15: - | EN15: - | EO15: - | EP15: - | EQ15: - | ER15: - | ES15: - | ET15: - | EU15: - | EV15: - | EW15: - | EX15: -
A16: AS1099 | B16: PL0000100772 | C16: 1999-10-12 | D16: 0.15 | E16: 1997-06-12 | F16: 1997-10-12 | G16: 1997-10-05 | H16: 1997-10-13 | I16: 50.14 | J16: 1997-10-12 | K16: 1998-10-12 | L16: 1998-10-05 | M16: 1998-10-12 | N16: 150 | O16: 1998-10-12 | P16: 1999-10-12 | Q16: 1999-10-05 | R16: 1999-10-12 | S16: 150 | T16: - | U16: - | V16: - | W16: - | X16: - | Y16: - | Z16: - | AA16: - | AB16: - | AC16: - | AD16: - | AE16: - | AF16: - | AG16: - | AH16: - | AI16: - | AJ16: - | AK16: - | AL16: - | AM16: - | AN16: - | AO16: - | AP16: - | AQ16: - | AR16: - | AS16: - | AT16: - | AU16: - | AV16: - | AW16: - | AX16: - | AY16: - | AZ16: - | BA16: - | BB16: - | BC16: - | BD16: - | BE16: - | BF16: - | BG16: - | BH16: - | BI16: - | BJ16: - | BK16: - | BL16: - | BM16: - | BN16: - | BO16: - | BP16: - | BQ16: - | BR16: - | BS16: - | BT16: - | BU16: - | BV16: - | BW16: - | BX16: - | BY16: - | BZ16: - | CA16: - | CB16: - | CC16: - | CD16: - | CE16: - | CF16: - | CG16: - | CH16: - | CI16: - | CJ16: - | CK16: - | CL16: - | CM16: - | CN16: - | CO16: - | CP16: - | CQ16: - | CR16: - | CS16: - | CT16: - | CU16: - | CV16: - | CW16: - | CX16: - | CY16: - | CZ16: - | DA16: - | DB16: - | DC16: - | DD16: - | DE16: - | DF16: - | DG16: - | DH16: - | DI16: - | DJ16: - | DK16: - | DL16: - | DM16: - | DN16: - | DO16: - | DP16: - | DQ16: - | DR16: - | DS16: - | DT16: - | DU16: - | DV16: - | DW16: - | DX16: - | DY16: - | DZ16: - | EA16: - | EB16: - | EC16: - | ED16: - | EE16: - | EF16: - | EG16: - | EH16: - | EI16: - | EJ16: - | EK16: - | EL16: - | EM16: - | EN16: - | EO16: - | EP16: - | EQ16: - | ER16: - | ES16: - | ET16: - | EU16: - | EV16: - | EW16: - | EX16: -
A17: OS1099 | B17: PL0000100210 | C17: 1999-10-12 | D17: 0.15 | E17: 1994-07-12 | F17: 1994-10-12 | G17: 1994-10-05 | H17: 1994-10-12 | I17: 37.81 | J17: 1994-10-12 | K17: 1995-10-12 | L17: 1995-10-05 | M17: 1995-10-12 | N17: 150 | O17: 1995-10-12 | P17: 1996-10-12 | Q17: 1996-10-05 | R17: 1996-10-14 | S17: 150 | T17: 1996-10-12 | U17: 1997-10-12 | V17: 1997-10-05 | W17: 1997-10-13 | X17: 150 | Y17: 1997-10-12 | Z17: 1998-10-12 | AA17: 1998-10-05 | AB17: 1998-10-12 | AC17: 150 | AD17: 1998-10-12 | AE17: 1999-10-12 | AF17: 1999-10-05 | AG17: 1999-10-12 | AH17: 150 | AI17: - | AJ17: - | AK17: - | AL17: - | AM17: - | AN17: - | AO17: - | AP17: - | AQ17: - | AR17: - | AS17: - | AT17: - | AU17: - | AV17: - | AW17: - | AX17: - | AY17: - | AZ17: - | BA17: - | BB17: - | BC17: - | BD17: - | BE17: - | BF17: - | BG17: - | BH17: - | BI17: - | BJ17: - | BK17: - | BL17: - | BM17: - | BN17: - | BO17: - | BP17: - | BQ17: - | BR17: - | BS17: - | BT17: - | BU17: - | BV17: - | BW17: - | BX17: - | BY17: - | BZ17: - | CA17: - | CB17: - | CC17: - | CD17: - | CE17: - | CF17: - | CG17: - | CH17: - | CI17: - | CJ17: - | CK17: - | CL17: - | CM17: - | CN17: - | CO17: - | CP17: - | CQ17: - | CR17: - | CS17: - | CT17: - | CU17: - | CV17: - | CW17: - | CX17: - | CY17: - | CZ17: - | DA17: - | DB17: - | DC17: - | DD17: - | DE17: - | DF17: - | DG17: - | DH17: - | DI17: - | DJ17: - | DK17: - | DL17: - | DM17: - | DN17: - | DO17: - | DP17: - | DQ17: - | DR17: - | DS17: - | DT17: - | DU17: - | DV17: - | DW17: - | DX17: - | DY17: - | DZ17: - | EA17: - | EB17: - | EC17: - | ED17: - | EE17: - | EF17: - | EG17: - | EH17: - | EI17: - | EJ17: - | EK17: - | EL17: - | EM17: - | EN17: - | EO17: - | EP17: - | EQ17: - | ER17: - | ES17: - | ET17: - | EU17: - | EV17: - | EW17: - | EX17: -
A18: AS0200 | B18: PL0000100855 | C18: 2000-02-12 | D18: 0.14 | E18: 1997-10-12 | F18: 1998-02-12 | G18: 1998-02-05 | H18: 1998-02-12 | I18: 47.18 | J18: 1998-02-12 | K18: 1999-02-12 | L18: 1999-02-05 | M18: 1999-02-12 | N18: 140 | O18: 1999-02-12 | P18: 2000-02-12 | Q18: 2000-02-05 | R18: 2000-02-14 | S18: 140 | T18: - | U18: - | V18: - | W18: - | X18: - | Y18: - | Z18: - | AA18: - | AB18: - | AC18: - | AD18: - | AE18: - | AF18: - | AG18: - | AH18: - | AI18: - | AJ18: - | AK18: - | AL18: - | AM18: - | AN18: - | AO18: - | AP18: - | AQ18: - | AR18: - | AS18: - | AT18: - | AU18: - | AV18: - | AW18: - | AX18: - | AY18: - | AZ18: - | BA18: - | BB18: - | BC18: - | BD18: - | BE18: - | BF18: - | BG18: - | BH18: - | BI18: - | BJ18: - | BK18: - | BL18: - | BM18: - | BN18: - | BO18: - | BP18: - | BQ18: - | BR18: - | BS18: - | BT18: - | BU18: - | BV18: - | BW18: - | BX18: - | BY18: - | BZ18: - | CA18: - | CB18: - | CC18: - | CD18: - | CE18: - | CF18: - | CG18: - | CH18: - | CI18: - | CJ18: - | CK18: - | CL18: - | CM18: - | CN18: - | CO18: - | CP18: - | CQ18: - | CR18: - | CS18: - | CT18: - | CU18: - | CV18: - | CW18: - | CX18: - | CY18: - | CZ18: - | DA18: - | DB18: - | DC18: - | DD18: - | DE18: - | DF18: - | DG18: - | DH18: - | DI18: - | DJ18: - | DK18: - | DL18: - | DM18: - | DN18: - | DO18: - | DP18: - | DQ18: - | DR18: - | DS18: - | DT18: - | DU18: - | DV18: - | DW18: - | DX18: - | DY18: - | DZ18: - | EA18: - | EB18: - | EC18: - | ED18: - | EE18: - | EF18: - | EG18: - | EH18: - | EI18: - | EJ18: - | EK18: - | EL18: - | EM18: - | EN18: - | EO18: - | EP18: - | EQ18: - | ER18: - | ES18: - | ET18: - | EU18: - | EV18: - | EW18: - | EX18: -
A19: OS0200 | B19: PL0000100269 | C19: 2000-02-12 | D19: 0.14 | E19: 1994-11-12 | F19: 1995-02-12 | G19: 1995-02-05 | H19: 1995-02-13 | I19: 35.29 | J19: 1995-02-12 | K19: 1996-02-12 | L19: 1996-02-05 | M19: 1996-02-12 | N19: 140 | O19: 1996-02-12 | P19: 1997-02-12 | Q19: 1997-02-05 | R19: 1997-02-12 | S19: 140 | T19: 1997-02-12 | U19: 1998-02-12 | V19: 1998-02-05 | W19: 1998-02-12 | X19: 140 | Y19: 1998-02-12 | Z19: 1999-02-12 | AA19: 1999-02-05 | AB19: 1999-02-12 | AC19: 140 | AD19: 1999-02-12 | AE19: 2000-02-12 | AF19: 2000-02-05 | AG19: 2000-02-14 | AH19: 140 | AI19: - | AJ19: - | AK19: - | AL19: - | AM19: - | AN19: - | AO19: - | AP19: - | AQ19: - | AR19: - | AS19: - | AT19: - | AU19: - | AV19: - | AW19: - | AX19: - | AY19: - | AZ19: - | BA19: - | BB19: - | BC19: - | BD19: - | BE19: - | BF19: - | BG19: - | BH19: - | BI19: - | BJ19: - | BK19: - | BL19: - | BM19: - | BN19: - | BO19: - | BP19: - | BQ19: - | BR19: - | BS19: - | BT19: - | BU19: - | BV19: - | BW19: - | BX19: - | BY19: - | BZ19: - | CA19: - | CB19: - | CC19: - | CD19: - | CE19: - | CF19: - | CG19: - | CH19: - | CI19: - | CJ19: - | CK19: - | CL19: - | CM19: - | CN19: - | CO19: - | CP19: - | CQ19: - | CR19: - | CS19: - | CT19: - | CU19: - | CV19: - | CW19: - | CX19: - | CY19: - | CZ19: - | DA19: - | DB19: - | DC19: - | DD19: - | DE19: - | DF19: - | DG19: - | DH19: - | DI19: - | DJ19: - | DK19: - | DL19: - | DM19: - | DN19: - | DO19: - | DP19: - | DQ19: - | DR19: - | DS19: - | DT19: - | DU19: - | DV19: - | DW19: - | DX19: - | DY19: - | DZ19: - | EA19: - | EB19: - | EC19: - | ED19: - | EE19: - | EF19: - | EG19: - | EH19: - | EI19: - | EJ19: - | EK19: - | EL19: - | EM19: - | EN19: - | EO19: - | EP19: - | EQ19: - | ER19: - | ES19: - | ET19: - | EU19: - | EV19: - | EW19: - | EX19: -
A20: AS0600 | B20: PL0000100988 | C20: 2000-06-12 | D20: 0.14 | E20: 1998-02-12 | F20: 1998-06-12 | G20: 1998-05-29 | H20: 1998-06-12 | I20: 46.03 | J20: 1998-06-12 | K20: 1999-06-12 | L20: 1999-06-05 | M20: 1999-06-14 | N20: 140 | O20: 1999-06-12 | P20: 2000-06-12 | Q20: 2000-06-05 | R20: 2000-06-12 | S20: 140 | T20: - | U20: - | V20: - | W20: - | X20: - | Y20: - | Z20: - | AA20: - | AB20: - | AC20: - | AD20: - | AE20: - | AF20: - | AG20: - | AH20: - | AI20: - | AJ20: - | AK20: - | AL20: - | AM20: - | AN20: - | AO20: - | AP20: - | AQ20: - | AR20: - | AS20: - | AT20: - | AU20: - | AV20: - | AW20: - | AX20: - | AY20: - | AZ20: - | BA20: - | BB20: - | BC20: - | BD20: - | BE20: - | BF20: - | BG20: - | BH20: - | BI20: - | BJ20: - | BK20: - | BL20: - | BM20: - | BN20: - | BO20: - | BP20: - | BQ20: - | BR20: - | BS20: - | BT20: - | BU20: - | BV20: - | BW20: - | BX20: - | BY20: - | BZ20: - | CA20: - | CB20: - | CC20: - | CD20: - | CE20: - | CF20: - | CG20: - | CH20: - | CI20: - | CJ20: - | CK20: - | CL20: - | CM20: - | CN20: - | CO20: - | CP20: - | CQ20: - | CR20: - | CS20: - | CT20: - | CU20: - | CV20: - | CW20: - | CX20: - | CY20: - | CZ20: - | DA20: - | DB20: - | DC20: - | DD20: - | DE20: - | DF20: - | DG20: - | DH20: - | DI20: - | DJ20: - | DK20: - | DL20: - | DM20: - | DN20: - | DO20: - | DP20: - | DQ20: - | DR20: - | DS20: - | DT20: - | DU20: - | DV20: - | DW20: - | DX20: - | DY20: - | DZ20: - | EA20: - | EB20: - | EC20: - | ED20: - | EE20: - | EF20: - | EG20: - | EH20: - | EI20: - | EJ20: - | EK20: - | EL20: - | EM20: - | EN20: - | EO20: - | EP20: - | EQ20: - | ER20: - | ES20: - | ET20: - | EU20: - | EV20: - | EW20: - | EX20: -
A21: OS0600 | B21: PL0000100301 | C21: 2000-06-12 | D21: 0.14 | E21: 1995-02-12 | F21: 1995-06-12 | G21: 1995-06-05 | H21: 1995-06-12 | I21: 46.03 | J21: 1995-06-12 | K21: 1996-06-12 | L21: 1996-06-05 | M21: 1996-06-12 | N21: 140 | O21: 1996-06-12 | P21: 1997-06-12 | Q21: 1997-06-05 | R21: 1997-06-12 | S21: 140 | T21: 1997-06-12 | U21: 1998-06-12 | V21: 1998-05-29 | W21: 1998-06-12 | X21: 140 | Y21: 1998-06-12 | Z21: 1999-06-12 | AA21: 1999-06-05 | AB21: 1999-06-14 | AC21: 140 | AD21: 1999-06-12 | AE21: 2000-06-12 | AF21: 2000-06-05 | AG21: 2000-06-12 | AH21: 140 | AI21: - | AJ21: - | AK21: - | AL21: - | AM21: - | AN21: - | AO21: - | AP21: - | AQ21: - | AR21: - | AS21: - | AT21: - | AU21: - | AV21: - | AW21: - | AX21: - | AY21: - | AZ21: - | BA21: - | BB21: - | BC21: - | BD21: - | BE21: - | BF21: - | BG21: - | BH21: - | BI21: - | BJ21: - | BK21: - | BL21: - | BM21: - | BN21: - | BO21: - | BP21: - | BQ21: - | BR21: - | BS21: - | BT21: - | BU21: - | BV21: - | BW21: - | BX21: - | BY21: - | BZ21: - | CA21: - | CB21: - | CC21: - | CD21: - | CE21: - | CF21: - | CG21: - | CH21: - | CI21: - | CJ21: - | CK21: - | CL21: - | CM21: - | CN21: - | CO21: - | CP21: - | CQ21: - | CR21: - | CS21: - | CT21: - | CU21: - | CV21: - | CW21: - | CX21: - | CY21: - | CZ21: - | DA21: - | DB21: - | DC21: - | DD21: - | DE21: - | DF21: - | DG21: - | DH21: - | DI21: - | DJ21: - | DK21: - | DL21: - | DM21: - | DN21: - | DO21: - | DP21: - | DQ21: - | DR21: - | DS21: - | DT21: - | DU21: - | DV21: - | DW21: - | DX21: - | DY21: - | DZ21: - | EA21: - | EB21: - | EC21: - | ED21: - | EE21: - | EF21: - | EG21: - | EH21: - | EI21: - | EJ21: - | EK21: - | EL21: - | EM21: - | EN21: - | EO21: - | EP21: - | EQ21: - | ER21: - | ES21: - | ET21: - | EU21: - | EV21: - | EW21: - | EX21: -
A22: OS0700 | B22: PL0000100335 | C22: 2000-07-12 | D22: 0.14 | E22: 1995-04-12 | F22: 1995-07-12 | G22: 1995-07-05 | H22: 1995-07-12 | I22: 34.9 | J22: 1995-07-12 | K22: 1996-07-12 | L22: 1996-07-05 | M22: 1996-07-12 | N22: 140 | O22: 1996-07-12 | P22: 1997-07-12 | Q22: 1997-07-05 | R22: 1997-07-14 | S22: 140 | T22: 1997-07-12 | U22: 1998-07-12 | V22: 1998-07-05 | W22: 1998-07-13 | X22: 140 | Y22: 1998-07-12 | Z22: 1999-07-12 | AA22: 1999-07-05 | AB22: 1999-07-12 | AC22: 140 | AD22: 1999-07-12 | AE22: 2000-07-12 | AF22: 2000-07-05 | AG22: 2000-07-12 | AH22: 140 | AI22: - | AJ22: - | AK22: - | AL22: - | AM22: - | AN22: - | AO22: - | AP22: - | AQ22: - | AR22: - | AS22: - | AT22: - | AU22: - | AV22: - | AW22: - | AX22: - | AY22: - | AZ22: - | BA22: - | BB22: - | BC22: - | BD22: - | BE22: - | BF22: - | BG22: - | BH22: - | BI22: - | BJ22: - | BK22: - | BL22: - | BM22: - | BN22: - | BO22: - | BP22: - | BQ22: - | BR22: - | BS22: - | BT22: - | BU22: - | BV22: - | BW22: - | BX22: - | BY22: - | BZ22: - | CA22: - | CB22: - | CC22: - | CD22: - | CE22: - | CF22: - | CG22: - | CH22: - | CI22: - | CJ22: - | CK22: - | CL22: - | CM22: - | CN22: - | CO22: - | CP22: - | CQ22: - | CR22: - | CS22: - | CT22: - | CU22: - | CV22: - | CW22: - | CX22: - | CY22: - | CZ22: - | DA22: - | DB22: - | DC22: - | DD22: - | DE22: - | DF22: - | DG22: - | DH22: - | DI22: - | DJ22: - | DK22: - | DL22: - | DM22: - | DN22: - | DO22: - | DP22: - | DQ22: - | DR22: - | DS22: - | DT22: - | DU22: - | DV22: - | DW22: - | DX22: - | DY22: - | DZ22: - | EA22: - | EB22: - | EC22: - | ED22: - | EE22: - | EF22: - | EG22: - | EH22: - | EI22: - | EJ22: - | EK22: - | EL22: - | EM22: - | EN22: - | EO22: - | EP22: - | EQ22: - | ER22: - | ES22: - | ET22: - | EU22: - | EV22: - | EW22: - | EX22: -
A23: OS0800 | B23: PL0000100368 | C23: 2000-08-12 | D23: 0.14 | E23: 1995-05-12 | F23: 1995-08-12 | G23: 1995-08-05 | H23: 1995-08-14 | I23: 35.29 | J23: 1995-08-12 | K23: 1996-08-12 | L23: 1996-08-05 | M23: 1996-08-12 | N23: 140 | O23: 1996-08-12 | P23: 1997-08-12 | Q23: 1997-08-05 | R23: 1997-08-12 | S23: 140 | T23: 1997-08-12 | U23: 1998-08-12 | V23: 1998-08-05 | W23: 1998-08-12 | X23: 140 | Y23: 1998-08-12 | Z23: 1999-08-12 | AA23: 1999-08-05 | AB23: 1999-08-12 | AC23: 140 | AD23: 1999-08-12 | AE23: 2000-08-12 | AF23: 2000-08-05 | AG23: 2000-08-14 | AH23: 140 | AI23: - | AJ23: - | AK23: - | AL23: - | AM23: - | AN23: - | AO23: - | AP23: - | AQ23: - | AR23: - | AS23: - | AT23: - | AU23: - | AV23: - | AW23: - | AX23: - | AY23: - | AZ23: - | BA23: - | BB23: - | BC23: - | BD23: - | BE23: - | BF23: - | BG23: - | BH23: - | BI23: - | BJ23: - | BK23: - | BL23: - | BM23: - | BN23: - | BO23: - | BP23: - | BQ23: - | BR23: - | BS23: - | BT23: - | BU23: - | BV23: - | BW23: - | BX23: - | BY23: - | BZ23: - | CA23: - | CB23: - | CC23: - | CD23: - | CE23: - | CF23: - | CG23: - | CH23: - | CI23: - | CJ23: - | CK23: - | CL23: - | CM23: - | CN23: - | CO23: - | CP23: - | CQ23: - | CR23: - | CS23: - | CT23: - | CU23: - | CV23: - | CW23: - | CX23: - | CY23: - | CZ23: - | DA23: - | DB23: - | DC23: - | DD23: - | DE23: - | DF23: - | DG23: - | DH23: - | DI23: - | DJ23: - | DK23: - | DL23: - | DM23: - | DN23: - | DO23: - | DP23: - | DQ23: - | DR23: - | DS23: - | DT23: - | DU23: - | DV23: - | DW23: - | DX23: - | DY23: - | DZ23: - | EA23: - | EB23: - | EC23: - | ED23: - | EE23: - | EF23: - | EG23: - | EH23: - | EI23: - | EJ23: - | EK23: - | EL23: - | EM23: - | EN23: - | EO23: - | EP23: - | EQ23: - | ER23: - | ES23: - | ET23: - | EU23: - | EV23: - | EW23: - | EX23: -
A24: AS1000 | B24: PL0000101044 | C24: 2000-10-12 | D24: 0.13 | E24: 1998-06-12 | F24: 1998-10-12 | G24: 1998-09-29 | H24: 1998-10-12 | I24: 43.45 | J24: 1998-10-12 | K24: 1999-10-12 | L24: 1999-09-29 | M24: 1999-10-12 | N24: 130 | O24: 1999-10-12 | P24: 2000-10-12 | Q24: 2000-09-29 | R24: 2000-10-12 | S24: 130 | T24: - | U24: - | V24: - | W24: - | X24: - | Y24: - | Z24: - | AA24: - | AB24: - | AC24: - | AD24: - | AE24: - | AF24: - | AG24: - | AH24: - | AI24: - | AJ24: - | AK24: - | AL24: - | AM24: - | AN24: - | AO24: - | AP24: - | AQ24: - | AR24: - | AS24: - | AT24: - | AU24: - | AV24: - | AW24: - | AX24: - | AY24: - | AZ24: - | BA24: - | BB24: - | BC24: - | BD24: - | BE24: - | BF24: - | BG24: - | BH24: - | BI24: - | BJ24: - | BK24: - | BL24: - | BM24: - | BN24: - | BO24: - | BP24: - | BQ24: - | BR24: - | BS24: - | BT24: - | BU24: - | BV24: - | BW24: - | BX24: - | BY24: - | BZ24: - | CA24: - | CB24: - | CC24: - | CD24: - | CE24: - | CF24: - | CG24: - | CH24: - | CI24: - | CJ24: - | CK24: - | CL24: - | CM24: - | CN24: - | CO24: - | CP24: - | CQ24: - | CR24: - | CS24: - | CT24: - | CU24: - | CV24: - | CW24: - | CX24: - | CY24: - | CZ24: - | DA24: - | DB24: - | DC24: - | DD24: - | DE24: - | DF24: - | DG24: - | DH24: - | DI24: - | DJ24: - | DK24: - | DL24: - | DM24: - | DN24: - | DO24: - | DP24: - | DQ24: - | DR24: - | DS24: - | DT24: - | DU24: - | DV24: - | DW24: - | DX24: - | DY24: - | DZ24: - | EA24: - | EB24: - | EC24: - | ED24: - | EE24: - | EF24: - | EG24: - | EH24: - | EI24: - | EJ24: - | EK24: - | EL24: - | EM24: - | EN24: - | EO24: - | EP24: - | EQ24: - | ER24: - | ES24: - | ET24: - | EU24: - | EV24: - | EW24: - | EX24: -
A25: OS1000 | B25: PL0000100418 | C25: 2000-10-12 | D25: 0.13 | E25: 1995-09-12 | F25: 1995-10-12 | G25: 1995-10-05 | H25: 1995-10-12 | I25: 10.68 | J25: 1995-10-12 | K25: 1996-10-12 | L25: 1996-10-01 | M25: 1996-10-14 | N25: 130 | O25: 1996-10-12 | P25: 1997-10-12 | Q25: 1997-09-30 | R25: 1997-10-13 | S25: 130 | T25: 1997-10-12 | U25: 1998-10-12 | V25: 1998-09-29 | W25: 1998-10-12 | X25: 130 | Y25: 1998-10-12 | Z25: 1999-10-12 | AA25: 1999-09-29 | AB25: 1999-10-12 | AC25: 130 | AD25: 1999-10-12 | AE25: 2000-10-12 | AF25: 2000-09-29 | AG25: 2000-10-12 | AH25: 130 | AI25: - | AJ25: - | AK25: - | AL25: - | AM25: - | AN25: - | AO25: - | AP25: - | AQ25: - | AR25: - | AS25: - | AT25: - | AU25: - | AV25: - | AW25: - | AX25: - | AY25: - | AZ25: - | BA25: - | BB25: - | BC25: - | BD25: - | BE25: - | BF25: - | BG25: - | BH25: - | BI25: - | BJ25: - | BK25: - | BL25: - | BM25: - | BN25: - | BO25: - | BP25: - | BQ25: - | BR25: - | BS25: - | BT25: - | BU25: - | BV25: - | BW25: - | BX25: - | BY25: - | BZ25: - | CA25: - | CB25: - | CC25: - | CD25: - | CE25: - | CF25: - | CG25: - | CH25: - | CI25: - | CJ25: - | CK25: - | CL25: - | CM25: - | CN25: - | CO25: - | CP25: - | CQ25: - | CR25: - | CS25: - | CT25: - | CU25: - | CV25: - | CW25: - | CX25: - | CY25: - | CZ25: - | DA25: - | DB25: - | DC25: - | DD25: - | DE25: - | DF25: - | DG25: - | DH25: - | DI25: - | DJ25: - | DK25: - | DL25: - | DM25: - | DN25: - | DO25: - | DP25: - | DQ25: - | DR25: - | DS25: - | DT25: - | DU25: - | DV25: - | DW25: - | DX25: - | DY25: - | DZ25: - | EA25: - | EB25: - | EC25: - | ED25: - | EE25: - | EF25: - | EG25: - | EH25: - | EI25: - | EJ25: - | EK25: - | EL25: - | EM25: - | EN25: - | EO25: - | EP25: - | EQ25: - | ER25: - | ES25: - | ET25: - | EU25: - | EV25: - | EW25: - | EX25: -
A26: AS0201 | B26: PL0000101176 | C26: 2001-02-12 | D26: 0.13 | E26: 1998-10-12 | F26: 1999-02-12 | G26: 1999-02-01 | H26: 1999-02-12 | I26: 43.81 | J26: 1999-02-12 | K26: 2000-02-12 | L26: 2000-02-01 | M26: 2000-02-14 | N26: 130 | O26: 2000-02-12 | P26: 2001-02-12 | Q26: 2001-01-30 | R26: 2001-02-12 | S26: 130 | T26: - | U26: - | V26: - | W26: - | X26: - | Y26: - | Z26: - | AA26: - | AB26: - | AC26: - | AD26: - | AE26: - | AF26: - | AG26: - | AH26: - | AI26: - | AJ26: - | AK26: - | AL26: - | AM26: - | AN26: - | AO26: - | AP26: - | AQ26: - | AR26: - | AS26: - | AT26: - | AU26: - | AV26: - | AW26: - | AX26: - | AY26: - | AZ26: - | BA26: - | BB26: - | BC26: - | BD26: - | BE26: - | BF26: - | BG26: - | BH26: - | BI26: - | BJ26: - | BK26: - | BL26: - | BM26: - | BN26: - | BO26: - | BP26: - | BQ26: - | BR26: - | BS26: - | BT26: - | BU26: - | BV26: - | BW26: - | BX26: - | BY26: - | BZ26: - | CA26: - | CB26: - | CC26: - | CD26: - | CE26: - | CF26: - | CG26: - | CH26: - | CI26: - | CJ26: - | CK26: - | CL26: - | CM26: - | CN26: - | CO26: - | CP26: - | CQ26: - | CR26: - | CS26: - | CT26: - | CU26: - | CV26: - | CW26: - | CX26: - | CY26: - | CZ26: - | DA26: - | DB26: - | DC26: - | DD26: - | DE26: - | DF26: - | DG26: - | DH26: - | DI26: - | DJ26: - | DK26: - | DL26: - | DM26: - | DN26: - | DO26: - | DP26: - | DQ26: - | DR26: - | DS26: - | DT26: - | DU26: - | DV26: - | DW26: - | DX26: - | DY26: - | DZ26: - | EA26: - | EB26: - | EC26: - | ED26: - | EE26: - | EF26: - | EG26: - | EH26: - | EI26: - | EJ26: - | EK26: - | EL26: - | EM26: - | EN26: - | EO26: - | EP26: - | EQ26: - | ER26: - | ES26: - | ET26: - | EU26: - | EV26: - | EW26: - | EX26: -
A27: OS0201 | B27: PL0000100442 | C27: 2001-02-12 | D27: 0.13 | E27: 1995-11-12 | F27: 1996-02-12 | G27: 1996-02-05 | H27: 1996-02-12 | I27: 32.77 | J27: 1996-02-12 | K27: 1997-02-12 | L27: 1997-01-30 | M27: 1997-02-12 | N27: 130 | O27: 1997-02-12 | P27: 1998-02-12 | Q27: 1998-01-30 | R27: 1998-02-12 | S27: 130 | T27: 1998-02-12 | U27: 1999-02-12 | V27: 1999-02-01 | W27: 1999-02-12 | X27: 130 | Y27: 1999-02-12 | Z27: 2000-02-12 | AA27: 2000-02-01 | AB27: 2000-02-14 | AC27: 130 | AD27: 2000-02-12 | AE27: 2001-02-12 | AF27: 2001-01-30 | AG27: 2001-02-12 | AH27: 130 | AI27: - | AJ27: - | AK27: - | AL27: - | AM27: - | AN27: - | AO27: - | AP27: - | AQ27: - | AR27: - | AS27: - | AT27: - | AU27: - | AV27: - | AW27: - | AX27: - | AY27: - | AZ27: - | BA27: - | BB27: - | BC27: - | BD27: - | BE27: - | BF27: - | BG27: - | BH27: - | BI27: - | BJ27: - | BK27: - | BL27: - | BM27: - | BN27: - | BO27: - | BP27: - | BQ27: - | BR27: - | BS27: - | BT27: - | BU27: - | BV27: - | BW27: - | BX27: - | BY27: - | BZ27: - | CA27: - | CB27: - | CC27: - | CD27: - | CE27: - | CF27: - | CG27: - | CH27: - | CI27: - | CJ27: - | CK27: - | CL27: - | CM27: - | CN27: - | CO27: - | CP27: - | CQ27: - | CR27: - | CS27: - | CT27: - | CU27: - | CV27: - | CW27: - | CX27: - | CY27: - | CZ27: - | DA27: - | DB27: - | DC27: - | DD27: - | DE27: - | DF27: - | DG27: - | DH27: - | DI27: - | DJ27: - | DK27: - | DL27: - | DM27: - | DN27: - | DO27: - | DP27: - | DQ27: - | DR27: - | DS27: - | DT27: - | DU27: - | DV27: - | DW27: - | DX27: - | DY27: - | DZ27: - | EA27: - | EB27: - | EC27: - | ED27: - | EE27: - | EF27: - | EG27: - | EH27: - | EI27: - | EJ27: - | EK27: - | EL27: - | EM27: - | EN27: - | EO27: - | EP27: - | EQ27: - | ER27: - | ES27: - | ET27: - | EU27: - | EV27: - | EW27: - | EX27: -
A28: AS0601 | B28: PL0000101184 | C28: 2001-06-12 | D28: 0.12 | E28: 1999-02-12 | F28: 1999-06-12 | G28: 1999-05-31 | H28: 1999-06-14 | I28: 39.45 | J28: 1999-06-12 | K28: 2000-06-12 | L28: 2000-05-30 | M28: 2000-06-12 | N28: 120 | O28: 2000-06-12 | P28: 2001-06-12 | Q28: 2001-05-30 | R28: 2001-06-12 | S28: 120 | T28: - | U28: - | V28: - | W28: - | X28: - | Y28: - | Z28: - | AA28: - | AB28: - | AC28: - | AD28: - | AE28: - | AF28: - | AG28: - | AH28: - | AI28: - | AJ28: - | AK28: - | AL28: - | AM28: - | AN28: - | AO28: - | AP28: - | AQ28: - | AR28: - | AS28: - | AT28: - | AU28: - | AV28: - | AW28: - | AX28: - | AY28: - | AZ28: - | BA28: - | BB28: - | BC28: - | BD28: - | BE28: - | BF28: - | BG28: - | BH28: - | BI28: - | BJ28: - | BK28: - | BL28: - | BM28: - | BN28: - | BO28: - | BP28: - | BQ28: - | BR28: - | BS28: - | BT28: - | BU28: - | BV28: - | BW28: - | BX28: - | BY28: - | BZ28: - | CA28: - | CB28: - | CC28: - | CD28: - | CE28: - | CF28: - | CG28: - | CH28: - | CI28: - | CJ28: - | CK28: - | CL28: - | CM28: - | CN28: - | CO28: - | CP28: - | CQ28: - | CR28: - | CS28: - | CT28: - | CU28: - | CV28: - | CW28: - | CX28: - | CY28: - | CZ28: - | DA28: - | DB28: - | DC28: - | DD28: - | DE28: - | DF28: - | DG28: - | DH28: - | DI28: - | DJ28: - | DK28: - | DL28: - | DM28: - | DN28: - | DO28: - | DP28: - | DQ28: - | DR28: - | DS28: - | DT28: - | DU28: - | DV28: - | DW28: - | DX28: - | DY28: - | DZ28: - | EA28: - | EB28: - | EC28: - | ED28: - | EE28: - | EF28: - | EG28: - | EH28: - | EI28: - | EJ28: - | EK28: - | EL28: - | EM28: - | EN28: - | EO28: - | EP28: - | EQ28: - | ER28: - | ES28: - | ET28: - | EU28: - | EV28: - | EW28: - | EX28: -
A29: OS0601 | B29: PL0000100509 | C29: 2001-06-12 | D29: 0.12 | E29: 1996-03-12 | F29: 1996-06-12 | G29: 1996-06-05 | H29: 1996-06-12 | I29: 30.25 | J29: 1996-06-12 | K29: 1997-06-12 | L29: 1997-05-30 | M29: 1997-06-12 | N29: 120 | O29: 1997-06-12 | P29: 1998-06-12 | Q29: 1998-05-29 | R29: 1998-06-12 | S29: 120 | T29: 1998-06-12 | U29: 1999-06-12 | V29: 1999-05-31 | W29: 1999-06-14 | X29: 120 | Y29: 1999-06-12 | Z29: 2000-06-12 | AA29: 2000-05-30 | AB29: 2000-06-12 | AC29: 120 | AD29: 2000-06-12 | AE29: 2001-06-12 | AF29: 2001-05-30 | AG29: 2001-06-12 | AH29: 120 | AI29: - | AJ29: - | AK29: - | AL29: - | AM29: - | AN29: - | AO29: - | AP29: - | AQ29: - | AR29: - | AS29: - | AT29: - | AU29: - | AV29: - | AW29: - | AX29: - | AY29: - | AZ29: - | BA29: - | BB29: - | BC29: - | BD29: - | BE29: - | BF29: - | BG29: - | BH29: - | BI29: - | BJ29: - | BK29: - | BL29: - | BM29: - | BN29: - | BO29: - | BP29: - | BQ29: - | BR29: - | BS29: - | BT29: - | BU29: - | BV29: - | BW29: - | BX29: - | BY29: - | BZ29: - | CA29: - | CB29: - | CC29: - | CD29: - | CE29: - | CF29: - | CG29: - | CH29: - | CI29: - | CJ29: - | CK29: - | CL29: - | CM29: - | CN29: - | CO29: - | CP29: - | CQ29: - | CR29: - | CS29: - | CT29: - | CU29: - | CV29: - | CW29: - | CX29: - | CY29: - | CZ29: - | DA29: - | DB29: - | DC29: - | DD29: - | DE29: - | DF29: - | DG29: - | DH29: - | DI29: - | DJ29: - | DK29: - | DL29: - | DM29: - | DN29: - | DO29: - | DP29: - | DQ29: - | DR29: - | DS29: - | DT29: - | DU29: - | DV29: - | DW29: - | DX29: - | DY29: - | DZ29: - | EA29: - | EB29: - | EC29: - | ED29: - | EE29: - | EF29: - | EG29: - | EH29: - | EI29: - | EJ29: - | EK29: - | EL29: - | EM29: - | EN29: - | EO29: - | EP29: - | EQ29: - | ER29: - | ES29: - | ET29: - | EU29: - | EV29: - | EW29: - | EX29: -
A30: AS1001 | B30: PL0000101192 | C30: 2001-10-12 | D30: 0.12 | E30: 1999-06-12 | F30: 1999-10-12 | G30: 1999-09-29 | H30: 1999-10-12 | I30: 40.11 | J30: 1999-10-12 | K30: 2000-10-12 | L30: 2000-09-29 | M30: 2000-10-12 | N30: 120 | O30: 2000-10-12 | P30: 2001-10-12 | Q30: 2001-10-01 | R30: 2001-10-12 | S30: 120 | T30: - | U30: - | V30: - | W30: - | X30: - | Y30: - | Z30: - | AA30: - | AB30: - | AC30: - | AD30: - | AE30: - | AF30: - | AG30: - | AH30: - | AI30: - | AJ30: - | AK30: - | AL30: - | AM30: - | AN30: - | AO30: - | AP30: - | AQ30: - | AR30: - | AS30: - | AT30: - | AU30: - | AV30: - | AW30: - | AX30: - | AY30: - | AZ30: - | BA30: - | BB30: - | BC30: - | BD30: - | BE30: - | BF30: - | BG30: - | BH30: - | BI30: - | BJ30: - | BK30: - | BL30: - | BM30: - | BN30: - | BO30: - | BP30: - | BQ30: - | BR30: - | BS30: - | BT30: - | BU30: - | BV30: - | BW30: - | BX30: - | BY30: - | BZ30: - | CA30: - | CB30: - | CC30: - | CD30: - | CE30: - | CF30: - | CG30: - | CH30: - | CI30: - | CJ30: - | CK30: - | CL30: - | CM30: - | CN30: - | CO30: - | CP30: - | CQ30: - | CR30: - | CS30: - | CT30: - | CU30: - | CV30: - | CW30: - | CX30: - | CY30: - | CZ30: - | DA30: - | DB30: - | DC30: - | DD30: - | DE30: - | DF30: - | DG30: - | DH30: - | DI30: - | DJ30: - | DK30: - | DL30: - | DM30: - | DN30: - | DO30: - | DP30: - | DQ30: - | DR30: - | DS30: - | DT30: - | DU30: - | DV30: - | DW30: - | DX30: - | DY30: - | DZ30: - | EA30: - | EB30: - | EC30: - | ED30: - | EE30: - | EF30: - | EG30: - | EH30: - | EI30: - | EJ30: - | EK30: - | EL30: - | EM30: - | EN30: - | EO30: - | EP30: - | EQ30: - | ER30: - | ES30: - | ET30: - | EU30: - | EV30: - | EW30: - | EX30: -
A31: OS1001 | B31: PL0000100574 | C31: 2001-10-12 | D31: 0.12 | E31: 1996-07-12 | F31: 1996-10-12 | G31: 1996-10-05 | H31: 1996-10-14 | I31: 30.25 | J31: 1996-10-12 | K31: 1997-10-12 | L31: 1997-09-30 | M31: 1997-10-13 | N31: 120 | O31: 1997-10-12 | P31: 1998-10-12 | Q31: 1998-09-29 | R31: 1998-10-12 | S31: 120 | T31: 1998-10-12 | U31: 1999-10-12 | V31: 1999-05-31 | W31: 1999-10-12 | X31: 120 | Y31: 1999-10-12 | Z31: 2000-10-12 | AA31: 2000-09-29 | AB31: 2000-10-12 | AC31: 120 | AD31: 2000-10-12 | AE31: 2001-10-12 | AF31: 2001-10-01 | AG31: 2001-10-12 | AH31: 120 | AI31: - | AJ31: - | AK31: - | AL31: - | AM31: - | AN31: - | AO31: - | AP31: - | AQ31: - | AR31: - | AS31: - | AT31: - | AU31: - | AV31: - | AW31: - | AX31: - | AY31: - | AZ31: - | BA31: - | BB31: - | BC31: - | BD31: - | BE31: - | BF31: - | BG31: - | BH31: - | BI31: - | BJ31: - | BK31: - | BL31: - | BM31: - | BN31: - | BO31: - | BP31: - | BQ31: - | BR31: - | BS31: - | BT31: - | BU31: - | BV31: - | BW31: - | BX31: - | BY31: - | BZ31: - | CA31: - | CB31: - | CC31: - | CD31: - | CE31: - | CF31: - | CG31: - | CH31: - | CI31: - | CJ31: - | CK31: - | CL31: - | CM31: - | CN31: - | CO31: - | CP31: - | CQ31: - | CR31: - | CS31: - | CT31: - | CU31: - | CV31: - | CW31: - | CX31: - | CY31: - | CZ31: - | DA31: - | DB31: - | DC31: - | DD31: - | DE31: - | DF31: - | DG31: - | DH31: - | DI31: - | DJ31: - | DK31: - | DL31: - | DM31: - | DN31: - | DO31: - | DP31: - | DQ31: - | DR31: - | DS31: - | DT31: - | DU31: - | DV31: - | DW31: - | DX31: - | DY31: - | DZ31: - | EA31: - | EB31: - | EC31: - | ED31: - | EE31: - | EF31: - | EG31: - | EH31: - | EI31: - | EJ31: - | EK31: - | EL31: - | EM31: - | EN31: - | EO31: - | EP31: - | EQ31: - | ER31: - | ES31: - | ET31: - | EU31: - | EV31: - | EW31: - | EX31: -
A32: OS0202 | B32: PL0000100632 | C32: 2002-02-12 | D32: 0.12 | E32: 1996-11-12 | F32: 1997-02-12 | G32: 1997-02-05 | H32: 1997-02-12 | I32: 30.25 | J32: 1997-02-12 | K32: 1998-02-12 | L32: 1998-01-30 | M32: 1998-02-12 | N32: 120 | O32: 1998-02-12 | P32: 1999-02-12 | Q32: 1999-02-01 | R32: 1999-02-12 | S32: 120 | T32: 1999-02-12 | U32: 2000-02-12 | V32: 2000-02-01 | W32: 2000-02-14 | X32: 120 | Y32: 2000-02-12 | Z32: 2001-02-12 | AA32: 2001-01-30 | AB32: 2001-02-12 | AC32: 120 | AD32: 2001-02-12 | AE32: 2002-02-12 | AF32: 2002-01-30 | AG32: 2002-02-12 | AH32: 120 | AI32: - | AJ32: - | AK32: - | AL32: - | AM32: - | AN32: - | AO32: - | AP32: - | AQ32: - | AR32: - | AS32: - | AT32: - | AU32: - | AV32: - | AW32: - | AX32: - | AY32: - | AZ32: - | BA32: - | BB32: - | BC32: - | BD32: - | BE32: - | BF32: - | BG32: - | BH32: - | BI32: - | BJ32: - | BK32: - | BL32: - | BM32: - | BN32: - | BO32: - | BP32: - | BQ32: - | BR32: - | BS32: - | BT32: - | BU32: - | BV32: - | BW32: - | BX32: - | BY32: - | BZ32: - | CA32: - | CB32: - | CC32: - | CD32: - | CE32: - | CF32: - | CG32: - | CH32: - | CI32: - | CJ32: - | CK32: - | CL32: - | CM32: - | CN32: - | CO32: - | CP32: - | CQ32: - | CR32: - | CS32: - | CT32: - | CU32: - | CV32: - | CW32: - | CX32: - | CY32: - | CZ32: - | DA32: - | DB32: - | DC32: - | DD32: - | DE32: - | DF32: - | DG32: - | DH32: - | DI32: - | DJ32: - | DK32: - | DL32: - | DM32: - | DN32: - | DO32: - | DP32: - | DQ32: - | DR32: - | DS32: - | DT32: - | DU32: - | DV32: - | DW32: - | DX32: - | DY32: - | DZ32: - | EA32: - | EB32: - | EC32: - | ED32: - | EE32: - | EF32: - | EG32: - | EH32: - | EI32: - | EJ32: - | EK32: - | EL32: - | EM32: - | EN32: - | EO32: - | EP32: - | EQ32: - | ER32: - | ES32: - | ET32: - | EU32: - | EV32: - | EW32: - | EX32: -
A33: OS0602 | B33: PL0000100723 | C33: 2002-06-12 | D33: 0.12 | E33: 1997-02-12 | F33: 1997-06-12 | G33: 1997-05-30 | H33: 1997-06-12 | I33: 39.45 | J33: 1997-06-12 | K33: 1998-06-12 | L33: 1998-05-29 | M33: 1998-06-12 | N33: 120 | O33: 1998-06-12 | P33: 1999-06-12 | Q33: 1999-05-31 | R33: 1999-06-14 | S33: 120 | T33: 1999-06-12 | U33: 2000-06-12 | V33: 2000-05-30 | W33: 2000-06-12 | X33: 120 | Y33: 2000-06-12 | Z33: 2001-06-12 | AA33: 2001-05-30 | AB33: 2001-06-12 | AC33: 120 | AD33: 2001-06-12 | AE33: 2002-06-12 | AF33: 2002-05-29 | AG33: 2002-06-12 | AH33: 120 | AI33: - | AJ33: - | AK33: - | AL33: - | AM33: - | AN33: - | AO33: - | AP33: - | AQ33: - | AR33: - | AS33: - | AT33: - | AU33: - | AV33: - | AW33: - | AX33: - | AY33: - | AZ33: - | BA33: - | BB33: - | BC33: - | BD33: - | BE33: - | BF33: - | BG33: - | BH33: - | BI33: - | BJ33: - | BK33: - | BL33: - | BM33: - | BN33: - | BO33: - | BP33: - | BQ33: - | BR33: - | BS33: - | BT33: - | BU33: - | BV33: - | BW33: - | BX33: - | BY33: - | BZ33: - | CA33: - | CB33: - | CC33: - | CD33: - | CE33: - | CF33: - | CG33: - | CH33: - | CI33: - | CJ33: - | CK33: - | CL33: - | CM33: - | CN33: - | CO33: - | CP33: - | CQ33: - | CR33: - | CS33: - | CT33: - | CU33: - | CV33: - | CW33: - | CX33: - | CY33: - | CZ33: - | DA33: - | DB33: - | DC33: - | DD33: - | DE33: - | DF33: - | DG33: - | DH33: - | DI33: - | DJ33: - | DK33: - | DL33: - | DM33: - | DN33: - | DO33: - | DP33: - | DQ33: - | DR33: - | DS33: - | DT33: - | DU33: - | DV33: - | DW33: - | DX33: - | DY33: - | DZ33: - | EA33: - | EB33: - | EC33: - | ED33: - | EE33: - | EF33: - | EG33: - | EH33: - | EI33: - | EJ33: - | EK33: - | EL33: - | EM33: - | EN33: - | EO33: - | EP33: - | EQ33: - | ER33: - | ES33: - | ET33: - | EU33: - | EV33: - | EW33: - | EX33: -
A34: OS1002 | B34: PL0000100780 | C34: 2002-10-12 | D34: 0.12 | E34: 1997-06-12 | F34: 1997-10-12 | G34: 1997-09-30 | H34: 1997-10-13 | I34: 40.11 | J34: 1997-10-12 | K34: 1998-10-12 | L34: 1998-09-29 | M34: 1998-10-12 | N34: 120 | O34: 1998-10-12 | P34: 1999-10-12 | Q34: 1999-09-29 | R34: 1999-10-12 | S34: 120 | T34: 1999-10-12 | U34: 2000-10-12 | V34: 2000-09-29 | W34: 2000-10-12 | X34: 120 | Y34: 2000-10-12 | Z34: 2001-10-12 | AA34: 2001-10-01 | AB34: 2001-10-12 | AC34: 120 | AD34: 2001-10-12 | AE34: 2002-10-12 | AF34: 2002-10-01 | AG34: 2002-10-14 | AH34: 120 | AI34: - | AJ34: - | AK34: - | AL34: - | AM34: - | AN34: - | AO34: - | AP34: - | AQ34: - | AR34: - | AS34: - | AT34: - | AU34: - | AV34: - | AW34: - | AX34: - | AY34: - | AZ34: - | BA34: - | BB34: - | BC34: - | BD34: - | BE34: - | BF34: - | BG34: - | BH34: - | BI34: - | BJ34: - | BK34: - | BL34: - | BM34: - | BN34: - | BO34: - | BP34: - | BQ34: - | BR34: - | BS34: - | BT34: - | BU34: - | BV34: - | BW34: - | BX34: - | BY34: - | BZ34: - | CA34: - | CB34: - | CC34: - | CD34: - | CE34: - | CF34: - | CG34: - | CH34: - | CI34: - | CJ34: - | CK34: - | CL34: - | CM34: - | CN34: - | CO34: - | CP34: - | CQ34: - | CR34: - | CS34: - | CT34: - | CU34: - | CV34: - | CW34: - | CX34: - | CY34: - | CZ34: - | DA34: - | DB34: - | DC34: - | DD34: - | DE34: - | DF34: - | DG34: - | DH34: - | DI34: - | DJ34: - | DK34: - | DL34: - | DM34: - | DN34: - | DO34: - | DP34: - | DQ34: - | DR34: - | DS34: - | DT34: - | DU34: - | DV34: - | DW34: - | DX34: - | DY34: - | DZ34: - | EA34: - | EB34: - | EC34: - | ED34: - | EE34: - | EF34: - | EG34: - | EH34: - | EI34: - | EJ34: - | EK34: - | EL34: - | EM34: - | EN34: - | EO34: - | EP34: - | EQ34: - | ER34: - | ES34: - | ET34: - | EU34: - | EV34: - | EW34: - | EX34: -
A35: TK1202 | B35: PL0000101416 | C35: 2002-12-22 | D35: 0.1 | E35: 1999-10-01 | F35: 1999-12-22 | G35: 1999-12-09 | H35: 1999-12-22 | I35: 22.47 | J35: 1999-12-22 | K35: 2000-12-22 | L35: 2000-12-11 | M35: 2000-12-22 | N35: 100 | O35: 2000-12-22 | P35: 2001-12-22 | Q35: 2001-12-11 | R35: 2001-12-24 | S35: 100 | T35: 2001-12-22 | U35: 2002-12-22 | V35: 2002-12-10 | W35: 2002-12-23 | X35: 100 | Y35: - | Z35: - | AA35: - | AB35: - | AC35: - | AD35: - | AE35: - | AF35: - | AG35: - | AH35: - | AI35: - | AJ35: - | AK35: - | AL35: - | AM35: - | AN35: - | AO35: - | AP35: - | AQ35: - | AR35: - | AS35: - | AT35: - | AU35: - | AV35: - | AW35: - | AX35: - | AY35: - | AZ35: - | BA35: - | BB35: - | BC35: - | BD35: - | BE35: - | BF35: - | BG35: - | BH35: - | BI35: - | BJ35: - | BK35: - | BL35: - | BM35: - | BN35: - | BO35: - | BP35: - | BQ35: - | BR35: - | BS35: - | BT35: - | BU35: - | BV35: - | BW35: - | BX35: - | BY35: - | BZ35: - | CA35: - | CB35: - | CC35: - | CD35: - | CE35: - | CF35: - | CG35: - | CH35: - | CI35: - | CJ35: - | CK35: - | CL35: - | CM35: - | CN35: - | CO35: - | CP35: - | CQ35: - | CR35: - | CS35: - | CT35: - | CU35: - | CV35: - | CW35: - | CX35: - | CY35: - | CZ35: - | DA35: - | DB35: - | DC35: - | DD35: - | DE35: - | DF35: - | DG35: - | DH35: - | DI35: - | DJ35: - | DK35: - | DL35: - | DM35: - | DN35: - | DO35: - | DP35: - | DQ35: - | DR35: - | DS35: - | DT35: - | DU35: - | DV35: - | DW35: - | DX35: - | DY35: - | DZ35: - | EA35: - | EB35: - | EC35: - | ED35: - | EE35: - | EF35: - | EG35: - | EH35: - | EI35: - | EJ35: - | EK35: - | EL35: - | EM35: - | EN35: - | EO35: - | EP35: - | EQ35: - | ER35: - | ES35: - | ET35: - | EU35: - | EV35: - | EW35: - | EX35: -
A36: OS0203 | B36: PL0000100863 | C36: 2003-02-12 | D36: 0.12 | E36: 1997-10-12 | F36: 1998-02-12 | G36: 1998-01-30 | H36: 1998-02-12 | I36: 40.44 | J36: 1998-02-12 | K36: 1999-02-12 | L36: 1999-02-01 | M36: 1999-02-12 | N36: 120 | O36: 1999-02-12 | P36: 2000-02-12 | Q36: 2000-02-01 | R36: 2000-02-14 | S36: 120 | T36: 2000-02-12 | U36: 2001-02-12 | V36: 2001-01-30 | W36: 2001-02-12 | X36: 120 | Y36: 2001-02-12 | Z36: 2002-02-12 | AA36: 2002-01-30 | AB36: 2002-02-12 | AC36: 120 | AD36: 2002-02-12 | AE36: 2003-02-12 | AF36: 2003-01-30 | AG36: 2003-02-12 | AH36: 120 | AI36: - | AJ36: - | AK36: - | AL36: - | AM36: - | AN36: - | AO36: - | AP36: - | AQ36: - | AR36: - | AS36: - | AT36: - | AU36: - | AV36: - | AW36: - | AX36: - | AY36: - | AZ36: - | BA36: - | BB36: - | BC36: - | BD36: - | BE36: - | BF36: - | BG36: - | BH36: - | BI36: - | BJ36: - | BK36: - | BL36: - | BM36: - | BN36: - | BO36: - | BP36: - | BQ36: - | BR36: - | BS36: - | BT36: - | BU36: - | BV36: - | BW36: - | BX36: - | BY36: - | BZ36: - | CA36: - | CB36: - | CC36: - | CD36: - | CE36: - | CF36: - | CG36: - | CH36: - | CI36: - | CJ36: - | CK36: - | CL36: - | CM36: - | CN36: - | CO36: - | CP36: - | CQ36: - | CR36: - | CS36: - | CT36: - | CU36: - | CV36: - | CW36: - | CX36: - | CY36: - | CZ36: - | DA36: - | DB36: - | DC36: - | DD36: - | DE36: - | DF36: - | DG36: - | DH36: - | DI36: - | DJ36: - | DK36: - | DL36: - | DM36: - | DN36: - | DO36: - | DP36: - | DQ36: - | DR36: - | DS36: - | DT36: - | DU36: - | DV36: - | DW36: - | DX36: - | DY36: - | DZ36: - | EA36: - | EB36: - | EC36: - | ED36: - | EE36: - | EF36: - | EG36: - | EH36: - | EI36: - | EJ36: - | EK36: - | EL36: - | EM36: - | EN36: - | EO36: - | EP36: - | EQ36: - | ER36: - | ES36: - | ET36: - | EU36: - | EV36: - | EW36: - | EX36: -
A37: CK0403 | B37: PL0000101424 | C37: 2003-04-22 | D37: 0.1 | E37: 1999-10-01 | F37: 2000-04-22 | G37: 2000-04-11 | H37: 2000-04-25 | I37: 55.74 | J37: 2000-04-22 | K37: 2001-04-22 | L37: 2001-04-09 | M37: 2001-04-23 | N37: 100 | O37: 2001-04-22 | P37: 2002-04-22 | Q37: 2002-04-09 | R37: 2002-04-22 | S37: 100 | T37: 2002-04-22 | U37: 2003-04-22 | V37: 2003-04-08 | W37: 2003-04-22 | X37: 100 | Y37: - | Z37: - | AA37: - | AB37: - | AC37: - | AD37: - | AE37: - | AF37: - | AG37: - | AH37: - | AI37: - | AJ37: - | AK37: - | AL37: - | AM37: - | AN37: - | AO37: - | AP37: - | AQ37: - | AR37: - | AS37: - | AT37: - | AU37: - | AV37: - | AW37: - | AX37: - | AY37: - | AZ37: - | BA37: - | BB37: - | BC37: - | BD37: - | BE37: - | BF37: - | BG37: - | BH37: - | BI37: - | BJ37: - | BK37: - | BL37: - | BM37: - | BN37: - | BO37: - | BP37: - | BQ37: - | BR37: - | BS37: - | BT37: - | BU37: - | BV37: - | BW37: - | BX37: - | BY37: - | BZ37: - | CA37: - | CB37: - | CC37: - | CD37: - | CE37: - | CF37: - | CG37: - | CH37: - | CI37: - | CJ37: - | CK37: - | CL37: - | CM37: - | CN37: - | CO37: - | CP37: - | CQ37: - | CR37: - | CS37: - | CT37: - | CU37: - | CV37: - | CW37: - | CX37: - | CY37: - | CZ37: - | DA37: - | DB37: - | DC37: - | DD37: - | DE37: - | DF37: - | DG37: - | DH37: - | DI37: - | DJ37: - | DK37: - | DL37: - | DM37: - | DN37: - | DO37: - | DP37: - | DQ37: - | DR37: - | DS37: - | DT37: - | DU37: - | DV37: - | DW37: - | DX37: - | DY37: - | DZ37: - | EA37: - | EB37: - | EC37: - | ED37: - | EE37: - | EF37: - | EG37: - | EH37: - | EI37: - | EJ37: - | EK37: - | EL37: - | EM37: - | EN37: - | EO37: - | EP37: - | EQ37: - | ER37: - | ES37: - | ET37: - | EU37: - | EV37: - | EW37: - | EX37: -
A38: OS0603 | B38: PL0000100996 | C38: 2003-06-12 | D38: 0.12 | E38: 1998-02-12 | F38: 1998-06-12 | G38: 1998-05-29 | H38: 1998-06-12 | I38: 39.45 | J38: 1998-06-12 | K38: 1999-06-12 | L38: 1999-05-31 | M38: 1999-06-14 | N38: 120 | O38: 1999-06-12 | P38: 2000-06-12 | Q38: 2000-05-30 | R38: 2000-06-12 | S38: 120 | T38: 2000-06-12 | U38: 2001-06-12 | V38: 2001-05-30 | W38: 2001-06-12 | X38: 120 | Y38: 2001-06-12 | Z38: 2002-06-12 | AA38: 2002-05-29 | AB38: 2002-06-12 | AC38: 120 | AD38: 2002-06-12 | AE38: 2003-06-12 | AF38: 2003-05-30 | AG38: 2003-06-12 | AH38: 120 | AI38: - | AJ38: - | AK38: - | AL38: - | AM38: - | AN38: - | AO38: - | AP38: - | AQ38: - | AR38: - | AS38: - | AT38: - | AU38: - | AV38: - | AW38: - | AX38: - | AY38: - | AZ38: - | BA38: - | BB38: - | BC38: - | BD38: - | BE38: - | BF38: - | BG38: - | BH38: - | BI38: - | BJ38: - | BK38: - | BL38: - | BM38: - | BN38: - | BO38: - | BP38: - | BQ38: - | BR38: - | BS38: - | BT38: - | BU38: - | BV38: - | BW38: - | BX38: - | BY38: - | BZ38: - | CA38: - | CB38: - | CC38: - | CD38: - | CE38: - | CF38: - | CG38: - | CH38: - | CI38: - | CJ38: - | CK38: - | CL38: - | CM38: - | CN38: - | CO38: - | CP38: - | CQ38: - | CR38: - | CS38: - | CT38: - | CU38: - | CV38: - | CW38: - | CX38: - | CY38: - | CZ38: - | DA38: - | DB38: - | DC38: - | DD38: - | DE38: - | DF38: - | DG38: - | DH38: - | DI38: - | DJ38: - | DK38: - | DL38: - | DM38: - | DN38: - | DO38: - | DP38: - | DQ38: - | DR38: - | DS38: - | DT38: - | DU38: - | DV38: - | DW38: - | DX38: - | DY38: - | DZ38: - | EA38: - | EB38: - | EC38: - | ED38: - | EE38: - | EF38: - | EG38: - | EH38: - | EI38: - | EJ38: - | EK38: - | EL38: - | EM38: - | EN38: - | EO38: - | EP38: - | EQ38: - | ER38: - | ES38: - | ET38: - | EU38: - | EV38: - | EW38: - | EX38: -
A39: OS1003 | B39: PL0000101051 | C39: 2003-10-12 | D39: 0.12 | E39: 1998-06-12 | F39: 1998-10-12 | G39: 1998-09-29 | H39: 1998-10-12 | I39: 40.11 | J39: 1998-10-12 | K39: 1999-10-12 | L39: 1999-09-29 | M39: 1999-10-12 | N39: 120 | O39: 1999-10-12 | P39: 2000-10-12 | Q39: 2000-09-29 | R39: 2000-10-12 | S39: 120 | T39: 2000-10-12 | U39: 2001-10-12 | V39: 2001-10-01 | W39: 2001-10-12 | X39: 120 | Y39: 2001-10-12 | Z39: 2002-10-12 | AA39: 2002-10-01 | AB39: 2002-10-14 | AC39: 120 | AD39: 2002-10-12 | AE39: 2003-10-12 | AF39: 2003-09-30 | AG39: 2003-10-13 | AH39: 120 | AI39: - | AJ39: - | AK39: - | AL39: - | AM39: - | AN39: - | AO39: - | AP39: - | AQ39: - | AR39: - | AS39: - | AT39: - | AU39: - | AV39: - | AW39: - | AX39: - | AY39: - | AZ39: - | BA39: - | BB39: - | BC39: - | BD39: - | BE39: - | BF39: - | BG39: - | BH39: - | BI39: - | BJ39: - | BK39: - | BL39: - | BM39: - | BN39: - | BO39: - | BP39: - | BQ39: - | BR39: - | BS39: - | BT39: - | BU39: - | BV39: - | BW39: - | BX39: - | BY39: - | BZ39: - | CA39: - | CB39: - | CC39: - | CD39: - | CE39: - | CF39: - | CG39: - | CH39: - | CI39: - | CJ39: - | CK39: - | CL39: - | CM39: - | CN39: - | CO39: - | CP39: - | CQ39: - | CR39: - | CS39: - | CT39: - | CU39: - | CV39: - | CW39: - | CX39: - | CY39: - | CZ39: - | DA39: - | DB39: - | DC39: - | DD39: - | DE39: - | DF39: - | DG39: - | DH39: - | DI39: - | DJ39: - | DK39: - | DL39: - | DM39: - | DN39: - | DO39: - | DP39: - | DQ39: - | DR39: - | DS39: - | DT39: - | DU39: - | DV39: - | DW39: - | DX39: - | DY39: - | DZ39: - | EA39: - | EB39: - | EC39: - | ED39: - | EE39: - | EF39: - | EG39: - | EH39: - | EI39: - | EJ39: - | EK39: - | EL39: - | EM39: - | EN39: - | EO39: - | EP39: - | EQ39: - | ER39: - | ES39: - | ET39: - | EU39: - | EV39: - | EW39: - | EX39: -
A40: OS0204 | B40: PL0000101200 | C40: 2004-02-12 | D40: 0.1 | E40: 1998-10-12 | F40: 1999-02-12 | G40: 1999-02-01 | H40: 1999-02-12 | I40: 33.7 | J40: 1999-02-12 | K40: 2000-02-12 | L40: 2000-02-01 | M40: 2000-02-14 | N40: 100 | O40: 2000-02-12 | P40: 2001-02-12 | Q40: 2001-01-30 | R40: 2001-02-12 | S40: 100 | T40: 2001-02-12 | U40: 2002-02-12 | V40: 2002-01-30 | W40: 2002-02-12 | X40: 100 | Y40: 2002-02-12 | Z40: 2003-02-12 | AA40: 2003-01-30 | AB40: 2003-02-12 | AC40: 100 | AD40: 2003-02-12 | AE40: 2004-02-12 | AF40: 2004-01-30 | AG40: 2004-02-12 | AH40: 100 | AI40: - | AJ40: - | AK40: - | AL40: - | AM40: - | AN40: - | AO40: - | AP40: - | AQ40: - | AR40: - | AS40: - | AT40: - | AU40: - | AV40: - | AW40: - | AX40: - | AY40: - | AZ40: - | BA40: - | BB40: - | BC40: - | BD40: - | BE40: - | BF40: - | BG40: - | BH40: - | BI40: - | BJ40: - | BK40: - | BL40: - | BM40: - | BN40: - | BO40: - | BP40: - | BQ40: - | BR40: - | BS40: - | BT40: - | BU40: - | BV40: - | BW40: - | BX40: - | BY40: - | BZ40: - | CA40: - | CB40: - | CC40: - | CD40: - | CE40: - | CF40: - | CG40: - | CH40: - | CI40: - | CJ40: - | CK40: - | CL40: - | CM40: - | CN40: - | CO40: - | CP40: - | CQ40: - | CR40: - | CS40: - | CT40: - | CU40: - | CV40: - | CW40: - | CX40: - | CY40: - | CZ40: - | DA40: - | DB40: - | DC40: - | DD40: - | DE40: - | DF40: - | DG40: - | DH40: - | DI40: - | DJ40: - | DK40: - | DL40: - | DM40: - | DN40: - | DO40: - | DP40: - | DQ40: - | DR40: - | DS40: - | DT40: - | DU40: - | DV40: - | DW40: - | DX40: - | DY40: - | DZ40: - | EA40: - | EB40: - | EC40: - | ED40: - | EE40: - | EF40: - | EG40: - | EH40: - | EI40: - | EJ40: - | EK40: - | EL40: - | EM40: - | EN40: - | EO40: - | EP40: - | EQ40: - | ER40: - | ES40: - | ET40: - | EU40: - | EV40: - | EW40: - | EX40: -
A41: OS0604 | B41: PL0000101218 | C41: 2004-06-12 | D41: 0.1 | E41: 1999-02-12 | F41: 1999-06-12 | G41: 1999-05-31 | H41: 1999-06-14 | I41: 32.88 | J41: 1999-06-12 | K41: 2000-06-12 | L41: 2000-05-30 | M41: 2000-06-12 | N41: 100 | O41: 2000-06-12 | P41: 2001-06-12 | Q41: 2001-05-30 | R41: 2001-06-12 | S41: 100 | T41: 2001-06-12 | U41: 2002-06-12 | V41: 2002-05-29 | W41: 2002-06-12 | X41: 100 | Y41: 2002-06-12 | Z41: 2003-06-12 | AA41: 2003-05-30 | AB41: 2003-06-12 | AC41: 100 | AD41: 2003-06-12 | AE41: 2004-06-12 | AF41: 2004-05-31 | AG41: 2004-06-14 | AH41: 100 | AI41: - | AJ41: - | AK41: - | AL41: - | AM41: - | AN41: - | AO41: - | AP41: - | AQ41: - | AR41: - | AS41: - | AT41: - | AU41: - | AV41: - | AW41: - | AX41: - | AY41: - | AZ41: - | BA41: - | BB41: - | BC41: - | BD41: - | BE41: - | BF41: - | BG41: - | BH41: - | BI41: - | BJ41: - | BK41: - | BL41: - | BM41: - | BN41: - | BO41: - | BP41: - | BQ41: - | BR41: - | BS41: - | BT41: - | BU41: - | BV41: - | BW41: - | BX41: - | BY41: - | BZ41: - | CA41: - | CB41: - | CC41: - | CD41: - | CE41: - | CF41: - | CG41: - | CH41: - | CI41: - | CJ41: - | CK41: - | CL41: - | CM41: - | CN41: - | CO41: - | CP41: - | CQ41: - | CR41: - | CS41: - | CT41: - | CU41: - | CV41: - | CW41: - | CX41: - | CY41: - | CZ41: - | DA41: - | DB41: - | DC41: - | DD41: - | DE41: - | DF41: - | DG41: - | DH41: - | DI41: - | DJ41: - | DK41: - | DL41: - | DM41: - | DN41: - | DO41: - | DP41: - | DQ41: - | DR41: - | DS41: - | DT41: - | DU41: - | DV41: - | DW41: - | DX41: - | DY41: - | DZ41: - | EA41: - | EB41: - | EC41: - | ED41: - | EE41: - | EF41: - | EG41: - | EH41: - | EI41: - | EJ41: - | EK41: - | EL41: - | EM41: - | EN41: - | EO41: - | EP41: - | EQ41: - | ER41: - | ES41: - | ET41: - | EU41: - | EV41: - | EW41: - | EX41: -
A42: PK0704 | B42: PL0000101432 | C42: 2004-07-22 | D42: 0.085 | E42: 1999-10-01 | F42: 2000-07-22 | G42: 2000-07-11 | H42: 2000-07-24 | I42: 68.51 | J42: 2000-07-22 | K42: 2001-07-22 | L42: 2001-07-10 | M42: 2001-07-23 | N42: 85 | O42: 2001-07-22 | P42: 2002-07-22 | Q42: 2002-07-09 | R42: 2002-07-22 | S42: 85 | T42: 2002-07-22 | U42: 2003-07-22 | V42: 2003-07-09 | W42: 2003-07-22 | X42: 85 | Y42: 2003-07-22 | Z42: 2004-07-22 | AA42: 2004-07-09 | AB42: 2004-07-22 | AC42: 85 | AD42: - | AE42: - | AF42: - | AG42: - | AH42: - | AI42: - | AJ42: - | AK42: - | AL42: - | AM42: - | AN42: - | AO42: - | AP42: - | AQ42: - | AR42: - | AS42: - | AT42: - | AU42: - | AV42: - | AW42: - | AX42: - | AY42: - | AZ42: - | BA42: - | BB42: - | BC42: - | BD42: - | BE42: - | BF42: - | BG42: - | BH42: - | BI42: - | BJ42: - | BK42: - | BL42: - | BM42: - | BN42: - | BO42: - | BP42: - | BQ42: - | BR42: - | BS42: - | BT42: - | BU42: - | BV42: - | BW42: - | BX42: - | BY42: - | BZ42: - | CA42: - | CB42: - | CC42: - | CD42: - | CE42: - | CF42: - | CG42: - | CH42: - | CI42: - | CJ42: - | CK42: - | CL42: - | CM42: - | CN42: - | CO42: - | CP42: - | CQ42: - | CR42: - | CS42: - | CT42: - | CU42: - | CV42: - | CW42: - | CX42: - | CY42: - | CZ42: - | DA42: - | DB42: - | DC42: - | DD42: - | DE42: - | DF42: - | DG42: - | DH42: - | DI42: - | DJ42: - | DK42: - | DL42: - | DM42: - | DN42: - | DO42: - | DP42: - | DQ42: - | DR42: - | DS42: - | DT42: - | DU42: - | DV42: - | DW42: - | DX42: - | DY42: - | DZ42: - | EA42: - | EB42: - | EC42: - | ED42: - | EE42: - | EF42: - | EG42: - | EH42: - | EI42: - | EJ42: - | EK42: - | EL42: - | EM42: - | EN42: - | EO42: - | EP42: - | EQ42: - | ER42: - | ES42: - | ET42: - | EU42: - | EV42: - | EW42: - | EX42: -
A43: OS1004 | B43: PL0000101226 | C43: 2004-10-12 | D43: 0.1 | E43: 1999-06-12 | F43: 1999-10-12 | G43: 1999-09-29 | H43: 1999-10-12 | I43: 33.42 | J43: 1999-10-12 | K43: 2000-10-12 | L43: 2000-09-29 | M43: 2000-10-12 | N43: 100 | O43: 2000-10-12 | P43: 2001-10-12 | Q43: 2001-10-01 | R43: 2001-10-12 | S43: 100 | T43: 2001-10-12 | U43: 2002-10-12 | V43: 2002-10-01 | W43: 2002-10-14 | X43: 100 | Y43: 2002-10-12 | Z43: 2003-10-12 | AA43: 2003-09-30 | AB43: 2003-10-13 | AC43: 100 | AD43: 2003-10-12 | AE43: 2004-10-12 | AF43: 2004-09-29 | AG43: 2004-10-12 | AH43: 100 | AI43: - | AJ43: - | AK43: - | AL43: - | AM43: - | AN43: - | AO43: - | AP43: - | AQ43: - | AR43: - | AS43: - | AT43: - | AU43: - | AV43: - | AW43: - | AX43: - | AY43: - | AZ43: - | BA43: - | BB43: - | BC43: - | BD43: - | BE43: - | BF43: - | BG43: - | BH43: - | BI43: - | BJ43: - | BK43: - | BL43: - | BM43: - | BN43: - | BO43: - | BP43: - | BQ43: - | BR43: - | BS43: - | BT43: - | BU43: - | BV43: - | BW43: - | BX43: - | BY43: - | BZ43: - | CA43: - | CB43: - | CC43: - | CD43: - | CE43: - | CF43: - | CG43: - | CH43: - | CI43: - | CJ43: - | CK43: - | CL43: - | CM43: - | CN43: - | CO43: - | CP43: - | CQ43: - | CR43: - | CS43: - | CT43: - | CU43: - | CV43: - | CW43: - | CX43: - | CY43: - | CZ43: - | DA43: - | DB43: - | DC43: - | DD43: - | DE43: - | DF43: - | DG43: - | DH43: - | DI43: - | DJ43: - | DK43: - | DL43: - | DM43: - | DN43: - | DO43: - | DP43: - | DQ43: - | DR43: - | DS43: - | DT43: - | DU43: - | DV43: - | DW43: - | DX43: - | DY43: - | DZ43: - | EA43: - | EB43: - | EC43: - | ED43: - | EE43: - | EF43: - | EG43: - | EH43: - | EI43: - | EJ43: - | EK43: - | EL43: - | EM43: - | EN43: - | EO43: - | EP43: - | EQ43: - | ER43: - | ES43: - | ET43: - | EU43: - | EV43: - | EW43: - | EX43: -
A44: PS1004 | B44: PL0000101374 | C44: 2004-10-12 | D44: 0.085 | E44: 1999-10-12 | F44: 2000-10-12 | G44: 2000-09-29 | H44: 2000-10-12 | I44: 85 | J44: 2000-10-12 | K44: 2001-10-12 | L44: 2001-10-01 | M44: 2001-10-12 | N44: 85 | O44: 2001-10-12 | P44: 2002-10-12 | Q44: 2002-10-01 | R44: 2002-10-12 | S44: 85 | T44: 2002-10-12 | U44: 2003-10-12 | V44: 2003-09-30 | W44: 2003-10-13 | X44: 85 | Y44: 2003-10-12 | Z44: 2004-10-12 | AA44: 2004-09-29 | AB44: 2004-10-12 | AC44: 85 | AD44: - | AE44: - | AF44: - | AG44: - | AH44: - | AI44: - | AJ44: - | AK44: - | AL44: - | AM44: - | AN44: - | AO44: - | AP44: - | AQ44: - | AR44: - | AS44: - | AT44: - | AU44: - | AV44: - | AW44: - | AX44: - | AY44: - | AZ44: - | BA44: - | BB44: - | BC44: - | BD44: - | BE44: - | BF44: - | BG44: - | BH44: - | BI44: - | BJ44: - | BK44: - | BL44: - | BM44: - | BN44: - | BO44: - | BP44: - | BQ44: - | BR44: - | BS44: - | BT44: - | BU44: - | BV44: - | BW44: - | BX44: - | BY44: - | BZ44: - | CA44: - | CB44: - | CC44: - | CD44: - | CE44: - | CF44: - | CG44: - | CH44: - | CI44: - | CJ44: - | CK44: - | CL44: - | CM44: - | CN44: - | CO44: - | CP44: - | CQ44: - | CR44: - | CS44: - | CT44: - | CU44: - | CV44: - | CW44: - | CX44: - | CY44: - | CZ44: - | DA44: - | DB44: - | DC44: - | DD44: - | DE44: - | DF44: - | DG44: - | DH44: - | DI44: - | DJ44: - | DK44: - | DL44: - | DM44: - | DN44: - | DO44: - | DP44: - | DQ44: - | DR44: - | DS44: - | DT44: - | DU44: - | DV44: - | DW44: - | DX44: - | DY44: - | DZ44: - | EA44: - | EB44: - | EC44: - | ED44: - | EE44: - | EF44: - | EG44: - | EH44: - | EI44: - | EJ44: - | EK44: - | EL44: - | EM44: - | EN44: - | EO44: - | EP44: - | EQ44: - | ER44: - | ES44: - | ET44: - | EU44: - | EV44: - | EW44: - | EX44: -
A45: PS0205 | B45: PL0000101564 | C45: 2005-02-12 | D45: 0.085 | E45: 2000-02-12 | F45: 2001-02-12 | G45: 2001-01-30 | H45: 2001-02-12 | I45: 85 | J45: 2001-02-12 | K45: 2002-02-12 | L45: 2002-01-30 | M45: 2002-02-12 | N45: 85 | O45: 2002-02-12 | P45: 2003-02-12 | Q45: 2003-01-30 | R45: 2003-02-12 | S45: 85 | T45: 2003-02-12 | U45: 2004-02-12 | V45: 2004-01-30 | W45: 2004-02-12 | X45: 85 | Y45: 2004-02-12 | Z45: 2005-02-12 | AA45: 2005-02-01 | AB45: 2005-02-14 | AC45: 85 | AD45: - | AE45: - | AF45: - | AG45: - | AH45: - | AI45: - | AJ45: - | AK45: - | AL45: - | AM45: - | AN45: - | AO45: - | AP45: - | AQ45: - | AR45: - | AS45: - | AT45: - | AU45: - | AV45: - | AW45: - | AX45: - | AY45: - | AZ45: - | BA45: - | BB45: - | BC45: - | BD45: - | BE45: - | BF45: - | BG45: - | BH45: - | BI45: - | BJ45: - | BK45: - | BL45: - | BM45: - | BN45: - | BO45: - | BP45: - | BQ45: - | BR45: - | BS45: - | BT45: - | BU45: - | BV45: - | BW45: - | BX45: - | BY45: - | BZ45: - | CA45: - | CB45: - | CC45: - | CD45: - | CE45: - | CF45: - | CG45: - | CH45: - | CI45: - | CJ45: - | CK45: - | CL45: - | CM45: - | CN45: - | CO45: - | CP45: - | CQ45: - | CR45: - | CS45: - | CT45: - | CU45: - | CV45: - | CW45: - | CX45: - | CY45: - | CZ45: - | DA45: - | DB45: - | DC45: - | DD45: - | DE45: - | DF45: - | DG45: - | DH45: - | DI45: - | DJ45: - | DK45: - | DL45: - | DM45: - | DN45: - | DO45: - | DP45: - | DQ45: - | DR45: - | DS45: - | DT45: - | DU45: - | DV45: - | DW45: - | DX45: - | DY45: - | DZ45: - | EA45: - | EB45: - | EC45: - | ED45: - | EE45: - | EF45: - | EG45: - | EH45: - | EI45: - | EJ45: - | EK45: - | EL45: - | EM45: - | EN45: - | EO45: - | EP45: - | EQ45: - | ER45: - | ES45: - | ET45: - | EU45: - | EV45: - | EW45: - | EX45: -
A46: PS0605 | B46: PL0000101721 | C46: 2005-06-12 | D46: 0.085 | E46: 2000-06-12 | F46: 2001-06-12 | G46: 2001-06-01 | H46: 2001-06-12 | I46: 85 | J46: 2001-06-12 | K46: 2002-06-12 | L46: 2002-06-03 | M46: 2002-06-12 | N46: 85 | O46: 2002-06-12 | P46: 2003-06-12 | Q46: 2003-06-03 | R46: 2003-06-12 | S46: 85 | T46: 2003-06-12 | U46: 2004-06-12 | V46: 2004-06-03 | W46: 2004-06-14 | X46: 85 | Y46: 2004-06-12 | Z46: 2005-06-12 | AA46: 2005-06-02 | AB46: 2005-06-13 | AC46: 85 | AD46: - | AE46: - | AF46: - | AG46: - | AH46: - | AI46: - | AJ46: - | AK46: - | AL46: - | AM46: - | AN46: - | AO46: - | AP46: - | AQ46: - | AR46: - | AS46: - | AT46: - | AU46: - | AV46: - | AW46: - | AX46: - | AY46: - | AZ46: - | BA46: - | BB46: - | BC46: - | BD46: - | BE46: - | BF46: - | BG46: - | BH46: - | BI46: - | BJ46: - | BK46: - | BL46: - | BM46: - | BN46: - | BO46: - | BP46: - | BQ46: - | BR46: - | BS46: - | BT46: - | BU46: - | BV46: - | BW46: - | BX46: - | BY46: - | BZ46: - | CA46: - | CB46: - | CC46: - | CD46: - | CE46: - | CF46: - | CG46: - | CH46: - | CI46: - | CJ46: - | CK46: - | CL46: - | CM46: - | CN46: - | CO46: - | CP46: - | CQ46: - | CR46: - | CS46: - | CT46: - | CU46: - | CV46: - | CW46: - | CX46: - | CY46: - | CZ46: - | DA46: - | DB46: - | DC46: - | DD46: - | DE46: - | DF46: - | DG46: - | DH46: - | DI46: - | DJ46: - | DK46: - | DL46: - | DM46: - | DN46: - | DO46: - | DP46: - | DQ46: - | DR46: - | DS46: - | DT46: - | DU46: - | DV46: - | DW46: - | DX46: - | DY46: - | DZ46: - | EA46: - | EB46: - | EC46: - | ED46: - | EE46: - | EF46: - | EG46: - | EH46: - | EI46: - | EJ46: - | EK46: - | EL46: - | EM46: - | EN46: - | EO46: - | EP46: - | EQ46: - | ER46: - | ES46: - | ET46: - | EU46: - | EV46: - | EW46: - | EX46: -
A47: PS1005 | B47: PL0000101887 | C47: 2005-10-12 | D47: 0.085 | E47: 2000-10-12 | F47: 2001-10-12 | G47: 2001-10-03 | H47: 2001-10-12 | I47: 85 | J47: 2001-10-12 | K47: 2002-10-12 | L47: 2002-10-03 | M47: 2002-10-14 | N47: 85 | O47: 2002-10-12 | P47: 2003-10-12 | Q47: 2003-10-02 | R47: 2003-10-13 | S47: 85 | T47: 2003-10-12 | U47: 2004-10-12 | V47: 2004-10-01 | W47: 2004-10-12 | X47: 85 | Y47: 2004-10-12 | Z47: 2005-10-12 | AA47: 2005-10-03 | AB47: 2005-10-12 | AC47: 85 | AD47: - | AE47: - | AF47: - | AG47: - | AH47: - | AI47: - | AJ47: - | AK47: - | AL47: - | AM47: - | AN47: - | AO47: - | AP47: - | AQ47: - | AR47: - | AS47: - | AT47: - | AU47: - | AV47: - | AW47: - | AX47: - | AY47: - | AZ47: - | BA47: - | BB47: - | BC47: - | BD47: - | BE47: - | BF47: - | BG47: - | BH47: - | BI47: - | BJ47: - | BK47: - | BL47: - | BM47: - | BN47: - | BO47: - | BP47: - | BQ47: - | BR47: - | BS47: - | BT47: - | BU47: - | BV47: - | BW47: - | BX47: - | BY47: - | BZ47: - | CA47: - | CB47: - | CC47: - | CD47: - | CE47: - | CF47: - | CG47: - | CH47: - | CI47: - | CJ47: - | CK47: - | CL47: - | CM47: - | CN47: - | CO47: - | CP47: - | CQ47: - | CR47: - | CS47: - | CT47: - | CU47: - | CV47: - | CW47: - | CX47: - | CY47: - | CZ47: - | DA47: - | DB47: - | DC47: - | DD47: - | DE47: - | DF47: - | DG47: - | DH47: - | DI47: - | DJ47: - | DK47: - | DL47: - | DM47: - | DN47: - | DO47: - | DP47: - | DQ47: - | DR47: - | DS47: - | DT47: - | DU47: - | DV47: - | DW47: - | DX47: - | DY47: - | DZ47: - | EA47: - | EB47: - | EC47: - | ED47: - | EE47: - | EF47: - | EG47: - | EH47: - | EI47: - | EJ47: - | EK47: - | EL47: - | EM47: - | EN47: - | EO47: - | EP47: - | EQ47: - | ER47: - | ES47: - | ET47: - | EU47: - | EV47: - | EW47: - | EX47: -
A48: PS0206 | B48: PL0000102026 | C48: 2006-02-12 | D48: 0.085 | E48: 2001-02-12 | F48: 2002-02-12 | G48: 2002-02-01 | H48: 2002-02-12 | I48: 85 | J48: 2002-02-12 | K48: 2003-02-12 | L48: 2003-02-03 | M48: 2003-02-12 | N48: 85 | O48: 2003-02-12 | P48: 2004-02-12 | Q48: 2004-02-03 | R48: 2004-02-12 | S48: 85 | T48: 2004-02-12 | U48: 2005-02-12 | V48: 2005-02-03 | W48: 2005-02-14 | X48: 85 | Y48: 2005-02-12 | Z48: 2006-02-12 | AA48: 2006-02-02 | AB48: 2006-02-13 | AC48: 85 | AD48: - | AE48: - | AF48: - | AG48: - | AH48: - | AI48: - | AJ48: - | AK48: - | AL48: - | AM48: - | AN48: - | AO48: - | AP48: - | AQ48: - | AR48: - | AS48: - | AT48: - | AU48: - | AV48: - | AW48: - | AX48: - | AY48: - | AZ48: - | BA48: - | BB48: - | BC48: - | BD48: - | BE48: - | BF48: - | BG48: - | BH48: - | BI48: - | BJ48: - | BK48: - | BL48: - | BM48: - | BN48: - | BO48: - | BP48: - | BQ48: - | BR48: - | BS48: - | BT48: - | BU48: - | BV48: - | BW48: - | BX48: - | BY48: - | BZ48: - | CA48: - | CB48: - | CC48: - | CD48: - | CE48: - | CF48: - | CG48: - | CH48: - | CI48: - | CJ48: - | CK48: - | CL48: - | CM48: - | CN48: - | CO48: - | CP48: - | CQ48: - | CR48: - | CS48: - | CT48: - | CU48: - | CV48: - | CW48: - | CX48: - | CY48: - | CZ48: - | DA48: - | DB48: - | DC48: - | DD48: - | DE48: - | DF48: - | DG48: - | DH48: - | DI48: - | DJ48: - | DK48: - | DL48: - | DM48: - | DN48: - | DO48: - | DP48: - | DQ48: - | DR48: - | DS48: - | DT48: - | DU48: - | DV48: - | DW48: - | DX48: - | DY48: - | DZ48: - | EA48: - | EB48: - | EC48: - | ED48: - | EE48: - | EF48: - | EG48: - | EH48: - | EI48: - | EJ48: - | EK48: - | EL48: - | EM48: - | EN48: - | EO48: - | EP48: - | EQ48: - | ER48: - | ES48: - | ET48: - | EU48: - | EV48: - | EW48: - | EX48: -
A49: PS0506 | B49: PL0000102125 | C49: 2006-05-12 | D49: 0.085 | E49: 2001-05-12 | F49: 2002-05-12 | G49: 2002-04-30 | H49: 2002-05-13 | I49: 85 | J49: 2002-05-12 | K49: 2003-05-12 | L49: 2003-04-30 | M49: 2003-05-12 | N49: 85 | O49: 2003-05-12 | P49: 2004-05-12 | Q49: 2004-04-30 | R49: 2004-05-12 | S49: 85 | T49: 2004-05-12 | U49: 2005-05-12 | V49: 2005-05-02 | W49: 2005-05-12 | X49: 85 | Y49: 2005-05-12 | Z49: 2006-05-12 | AA49: 2006-05-02 | AB49: 2006-05-12 | AC49: 85 | AD49: - | AE49: - | AF49: - | AG49: - | AH49: - | AI49: - | AJ49: - | AK49: - | AL49: - | AM49: - | AN49: - | AO49: - | AP49: - | AQ49: - | AR49: - | AS49: - | AT49: - | AU49: - | AV49: - | AW49: - | AX49: - | AY49: - | AZ49: - | BA49: - | BB49: - | BC49: - | BD49: - | BE49: - | BF49: - | BG49: - | BH49: - | BI49: - | BJ49: - | BK49: - | BL49: - | BM49: - | BN49: - | BO49: - | BP49: - | BQ49: - | BR49: - | BS49: - | BT49: - | BU49: - | BV49: - | BW49: - | BX49: - | BY49: - | BZ49: - | CA49: - | CB49: - | CC49: - | CD49: - | CE49: - | CF49: - | CG49: - | CH49: - | CI49: - | CJ49: - | CK49: - | CL49: - | CM49: - | CN49: - | CO49: - | CP49: - | CQ49: - | CR49: - | CS49: - | CT49: - | CU49: - | CV49: - | CW49: - | CX49: - | CY49: - | CZ49: - | DA49: - | DB49: - | DC49: - | DD49: - | DE49: - | DF49: - | DG49: - | DH49: - | DI49: - | DJ49: - | DK49: - | DL49: - | DM49: - | DN49: - | DO49: - | DP49: - | DQ49: - | DR49: - | DS49: - | DT49: - | DU49: - | DV49: - | DW49: - | DX49: - | DY49: - | DZ49: - | EA49: - | EB49: - | EC49: - | ED49: - | EE49: - | EF49: - | EG49: - | EH49: - | EI49: - | EJ49: - | EK49: - | EL49: - | EM49: - | EN49: - | EO49: - | EP49: - | EQ49: - | ER49: - | ES49: - | ET49: - | EU49: - | EV49: - | EW49: - | EX49: -
A50: PS1106 | B50: PL0000102331 | C50: 2006-11-12 | D50: 0.085 | E50: 2001-11-12 | F50: 2002-11-12 | G50: 2002-10-30 | H50: 2002-11-12 | I50: 85 | J50: 2002-11-12 | K50: 2003-11-12 | L50: 2003-10-31 | M50: 2003-11-12 | N50: 85 | O50: 2003-11-12 | P50: 2004-11-12 | Q50: 2004-11-02 | R50: 2004-11-12 | S50: 85 | T50: 2004-11-12 | U50: 2005-11-12 | V50: 2005-11-02 | W50: 2005-11-14 | X50: 85 | Y50: 2005-11-12 | Z50: 2006-11-12 | AA50: 2006-11-02 | AB50: 2006-11-13 | AC50: 85 | AD50: - | AE50: - | AF50: - | AG50: - | AH50: - | AI50: - | AJ50: - | AK50: - | AL50: - | AM50: - | AN50: - | AO50: - | AP50: - | AQ50: - | AR50: - | AS50: - | AT50: - | AU50: - | AV50: - | AW50: - | AX50: - | AY50: - | AZ50: - | BA50: - | BB50: - | BC50: - | BD50: - | BE50: - | BF50: - | BG50: - | BH50: - | BI50: - | BJ50: - | BK50: - | BL50: - | BM50: - | BN50: - | BO50: - | BP50: - | BQ50: - | BR50: - | BS50: - | BT50: - | BU50: - | BV50: - | BW50: - | BX50: - | BY50: - | BZ50: - | CA50: - | CB50: - | CC50: - | CD50: - | CE50: - | CF50: - | CG50: - | CH50: - | CI50: - | CJ50: - | CK50: - | CL50: - | CM50: - | CN50: - | CO50: - | CP50: - | CQ50: - | CR50: - | CS50: - | CT50: - | CU50: - | CV50: - | CW50: - | CX50: - | CY50: - | CZ50: - | DA50: - | DB50: - | DC50: - | DD50: - | DE50: - | DF50: - | DG50: - | DH50: - | DI50: - | DJ50: - | DK50: - | DL50: - | DM50: - | DN50: - | DO50: - | DP50: - | DQ50: - | DR50: - | DS50: - | DT50: - | DU50: - | DV50: - | DW50: - | DX50: - | DY50: - | DZ50: - | EA50: - | EB50: - | EC50: - | ED50: - | EE50: - | EF50: - | EG50: - | EH50: - | EI50: - | EJ50: - | EK50: - | EL50: - | EM50: - | EN50: - | EO50: - | EP50: - | EQ50: - | ER50: - | ES50: - | ET50: - | EU50: - | EV50: - | EW50: - | EX50: -
A51: SP1206 | B51: PL0000102380 | C51: 2006-12-03 | D51: 0.09 | E51: 2001-12-03 | F51: 2002-12-03 | G51: 2002-11-20 | H51: 2002-12-03 | I51: 9 | J51: 2002-12-03 | K51: 2003-12-03 | L51: 2003-11-20 | M51: 2003-12-03 | N51: 9 | O51: 2003-12-03 | P51: 2004-12-03 | Q51: 2004-11-19 | R51: 2004-12-03 | S51: 9 | T51: 2004-12-03 | U51: 2005-12-03 | V51: 2005-11-18 | W51: 2005-12-03 | X51: 9 | Y51: 2005-12-03 | Z51: 2006-12-03 | AA51: 2006-11-20 | AB51: 2006-12-03 | AC51: 9 | AD51: - | AE51: - | AF51: - | AG51: - | AH51: - | AI51: - | AJ51: - | AK51: - | AL51: - | AM51: - | AN51: - | AO51: - | AP51: - | AQ51: - | AR51: - | AS51: - | AT51: - | AU51: - | AV51: - | AW51: - | AX51: - | AY51: - | AZ51: - | BA51: - | BB51: - | BC51: - | BD51: - | BE51: - | BF51: - | BG51: - | BH51: - | BI51: - | BJ51: - | BK51: - | BL51: - | BM51: - | BN51: - | BO51: - | BP51: - | BQ51: - | BR51: - | BS51: - | BT51: - | BU51: - | BV51: - | BW51: - | BX51: - | BY51: - | BZ51: - | CA51: - | CB51: - | CC51: - | CD51: - | CE51: - | CF51: - | CG51: - | CH51: - | CI51: - | CJ51: - | CK51: - | CL51: - | CM51: - | CN51: - | CO51: - | CP51: - | CQ51: - | CR51: - | CS51: - | CT51: - | CU51: - | CV51: - | CW51: - | CX51: - | CY51: - | CZ51: - | DA51: - | DB51: - | DC51: - | DD51: - | DE51: - | DF51: - | DG51: - | DH51: - | DI51: - | DJ51: - | DK51: - | DL51: - | DM51: - | DN51: - | DO51: - | DP51: - | DQ51: - | DR51: - | DS51: - | DT51: - | DU51: - | DV51: - | DW51: - | DX51: - | DY51: - | DZ51: - | EA51: - | EB51: - | EC51: - | ED51: - | EE51: - | EF51: - | EG51: - | EH51: - | EI51: - | EJ51: - | EK51: - | EL51: - | EM51: - | EN51: - | EO51: - | EP51: - | EQ51: - | ER51: - | ES51: - | ET51: - | EU51: - | EV51: - | EW51: - | EX51: -
A52: SP0307 | B52: PL0000102588 | C52: 2007-03-01 | D52: 0.08 | E52: 2002-03-01 | F52: 2003-03-01 | G52: 2003-02-18 | H52: 2003-03-01 | I52: 8 | J52: 2003-03-01 | K52: 2004-03-01 | L52: 2004-02-18 | M52: 2004-03-01 | N52: 8 | O52: 2004-03-01 | P52: 2005-03-01 | Q52: 2005-02-18 | R52: 2005-03-01 | S52: 8 | T52: 2005-03-01 | U52: 2006-03-01 | V52: 2006-02-17 | W52: 2006-03-01 | X52: 8 | Y52: 2006-03-01 | Z52: 2007-03-01 | AA52: 2007-02-16 | AB52: 2007-03-01 | AC52: 8 | AD52: - | AE52: - | AF52: - | AG52: - | AH52: - | AI52: - | AJ52: - | AK52: - | AL52: - | AM52: - | AN52: - | AO52: - | AP52: - | AQ52: - | AR52: - | AS52: - | AT52: - | AU52: - | AV52: - | AW52: - | AX52: - | AY52: - | AZ52: - | BA52: - | BB52: - | BC52: - | BD52: - | BE52: - | BF52: - | BG52: - | BH52: - | BI52: - | BJ52: - | BK52: - | BL52: - | BM52: - | BN52: - | BO52: - | BP52: - | BQ52: - | BR52: - | BS52: - | BT52: - | BU52: - | BV52: - | BW52: - | BX52: - | BY52: - | BZ52: - | CA52: - | CB52: - | CC52: - | CD52: - | CE52: - | CF52: - | CG52: - | CH52: - | CI52: - | CJ52: - | CK52: - | CL52: - | CM52: - | CN52: - | CO52: - | CP52: - | CQ52: - | CR52: - | CS52: - | CT52: - | CU52: - | CV52: - | CW52: - | CX52: - | CY52: - | CZ52: - | DA52: - | DB52: - | DC52: - | DD52: - | DE52: - | DF52: - | DG52: - | DH52: - | DI52: - | DJ52: - | DK52: - | DL52: - | DM52: - | DN52: - | DO52: - | DP52: - | DQ52: - | DR52: - | DS52: - | DT52: - | DU52: - | DV52: - | DW52: - | DX52: - | DY52: - | DZ52: - | EA52: - | EB52: - | EC52: - | ED52: - | EE52: - | EF52: - | EG52: - | EH52: - | EI52: - | EJ52: - | EK52: - | EL52: - | EM52: - | EN52: - | EO52: - | EP52: - | EQ52: - | ER52: - | ES52: - | ET52: - | EU52: - | EV52: - | EW52: - | EX52: -
A53: PS0507 | B53: PL0000102679 | C53: 2007-05-12 | D53: 0.085 | E53: 2002-05-12 | F53: 2003-05-12 | G53: 2003-05-07 | H53: 2003-05-12 | I53: 85 | J53: 2003-05-12 | K53: 2004-05-12 | L53: 2004-05-07 | M53: 2004-05-12 | N53: 85 | O53: 2004-05-12 | P53: 2005-05-12 | Q53: 2005-05-09 | R53: 2005-05-12 | S53: 85 | T53: 2005-05-12 | U53: 2006-05-12 | V53: 2006-05-09 | W53: 2006-05-12 | X53: 85 | Y53: 2006-05-12 | Z53: 2007-05-12 | AA53: 2007-05-09 | AB53: 2007-05-14 | AC53: 85 | AD53: - | AE53: - | AF53: - | AG53: - | AH53: - | AI53: - | AJ53: - | AK53: - | AL53: - | AM53: - | AN53: - | AO53: - | AP53: - | AQ53: - | AR53: - | AS53: - | AT53: - | AU53: - | AV53: - | AW53: - | AX53: - | AY53: - | AZ53: - | BA53: - | BB53: - | BC53: - | BD53: - | BE53: - | BF53: - | BG53: - | BH53: - | BI53: - | BJ53: - | BK53: - | BL53: - | BM53: - | BN53: - | BO53: - | BP53: - | BQ53: - | BR53: - | BS53: - | BT53: - | BU53: - | BV53: - | BW53: - | BX53: - | BY53: - | BZ53: - | CA53: - | CB53: - | CC53: - | CD53: - | CE53: - | CF53: - | CG53: - | CH53: - | CI53: - | CJ53: - | CK53: - | CL53: - | CM53: - | CN53: - | CO53: - | CP53: - | CQ53: - | CR53: - | CS53: - | CT53: - | CU53: - | CV53: - | CW53: - | CX53: - | CY53: - | CZ53: - | DA53: - | DB53: - | DC53: - | DD53: - | DE53: - | DF53: - | DG53: - | DH53: - | DI53: - | DJ53: - | DK53: - | DL53: - | DM53: - | DN53: - | DO53: - | DP53: - | DQ53: - | DR53: - | DS53: - | DT53: - | DU53: - | DV53: - | DW53: - | DX53: - | DY53: - | DZ53: - | EA53: - | EB53: - | EC53: - | ED53: - | EE53: - | EF53: - | EG53: - | EH53: - | EI53: - | EJ53: - | EK53: - | EL53: - | EM53: - | EN53: - | EO53: - | EP53: - | EQ53: - | ER53: - | ES53: - | ET53: - | EU53: - | EV53: - | EW53: - | EX53: -
A54: SP0607 | B54: PL0000102703 | C54: 2007-06-03 | D54: 0.08 | E54: 2002-06-03 | F54: 2003-06-03 | G54: 2003-05-16 | H54: 2003-06-03 | I54: 8 | J54: 2003-06-03 | K54: 2004-06-03 | L54: 2004-05-18 | M54: 2004-06-03 | N54: 8 | O54: 2004-06-03 | P54: 2005-06-03 | Q54: 2005-05-18 | R54: 2005-06-03 | S54: 8 | T54: 2005-06-03 | U54: 2006-06-03 | V54: 2006-05-18 | W54: 2006-06-03 | X54: 8 | Y54: 2006-06-03 | Z54: 2007-06-03 | AA54: 2007-05-18 | AB54: 2007-06-03 | AC54: 8 | AD54: - | AE54: - | AF54: - | AG54: - | AH54: - | AI54: - | AJ54: - | AK54: - | AL54: - | AM54: - | AN54: - | AO54: - | AP54: - | AQ54: - | AR54: - | AS54: - | AT54: - | AU54: - | AV54: - | AW54: - | AX54: - | AY54: - | AZ54: - | BA54: - | BB54: - | BC54: - | BD54: - | BE54: - | BF54: - | BG54: - | BH54: - | BI54: - | BJ54: - | BK54: - | BL54: - | BM54: - | BN54: - | BO54: - | BP54: - | BQ54: - | BR54: - | BS54: - | BT54: - | BU54: - | BV54: - | BW54: - | BX54: - | BY54: - | BZ54: - | CA54: - | CB54: - | CC54: - | CD54: - | CE54: - | CF54: - | CG54: - | CH54: - | CI54: - | CJ54: - | CK54: - | CL54: - | CM54: - | CN54: - | CO54: - | CP54: - | CQ54: - | CR54: - | CS54: - | CT54: - | CU54: - | CV54: - | CW54: - | CX54: - | CY54: - | CZ54: - | DA54: - | DB54: - | DC54: - | DD54: - | DE54: - | DF54: - | DG54: - | DH54: - | DI54: - | DJ54: - | DK54: - | DL54: - | DM54: - | DN54: - | DO54: - | DP54: - | DQ54: - | DR54: - | DS54: - | DT54: - | DU54: - | DV54: - | DW54: - | DX54: - | DY54: - | DZ54: - | EA54: - | EB54: - | EC54: - | ED54: - | EE54: - | EF54: - | EG54: - | EH54: - | EI54: - | EJ54: - | EK54: - | EL54: - | EM54: - | EN54: - | EO54: - | EP54: - | EQ54: - | ER54: - | ES54: - | ET54: - | EU54: - | EV54: - | EW54: - | EX54: -
A55: SP0907 | B55: PL0000102794 | C55: 2007-09-02 | D55: 0.065 | E55: 2002-09-02 | F55: 2003-09-02 | G55: 2003-08-14 | H55: 2003-09-02 | I55: 6.5 | J55: 2003-09-02 | K55: 2004-09-02 | L55: 2004-08-17 | M55: 2004-09-02 | N55: 6.5 | O55: 2004-09-02 | P55: 2005-09-02 | Q55: 2005-08-17 | R55: 2005-09-02 | S55: 6.5 | T55: 2005-09-02 | U55: 2006-09-02 | V55: 2006-08-17 | W55: 2006-09-02 | X55: 6.5 | Y55: 2006-09-02 | Z55: 2007-09-02 | AA55: 2007-08-17 | AB55: 2007-09-02 | AC55: 6.5 | AD55: - | AE55: - | AF55: - | AG55: - | AH55: - | AI55: - | AJ55: - | AK55: - | AL55: - | AM55: - | AN55: - | AO55: - | AP55: - | AQ55: - | AR55: - | AS55: - | AT55: - | AU55: - | AV55: - | AW55: - | AX55: - | AY55: - | AZ55: - | BA55: - | BB55: - | BC55: - | BD55: - | BE55: - | BF55: - | BG55: - | BH55: - | BI55: - | BJ55: - | BK55: - | BL55: - | BM55: - | BN55: - | BO55: - | BP55: - | BQ55: - | BR55: - | BS55: - | BT55: - | BU55: - | BV55: - | BW55: - | BX55: - | BY55: - | BZ55: - | CA55: - | CB55: - | CC55: - | CD55: - | CE55: - | CF55: - | CG55: - | CH55: - | CI55: - | CJ55: - | CK55: - | CL55: - | CM55: - | CN55: - | CO55: - | CP55: - | CQ55: - | CR55: - | CS55: - | CT55: - | CU55: - | CV55: - | CW55: - | CX55: - | CY55: - | CZ55: - | DA55: - | DB55: - | DC55: - | DD55: - | DE55: - | DF55: - | DG55: - | DH55: - | DI55: - | DJ55: - | DK55: - | DL55: - | DM55: - | DN55: - | DO55: - | DP55: - | DQ55: - | DR55: - | DS55: - | DT55: - | DU55: - | DV55: - | DW55: - | DX55: - | DY55: - | DZ55: - | EA55: - | EB55: - | EC55: - | ED55: - | EE55: - | EF55: - | EG55: - | EH55: - | EI55: - | EJ55: - | EK55: - | EL55: - | EM55: - | EN55: - | EO55: - | EP55: - | EQ55: - | ER55: - | ES55: - | ET55: - | EU55: - | EV55: - | EW55: - | EX55: -
A56: SP1207 | B56: PL0000102901 | C56: 2007-12-02 | D56: 0.055 | E56: 2002-12-02 | F56: 2003-12-02 | G56: 2003-11-20 | H56: 2003-12-02 | I56: 5.5 | J56: 2003-12-02 | K56: 2004-12-02 | L56: 2004-11-19 | M56: 2004-12-02 | N56: 5.5 | O56: 2004-12-02 | P56: 2005-12-02 | Q56: 2005-11-18 | R56: 2005-12-02 | S56: 5.5 | T56: 2005-12-02 | U56: 2006-12-02 | V56: 2006-11-20 | W56: 2006-12-02 | X56: 5.5 | Y56: 2006-12-02 | Z56: 2007-12-02 | AA56: 2007-11-20 | AB56: 2007-12-02 | AC56: 5.5 | AD56: - | AE56: - | AF56: - | AG56: - | AH56: - | AI56: - | AJ56: - | AK56: - | AL56: - | AM56: - | AN56: - | AO56: - | AP56: - | AQ56: - | AR56: - | AS56: - | AT56: - | AU56: - | AV56: - | AW56: - | AX56: - | AY56: - | AZ56: - | BA56: - | BB56: - | BC56: - | BD56: - | BE56: - | BF56: - | BG56: - | BH56: - | BI56: - | BJ56: - | BK56: - | BL56: - | BM56: - | BN56: - | BO56: - | BP56: - | BQ56: - | BR56: - | BS56: - | BT56: - | BU56: - | BV56: - | BW56: - | BX56: - | BY56: - | BZ56: - | CA56: - | CB56: - | CC56: - | CD56: - | CE56: - | CF56: - | CG56: - | CH56: - | CI56: - | CJ56: - | CK56: - | CL56: - | CM56: - | CN56: - | CO56: - | CP56: - | CQ56: - | CR56: - | CS56: - | CT56: - | CU56: - | CV56: - | CW56: - | CX56: - | CY56: - | CZ56: - | DA56: - | DB56: - | DC56: - | DD56: - | DE56: - | DF56: - | DG56: - | DH56: - | DI56: - | DJ56: - | DK56: - | DL56: - | DM56: - | DN56: - | DO56: - | DP56: - | DQ56: - | DR56: - | DS56: - | DT56: - | DU56: - | DV56: - | DW56: - | DX56: - | DY56: - | DZ56: - | EA56: - | EB56: - | EC56: - | ED56: - | EE56: - | EF56: - | EG56: - | EH56: - | EI56: - | EJ56: - | EK56: - | EL56: - | EM56: - | EN56: - | EO56: - | EP56: - | EQ56: - | ER56: - | ES56: - | ET56: - | EU56: - | EV56: - | EW56: - | EX56: -
A57: SP0308 | B57: PL0000102984 | C57: 2008-03-03 | D57: 0.05 | E57: 2003-03-03 | F57: 2004-03-03 | G57: 2004-02-18 | H57: 2004-03-03 | I57: 5 | J57: 2004-03-03 | K57: 2005-03-03 | L57: 2005-02-18 | M57: 2005-03-03 | N57: 5 | O57: 2005-03-03 | P57: 2006-03-03 | Q57: 2006-02-17 | R57: 2006-03-03 | S57: 5 | T57: 2006-03-03 | U57: 2007-03-03 | V57: 2007-02-16 | W57: 2007-03-03 | X57: 5 | Y57: 2007-03-03 | Z57: 2008-03-03 | AA57: 2008-02-18 | AB57: 2008-03-03 | AC57: 5 | AD57: - | AE57: - | AF57: - | AG57: - | AH57: - | AI57: - | AJ57: - | AK57: - | AL57: - | AM57: - | AN57: - | AO57: - | AP57: - | AQ57: - | AR57: - | AS57: - | AT57: - | AU57: - | AV57: - | AW57: - | AX57: - | AY57: - | AZ57: - | BA57: - | BB57: - | BC57: - | BD57: - | BE57: - | BF57: - | BG57: - | BH57: - | BI57: - | BJ57: - | BK57: - | BL57: - | BM57: - | BN57: - | BO57: - | BP57: - | BQ57: - | BR57: - | BS57: - | BT57: - | BU57: - | BV57: - | BW57: - | BX57: - | BY57: - | BZ57: - | CA57: - | CB57: - | CC57: - | CD57: - | CE57: - | CF57: - | CG57: - | CH57: - | CI57: - | CJ57: - | CK57: - | CL57: - | CM57: - | CN57: - | CO57: - | CP57: - | CQ57: - | CR57: - | CS57: - | CT57: - | CU57: - | CV57: - | CW57: - | CX57: - | CY57: - | CZ57: - | DA57: - | DB57: - | DC57: - | DD57: - | DE57: - | DF57: - | DG57: - | DH57: - | DI57: - | DJ57: - | DK57: - | DL57: - | DM57: - | DN57: - | DO57: - | DP57: - | DQ57: - | DR57: - | DS57: - | DT57: - | DU57: - | DV57: - | DW57: - | DX57: - | DY57: - | DZ57: - | EA57: - | EB57: - | EC57: - | ED57: - | EE57: - | EF57: - | EG57: - | EH57: - | EI57: - | EJ57: - | EK57: - | EL57: - | EM57: - | EN57: - | EO57: - | EP57: - | EQ57: - | ER57: - | ES57: - | ET57: - | EU57: - | EV57: - | EW57: - | EX57: -
A58: PS0608 | B58: PL0000102869 | C58: 2008-06-24 | D58: 0.0575 | E58: 2002-06-24 | F58: 2003-06-24 | G58: 2003-06-18 | H58: 2003-06-24 | I58: 57.5 | J58: 2003-06-24 | K58: 2004-06-24 | L58: 2004-06-21 | M58: 2004-06-24 | N58: 57.5 | O58: 2004-06-24 | P58: 2005-06-24 | Q58: 2005-06-21 | R58: 2005-06-24 | S58: 57.5 | T58: 2005-06-24 | U58: 2006-06-24 | V58: 2006-06-21 | W58: 2006-06-26 | X58: 57.5 | Y58: 2006-06-24 | Z58: 2007-06-24 | AA58: 2007-06-20 | AB58: 2007-06-25 | AC58: 57.5 | AD58: 2007-06-24 | AE58: 2008-06-24 | AF58: 2008-06-19 | AG58: 2008-06-24 | AH58: 57.5 | AI58: - | AJ58: - | AK58: - | AL58: - | AM58: - | AN58: - | AO58: - | AP58: - | AQ58: - | AR58: - | AS58: - | AT58: - | AU58: - | AV58: - | AW58: - | AX58: - | AY58: - | AZ58: - | BA58: - | BB58: - | BC58: - | BD58: - | BE58: - | BF58: - | BG58: - | BH58: - | BI58: - | BJ58: - | BK58: - | BL58: - | BM58: - | BN58: - | BO58: - | BP58: - | BQ58: - | BR58: - | BS58: - | BT58: - | BU58: - | BV58: - | BW58: - | BX58: - | BY58: - | BZ58: - | CA58: - | CB58: - | CC58: - | CD58: - | CE58: - | CF58: - | CG58: - | CH58: - | CI58: - | CJ58: - | CK58: - | CL58: - | CM58: - | CN58: - | CO58: - | CP58: - | CQ58: - | CR58: - | CS58: - | CT58: - | CU58: - | CV58: - | CW58: - | CX58: - | CY58: - | CZ58: - | DA58: - | DB58: - | DC58: - | DD58: - | DE58: - | DF58: - | DG58: - | DH58: - | DI58: - | DJ58: - | DK58: - | DL58: - | DM58: - | DN58: - | DO58: - | DP58: - | DQ58: - | DR58: - | DS58: - | DT58: - | DU58: - | DV58: - | DW58: - | DX58: - | DY58: - | DZ58: - | EA58: - | EB58: - | EC58: - | ED58: - | EE58: - | EF58: - | EG58: - | EH58: - | EI58: - | EJ58: - | EK58: - | EL58: - | EM58: - | EN58: - | EO58: - | EP58: - | EQ58: - | ER58: - | ES58: - | ET58: - | EU58: - | EV58: - | EW58: - | EX58: -
A59: SP0608 | B59: PL0000103073 | C59: 2008-06-02 | D59: 0.045 | E59: 2003-06-02 | F59: 2004-06-02 | G59: 2004-05-18 | H59: 2004-06-02 | I59: 4.5 | J59: 2004-06-02 | K59: 2005-06-02 | L59: 2005-05-18 | M59: 2005-06-02 | N59: 4.5 | O59: 2005-06-02 | P59: 2006-06-02 | Q59: 2006-05-18 | R59: 2006-06-02 | S59: 4.5 | T59: 2006-06-02 | U59: 2007-06-02 | V59: 2007-05-18 | W59: 2007-06-02 | X59: 4.5 | Y59: 2007-06-02 | Z59: 2008-06-02 | AA59: 2008-05-16 | AB59: 2008-06-02 | AC59: 4.5 | AD59: - | AE59: - | AF59: - | AG59: - | AH59: - | AI59: - | AJ59: - | AK59: - | AL59: - | AM59: - | AN59: - | AO59: - | AP59: - | AQ59: - | AR59: - | AS59: - | AT59: - | AU59: - | AV59: - | AW59: - | AX59: - | AY59: - | AZ59: - | BA59: - | BB59: - | BC59: - | BD59: - | BE59: - | BF59: - | BG59: - | BH59: - | BI59: - | BJ59: - | BK59: - | BL59: - | BM59: - | BN59: - | BO59: - | BP59: - | BQ59: - | BR59: - | BS59: - | BT59: - | BU59: - | BV59: - | BW59: - | BX59: - | BY59: - | BZ59: - | CA59: - | CB59: - | CC59: - | CD59: - | CE59: - | CF59: - | CG59: - | CH59: - | CI59: - | CJ59: - | CK59: - | CL59: - | CM59: - | CN59: - | CO59: - | CP59: - | CQ59: - | CR59: - | CS59: - | CT59: - | CU59: - | CV59: - | CW59: - | CX59: - | CY59: - | CZ59: - | DA59: - | DB59: - | DC59: - | DD59: - | DE59: - | DF59: - | DG59: - | DH59: - | DI59: - | DJ59: - | DK59: - | DL59: - | DM59: - | DN59: - | DO59: - | DP59: - | DQ59: - | DR59: - | DS59: - | DT59: - | DU59: - | DV59: - | DW59: - | DX59: - | DY59: - | DZ59: - | EA59: - | EB59: - | EC59: - | ED59: - | EE59: - | EF59: - | EG59: - | EH59: - | EI59: - | EJ59: - | EK59: - | EL59: - | EM59: - | EN59: - | EO59: - | EP59: - | EQ59: - | ER59: - | ES59: - | ET59: - | EU59: - | EV59: - | EW59: - | EX59: -
A60: SP0908 | B60: PL0000103164 | C60: 2008-09-01 | D60: 0.045 | E60: 2003-09-01 | F60: 2004-09-01 | G60: 2004-08-25 | H60: 2004-09-01 | I60: 4.5 | J60: 2004-09-01 | K60: 2005-09-01 | L60: 2005-08-25 | M60: 2005-09-01 | N60: 4.5 | O60: 2005-09-01 | P60: 2006-09-01 | Q60: 2006-08-25 | R60: 2006-09-01 | S60: 4.5 | T60: 2006-09-01 | U60: 2007-09-01 | V60: 2007-08-27 | W60: 2007-09-01 | X60: 4.5 | Y60: 2007-09-01 | Z60: 2008-09-01 | AA60: 2008-08-25 | AB60: 2008-09-01 | AC60: 4.5 | AD60: - | AE60: - | AF60: - | AG60: - | AH60: - | AI60: - | AJ60: - | AK60: - | AL60: - | AM60: - | AN60: - | AO60: - | AP60: - | AQ60: - | AR60: - | AS60: - | AT60: - | AU60: - | AV60: - | AW60: - | AX60: - | AY60: - | AZ60: - | BA60: - | BB60: - | BC60: - | BD60: - | BE60: - | BF60: - | BG60: - | BH60: - | BI60: - | BJ60: - | BK60: - | BL60: - | BM60: - | BN60: - | BO60: - | BP60: - | BQ60: - | BR60: - | BS60: - | BT60: - | BU60: - | BV60: - | BW60: - | BX60: - | BY60: - | BZ60: - | CA60: - | CB60: - | CC60: - | CD60: - | CE60: - | CF60: - | CG60: - | CH60: - | CI60: - | CJ60: - | CK60: - | CL60: - | CM60: - | CN60: - | CO60: - | CP60: - | CQ60: - | CR60: - | CS60: - | CT60: - | CU60: - | CV60: - | CW60: - | CX60: - | CY60: - | CZ60: - | DA60: - | DB60: - | DC60: - | DD60: - | DE60: - | DF60: - | DG60: - | DH60: - | DI60: - | DJ60: - | DK60: - | DL60: - | DM60: - | DN60: - | DO60: - | DP60: - | DQ60: - | DR60: - | DS60: - | DT60: - | DU60: - | DV60: - | DW60: - | DX60: - | DY60: - | DZ60: - | EA60: - | EB60: - | EC60: - | ED60: - | EE60: - | EF60: - | EG60: - | EH60: - | EI60: - | EJ60: - | EK60: - | EL60: - | EM60: - | EN60: - | EO60: - | EP60: - | EQ60: - | ER60: - | ES60: - | ET60: - | EU60: - | EV60: - | EW60: - | EX60: -
A61: SP1208 | B61: PL0000103255 | C61: 2008-12-01 | D61: 0.065 | E61: 2003-12-01 | F61: 2004-12-01 | G61: 2004-11-24 | H61: 2004-12-01 | I61: 6.5 | J61: 2004-12-01 | K61: 2005-12-01 | L61: 2005-11-24 | M61: 2005-12-01 | N61: 6.5 | O61: 2005-12-01 | P61: 2006-12-01 | Q61: 2006-11-24 | R61: 2006-12-01 | S61: 6.5 | T61: 2006-12-01 | U61: 2007-12-01 | V61: 2007-11-26 | W61: 2007-12-01 | X61: 6.5 | Y61: 2007-12-01 | Z61: 2008-12-01 | AA61: 2008-11-24 | AB61: 2008-12-01 | AC61: 6.5 | AD61: - | AE61: - | AF61: - | AG61: - | AH61: - | AI61: - | AJ61: - | AK61: - | AL61: - | AM61: - | AN61: - | AO61: - | AP61: - | AQ61: - | AR61: - | AS61: - | AT61: - | AU61: - | AV61: - | AW61: - | AX61: - | AY61: - | AZ61: - | BA61: - | BB61: - | BC61: - | BD61: - | BE61: - | BF61: - | BG61: - | BH61: - | BI61: - | BJ61: - | BK61: - | BL61: - | BM61: - | BN61: - | BO61: - | BP61: - | BQ61: - | BR61: - | BS61: - | BT61: - | BU61: - | BV61: - | BW61: - | BX61: - | BY61: - | BZ61: - | CA61: - | CB61: - | CC61: - | CD61: - | CE61: - | CF61: - | CG61: - | CH61: - | CI61: - | CJ61: - | CK61: - | CL61: - | CM61: - | CN61: - | CO61: - | CP61: - | CQ61: - | CR61: - | CS61: - | CT61: - | CU61: - | CV61: - | CW61: - | CX61: - | CY61: - | CZ61: - | DA61: - | DB61: - | DC61: - | DD61: - | DE61: - | DF61: - | DG61: - | DH61: - | DI61: - | DJ61: - | DK61: - | DL61: - | DM61: - | DN61: - | DO61: - | DP61: - | DQ61: - | DR61: - | DS61: - | DT61: - | DU61: - | DV61: - | DW61: - | DX61: - | DY61: - | DZ61: - | EA61: - | EB61: - | EC61: - | ED61: - | EE61: - | EF61: - | EG61: - | EH61: - | EI61: - | EJ61: - | EK61: - | EL61: - | EM61: - | EN61: - | EO61: - | EP61: - | EQ61: - | ER61: - | ES61: - | ET61: - | EU61: - | EV61: - | EW61: - | EX61: -
A62: SP0309 | B62: PL0000103362 | C62: 2009-03-01 | D62: 0.065 | E62: 2004-03-01 | F62: 2005-03-01 | G62: 2005-02-22 | H62: 2005-03-01 | I62: 6.5 | J62: 2005-03-01 | K62: 2006-03-01 | L62: 2006-02-22 | M62: 2006-03-01 | N62: 6.5 | O62: 2006-03-01 | P62: 2007-03-01 | Q62: 2007-02-22 | R62: 2007-03-01 | S62: 6.5 | T62: 2007-03-01 | U62: 2008-03-01 | V62: 2008-02-25 | W62: 2008-03-01 | X62: 6.5 | Y62: 2008-03-01 | Z62: 2009-03-01 | AA62: 2009-02-23 | AB62: 2009-03-01 | AC62: 6.5 | AD62: - | AE62: - | AF62: - | AG62: - | AH62: - | AI62: - | AJ62: - | AK62: - | AL62: - | AM62: - | AN62: - | AO62: - | AP62: - | AQ62: - | AR62: - | AS62: - | AT62: - | AU62: - | AV62: - | AW62: - | AX62: - | AY62: - | AZ62: - | BA62: - | BB62: - | BC62: - | BD62: - | BE62: - | BF62: - | BG62: - | BH62: - | BI62: - | BJ62: - | BK62: - | BL62: - | BM62: - | BN62: - | BO62: - | BP62: - | BQ62: - | BR62: - | BS62: - | BT62: - | BU62: - | BV62: - | BW62: - | BX62: - | BY62: - | BZ62: - | CA62: - | CB62: - | CC62: - | CD62: - | CE62: - | CF62: - | CG62: - | CH62: - | CI62: - | CJ62: - | CK62: - | CL62: - | CM62: - | CN62: - | CO62: - | CP62: - | CQ62: - | CR62: - | CS62: - | CT62: - | CU62: - | CV62: - | CW62: - | CX62: - | CY62: - | CZ62: - | DA62: - | DB62: - | DC62: - | DD62: - | DE62: - | DF62: - | DG62: - | DH62: - | DI62: - | DJ62: - | DK62: - | DL62: - | DM62: - | DN62: - | DO62: - | DP62: - | DQ62: - | DR62: - | DS62: - | DT62: - | DU62: - | DV62: - | DW62: - | DX62: - | DY62: - | DZ62: - | EA62: - | EB62: - | EC62: - | ED62: - | EE62: - | EF62: - | EG62: - | EH62: - | EI62: - | EJ62: - | EK62: - | EL62: - | EM62: - | EN62: - | EO62: - | EP62: - | EQ62: - | ER62: - | ES62: - | ET62: - | EU62: - | EV62: - | EW62: - | EX62: -
A63: SP0609 | B63: PL0000103461 | C63: 2009-06-01 | D63: 0.07 | E63: 2004-06-01 | F63: 2005-06-01 | G63: 2005-05-24 | H63: 2005-06-01 | I63: 7 | J63: 2005-06-01 | K63: 2006-06-01 | L63: 2006-05-25 | M63: 2006-06-01 | N63: 7 | O63: 2006-06-01 | P63: 2007-06-01 | Q63: 2007-05-25 | R63: 2007-06-01 | S63: 7 | T63: 2007-06-01 | U63: 2008-06-01 | V63: 2008-05-26 | W63: 2008-06-01 | X63: 7 | Y63: 2008-06-01 | Z63: 2009-06-01 | AA63: 2009-05-25 | AB63: 2009-06-01 | AC63: 7 | AD63: - | AE63: - | AF63: - | AG63: - | AH63: - | AI63: - | AJ63: - | AK63: - | AL63: - | AM63: - | AN63: - | AO63: - | AP63: - | AQ63: - | AR63: - | AS63: - | AT63: - | AU63: - | AV63: - | AW63: - | AX63: - | AY63: - | AZ63: - | BA63: - | BB63: - | BC63: - | BD63: - | BE63: - | BF63: - | BG63: - | BH63: - | BI63: - | BJ63: - | BK63: - | BL63: - | BM63: - | BN63: - | BO63: - | BP63: - | BQ63: - | BR63: - | BS63: - | BT63: - | BU63: - | BV63: - | BW63: - | BX63: - | BY63: - | BZ63: - | CA63: - | CB63: - | CC63: - | CD63: - | CE63: - | CF63: - | CG63: - | CH63: - | CI63: - | CJ63: - | CK63: - | CL63: - | CM63: - | CN63: - | CO63: - | CP63: - | CQ63: - | CR63: - | CS63: - | CT63: - | CU63: - | CV63: - | CW63: - | CX63: - | CY63: - | CZ63: - | DA63: - | DB63: - | DC63: - | DD63: - | DE63: - | DF63: - | DG63: - | DH63: - | DI63: - | DJ63: - | DK63: - | DL63: - | DM63: - | DN63: - | DO63: - | DP63: - | DQ63: - | DR63: - | DS63: - | DT63: - | DU63: - | DV63: - | DW63: - | DX63: - | DY63: - | DZ63: - | EA63: - | EB63: - | EC63: - | ED63: - | EE63: - | EF63: - | EG63: - | EH63: - | EI63: - | EJ63: - | EK63: - | EL63: - | EM63: - | EN63: - | EO63: - | EP63: - | EQ63: - | ER63: - | ES63: - | ET63: - | EU63: - | EV63: - | EW63: - | EX63: -
A64: SP0909 | B64: PL0000103545 | C64: 2009-09-01 | D64: 0.073 | E64: 2004-09-01 | F64: 2005-09-01 | G64: 2005-08-25 | H64: 2005-09-01 | I64: 7.3 | J64: 2005-09-01 | K64: 2006-09-01 | L64: 2006-08-25 | M64: 2006-09-01 | N64: 7.3 | O64: 2006-09-01 | P64: 2007-09-01 | Q64: 2007-08-27 | R64: 2007-09-01 | S64: 7.3 | T64: 2007-09-01 | U64: 2008-09-01 | V64: 2008-08-25 | W64: 2008-09-01 | X64: 7.3 | Y64: 2008-09-01 | Z64: 2009-09-01 | AA64: 2009-08-25 | AB64: 2009-09-01 | AC64: 7.3
A65: SP1209 | B65: PL0000103677 | C65: 2009-12-01 | D65: 0.065 | E65: 2004-12-01 | F65: 2005-12-01 | G65: 2005-11-24 | H65: 2005-12-01 | I65: 6.5 | J65: 2005-12-01 | K65: 2006-12-01 | L65: 2006-11-24 | M65: 2006-12-01 | N65: 6.5 | O65: 2006-12-01 | P65: 2007-12-01 | Q65: 2007-11-26 | R65: 2007-12-01 | S65: 6.5 | T65: 2007-12-01 | U65: 2008-12-01 | V65: 2008-11-24 | W65: 2008-12-01 | X65: 6.5 | Y65: 2008-12-01 | Z65: 2009-12-01 | AA65: 2009-11-24 | AB65: 2009-12-01 | AC65: 6.5
A66: DS0509 | B66: PL0000101259 | C66: 2009-05-24 | D66: 0.06 | E66: 1999-05-24 | F66: 2000-05-24 | G66: 2000-05-12 | H66: 2000-05-24 | I66: 60 | J66: 2000-05-24 | K66: 2001-05-24 | L66: 2001-05-14 | M66: 2001-05-24 | N66: 60 | O66: 2001-05-24 | P66: 2002-05-24 | Q66: 2002-05-14 | R66: 2002-05-24 | S66: 60 | T66: 2002-05-24 | U66: 2003-05-24 | V66: 2003-05-14 | W66: 2003-05-24 | X66: 60 | Y66: 2003-05-24 | Z66: 2004-05-24 | AA66: 2004-05-12 | AB66: 2004-05-24 | AC66: 60 | AD66: 2004-05-24 | AE66: 2005-05-24 | AF66: 2005-05-12 | AG66: 2005-05-24 | AH66: 60 | AI66: 2005-05-24 | AJ66: 2006-05-24 | AK66: 2006-05-12 | AL66: 2006-05-24 | AM66: 60 | AN66: 2006-05-24 | AO66: 2007-05-24 | AP66: 2007-05-14 | AQ66: 2007-05-24 | AR66: 60 | AS66: 2007-05-24 | AT66: 2008-05-24 | AU66: 2008-05-14 | AV66: 2008-05-24 | AW66: 60 | AX66: 2008-05-24 | AY66: 2009-05-24 | AZ66: 2009-05-13 | BA66: 2009-05-24 | BB66: 60 | BC66: - | BD66: - | BE66: - | BF66: - | BG66: - | BH66: - | BI66: - | BJ66: - | BK66: - | BL66: - | BM66: - | BN66: - | BO66: - | BP66: - | BQ66: - | BR66: - | BS66: - | BT66: - | BU66: - | BV66: - | BW66: - | BX66: - | BY66: - | BZ66: - | CA66: - | CB66: - | CC66: - | CD66: - | CE66: - | CF66: - | CG66: - | CH66: - | CI66: - | CJ66: - | CK66: - | CL66: - | CM66: - | CN66: - | CO66: - | CP66: - | CQ66: - | CR66: - | CS66: - | CT66: - | CU66: - | CV66: - | CW66: - | CX66: - | CY66: - | CZ66: - | DA66: - | DB66: - | DC66: - | DD66: - | DE66: - | DF66: - | DG66: - | DH66: - | DI66: - | DJ66: - | DK66: - | DL66: - | DM66: - | DN66: - | DO66: - | DP66: - | DQ66: - | DR66: - | DS66: - | DT66: - | DU66: - | DV66: - | DW66: - | DX66: - | DY66: - | DZ66: - | EA66: - | EB66: - | EC66: - | ED66: - | EE66: - | EF66: - | EG66: - | EH66: - | EI66: - | EJ66: - | EK66: - | EL66: - | EM66: - | EN66: - | EO66: - | EP66: - | EQ66: - | ER66: - | ES66: - | ET66: - | EU66: - | EV66: - | EW66: - | EX66: -
A67: DK0809 | B67: PL0000101440 | C67: 2009-08-22 | D67: 0.06 | E67: 1999-10-01 | F67: 2000-08-22 | G67: 2000-08-08 | H67: 2000-08-22 | I67: 53.44 | J67: 2000-08-22 | K67: 2001-08-22 | L67: 2001-08-08 | M67: 2001-08-22 | N67: 60 | O67: 2001-08-22 | P67: 2002-08-22 | Q67: 2002-08-08 | R67: 2002-08-22 | S67: 60 | T67: 2002-08-22 | U67: 2003-08-22 | V67: 2003-08-08 | W67: 2003-08-22 | X67: 60 | Y67: 2003-08-22 | Z67: 2004-08-22 | AA67: 2004-08-10 | AB67: 2004-08-23 | AC67: 60 | AD67: 2004-08-22 | AE67: 2005-08-22 | AF67: 2005-08-08 | AG67: 2005-08-22 | AH67: 60 | AI67: 2005-08-22 | AJ67: 2006-08-22 | AK67: 2006-08-08 | AL67: 2006-08-22 | AM67: 60 | AN67: 2006-08-22 | AO67: 2007-08-22 | AP67: 2007-08-08 | AQ67: 2007-08-22 | AR67: 60 | AS67: 2007-08-22 | AT67: 2008-08-22 | AU67: 2008-08-08 | AV67: 2008-08-22 | AW67: 60 | AX67: 2008-08-22 | AY67: 2009-08-22 | AZ67: 2009-08-11 | BA67: 2009-08-24 | BB67: 60 | BC67: - | BD67: - | BE67: - | BF67: - | BG67: - | BH67: - | BI67: - | BJ67: - | BK67: - | BL67: - | BM67: - | BN67: - | BO67: - | BP67: - | BQ67: - | BR67: - | BS67: - | BT67: - | BU67: - | BV67: - | BW67: - | BX67: - | BY67: - | BZ67: - | CA67: - | CB67: - | CC67: - | CD67: - | CE67: - | CF67: - | CG67: - | CH67: - | CI67: - | CJ67: - | CK67: - | CL67: - | CM67: - | CN67: - | CO67: - | CP67: - | CQ67: - | CR67: - | CS67: - | CT67: - | CU67: - | CV67: - | CW67: - | CX67: - | CY67: - | CZ67: - | DA67: - | DB67: - | DC67: - | DD67: - | DE67: - | DF67: - | DG67: - | DH67: - | DI67: - | DJ67: - | DK67: - | DL67: - | DM67: - | DN67: - | DO67: - | DP67: - | DQ67: - | DR67: - | DS67: - | DT67: - | DU67: - | DV67: - | DW67: - | DX67: - | DY67: - | DZ67: - | EA67: - | EB67: - | EC67: - | ED67: - | EE67: - | EF67: - | EG67: - | EH67: - | EI67: - | EJ67: - | EK67: - | EL67: - | EM67: - | EN67: - | EO67: - | EP67: - | EQ67: - | ER67: - | ES67: - | ET67: - | EU67: - | EV67: - | EW67: - | EX67: -
A68: DS1109 | B68: PL0000101473 | C68: 2009-11-24 | D68: 0.06 | E68: 1999-11-24 | F68: 2000-11-24 | G68: 2000-11-13 | H68: 2000-11-24 | I68: 60 | J68: 2000-11-24 | K68: 2001-11-24 | L68: 2001-11-13 | M68: 2001-11-26 | N68: 60 | O68: 2001-11-24 | P68: 2002-11-24 | Q68: 2002-11-12 | R68: 2002-11-25 | S68: 60 | T68: 2002-11-24 | U68: 2003-11-24 | V68: 2003-11-10 | W68: 2003-11-24 | X68: 60 | Y68: 2003-11-24 | Z68: 2004-11-24 | AA68: 2004-11-10 | AB68: 2004-11-24 | AC68: 60 | AD68: 2004-11-24 | AE68: 2005-11-24 | AF68: 2005-11-10 | AG68: 2005-11-24 | AH68: 60 | AI68: 2005-11-24 | AJ68: 2006-11-24 | AK68: 2006-11-13 | AL68: 2006-11-24 | AM68: 60 | AN68: 2006-11-24 | AO68: 2007-11-24 | AP68: 2007-11-13 | AQ68: 2007-11-26 | AR68: 60 | AS68: 2007-11-24 | AT68: 2008-11-24 | AU68: 2008-11-10 | AV68: 2008-11-24 | AW68: 60 | AX68: 2008-11-24 | AY68: 2009-11-24 | AZ68: 2009-11-10 | BA68: 2009-11-24 | BB68: 60 | BC68: - | BD68: - | BE68: - | BF68: - | BG68: - | BH68: - | BI68: - | BJ68: - | BK68: - | BL68: - | BM68: - | BN68: - | BO68: - | BP68: - | BQ68: - | BR68: - | BS68: - | BT68: - | BU68: - | BV68: - | BW68: - | BX68: - | BY68: - | BZ68: - | CA68: - | CB68: - | CC68: - | CD68: - | CE68: - | CF68: - | CG68: - | CH68: - | CI68: - | CJ68: - | CK68: - | CL68: - | CM68: - | CN68: - | CO68: - | CP68: - | CQ68: - | CR68: - | CS68: - | CT68: - | CU68: - | CV68: - | CW68: - | CX68: - | CY68: - | CZ68: - | DA68: - | DB68: - | DC68: - | DD68: - | DE68: - | DF68: - | DG68: - | DH68: - | DI68: - | DJ68: - | DK68: - | DL68: - | DM68: - | DN68: - | DO68: - | DP68: - | DQ68: - | DR68: - | DS68: - | DT68: - | DU68: - | DV68: - | DW68: - | DX68: - | DY68: - | DZ68: - | EA68: - | EB68: - | EC68: - | ED68: - | EE68: - | EF68: - | EG68: - | EH68: - | EI68: - | EJ68: - | EK68: - | EL68: - | EM68: - | EN68: - | EO68: - | EP68: - | EQ68: - | ER68: - | ES68: - | ET68: - | EU68: - | EV68: - | EW68: - | EX68: -
A69: PS0310 | B69: PL0000103735 | C69: 2010-03-24 | D69: 0.0575 | E69: 2004-03-24 | F69: 2005-03-24 | G69: 2005-03-21 | H69: 2005-03-24 | I69: 57.5 | J69: 2005-03-24 | K69: 2006-03-24 | L69: 2006-03-21 | M69: 2006-03-24 | N69: 57.5 | O69: 2006-03-24 | P69: 2007-03-24 | Q69: 2007-03-21 | R69: 2007-03-26 | S69: 57.5 | T69: 2007-03-24 | U69: 2008-03-24 | V69: 2008-03-19 | W69: 2008-03-24 | X69: 57.5 | Y69: 2008-03-24 | Z69: 2009-03-24 | AA69: 2009-03-19 | AB69: 2009-03-24 | AC69: 57.5 | AD69: 2009-03-24 | AE69: 2010-03-24 | AF69: 2010-03-19 | AG69: 2010-03-24 | AH69: 57.5 | AI69: - | AJ69: - | AK69: - | AL69: - | AM69: - | AN69: - | AO69: - | AP69: - | AQ69: - | AR69: - | AS69: - | AT69: - | AU69: - | AV69: - | AW69: - | AX69: - | AY69: - | AZ69: - | BA69: - | BB69: - | BC69: - | BD69: - | BE69: - | BF69: - | BG69: - | BH69: - | BI69: - | BJ69: - | BK69: - | BL69: - | BM69: - | BN69: - | BO69: - | BP69: - | BQ69: - | BR69: - | BS69: - | BT69: - | BU69: - | BV69: - | BW69: - | BX69: - | BY69: - | BZ69: - | CA69: - | CB69: - | CC69: - | CD69: - | CE69: - | CF69: - | CG69: - | CH69: - | CI69: - | CJ69: - | CK69: - | CL69: - | CM69: - | CN69: - | CO69: - | CP69: - | CQ69: - | CR69: - | CS69: - | CT69: - | CU69: - | CV69: - | CW69: - | CX69: - | CY69: - | CZ69: - | DA69: - | DB69: - | DC69: - | DD69: - | DE69: - | DF69: - | DG69: - | DH69: - | DI69: - | DJ69: - | DK69: - | DL69: - | DM69: - | DN69: - | DO69: - | DP69: - | DQ69: - | DR69: - | DS69: - | DT69: - | DU69: - | DV69: - | DW69: - | DX69: - | DY69: - | DZ69: - | EA69: - | EB69: - | EC69: - | ED69: - | EE69: - | EF69: - | EG69: - | EH69: - | EI69: - | EJ69: - | EK69: - | EL69: - | EM69: - | EN69: - | EO69: - | EP69: - | EQ69: - | ER69: - | ES69: - | ET69: - | EU69: - | EV69: - | EW69: - | EX69: -
A70: SP0310 | B70: PL0000103792 | C70: 2010-03-01 | D70: 0.055 | E70: 2005-03-01 | F70: 2006-03-01 | G70: 2006-02-22 | H70: 2006-03-01 | I70: 5.5 | J70: 2006-03-01 | K70: 2007-03-01 | L70: 2007-02-22 | M70: 2007-03-01 | N70: 5.5 | O70: 2007-03-01 | P70: 2008-03-01 | Q70: 2008-02-25 | R70: 2008-03-01 | S70: 5.5 | T70: 2008-03-01 | U70: 2009-03-01 | V70: 2009-02-23 | W70: 2009-03-01 | X70: 5.5 | Y70: 2009-03-01 | Z70: 2010-03-01 | AA70: 2010-02-22 | AB70: 2010-03-01 | AC70: 5.5 | AD70: - | AE70: - | AF70: - | AG70: - | AH70: - | AI70: - | AJ70: - | AK70: - | AL70: - | AM70: - | AN70: - | AO70: - | AP70: - | AQ70: - | AR70: - | AS70: - | AT70: - | AU70: - | AV70: - | AW70: - | AX70: - | AY70: - | AZ70: - | BA70: - | BB70: - | BC70: - | BD70: - | BE70: - | BF70: - | BG70: - | BH70: - | BI70: - | BJ70: - | BK70: - | BL70: - | BM70: - | BN70: - | BO70: - | BP70: - | BQ70: - | BR70: - | BS70: - | BT70: - | BU70: - | BV70: - | BW70: - | BX70: - | BY70: - | BZ70: - | CA70: - | CB70: - | CC70: - | CD70: - | CE70: - | CF70: - | CG70: - | CH70: - | CI70: - | CJ70: - | CK70: - | CL70: - | CM70: - | CN70: - | CO70: - | CP70: - | CQ70: - | CR70: - | CS70: - | CT70: - | CU70: - | CV70: - | CW70: - | CX70: - | CY70: - | CZ70: - | DA70: - | DB70: - | DC70: - | DD70: - | DE70: - | DF70: - | DG70: - | DH70: - | DI70: - | DJ70: - | DK70: - | DL70: - | DM70: - | DN70: - | DO70: - | DP70: - | DQ70: - | DR70: - | DS70: - | DT70: - | DU70: - | DV70: - | DW70: - | DX70: - | DY70: - | DZ70: - | EA70: - | EB70: - | EC70: - | ED70: - | EE70: - | EF70: - | EG70: - | EH70: - | EI70: - | EJ70: - | EK70: - | EL70: - | EM70: - | EN70: - | EO70: - | EP70: - | EQ70: - | ER70: - | ES70: - | ET70: - | EU70: - | EV70: - | EW70: - | EX70: -
A71: SP0610 | B71: PL0000103933 | C71: 2010-06-01 | D71: 0.05 | E71: 2005-06-01 | F71: 2006-06-01 | G71: 2006-05-25 | H71: 2006-06-01 | I71: 5 | J71: 2006-06-01 | K71: 2007-06-01 | L71: 2007-05-25 | M71: 2007-06-01 | N71: 5 | O71: 2007-06-01 | P71: 2008-06-01 | Q71: 2008-05-26 | R71: 2008-06-01 | S71: 5 | T71: 2008-06-01 | U71: 2009-06-01 | V71: 2009-05-25 | W71: 2009-06-01 | X71: 5 | Y71: 2009-06-01 | Z71: 2010-06-01 | AA71: 2010-05-25 | AB71: 2010-06-01 | AC71: 5 | AD71: - | AE71: - | AF71: - | AG71: - | AH71: - | AI71: - | AJ71: - | AK71: - | AL71: - | AM71: - | AN71: - | AO71: - | AP71: - | AQ71: - | AR71: - | AS71: - | AT71: - | AU71: - | AV71: - | AW71: - | AX71: - | AY71: - | AZ71: - | BA71: - | BB71: - | BC71: - | BD71: - | BE71: - | BF71: - | BG71: - | BH71: - | BI71: - | BJ71: - | BK71: - | BL71: - | BM71: - | BN71: - | BO71: - | BP71: - | BQ71: - | BR71: - | BS71: - | BT71: - | BU71: - | BV71: - | BW71: - | BX71: - | BY71: - | BZ71: - | CA71: - | CB71: - | CC71: - | CD71: - | CE71: - | CF71: - | CG71: - | CH71: - | CI71: - | CJ71: - | CK71: - | CL71: - | CM71: - | CN71: - | CO71: - | CP71: - | CQ71: - | CR71: - | CS71: - | CT71: - | CU71: - | CV71: - | CW71: - | CX71: - | CY71: - | CZ71: - | DA71: - | DB71: - | DC71: - | DD71: - | DE71: - | DF71: - | DG71: - | DH71: - | DI71: - | DJ71: - | DK71: - | DL71: - | DM71: - | DN71: - | DO71: - | DP71: - | DQ71: - | DR71: - | DS71: - | DT71: - | DU71: - | DV71: - | DW71: - | DX71: - | DY71: - | DZ71: - | EA71: - | EB71: - | EC71: - | ED71: - | EE71: - | EF71: - | EG71: - | EH71: - | EI71: - | EJ71: - | EK71: - | EL71: - | EM71: - | EN71: - | EO71: - | EP71: - | EQ71: - | ER71: - | ES71: - | ET71: - | EU71: - | EV71: - | EW71: - | EX71: -
A72: SP0910 | B72: PL0000104055 | C72: 2010-09-01 | D72: 0.044 | E72: 2005-09-01 | F72: 2006-09-01 | G72: 2006-08-25 | H72: 2006-09-01 | I72: 4.4 | J72: 2006-09-01 | K72: 2007-09-01 | L72: 2007-08-24 | M72: 2007-09-01 | N72: 4.4 | O72: 2007-09-01 | P72: 2008-09-01 | Q72: 2008-08-22 | R72: 2008-09-01 | S72: 4.4 | T72: 2008-09-01 | U72: 2009-09-01 | V72: 2009-08-24 | W72: 2009-09-01 | X72: 4.4 | Y72: 2009-09-01 | Z72: 2010-09-01 | AA72: 2010-08-24 | AB72: 2010-09-01 | AC72: 4.4 | AD72: - | AE72: - | AF72: - | AG72: - | AH72: - | AI72: - | AJ72: - | AK72: - | AL72: - | AM72: - | AN72: - | AO72: - | AP72: - | AQ72: - | AR72: - | AS72: - | AT72: - | AU72: - | AV72: - | AW72: - | AX72: - | AY72: - | AZ72: - | BA72: - | BB72: - | BC72: - | BD72: - | BE72: - | BF72: - | BG72: - | BH72: - | BI72: - | BJ72: - | BK72: - | BL72: - | BM72: - | BN72: - | BO72: - | BP72: - | BQ72: - | BR72: - | BS72: - | BT72: - | BU72: - | BV72: - | BW72: - | BX72: - | BY72: - | BZ72: - | CA72: - | CB72: - | CC72: - | CD72: - | CE72: - | CF72: - | CG72: - | CH72: - | CI72: - | CJ72: - | CK72: - | CL72: - | CM72: - | CN72: - | CO72: - | CP72: - | CQ72: - | CR72: - | CS72: - | CT72: - | CU72: - | CV72: - | CW72: - | CX72: - | CY72: - | CZ72: - | DA72: - | DB72: - | DC72: - | DD72: - | DE72: - | DF72: - | DG72: - | DH72: - | DI72: - | DJ72: - | DK72: - | DL72: - | DM72: - | DN72: - | DO72: - | DP72: - | DQ72: - | DR72: - | DS72: - | DT72: - | DU72: - | DV72: - | DW72: - | DX72: - | DY72: - | DZ72: - | EA72: - | EB72: - | EC72: - | ED72: - | EE72: - | EF72: - | EG72: - | EH72: - | EI72: - | EJ72: - | EK72: - | EL72: - | EM72: - | EN72: - | EO72: - | EP72: - | EQ72: - | ER72: - | ES72: - | ET72: - | EU72: - | EV72: - | EW72: - | EX72: -
A73: SP1210 | B73: PL0000104162 | C73: 2010-12-01 | D73: 0.045 | E73: 2005-12-01 | F73: 2006-12-01 | G73: 2006-11-23 | H73: 2006-12-01 | I73: 4.5 | J73: 2006-12-01 | K73: 2007-12-01 | L73: 2007-11-23 | M73: 2007-12-01 | N73: 4.5 | O73: 2007-12-01 | P73: 2008-12-01 | Q73: 2008-11-21 | R73: 2008-12-01 | S73: 4.5 | T73: 2008-12-01 | U73: 2009-12-01 | V73: 2009-11-23 | W73: 2009-12-01 | X73: 4.5 | Y73: 2009-12-01 | Z73: 2010-12-01 | AA73: 2010-11-23 | AB73: 2010-12-01 | AC73: 4.5 | AD73: - | AE73: - | AF73: - | AG73: - | AH73: - | AI73: - | AJ73: - | AK73: - | AL73: - | AM73: - | AN73: - | AO73: - | AP73: - | AQ73: - | AR73: - | AS73: - | AT73: - | AU73: - | AV73: - | AW73: - | AX73: - | AY73: - | AZ73: - | BA73: - | BB73: - | BC73: - | BD73: - | BE73: - | BF73: - | BG73: - | BH73: - | BI73: - | BJ73: - | BK73: - | BL73: - | BM73: - | BN73: - | BO73: - | BP73: - | BQ73: - | BR73: - | BS73: - | BT73: - | BU73: - | BV73: - | BW73: - | BX73: - | BY73: - | BZ73: - | CA73: - | CB73: - | CC73: - | CD73: - | CE73: - | CF73: - | CG73: - | CH73: - | CI73: - | CJ73: - | CK73: - | CL73: - | CM73: - | CN73: - | CO73: - | CP73: - | CQ73: - | CR73: - | CS73: - | CT73: - | CU73: - | CV73: - | CW73: - | CX73: - | CY73: - | CZ73: - | DA73: - | DB73: - | DC73: - | DD73: - | DE73: - | DF73: - | DG73: - | DH73: - | DI73: - | DJ73: - | DK73: - | DL73: - | DM73: - | DN73: - | DO73: - | DP73: - | DQ73: - | DR73: - | DS73: - | DT73: - | DU73: - | DV73: - | DW73: - | DX73: - | DY73: - | DZ73: - | EA73: - | EB73: - | EC73: - | ED73: - | EE73: - | EF73: - | EG73: - | EH73: - | EI73: - | EJ73: - | EK73: - | EL73: - | EM73: - | EN73: - | EO73: - | EP73: - | EQ73: - | ER73: - | ES73: - | ET73: - | EU73: - | EV73: - | EW73: - | EX73: -
A74: DS1110 | B74: PL0000101937 | C74: 2010-11-24 | D74: 0.06 | E74: 2000-11-24 | F74: 2001-11-24 | G74: 2001-11-15 | H74: 2001-11-26 | I74: 60 | J74: 2001-11-24 | K74: 2002-11-24 | L74: 2002-11-14 | M74: 2002-11-25 | N74: 60 | O74: 2002-11-24 | P74: 2003-11-24 | Q74: 2003-11-13 | R74: 2003-11-24 | S74: 60 | T74: 2003-11-24 | U74: 2004-11-24 | V74: 2004-11-15 | W74: 2004-11-24 | X74: 60 | Y74: 2004-11-24 | Z74: 2005-11-24 | AA74: 2005-11-15 | AB74: 2005-11-24 | AC74: 60 | AD74: 2005-11-24 | AE74: 2006-11-24 | AF74: 2006-11-15 | AG74: 2006-11-24 | AH74: 60 | AI74: 2006-11-24 | AJ74: 2007-11-24 | AK74: 2007-11-15 | AL74: 2007-11-26 | AM74: 60 | AN74: 2007-11-24 | AO74: 2008-11-24 | AP74: 2008-11-13 | AQ74: 2008-11-24 | AR74: 60 | AS74: 2008-11-24 | AT74: 2009-11-24 | AU74: 2009-11-13 | AV74: 2009-11-24 | AW74: 60 | AX74: 2009-11-24 | AY74: 2010-11-24 | AZ74: 2010-11-15 | BA74: 2010-11-24 | BB74: 60 | BC74: - | BD74: - | BE74: - | BF74: - | BG74: - | BH74: - | BI74: - | BJ74: - | BK74: - | BL74: - | BM74: - | BN74: - | BO74: - | BP74: - | BQ74: - | BR74: - | BS74: - | BT74: - | BU74: - | BV74: - | BW74: - | BX74: - | BY74: - | BZ74: - | CA74: - | CB74: - | CC74: - | CD74: - | CE74: - | CF74: - | CG74: - | CH74: - | CI74: - | CJ74: - | CK74: - | CL74: - | CM74: - | CN74: - | CO74: - | CP74: - | CQ74: - | CR74: - | CS74: - | CT74: - | CU74: - | CV74: - | CW74: - | CX74: - | CY74: - | CZ74: - | DA74: - | DB74: - | DC74: - | DD74: - | DE74: - | DF74: - | DG74: - | DH74: - | DI74: - | DJ74: - | DK74: - | DL74: - | DM74: - | DN74: - | DO74: - | DP74: - | DQ74: - | DR74: - | DS74: - | DT74: - | DU74: - | DV74: - | DW74: - | DX74: - | DY74: - | DZ74: - | EA74: - | EB74: - | EC74: - | ED74: - | EE74: - | EF74: - | EG74: - | EH74: - | EI74: - | EJ74: - | EK74: - | EL74: - | EM74: - | EN74: - | EO74: - | EP74: - | EQ74: - | ER74: - | ES74: - | ET74: - | EU74: - | EV74: - | EW74: - | EX74: -
A75: PS0511 | B75: PL0000104287 | C75: 2011-05-24 | D75: 0.0425 | E75: 2005-05-24 | F75: 2006-05-24 | G75: 2006-05-19 | H75: 2006-05-24 | I75: 42.5 | J75: 2006-05-24 | K75: 2007-05-24 | L75: 2007-05-21 | M75: 2007-05-24 | N75: 42.5 | O75: 2007-05-24 | P75: 2008-05-24 | Q75: 2008-05-20 | R75: 2008-05-26 | S75: 42.5 | T75: 2008-05-24 | U75: 2009-05-24 | V75: 2009-05-20 | W75: 2009-05-25 | X75: 42.5 | Y75: 2009-05-24 | Z75: 2010-05-24 | AA75: 2010-05-19 | AB75: 2010-05-24 | AC75: 42.5 | AD75: 2010-05-24 | AE75: 2011-05-24 | AF75: 2011-05-19 | AG75: 2011-05-24 | AH75: 42.5 | AI75: - | AJ75: - | AK75: - | AL75: - | AM75: - | AN75: - | AO75: - | AP75: - | AQ75: - | AR75: - | AS75: - | AT75: - | AU75: - | AV75: - | AW75: - | AX75: - | AY75: - | AZ75: - | BA75: - | BB75: - | BC75: - | BD75: - | BE75: - | BF75: - | BG75: - | BH75: - | BI75: - | BJ75: - | BK75: - | BL75: - | BM75: - | BN75: - | BO75: - | BP75: - | BQ75: - | BR75: - | BS75: - | BT75: - | BU75: - | BV75: - | BW75: - | BX75: - | BY75: - | BZ75: - | CA75: - | CB75: - | CC75: - | CD75: - | CE75: - | CF75: - | CG75: - | CH75: - | CI75: - | CJ75: - | CK75: - | CL75: - | CM75: - | CN75: - | CO75: - | CP75: - | CQ75: - | CR75: - | CS75: - | CT75: - | CU75: - | CV75: - | CW75: - | CX75: - | CY75: - | CZ75: - | DA75: - | DB75: - | DC75: - | DD75: - | DE75: - | DF75: - | DG75: - | DH75: - | DI75: - | DJ75: - | DK75: - | DL75: - | DM75: - | DN75: - | DO75: - | DP75: - | DQ75: - | DR75: - | DS75: - | DT75: - | DU75: - | DV75: - | DW75: - | DX75: - | DY75: - | DZ75: - | EA75: - | EB75: - | EC75: - | ED75: - | EE75: - | EF75: - | EG75: - | EH75: - | EI75: - | EJ75: - | EK75: - | EL75: - | EM75: - | EN75: - | EO75: - | EP75: - | EQ75: - | ER75: - | ES75: - | ET75: - | EU75: - | EV75: - | EW75: - | EX75: -
A76: PS0412 | B76: PL0000104659 | C76: 2012-04-25 | D76: 0.0475 | E76: 2006-04-25 | F76: 2007-04-25 | G76: 2007-04-20 | H76: 2007-04-25 | I76: 47.5 | J76: 2007-04-25 | K76: 2008-04-25 | L76: 2008-04-22 | M76: 2008-04-25 | N76: 47.5 | O76: 2008-04-25 | P76: 2009-04-25 | Q76: 2009-04-22 | R76: 2009-04-27 | S76: 47.5 | T76: 2009-04-25 | U76: 2010-04-25 | V76: 2010-04-21 | W76: 2010-04-26 | X76: 47.5 | Y76: 2010-04-25 | Z76: 2011-04-25 | AA76: 2011-04-20 | AB76: 2011-04-26 | AC76: 47.5 | AD76: 2011-04-25 | AE76: 2012-04-25 | AF76: 2012-04-20 | AG76: 2012-04-25 | AH76: 47.5 | AI76: - | AJ76: - | AK76: - | AL76: - | AM76: - | AN76: - | AO76: - | AP76: - | AQ76: - | AR76: - | AS76: - | AT76: - | AU76: - | AV76: - | AW76: - | AX76: - | AY76: - | AZ76: - | BA76: - | BB76: - | BC76: - | BD76: - | BE76: - | BF76: - | BG76: - | BH76: - | BI76: - | BJ76: - | BK76: - | BL76: - | BM76: - | BN76: - | BO76: - | BP76: - | BQ76: - | BR76: - | BS76: - | BT76: - | BU76: - | BV76: - | BW76: - | BX76: - | BY76: - | BZ76: - | CA76: - | CB76: - | CC76: - | CD76: - | CE76: - | CF76: - | CG76: - | CH76: - | CI76: - | CJ76: - | CK76: - | CL76: - | CM76: - | CN76: - | CO76: - | CP76: - | CQ76: - | CR76: - | CS76: - | CT76: - | CU76: - | CV76: - | CW76: - | CX76: - | CY76: - | CZ76: - | DA76: - | DB76: - | DC76: - | DD76: - | DE76: - | DF76: - | DG76: - | DH76: - | DI76: - | DJ76: - | DK76: - | DL76: - | DM76: - | DN76: - | DO76: - | DP76: - | DQ76: - | DR76: - | DS76: - | DT76: - | DU76: - | DV76: - | DW76: - | DX76: - | DY76: - | DZ76: - | EA76: - | EB76: - | EC76: - | ED76: - | EE76: - | EF76: - | EG76: - | EH76: - | EI76: - | EJ76: - | EK76: - | EL76: - | EM76: - | EN76: - | EO76: - | EP76: - | EQ76: - | ER76: - | ES76: - | ET76: - | EU76: - | EV76: - | EW76: - | EX76: -
A77: PS0413 | B77: PL0000105037 | C77: 2013-04-25 | D77: 0.0525 | E77: 2007-04-25 | F77: 2008-04-25 | G77: 2008-04-22 | H77: 2008-04-25 | I77: 52.5 | J77: 2008-04-25 | K77: 2009-04-25 | L77: 2009-04-22 | M77: 2009-04-27 | N77: 52.5 | O77: 2009-04-25 | P77: 2010-04-25 | Q77: 2010-04-21 | R77: 2010-04-26 | S77: 52.5 | T77: 2010-04-25 | U77: 2011-04-25 | V77: 2011-04-20 | W77: 2011-04-26 | X77: 52.5 | Y77: 2011-04-25 | Z77: 2012-04-25 | AA77: 2012-04-20 | AB77: 2012-04-25 | AC77: 52.5 | AD77: 2012-04-25 | AE77: 2013-04-25 | AF77: 2013-04-22 | AG77: 2013-04-25 | AH77: 52.5
A78: PS0414 | B78: PL0000105433 | C78: 2014-04-25 | D78: 0.0575 | E78: 2008-04-25 | F78: 2009-04-25 | G78: 2009-04-22 | H78: 2009-04-27 | I78: 57.5 | J78: 2009-04-25 | K78: 2010-04-25 | L78: 2010-04-21 | M78: 2010-04-26 | N78: 57.5 | O78: 2010-04-25 | P78: 2011-04-25 | Q78: 2011-04-20 | R78: 2011-04-26 | S78: 57.5 | T78: 2011-04-25 | U78: 2012-04-25 | V78: 2012-04-20 | W78: 2012-04-25 | X78: 57.5 | Y78: 2012-04-25 | Z78: 2013-04-25 | AA78: 2013-04-22 | AB78: 2013-04-25 | AC78: 57.5 | AD78: 2013-04-25 | AE78: 2014-04-25 | AF78: 2014-04-22 | AG78: 2014-04-25 | AH78: 57.5
A79: PS0415 | B79: PL0000105953 | C79: 2015-04-25 | D79: 0.055 | E79: 2009-04-25 | F79: 2010-04-25 | G79: 2010-04-22 | H79: 2010-04-26 | I79: 55 | J79: 2010-04-25 | K79: 2011-04-25 | L79: 2011-04-21 | M79: 2011-04-26 | N79: 55 | O79: 2011-04-25 | P79: 2012-04-25 | Q79: 2012-04-23 | R79: 2012-04-25 | S79: 55 | T79: 2012-04-25 | U79: 2013-04-25 | V79: 2013-04-23 | W79: 2013-04-25 | X79: 55 | Y79: 2013-04-25 | Z79: 2014-04-25 | AA79: 2014-04-23 | AB79: 2014-04-25 | AC79: 55 | AD79: 2014-04-25 | AE79: 2015-04-25 | AF79: 2015-04-23 | AG79: 2015-04-27 | AH79: 55
A80: PS0416 | B80: PL0000106340 | C80: 2016-04-25 | D80: 0.05 | E80: 2010-04-25 | F80: 2011-04-25 | G80: 2011-04-21 | H80: 2011-04-26 | I80: 50 | J80: 2011-04-25 | K80: 2012-04-25 | L80: 2012-04-23 | M80: 2012-04-25 | N80: 50 | O80: 2012-04-25 | P80: 2013-04-25 | Q80: 2013-04-23 | R80: 2013-04-25 | S80: 50 | T80: 2013-04-25 | U80: 2014-04-25 | V80: 2014-04-23 | W80: 2014-04-25 | X80: 50 | Y80: 2014-04-25 | Z80: 2015-04-25 | AA80: 2015-04-23 | AB80: 2015-04-27 | AC80: 50 | AD80: 2015-04-25 | AE80: 2016-04-25 | AF80: 2016-04-21 | AG80: 2016-04-25 | AH80: 50
A81: PS1016 | B81: PL0000106795 | C81: 2016-10-25 | D81: 0.0475 | E81: 2011-10-25 | F81: 2012-10-25 | G81: 2012-10-23 | H81: 2012-10-25 | I81: 47.5 | J81: 2012-10-25 | K81: 2013-10-25 | L81: 2013-10-23 | M81: 2013-10-25 | N81: 47.5 | O81: 2013-10-25 | P81: 2014-10-25 | Q81: 2014-10-23 | R81: 2014-10-27 | S81: 47.5 | T81: 2014-10-25 | U81: 2015-10-25 | V81: 2015-10-22 | W81: 2015-10-26 | X81: 47.5 | Y81: 2015-10-25 | Z81: 2016-10-25 | AA81: 2016-10-21 | AB81: 2016-10-25 | AC81: 47.5
A82: PS0417 | B82: PL0000107058 | C82: 2017-04-25 | D82: 0.0475 | E82: 2012-04-25 | F82: 2013-04-25 | G82: 2013-04-23 | H82: 2013-04-25 | I82: 47.5 | J82: 2013-04-25 | K82: 2014-04-25 | L82: 2014-04-23 | M82: 2014-04-25 | N82: 47.5 | O82: 2014-04-25 | P82: 2015-04-25 | Q82: 2015-04-23 | R82: 2015-04-27 | S82: 47.5 | T82: 2015-04-25 | U82: 2016-04-25 | V82: 2016-04-21 | W82: 2016-04-25 | X82: 47.5 | Y82: 2016-04-25 | Z82: 2017-04-25 | AA82: 2017-04-21 | AB82: 2017-04-25 | AC82: 47.5
A83: PS0418 | B83: PL0000107314 | C83: 2018-04-25 | D83: 0.0375 | E83: 2012-04-25 | F83: 2013-04-25 | G83: 2013-04-23 | H83: 2013-04-25 | I83: 37.5 | J83: 2013-04-25 | K83: 2014-04-25 | L83: 2014-04-23 | M83: 2014-04-25 | N83: 37.5 | O83: 2014-04-25 | P83: 2015-04-25 | Q83: 2015-04-23 | R83: 2015-04-27 | S83: 37.5 | T83: 2015-04-25 | U83: 2016-04-25 | V83: 2016-04-21 | W83: 2016-04-25 | X83: 37.5 | Y83: 2016-04-25 | Z83: 2017-04-25 | AA83: 2017-04-21 | AB83: 2017-04-25 | AC83: 37.5 | AD83: 2017-04-25 | AE83: 2018-04-25 | AF83: 2018-04-23 | AG83: 2018-04-25 | AH83: 37.5 | AI83: - | AJ83: - | AK83: - | AL83: - | AM83: - | AN83: - | AO83: - | AP83: - | AQ83: - | AR83: - | AS83: - | AT83: - | AU83: - | AV83: - | AW83: - | AX83: - | AY83: - | AZ83: - | BA83: - | BB83: - | BC83: - | BD83: - | BE83: - | BF83: - | BG83: - | BH83: - | BI83: - | BJ83: - | BK83: - | BL83: - | BM83: - | BN83: - | BO83: - | BP83: - | BQ83: - | BR83: - | BS83: - | BT83: - | BU83: - | BV83: - | BW83: - | BX83: - | BY83: - | BZ83: - | CA83: - | CB83: - | CC83: - | CD83: - | CE83: - | CF83: - | CG83: - | CH83: - | CI83: - | CJ83: - | CK83: - | CL83: - | CM83: - | CN83: - | CO83: - | CP83: - | CQ83: - | CR83: - | CS83: - | CT83: - | CU83: - | CV83: - | CW83: - | CX83: - | CY83: - | CZ83: - | DA83: - | DB83: - | DC83: - | DD83: - | DE83: -
A84: PS0718 | B84: PL0000107595 | C84: 2018-07-25 | D84: 0.025 | E84: 2012-07-25 | F84: 2013-07-25 | G84: 2013-07-23 | H84: 2013-07-25 | I84: 25 | J84: 2013-07-25 | K84: 2014-07-25 | L84: 2014-07-23 | M84: 2014-07-25 | N84: 25 | O84: 2014-07-25 | P84: 2015-07-25 | Q84: 2015-07-23 | R84: 2015-07-27 | S84: 25 | T84: 2015-07-25 | U84: 2016-07-25 | V84: 2016-07-21 | W84: 2016-07-25 | X84: 25 | Y84: 2016-07-25 | Z84: 2017-07-25 | AA84: 2017-07-21 | AB84: 2017-07-25 | AC84: 25 | AD84: 2017-07-25 | AE84: 2018-07-25 | AF84: 2018-07-23 | AG84: 2018-07-25 | AH84: 25
A85: PS0719 | B85: PL0000108148 | C85: 2019-07-25 | D85: 0.0325 | E85: 2013-07-25 | F85: 2014-07-25 | G85: 2014-07-23 | H85: 2014-07-25 | I85: 32.5 | J85: 2014-07-25 | K85: 2015-07-25 | L85: 2015-07-23 | M85: 2015-07-27 | N85: 32.5 | O85: 2015-07-25 | P85: 2016-07-25 | Q85: 2016-07-21 | R85: 2016-07-25 | S85: 32.5 | T85: 2016-07-25 | U85: 2017-07-25 | V85: 2017-07-21 | W85: 2017-07-25 | X85: 32.5 | Y85: 2017-07-25 | Z85: 2018-07-25 | AA85: 2018-07-23 | AB85: 2018-07-25 | AC85: 32.5 | AD85: 2018-07-25 | AE85: 2019-07-25 | AF85: 2019-07-23 | AG85: 2019-07-25 | AH85: 32.5
A86: PS0420 | B86: PL0000108510 | C86: 2020-04-25 | D86: 0.015 | E86: 2014-04-25 | F86: 2015-04-25 | G86: 2015-04-23 | H86: 2015-04-27 | I86: 15 | J86: 2015-04-25 | K86: 2016-04-25 | L86: 2016-04-21 | M86: 2016-04-25 | N86: 15 | O86: 2016-04-25 | P86: 2017-04-25 | Q86: 2017-04-21 | R86: 2017-04-25 | S86: 15 | T86: 2017-04-25 | U86: 2018-04-25 | V86: 2018-04-23 | W86: 2018-04-25 | X86: 15 | Y86: 2018-04-25 | Z86: 2019-04-25 | AA86: 2019-04-23 | AB86: 2019-04-25 | AC86: 15 | AD86: 2019-04-25 | AE86: 2020-04-25 | AF86: 2020-04-23 | AG86: 2020-04-27 | AH86: 15 | AI86: - | AJ86: - | AK86: - | AL86: - | AM86: - | AN86: - | AO86: - | AP86: - | AQ86: - | AR86: - | AS86: - | AT86: - | AU86: - | AV86: - | AW86: - | AX86: - | AY86: - | AZ86: - | BA86: - | BB86: - | BC86: - | BD86: - | BE86: - | BF86: - | BG86: - | BH86: - | BI86: - | BJ86: - | BK86: - | BL86: - | BM86: - | BN86: - | BO86: - | BP86: - | BQ86: - | BR86: - | BS86: - | BT86: - | BU86: - | BV86: - | BW86: - | BX86: - | BY86: - | BZ86: - | CA86: - | CB86: - | CC86: - | CD86: - | CE86: - | CF86: - | CG86: - | CH86: - | CI86: - | CJ86: - | CK86: - | CL86: - | CM86: - | CN86: - | CO86: - | CP86: - | CQ86: - | CR86: - | CS86: - | CT86: - | CU86: - | CV86: - | CW86: - | CX86: - | CY86: - | CZ86: - | DA86: - | DB86: - | DC86: - | DD86: - | DE86: -
A87: PS0421 | B87: PL0000108916 | C87: 2021-04-25 | D87: 0.02 | E87: 2015-04-25 | F87: 2016-04-25 | G87: 2016-04-21 | H87: 2016-04-25 | I87: 20 | J87: 2016-04-25 | K87: 2017-04-25 | L87: 2017-04-21 | M87: 2017-04-25 | N87: 20 | O87: 2017-04-25 | P87: 2018-04-25 | Q87: 2018-04-23 | R87: 2018-04-25 | S87: 20 | T87: 2018-04-25 | U87: 2019-04-25 | V87: 2019-04-23 | W87: 2019-04-25 | X87: 20 | Y87: 2019-04-25 | Z87: 2020-04-25 | AA87: 2020-04-23 | AB87: 2020-04-27 | AC87: 20 | AD87: 2020-04-25 | AE87: 2021-04-25 | AF87: 2021-04-22 | AG87: 2021-04-26 | AH87: 20 | AI87: - | AJ87: - | AK87: - | AL87: - | AM87: - | AN87: - | AO87: - | AP87: - | AQ87: - | AR87: - | AS87: - | AT87: - | AU87: - | AV87: - | AW87: - | AX87: - | AY87: - | AZ87: - | BA87: - | BB87: - | BC87: - | BD87: - | BE87: - | BF87: - | BG87: - | BH87: - | BI87: - | BJ87: - | BK87: - | BL87: - | BM87: - | BN87: - | BO87: - | BP87: - | BQ87: - | BR87: - | BS87: - | BT87: - | BU87: - | BV87: - | BW87: - | BX87: - | BY87: - | BZ87: - | CA87: - | CB87: - | CC87: - | CD87: - | CE87: - | CF87: - | CG87: - | CH87: - | CI87: - | CJ87: - | CK87: - | CL87: - | CM87: - | CN87: - | CO87: - | CP87: - | CQ87: - | CR87: - | CS87: - | CT87: - | CU87: - | CV87: - | CW87: - | CX87: - | CY87: - | CZ87: - | DA87: - | DB87: - | DC87: - | DD87: - | DE87: -
A88: PS0721 | B88: PL0000109153 | C88: 2021-07-25 | D88: 0.0175 | E88: 2015-07-25 | F88: 2016-07-25 | G88: 2016-07-21 | H88: 2016-07-25 | I88: 17.5 | J88: 2016-07-25 | K88: 2017-07-25 | L88: 2017-07-21 | M88: 2017-07-25 | N88: 17.5 | O88: 2017-07-25 | P88: 2018-07-25 | Q88: 2018-07-23 | R88: 2018-07-25 | S88: 17.5 | T88: 2018-07-25 | U88: 2019-07-25 | V88: 2019-07-23 | W88: 2019-07-25 | X88: 17.5 | Y88: 2019-07-25 | Z88: 2020-07-25 | AA88: 2020-07-23 | AB88: 2020-07-27 | AC88: 17.5 | AD88: 2020-07-25 | AE88: 2021-07-25 | AF88: 2021-07-22 | AG88: 2021-07-26 | AH88: 17.5 | AI88: - | AJ88: - | AK88: - | AL88: - | AM88: - | AN88: - | AO88: - | AP88: - | AQ88: - | AR88: - | AS88: - | AT88: - | AU88: - | AV88: - | AW88: - | AX88: - | AY88: - | AZ88: - | BA88: - | BB88: - | BC88: - | BD88: - | BE88: - | BF88: - | BG88: - | BH88: - | BI88: - | BJ88: - | BK88: - | BL88: - | BM88: - | BN88: - | BO88: - | BP88: - | BQ88: - | BR88: - | BS88: - | BT88: - | BU88: - | BV88: - | BW88: - | BX88: - | BY88: - | BZ88: - | CA88: - | CB88: - | CC88: - | CD88: - | CE88: - | CF88: - | CG88: - | CH88: - | CI88: - | CJ88: - | CK88: - | CL88: - | CM88: - | CN88: - | CO88: - | CP88: - | CQ88: - | CR88: - | CS88: - | CT88: - | CU88: - | CV88: - | CW88: - | CX88: - | CY88: - | CZ88: - | DA88: - | DB88: - | DC88: - | DD88: - | DE88: -
A89: PS0422 | B89: PL0000109492 | C89: 2022-04-25 | D89: 0.0225 | E89: 2016-04-25 | F89: 2017-04-25 | G89: 2017-04-21 | H89: 2017-04-25 | I89: 22.5 | J89: 2017-04-25 | K89: 2018-04-25 | L89: 2018-04-23 | M89: 2018-04-25 | N89: 22.5 | O89: 2018-04-25 | P89: 2019-04-25 | Q89: 2019-04-23 | R89: 2019-04-25 | S89: 22.5 | T89: 2019-04-25 | U89: 2020-04-25 | V89: 2020-04-23 | W89: 2020-04-27 | X89: 22.5 | Y89: 2020-04-25 | Z89: 2021-04-25 | AA89: 2021-04-22 | AB89: 2021-04-26 | AC89: 22.5 | AD89: 2021-04-25 | AE89: 2022-04-25 | AF89: 2022-04-21 | AG89: 2022-04-25 | AH89: 22.5 | AI89: - | AJ89: - | AK89: - | AL89: - | AM89: - | AN89: - | AO89: - | AP89: - | AQ89: - | AR89: - | AS89: - | AT89: - | AU89: - | AV89: - | AW89: - | AX89: - | AY89: - | AZ89: - | BA89: - | BB89: - | BC89: - | BD89: - | BE89: - | BF89: - | BG89: - | BH89: - | BI89: - | BJ89: - | BK89: - | BL89: - | BM89: - | BN89: - | BO89: - | BP89: - | BQ89: - | BR89: - | BS89: - | BT89: - | BU89: - | BV89: - | BW89: - | BX89: - | BY89: - | BZ89: - | CA89: - | CB89: - | CC89: - | CD89: - | CE89: - | CF89: - | CG89: - | CH89: - | CI89: - | CJ89: - | CK89: - | CL89: - | CM89: - | CN89: - | CO89: - | CP89: - | CQ89: - | CR89: - | CS89: - | CT89: - | CU89: - | CV89: - | CW89: - | CX89: - | CY89: - | CZ89: - | DA89: - | DB89: - | DC89: - | DD89: - | DE89: -
A90: PS0123 | B90: PL0000110151 | C90: 2023-01-25 | D90: 0.025 | E90: 2017-01-25 | F90: 2018-01-25 | G90: 2018-01-23 | H90: 2018-01-25 | I90: 25 | J90: 2018-01-25 | K90: 2019-01-25 | L90: 2019-01-23 | M90: 2019-01-25 | N90: 25 | O90: 2019-01-25 | P90: 2020-01-25 | Q90: 2020-01-23 | R90: 2020-01-27 | S90: 25 | T90: 2020-01-25 | U90: 2021-01-25 | V90: 2021-01-21 | W90: 2021-01-25 | X90: 25 | Y90: 2021-01-25 | Z90: 2022-01-25 | AA90: 2022-01-21 | AB90: 2022-01-25 | AC90: 25 | AD90: 2022-01-25 | AE90: 2023-01-25 | AF90: 2023-01-23 | AG90: 2023-01-25 | AH90: 25
A91: PS0424 | B91: PL0000111191 | C91: 2024-04-25 | D91: 0.025 | E91: 2018-04-25 | F91: 2019-04-25 | G91: 2019-04-23 | H91: 2019-04-25 | I91: 25 | J91: 2019-04-25 | K91: 2020-04-25 | L91: 2020-04-23 | M91: 2020-04-27 | N91: 25 | O91: 2020-04-25 | P91: 2021-04-25 | Q91: 2021-04-22 | R91: 2021-04-26 | S91: 25 | T91: 2021-04-25 | U91: 2022-04-25 | V91: 2022-04-21 | W91: 2022-04-25 | X91: 25 | Y91: 2022-04-25 | Z91: 2023-04-25 | AA91: 2023-04-21 | AB91: 2023-04-25 | AC91: 25 | AD91: 2023-04-25 | AE91: 2024-04-25 | AF91: 2024-04-23 | AG91: 2024-04-25 | AH91: 25 | AI91: - | AJ91: - | AK91: - | AL91: - | AM91: - | AN91: - | AO91: - | AP91: - | AQ91: - | AR91: - | AS91: - | AT91: - | AU91: - | AV91: - | AW91: - | AX91: - | AY91: - | AZ91: - | BA91: - | BB91: - | BC91: - | BD91: - | BE91: - | BF91: - | BG91: - | BH91: - | BI91: - | BJ91: - | BK91: - | BL91: - | BM91: - | BN91: - | BO91: - | BP91: - | BQ91: - | BR91: - | BS91: - | BT91: - | BU91: - | BV91: - | BW91: - | BX91: - | BY91: - | BZ91: - | CA91: - | CB91: - | CC91: - | CD91: - | CE91: - | CF91: - | CG91: - | CH91: - | CI91: - | CJ91: - | CK91: - | CL91: - | CM91: - | CN91: - | CO91: - | CP91: - | CQ91: - | CR91: - | CS91: - | CT91: - | CU91: - | CV91: - | CW91: - | CX91: - | CY91: - | CZ91: - | DA91: - | DB91: - | DC91: - | DD91: - | DE91: -
A92: PS1024 | B92: PL0000111720 | C92: 2024-10-25 | D92: 0.0225 | E92: 2018-10-25 | F92: 2019-10-25 | G92: 2019-10-23 | H92: 2019-10-25 | I92: 22.5 | J92: 2019-10-25 | K92: 2020-10-25 | L92: 2020-10-22 | M92: 2020-10-26 | N92: 22.5 | O92: 2020-10-25 | P92: 2021-10-25 | Q92: 2021-10-21 | R92: 2021-10-25 | S92: 22.5 | T92: 2021-10-25 | U92: 2022-10-25 | V92: 2022-10-21 | W92: 2022-10-25 | X92: 22.5 | Y92: 2022-10-25 | Z92: 2023-10-25 | AA92: 2023-10-23 | AB92: 2023-10-25 | AC92: 22.5 | AD92: 2023-10-25 | AE92: 2024-10-25 | AF92: 2024-10-23 | AG92: 2024-10-25 | AH92: 22.5 | AI92: - | AJ92: - | AK92: - | AL92: - | AM92: - | AN92: - | AO92: - | AP92: - | AQ92: - | AR92: - | AS92: - | AT92: - | AU92: - | AV92: - | AW92: - | AX92: - | AY92: - | AZ92: - | BA92: - | BB92: - | BC92: - | BD92: - | BE92: - | BF92: - | BG92: - | BH92: - | BI92: - | BJ92: - | BK92: - | BL92: - | BM92: - | BN92: - | BO92: - | BP92: - | BQ92: - | BR92: - | BS92: - | BT92: - | BU92: - | BV92: - | BW92: - | BX92: - | BY92: - | BZ92: - | CA92: - | CB92: - | CC92: - | CD92: - | CE92: - | CF92: - | CG92: - | CH92: - | CI92: - | CJ92: - | CK92: - | CL92: - | CM92: - | CN92: - | CO92: - | CP92: - | CQ92: - | CR92: - | CS92: - | CT92: - | CU92: - | CV92: - | CW92: - | CX92: - | CY92: - | CZ92: - | DA92: - | DB92: - | DC92: - | DD92: - | DE92: -
A93: PS0425 | B93: PL0000112728 | C93: 2025-04-25 | D93: 0.0075 | E93: 2020-04-25 | F93: 2021-04-25 | G93: 2021-04-22 | H93: 2021-04-26 | I93: 7.5 | J93: 2021-04-25 | K93: 2022-04-25 | L93: 2022-04-21 | M93: 2022-04-25 | N93: 7.5 | O93: 2022-04-25 | P93: 2023-04-25 | Q93: 2023-04-21 | R93: 2023-04-25 | S93: 7.5 | T93: 2023-04-25 | U93: 2024-04-25 | V93: 2024-04-23 | W93: 2024-04-25 | X93: 7.5 | Y93: 2024-04-25 | Z93: 2025-04-25 | AA93: 2025-04-23 | AB93: 2025-04-25 | AC93: 7.5 | AD93: - | AE93: - | AF93: - | AG93: - | AH93: - | AI93: - | AJ93: - | AK93: - | AL93: - | AM93: - | AN93: - | AO93: - | AP93: - | AQ93: - | AR93: - | AS93: - | AT93: - | AU93: - | AV93: - | AW93: - | AX93: - | AY93: - | AZ93: - | BA93: - | BB93: - | BC93: - | BD93: - | BE93: - | BF93: - | BG93: - | BH93: - | BI93: - | BJ93: - | BK93: - | BL93: - | BM93: - | BN93: - | BO93: - | BP93: - | BQ93: - | BR93: - | BS93: - | BT93: - | BU93: - | BV93: - | BW93: - | BX93: - | BY93: - | BZ93: - | CA93: - | CB93: - | CC93: - | CD93: - | CE93: - | CF93: - | CG93: - | CH93: - | CI93: - | CJ93: - | CK93: - | CL93: - | CM93: - | CN93: - | CO93: - | CP93: - | CQ93: - | CR93: - | CS93: - | CT93: - | CU93: - | CV93: - | CW93: - | CX93: - | CY93: - | CZ93: - | DA93: - | DB93: - | DC93: - | DD93: - | DE93: - | DF93: - | DG93: - | DH93: - | DI93: - | DJ93: - | DK93: - | DL93: - | DM93: - | DN93: - | DO93: - | DP93: - | DQ93: - | DR93: - | DS93: - | DT93: - | DU93: - | DV93: - | DW93: - | DX93: - | DY93: - | DZ93: - | EA93: - | EB93: - | EC93: - | ED93: - | EE93: - | EF93: - | EG93: - | EH93: - | EI93: - | EJ93: - | EK93: - | EL93: - | EM93: - | EN93: - | EO93: - | EP93: - | EQ93: - | ER93: - | ES93: - | ET93: - | EU93: - | EV93: - | EW93: - | EX93: - | EY93: - | EZ93: - | FA93: - | FB93: - | FC93: -
A94: PS1026 | B94: PL0000113460 | C94: 2026-10-25 | D94: 0.0025 | E94: 2020-10-25 | F94: 2021-10-25 | G94: 2021-10-21 | H94: 2021-10-25 | I94: 2.5 | J94: 2021-10-25 | K94: 2022-10-25 | L94: 2022-10-21 | M94: 2022-10-25 | N94: 2.5 | O94: 2022-10-25 | P94: 2023-10-25 | Q94: 2023-10-23 | R94: 2023-10-25 | S94: 2.5 | T94: 2023-10-25 | U94: 2024-10-25 | V94: 2024-10-23 | W94: 2024-10-25 | X94: 2.5 | Y94: 2024-10-25 | Z94: 2025-10-25 | AA94: 2025-10-23 | AB94: 2025-10-27 | AC94: 2.5 | AD94: 2025-10-25 | AE94: 2026-10-25 | AF94: 2026-10-22 | AG94: 2026-10-26 | AH94: 2.5 | AI94: - | AJ94: - | AK94: - | AL94: - | AM94: - | AN94: - | AO94: - | AP94: - | AQ94: - | AR94: - | AS94: - | AT94: - | AU94: - | AV94: - | AW94: - | AX94: - | AY94: - | AZ94: - | BA94: - | BB94: - | BC94: - | BD94: - | BE94: - | BF94: - | BG94: - | BH94: - | BI94: - | BJ94: - | BK94: - | BL94: - | BM94: - | BN94: - | BO94: - | BP94: - | BQ94: - | BR94: - | BS94: - | BT94: - | BU94: - | BV94: - | BW94: - | BX94: - | BY94: - | BZ94: - | CA94: - | CB94: - | CC94: - | CD94: - | CE94: - | CF94: - | CG94: - | CH94: - | CI94: - | CJ94: - | CK94: - | CL94: - | CM94: - | CN94: - | CO94: - | CP94: - | CQ94: - | CR94: - | CS94: - | CT94: - | CU94: - | CV94: - | CW94: - | CX94: - | CY94: - | CZ94: - | DA94: - | DB94: - | DC94: - | DD94: - | DE94: -
A95: PS0527 | B95: PL0000114393 | C95: 2027-05-25 | D95: 0.0375 | E95: 2021-05-25 | F95: 2022-05-25 | G95: 2022-05-23 | H95: 2022-05-25 | I95: 37.5 | J95: 2022-05-25 | K95: 2023-05-25 | L95: 2023-05-23 | M95: 2023-05-25 | N95: 37.5 | O95: 2023-05-25 | P95: 2024-05-25 | Q95: 2024-05-23 | R95: 2024-05-27 | S95: 37.5 | T95: 2024-05-25 | U95: 2025-05-25 | V95: 2025-05-22 | W95: 2025-05-26 | X95: 37.5 | Y95: 2025-05-25 | Z95: 2026-05-25 | AA95: 2026-05-21 | AB95: 2026-05-25 | AC95: 37.5 | AD95: 2026-05-25 | AE95: 2027-05-25 | AF95: 2027-05-21 | AG95: 2027-05-25 | AH95: 37.5 | AI95: - | AJ95: - | AK95: - | AL95: - | AM95: - | AN95: - | AO95: - | AP95: - | AQ95: - | AR95: - | AS95: - | AT95: - | AU95: - | AV95: - | AW95: - | AX95: - | AY95: - | AZ95: - | BA95: - | BB95: - | BC95: - | BD95: - | BE95: - | BF95: - | BG95: - | BH95: - | BI95: - | BJ95: - | BK95: - | BL95: - | BM95: - | BN95: - | BO95: - | BP95: - | BQ95: - | BR95: - | BS95: - | BT95: - | BU95: - | BV95: - | BW95: - | BX95: - | BY95: - | BZ95: - | CA95: - | CB95: - | CC95: - | CD95: - | CE95: - | CF95: - | CG95: - | CH95: - | CI95: - | CJ95: - | CK95: - | CL95: - | CM95: - | CN95: - | CO95: - | CP95: - | CQ95: - | CR95: - | CS95: - | CT95: - | CU95: - | CV95: - | CW95: - | CX95: - | CY95: - | CZ95: - | DA95: - | DB95: - | DC95: - | DD95: - | DE95: -
A96: PS0728 | B96: PL0000115192 | C96: 2028-07-25 | D96: 0.075 | E96: 2022-07-25 | F96: 2023-07-25 | G96: 2023-07-21 | H96: 2023-07-25 | I96: 75 | J96: 2023-07-25 | K96: 2024-07-25 | L96: 2024-07-23 | M96: 2024-07-25 | N96: 75 | O96: 2024-07-25 | P96: 2025-07-25 | Q96: 2025-07-23 | R96: 2025-07-25 | S96: 75 | T96: 2025-07-25 | U96: 2026-07-25 | V96: 2026-07-23 | W96: 2026-07-27 | X96: 75 | Y96: 2026-07-25 | Z96: 2027-07-25 | AA96: 2027-07-22 | AB96: 2027-07-26 | AC96: 75 | AD96: 2027-07-25 | AE96: 2028-07-25 | AF96: 2028-07-21 | AG96: 2028-07-25 | AH96: 75 | AI96: - | AJ96: - | AK96: - | AL96: - | AM96: - | AN96: - | AO96: - | AP96: - | AQ96: - | AR96: - | AS96: - | AT96: - | AU96: - | AV96: - | AW96: - | AX96: - | AY96: - | AZ96: - | BA96: - | BB96: - | BC96: - | BD96: - | BE96: - | BF96: - | BG96: - | BH96: - | BI96: - | BJ96: - | BK96: - | BL96: - | BM96: - | BN96: - | BO96: - | BP96: - | BQ96: - | BR96: - | BS96: - | BT96: - | BU96: - | BV96: - | BW96: - | BX96: - | BY96: - | BZ96: - | CA96: - | CB96: - | CC96: - | CD96: - | CE96: - | CF96: - | CG96: - | CH96: - | CI96: - | CJ96: - | CK96: - | CL96: - | CM96: - | CN96: - | CO96: - | CP96: - | CQ96: - | CR96: - | CS96: - | CT96: - | CU96: - | CV96: - | CW96: - | CX96: - | CY96: - | CZ96: - | DA96: - | DB96: - | DC96: - | DD96: - | DE96: -
A97: PS0729 | B97: PL0000116760 | C97: 2029-07-25 | D97: 0.0475 | E97: 2023-07-25 | F97: 2024-07-25 | G97: 2024-07-23 | H97: 2024-07-25 | I97: 47.5 | J97: 2024-07-25 | K97: 2025-07-25 | L97: 2025-07-23 | M97: 2025-07-25 | N97: 47.5 | O97: 2025-07-25 | P97: 2026-07-25 | Q97: 2026-07-23 | R97: 2026-07-27 | S97: 47.5 | T97: 2026-07-25 | U97: 2027-07-25 | V97: 2027-07-22 | W97: 2027-07-26 | X97: 47.5 | Y97: 2027-07-25 | Z97: 2028-07-25 | AA97: 2028-07-21 | AB97: 2028-07-25 | AC97: 47.5 | AD97: 2028-07-25 | AE97: 2029-07-25 | AF97: 2029-07-23 | AG97: 2029-07-25 | AH97: 47.5 | AI97: - | AJ97: - | AK97: - | AL97: - | AM97: - | AN97: - | AO97: - | AP97: - | AQ97: - | AR97: - | AS97: - | AT97: - | AU97: - | AV97: - | AW97: - | AX97: - | AY97: - | AZ97: - | BA97: - | BB97: - | BC97: - | BD97: - | BE97: - | BF97: - | BG97: - | BH97: - | BI97: - | BJ97: - | BK97: - | BL97: - | BM97: - | BN97: - | BO97: - | BP97: - | BQ97: - | BR97: - | BS97: - | BT97: - | BU97: - | BV97: - | BW97: - | BX97: - | BY97: - | BZ97: - | CA97: - | CB97: - | CC97: - | CD97: - | CE97: - | CF97: - | CG97: - | CH97: - | CI97: - | CJ97: - | CK97: - | CL97: - | CM97: - | CN97: - | CO97: - | CP97: - | CQ97: - | CR97: - | CS97: - | CT97: - | CU97: - | CV97: - | CW97: - | CX97: - | CY97: - | CZ97: - | DA97: - | DB97: - | DC97: - | DD97: - | DE97: -
A98: PS0130 | B98: PL0000117370 | C98: 2030-01-25 | D98: 0.05 | E98: 2024-01-25 | F98: 2025-01-25 | G98: 2025-01-23 | H98: 2025-01-27 | I98: 50 | J98: 2025-01-25 | K98: 2026-01-25 | L98: 2026-01-22 | M98: 2026-01-26 | N98: 50 | O98: 2026-01-25 | P98: 2027-01-25 | Q98: 2027-01-21 | R98: 2027-01-25 | S98: 50 | T98: 2027-01-25 | U98: 2028-01-25 | V98: 2028-01-21 | W98: 2028-01-25 | X98: 50 | Y98: 2028-01-25 | Z98: 2029-01-25 | AA98: 2029-01-23 | AB98: 2029-01-25 | AC98: 50 | AD98: 2029-01-25 | AE98: 2030-01-25 | AF98: 2030-01-23 | AG98: 2030-01-25 | AH98: 50 | AI98: - | AJ98: - | AK98: - | AL98: - | AM98: - | AN98: - | AO98: - | AP98: - | AQ98: - | AR98: - | AS98: - | AT98: - | AU98: - | AV98: - | AW98: - | AX98: - | AY98: - | AZ98: - | BA98: - | BB98: - | BC98: - | BD98: - | BE98: - | BF98: - | BG98: - | BH98: - | BI98: - | BJ98: - | BK98: - | BL98: - | BM98: - | BN98: - | BO98: - | BP98: - | BQ98: - | BR98: - | BS98: - | BT98: - | BU98: - | BV98: - | BW98: - | BX98: - | BY98: - | BZ98: - | CA98: - | CB98: - | CC98: - | CD98: - | CE98: - | CF98: - | CG98: - | CH98: - | CI98: - | CJ98: - | CK98: - | CL98: - | CM98: - | CN98: - | CO98: - | CP98: - | CQ98: - | CR98: - | CS98: - | CT98: - | CU98: - | CV98: - | CW98: - | CX98: - | CY98: - | CZ98: - | DA98: - | DB98: - | DC98: - | DD98: - | DE98: -
A99: PS0730 | B99: PL0000117990 | C99: 2030-07-25 | D99: 0.045 | E99: 2024-07-25 | F99: 2025-07-25 | G99: 2025-07-23 | H99: 2025-07-25 | I99: 45 | J99: 2025-07-25 | K99: 2026-07-25 | L99: 2026-07-23 | M99: 2026-07-27 | N99: 45 | O99: 2026-07-25 | P99: 2027-07-25 | Q99: 2027-07-22 | R99: 2027-07-26 | S99: 45 | T99: 2027-07-25 | U99: 2028-07-25 | V99: 2028-07-21 | W99: 2028-07-25 | X99: 45 | Y99: 2028-07-25 | Z99: 2029-07-25 | AA99: 2029-07-23 | AB99: 2029-07-25 | AC99: 45 | AD99: 2029-07-25 | AE99: 2030-07-25 | AF99: 2030-07-23 | AG99: 2030-07-25 | AH99: 45 | AI99: - | AJ99: - | AK99: - | AL99: - | AM99: - | AN99: - | AO99: - | AP99: - | AQ99: - | AR99: - | AS99: - | AT99: - | AU99: - | AV99: - | AW99: - | AX99: - | AY99: - | AZ99: - | BA99: - | BB99: - | BC99: - | BD99: - | BE99: - | BF99: - | BG99: - | BH99: - | BI99: - | BJ99: - | BK99: - | BL99: - | BM99: - | BN99: - | BO99: - | BP99: - | BQ99: - | BR99: - | BS99: - | BT99: - | BU99: - | BV99: - | BW99: - | BX99: - | BY99: - | BZ99: - | CA99: - | CB99: - | CC99: - | CD99: - | CE99: - | CF99: - | CG99: - | CH99: - | CI99: - | CJ99: - | CK99: - | CL99: - | CM99: - | CN99: - | CO99: - | CP99: - | CQ99: - | CR99: - | CS99: - | CT99: - | CU99: - | CV99: - | CW99: - | CX99: - | CY99: - | CZ99: - | DA99: - | DB99: - | DC99: - | DD99: - | DE99: -
A100: PS0131 | B100: PL0000118519 | C100: 2031-01-25 | D100: 0.045 | E100: 2025-01-25 | F100: 2026-01-25 | G100: 2026-01-22 | H100: 2026-01-26 | I100: 45 | J100: 2026-01-25 | K100: 2027-01-25 | L100: 2027-01-21 | M100: 2027-01-25 | N100: 45 | O100: 2027-01-25 | P100: 2028-01-25 | Q100: 2028-01-21 | R100: 2028-01-25 | S100: 45 | T100: 2028-01-25 | U100: 2029-01-25 | V100: 2029-01-23 | W100: 2029-01-25 | X100: 45 | Y100: 2029-01-25 | Z100: 2030-01-25 | AA100: 2030-01-23 | AB100: 2030-01-25 | AC100: 45 | AD100: 2030-01-25 | AE100: 2031-01-25 | AF100: 2031-01-23 | AG100: 2031-01-27 | AH100: 45
A101: DS1013 | B101: PL0000102836 | C101: 2013-10-24 | D101: 0.05 | E101: 2002-10-24 | F101: 2003-10-24 | G101: 2003-10-21 | H101: 2003-10-24 | I101: 50 | J101: 2003-10-24 | K101: 2004-10-24 | L101: 2004-10-20 | M101: 2004-10-25 | N101: 50 | O101: 2004-10-24 | P101: 2005-10-24 | Q101: 2005-10-19 | R101: 2005-10-24 | S101: 50 | T101: 2005-10-24 | U101: 2006-10-24 | V101: 2006-10-19 | W101: 2006-10-24 | X101: 50 | Y101: 2006-10-24 | Z101: 2007-10-24 | AA101: 2007-10-19 | AB101: 2007-10-24 | AC101: 50 | AD101: 2007-10-24 | AE101: 2008-10-24 | AF101: 2008-10-21 | AG101: 2008-10-24 | AH101: 50 | AI101: 2008-10-24 | AJ101: 2009-10-24 | AK101: 2009-10-21 | AL101: 2009-10-26 | AM101: 50 | AN101: 2009-10-24 | AO101: 2010-10-24 | AP101: 2010-10-20 | AQ101: 2010-10-25 | AR101: 50 | AS101: 2010-10-24 | AT101: 2011-10-24 | AU101: 2011-10-19 | AV101: 2011-10-24 | AW101: 50 | AX101: 2011-10-24 | AY101: 2012-10-24 | AZ101: 2012-10-19 | BA101: 2012-10-24 | BB101: 50 | BC101: 2012-10-24 | BD101: 2013-10-24 | BE101: 2013-10-21 | BF101: 2013-10-24 | BG101: 50 | BH101: - | BI101: - | BJ101: - | BK101: - | BL101: - | BM101: - | BN101: - | BO101: - | BP101: - | BQ101: - | BR101: - | BS101: - | BT101: - | BU101: - | BV101: - | BW101: - | BX101: - | BY101: - | BZ101: - | CA101: - | CB101: - | CC101: - | CD101: - | CE101: - | CF101: - | CG101: - | CH101: - | CI101: - | CJ101: - | CK101: - | CL101: - | CM101: - | CN101: - | CO101: - | CP101: - | CQ101: - | CR101: - | CS101: - | CT101: - | CU101: - | CV101: - | CW101: - | CX101: - | CY101: - | CZ101: - | DA101: - | DB101: - | DC101: - | DD101: - | DE101: - | DF101: - | DG101: - | DH101: - | DI101: - | DJ101: - | DK101: - | DL101: - | DM101: - | DN101: - | DO101: - | DP101: - | DQ101: - | DR101: - | DS101: - | DT101: - | DU101: - | DV101: - | DW101: - | DX101: - | DY101: - | DZ101: - | EA101: - | EB101: - | EC101: - | ED101: - | EE101: - | EF101: - | EG101: - | EH101: - | EI101: - | EJ101: - | EK101: - | EL101: - | EM101: - | EN101: - | EO101: - | EP101: - | EQ101: - | ER101: - | ES101: - | ET101: - | EU101: - | EV101: - | EW101: - | EX101: -
A102: DS1015 | B102: PL0000103602 | C102: 2015-10-24 | D102: 0.0625 | E102: 2004-10-24 | F102: 2005-10-24 | G102: 2005-10-19 | H102: 2005-10-24 | I102: 62.5 | J102: 2005-10-24 | K102: 2006-10-24 | L102: 2006-10-19 | M102: 2006-10-24 | N102: 62.5 | O102: 2006-10-24 | P102: 2007-10-24 | Q102: 2007-10-19 | R102: 2007-10-24 | S102: 62.5 | T102: 2007-10-24 | U102: 2008-10-24 | V102: 2008-10-21 | W102: 2008-10-24 | X102: 62.5 | Y102: 2008-10-24 | Z102: 2009-10-24 | AA102: 2009-10-21 | AB102: 2009-10-26 | AC102: 62.5 | AD102: 2009-10-24 | AE102: 2010-10-24 | AF102: 2010-10-20 | AG102: 2010-10-25 | AH102: 62.5 | AI102: 2010-10-24 | AJ102: 2011-10-24 | AK102: 2011-10-19 | AL102: 2011-10-24 | AM102: 62.5 | AN102: 2011-10-24 | AO102: 2012-10-24 | AP102: 2012-10-19 | AQ102: 2012-10-24 | AR102: 62.5 | AS102: 2012-10-24 | AT102: 2013-10-24 | AU102: 2013-10-21 | AV102: 2013-10-24 | AW102: 62.5 | AX102: 2013-10-24 | AY102: 2014-10-24 | AZ102: 2014-10-21 | BA102: 2014-10-24 | BB102: 62.5 | BC102: 2014-10-24 | BD102: 2015-10-24 | BE102: 2015-10-21 | BF102: 2015-10-26 | BG102: 62.5 | BH102: - | BI102: - | BJ102: - | BK102: - | BL102: - | BM102: - | BN102: - | BO102: - | BP102: - | BQ102: - | BR102: - | BS102: - | BT102: - | BU102: - | BV102: - | BW102: - | BX102: - | BY102: - | BZ102: - | CA102: - | CB102: - | CC102: - | CD102: - | CE102: - | CF102: - | CG102: - | CH102: - | CI102: - | CJ102: - | CK102: - | CL102: - | CM102: - | CN102: - | CO102: - | CP102: - | CQ102: - | CR102: - | CS102: - | CT102: - | CU102: - | CV102: - | CW102: - | CX102: - | CY102: - | CZ102: - | DA102: - | DB102: - | DC102: - | DD102: - | DE102: - | DF102: - | DG102: - | DH102: - | DI102: - | DJ102: - | DK102: - | DL102: - | DM102: - | DN102: - | DO102: - | DP102: - | DQ102: - | DR102: - | DS102: - | DT102: - | DU102: - | DV102: - | DW102: - | DX102: - | DY102: - | DZ102: - | EA102: - | EB102: - | EC102: - | ED102: - | EE102: - | EF102: - | EG102: - | EH102: - | EI102: - | EJ102: - | EK102: - | EL102: - | EM102: - | EN102: - | EO102: - | EP102: - | EQ102: - | ER102: - | ES102: - | ET102: - | EU102: - | EV102: - | EW102: - | EX102: -
A103: DS1017 | B103: PL0000104543 | C103: 2017-10-25 | D103: 0.0525 | E103: 2006-10-25 | F103: 2007-10-25 | G103: 2007-10-22 | H103: 2007-10-25 | I103: 52.5 | J103: 2007-10-25 | K103: 2008-10-25 | L103: 2008-10-22 | M103: 2008-10-27 | N103: 52.5 | O103: 2008-10-25 | P103: 2009-10-25 | Q103: 2009-10-21 | R103: 2009-10-26 | S103: 52.5 | T103: 2009-10-25 | U103: 2010-10-25 | V103: 2010-10-20 | W103: 2010-10-25 | X103: 52.5 | Y103: 2010-10-25 | Z103: 2011-10-25 | AA103: 2011-10-20 | AB103: 2011-10-25 | AC103: 52.5 | AD103: 2011-10-25 | AE103: 2012-10-25 | AF103: 2012-10-22 | AG103: 2012-10-25 | AH103: 52.5 | AI103: 2012-10-25 | AJ103: 2013-10-25 | AK103: 2013-10-22 | AL103: 2013-10-25 | AM103: 52.5 | AN103: 2013-10-25 | AO103: 2014-10-25 | AP103: 2014-10-22 | AQ103: 2014-10-27 | AR103: 52.5 | AS103: 2014-10-25 | AT103: 2015-10-25 | AU103: 2015-10-21 | AV103: 2015-10-26 | AW103: 52.5 | AX103: 2015-10-25 | AY103: 2016-10-25 | AZ103: 2016-10-20 | BA103: 2016-10-25 | BB103: 52.5 | BC103: 2016-10-25 | BD103: 2017-10-25 | BE103: 2017-10-20 | BF103: 2017-10-25 | BG103: 52.5 | BH103: - | BI103: - | BJ103: - | BK103: - | BL103: - | BM103: - | BN103: - | BO103: - | BP103: - | BQ103: - | BR103: - | BS103: - | BT103: - | BU103: - | BV103: - | BW103: - | BX103: - | BY103: - | BZ103: - | CA103: - | CB103: - | CC103: - | CD103: - | CE103: - | CF103: - | CG103: - | CH103: - | CI103: - | CJ103: - | CK103: - | CL103: - | CM103: - | CN103: - | CO103: - | CP103: - | CQ103: - | CR103: - | CS103: - | CT103: - | CU103: - | CV103: - | CW103: - | CX103: - | CY103: - | CZ103: - | DA103: - | DB103: - | DC103: - | DD103: - | DE103: - | DF103: - | DG103: - | DH103: - | DI103: - | DJ103: - | DK103: - | DL103: - | DM103: - | DN103: - | DO103: - | DP103: - | DQ103: - | DR103: - | DS103: - | DT103: - | DU103: - | DV103: - | DW103: - | DX103: - | DY103: - | DZ103: - | EA103: - | EB103: - | EC103: - | ED103: - | EE103: - | EF103: - | EG103: - | EH103: - | EI103: - | EJ103: - | EK103: - | EL103: - | EM103: - | EN103: - | EO103: - | EP103: - | EQ103: - | ER103: - | ES103: - | ET103: - | EU103: - | EV103: - | EW103: - | EX103: -
A104: DS1019 | B104: PL0000105441 | C104: 2019-10-25 | D104: 0.055 | E104: 2008-10-25 | F104: 2009-10-25 | G104: 2009-10-21 | H104: 2009-10-26 | I104: 55 | J104: 2009-10-25 | K104: 2010-10-25 | L104: 2010-10-20 | M104: 2010-10-25 | N104: 55 | O104: 2010-10-25 | P104: 2011-10-25 | Q104: 2011-10-20 | R104: 2011-10-25 | S104: 55 | T104: 2011-10-25 | U104: 2012-10-25 | V104: 2012-10-22 | W104: 2012-10-25 | X104: 55 | Y104: 2012-10-25 | Z104: 2013-10-25 | AA104: 2013-10-22 | AB104: 2013-10-25 | AC104: 55 | AD104: 2013-10-25 | AE104: 2014-10-25 | AF104: 2014-10-22 | AG104: 2014-10-27 | AH104: 55 | AI104: 2014-10-25 | AJ104: 2015-10-25 | AK104: 2015-10-21 | AL104: 2015-10-26 | AM104: 55 | AN104: 2015-10-25 | AO104: 2016-10-25 | AP104: 2016-10-20 | AQ104: 2016-10-25 | AR104: 55 | AS104: 2016-10-25 | AT104: 2017-10-25 | AU104: 2017-10-20 | AV104: 2017-10-25 | AW104: 55 | AX104: 2017-10-25 | AY104: 2018-10-25 | AZ104: 2018-10-22 | BA104: 2018-10-25 | BB104: 55 | BC104: 2018-10-25 | BD104: 2019-10-25 | BE104: 2019-10-22 | BF104: 2019-10-25 | BG104: 55 | BH104: - | BI104: - | BJ104: - | BK104: - | BL104: - | BM104: - | BN104: - | BO104: - | BP104: - | BQ104: - | BR104: - | BS104: - | BT104: - | BU104: - | BV104: - | BW104: - | BX104: - | BY104: - | BZ104: - | CA104: - | CB104: - | CC104: - | CD104: - | CE104: - | CF104: - | CG104: - | CH104: - | CI104: - | CJ104: - | CK104: - | CL104: - | CM104: - | CN104: - | CO104: - | CP104: - | CQ104: - | CR104: - | CS104: - | CT104: - | CU104: - | CV104: - | CW104: - | CX104: - | CY104: - | CZ104: - | DA104: - | DB104: - | DC104: - | DD104: - | DE104: -
A105: DS1020 | B105: PL0000106126 | C105: 2020-10-25 | D105: 0.0525 | E105: 2009-10-25 | F105: 2010-10-25 | G105: 2010-10-21 | H105: 2010-10-25 | I105: 52.5 | J105: 2010-10-25 | K105: 2011-10-25 | L105: 2011-10-21 | M105: 2011-10-25 | N105: 52.5 | O105: 2011-10-25 | P105: 2012-10-25 | Q105: 2012-10-23 | R105: 2012-10-25 | S105: 52.5 | T105: 2012-10-25 | U105: 2013-10-25 | V105: 2013-10-23 | W105: 2013-10-25 | X105: 52.5 | Y105: 2013-10-25 | Z105: 2014-10-25 | AA105: 2014-10-23 | AB105: 2014-10-27 | AC105: 52.5 | AD105: 2014-10-25 | AE105: 2015-10-25 | AF105: 2015-10-22 | AG105: 2015-10-26 | AH105: 52.5 | AI105: 2015-10-25 | AJ105: 2016-10-25 | AK105: 2016-10-21 | AL105: 2016-10-25 | AM105: 52.5 | AN105: 2016-10-25 | AO105: 2017-10-25 | AP105: 2017-10-23 | AQ105: 2017-10-25 | AR105: 52.5 | AS105: 2017-10-25 | AT105: 2018-10-25 | AU105: 2018-10-23 | AV105: 2018-10-25 | AW105: 52.5 | AX105: 2018-10-25 | AY105: 2019-10-25 | AZ105: 2019-10-23 | BA105: 2019-10-25 | BB105: 52.5 | BC105: 2019-10-25 | BD105: 2020-10-25 | BE105: 2020-10-22 | BF105: 2020-10-26 | BG105: 52.5 | BH105: - | BI105: - | BJ105: - | BK105: - | BL105: - | BM105: - | BN105: - | BO105: - | BP105: - | BQ105: - | BR105: - | BS105: - | BT105: - | BU105: - | BV105: - | BW105: - | BX105: - | BY105: - | BZ105: - | CA105: - | CB105: - | CC105: - | CD105: - | CE105: - | CF105: - | CG105: - | CH105: - | CI105: - | CJ105: - | CK105: - | CL105: - | CM105: - | CN105: - | CO105: - | CP105: - | CQ105: - | CR105: - | CS105: - | CT105: - | CU105: - | CV105: - | CW105: - | CX105: - | CY105: - | CZ105: - | DA105: - | DB105: - | DC105: - | DD105: - | DE105: -
A106: DS1021 | B106: PL0000106670 | C106: 2021-10-25 | D106: 0.0575 | E106: 2010-10-25 | F106: 2011-10-25 | G106: 2011-10-21 | H106: 2011-10-25 | I106: 57.5 | J106: 2011-10-25 | K106: 2012-10-25 | L106: 2012-10-23 | M106: 2012-10-25 | N106: 57.5 | O106: 2012-10-25 | P106: 2013-10-25 | Q106: 2013-10-23 | R106: 2013-10-25 | S106: 57.5 | T106: 2013-10-25 | U106: 2014-10-25 | V106: 2014-10-23 | W106: 2014-10-27 | X106: 57.5 | Y106: 2014-10-25 | Z106: 2015-10-25 | AA106: 2015-10-22 | AB106: 2015-10-26 | AC106: 57.5 | AD106: 2015-10-25 | AE106: 2016-10-25 | AF106: 2016-10-21 | AG106: 2016-10-25 | AH106: 57.5 | AI106: 2016-10-25 | AJ106: 2017-10-25 | AK106: 2017-10-23 | AL106: 2017-10-25 | AM106: 57.5 | AN106: 2017-10-25 | AO106: 2018-10-25 | AP106: 2018-10-23 | AQ106: 2018-10-25 | AR106: 57.5 | AS106: 2018-10-25 | AT106: 2019-10-25 | AU106: 2019-10-23 | AV106: 2019-10-25 | AW106: 57.5 | AX106: 2019-10-25 | AY106: 2020-10-25 | AZ106: 2020-10-22 | BA106: 2020-10-26 | BB106: 57.5 | BC106: 2020-10-25 | BD106: 2021-10-25 | BE106: 2021-10-21 | BF106: 2021-10-25 | BG106: 57.5 | BH106: - | BI106: - | BJ106: - | BK106: - | BL106: - | BM106: - | BN106: - | BO106: - | BP106: - | BQ106: - | BR106: - | BS106: - | BT106: - | BU106: - | BV106: - | BW106: - | BX106: - | BY106: - | BZ106: - | CA106: - | CB106: - | CC106: - | CD106: - | CE106: - | CF106: - | CG106: - | CH106: - | CI106: - | CJ106: - | CK106: - | CL106: - | CM106: - | CN106: - | CO106: - | CP106: - | CQ106: - | CR106: - | CS106: - | CT106: - | CU106: - | CV106: - | CW106: - | CX106: - | CY106: - | CZ106: - | DA106: - | DB106: - | DC106: - | DD106: - | DE106: -
A107: DS1023 | B107: PL0000107264 | C107: 2023-10-25 | D107: 0.04 | E107: 2012-10-25 | F107: 2013-10-25 | G107: 2013-10-23 | H107: 2013-10-25 | I107: 40 | J107: 2013-10-25 | K107: 2014-10-25 | L107: 2014-10-23 | M107: 2014-10-27 | N107: 40 | O107: 2014-10-25 | P107: 2015-10-25 | Q107: 2015-10-22 | R107: 2015-10-26 | S107: 40 | T107: 2015-10-25 | U107: 2016-10-25 | V107: 2016-10-21 | W107: 2016-10-25 | X107: 40 | Y107: 2016-10-25 | Z107: 2017-10-25 | AA107: 2017-10-23 | AB107: 2017-10-25 | AC107: 40 | AD107: 2017-10-25 | AE107: 2018-10-25 | AF107: 2018-10-23 | AG107: 2018-10-25 | AH107: 40 | AI107: 2018-10-25 | AJ107: 2019-10-25 | AK107: 2019-10-23 | AL107: 2019-10-25 | AM107: 40 | AN107: 2019-10-25 | AO107: 2020-10-25 | AP107: 2020-10-22 | AQ107: 2020-10-26 | AR107: 40 | AS107: 2020-10-25 | AT107: 2021-10-25 | AU107: 2021-10-21 | AV107: 2021-10-25 | AW107: 40 | AX107: 2021-10-25 | AY107: 2022-10-25 | AZ107: 2022-10-21 | BA107: 2022-10-25 | BB107: 40 | BC107: 2022-10-25 | BD107: 2023-10-25 | BE107: 2023-10-23 | BF107: 2023-10-25 | BG107: 40 | BH107: - | BI107: - | BJ107: - | BK107: - | BL107: - | BM107: - | BN107: - | BO107: - | BP107: - | BQ107: - | BR107: - | BS107: - | BT107: - | BU107: - | BV107: - | BW107: - | BX107: - | BY107: - | BZ107: - | CA107: - | CB107: - | CC107: - | CD107: - | CE107: - | CF107: - | CG107: - | CH107: - | CI107: - | CJ107: - | CK107: - | CL107: - | CM107: - | CN107: - | CO107: - | CP107: - | CQ107: - | CR107: - | CS107: - | CT107: - | CU107: - | CV107: - | CW107: - | CX107: - | CY107: - | CZ107: - | DA107: - | DB107: - | DC107: - | DD107: - | DE107: -
A108: DS0725 | B108: PL0000108197 | C108: 2025-07-25 | D108: 0.0325 | E108: 2013-07-25 | F108: 2014-07-25 | G108: 2014-07-23 | H108: 2014-07-25 | I108: 32.5 | J108: 2014-07-25 | K108: 2015-07-25 | L108: 2015-07-23 | M108: 2015-07-27 | N108: 32.5 | O108: 2015-07-25 | P108: 2016-07-25 | Q108: 2016-07-21 | R108: 2016-07-25 | S108: 32.5 | T108: 2016-07-25 | U108: 2017-07-25 | V108: 2017-07-21 | W108: 2017-07-25 | X108: 32.5 | Y108: 2017-07-25 | Z108: 2018-07-25 | AA108: 2018-07-23 | AB108: 2018-07-25 | AC108: 32.5 | AD108: 2018-07-25 | AE108: 2019-07-25 | AF108: 2019-07-23 | AG108: 2019-07-25 | AH108: 32.5 | AI108: 2019-07-25 | AJ108: 2020-07-25 | AK108: 2020-07-23 | AL108: 2020-07-27 | AM108: 32.5 | AN108: 2020-07-25 | AO108: 2021-07-25 | AP108: 2021-07-22 | AQ108: 2021-07-26 | AR108: 32.5 | AS108: 2021-07-25 | AT108: 2022-07-25 | AU108: 2022-07-21 | AV108: 2022-07-25 | AW108: 32.5 | AX108: 2022-07-25 | AY108: 2023-07-25 | AZ108: 2023-07-21 | BA108: 2023-07-25 | BB108: 32.5 | BC108: 2023-07-25 | BD108: 2024-07-25 | BE108: 2024-07-23 | BF108: 2024-07-25 | BG108: 32.5 | BH108: 2024-07-25 | BI108: 2025-07-25 | BJ108: 2025-07-23 | BK108: 2025-07-25 | BL108: 32.5 | BM108: - | BN108: - | BO108: - | BP108: - | BQ108: - | BR108: - | BS108: - | BT108: - | BU108: - | BV108: - | BW108: - | BX108: - | BY108: - | BZ108: - | CA108: - | CB108: - | CC108: - | CD108: - | CE108: - | CF108: - | CG108: - | CH108: - | CI108: - | CJ108: - | CK108: - | CL108: - | CM108: - | CN108: - | CO108: - | CP108: - | CQ108: - | CR108: - | CS108: - | CT108: - | CU108: - | CV108: - | CW108: - | CX108: - | CY108: - | CZ108: - | DA108: - | DB108: - | DC108: - | DD108: - | DE108: -
A109: DS0726 | B109: PL0000108866 | C109: 2026-07-25 | D109: 0.025 | E109: 2015-07-25 | F109: 2016-07-25 | G109: 2016-07-21 | H109: 2016-07-25 | I109: 25 | J109: 2016-07-25 | K109: 2017-07-25 | L109: 2017-07-21 | M109: 2017-07-25 | N109: 25 | O109: 2017-07-25 | P109: 2018-07-25 | Q109: 2018-07-23 | R109: 2018-07-25 | S109: 25 | T109: 2018-07-25 | U109: 2019-07-25 | V109: 2019-07-23 | W109: 2019-07-25 | X109: 25 | Y109: 2019-07-25 | Z109: 2020-07-25 | AA109: 2020-07-23 | AB109: 2020-07-27 | AC109: 25 | AD109: 2020-07-25 | AE109: 2021-07-25 | AF109: 2021-07-22 | AG109: 2021-07-26 | AH109: 25 | AI109: 2021-07-25 | AJ109: 2022-07-25 | AK109: 2022-07-21 | AL109: 2022-07-25 | AM109: 25 | AN109: 2022-07-25 | AO109: 2023-07-25 | AP109: 2023-07-21 | AQ109: 2023-07-25 | AR109: 25 | AS109: 2023-07-25 | AT109: 2024-07-25 | AU109: 2024-07-23 | AV109: 2024-07-25 | AW109: 25 | AX109: 2024-07-25 | AY109: 2025-07-25 | AZ109: 2025-07-23 | BA109: 2025-07-25 | BB109: 25 | BC109: 2025-07-25 | BD109: 2026-07-25 | BE109: 2026-07-23 | BF109: 2026-07-27 | BG109: 25 | BH109: - | BI109: - | BJ109: - | BK109: - | BL109: - | BM109: - | BN109: - | BO109: - | BP109: - | BQ109: - | BR109: - | BS109: - | BT109: - | BU109: - | BV109: - | BW109: - | BX109: - | BY109: - | BZ109: - | CA109: - | CB109: - | CC109: - | CD109: - | CE109: - | CF109: - | CG109: - | CH109: - | CI109: - | CJ109: - | CK109: - | CL109: - | CM109: - | CN109: - | CO109: - | CP109: - | CQ109: - | CR109: - | CS109: - | CT109: - | CU109: - | CV109: - | CW109: - | CX109: - | CY109: - | CZ109: - | DA109: - | DB109: - | DC109: - | DD109: - | DE109: -
A110: DS0727 | B110: PL0000109427 | C110: 2027-07-25 | D110: 0.025 | E110: 2016-07-25 | F110: 2017-07-25 | G110: 2017-07-21 | H110: 2017-07-25 | I110: 25 | J110: 2017-07-25 | K110: 2018-07-25 | L110: 2018-07-23 | M110: 2018-07-25 | N110: 25 | O110: 2018-07-25 | P110: 2019-07-25 | Q110: 2019-07-23 | R110: 2019-07-25 | S110: 25 | T110: 2019-07-25 | U110: 2020-07-25 | V110: 2020-07-23 | W110: 2020-07-27 | X110: 25 | Y110: 2020-07-25 | Z110: 2021-07-25 | AA110: 2021-07-22 | AB110: 2021-07-26 | AC110: 25 | AD110: 2021-07-25 | AE110: 2022-07-25 | AF110: 2022-07-21 | AG110: 2022-07-25 | AH110: 25 | AI110: 2022-07-25 | AJ110: 2023-07-25 | AK110: 2023-07-21 | AL110: 2023-07-25 | AM110: 25 | AN110: 2023-07-25 | AO110: 2024-07-25 | AP110: 2024-07-23 | AQ110: 2024-07-25 | AR110: 25 | AS110: 2024-07-25 | AT110: 2025-07-25 | AU110: 2025-07-23 | AV110: 2025-07-25 | AW110: 25 | AX110: 2025-07-25 | AY110: 2026-07-25 | AZ110: 2026-07-23 | BA110: 2026-07-27 | BB110: 25 | BC110: 2026-07-25 | BD110: 2027-07-25 | BE110: 2027-07-22 | BF110: 2027-07-26 | BG110: 25 | BH110: - | BI110: - | BJ110: - | BK110: - | BL110: - | BM110: - | BN110: - | BO110: - | BP110: - | BQ110: - | BR110: - | BS110: - | BT110: - | BU110: - | BV110: - | BW110: - | BX110: - | BY110: - | BZ110: - | CA110: - | CB110: - | CC110: - | CD110: - | CE110: - | CF110: - | CG110: - | CH110: - | CI110: - | CJ110: - | CK110: - | CL110: - | CM110: - | CN110: - | CO110: - | CP110: - | CQ110: - | CR110: - | CS110: - | CT110: - | CU110: - | CV110: - | CW110: - | CX110: - | CY110: - | CZ110: - | DA110: - | DB110: - | DC110: - | DD110: - | DE110: -
A111: DS1029 | B111: PL0000111498 | C111: 2029-10-25 | D111: 0.0275 | E111: 2018-10-25 | F111: 2019-10-25 | G111: 2019-10-23 | H111: 2019-10-25 | I111: 27.5 | J111: 2019-10-25 | K111: 2020-10-25 | L111: 2020-10-22 | M111: 2020-10-26 | N111: 27.5 | O111: 2020-10-25 | P111: 2021-10-25 | Q111: 2021-10-21 | R111: 2021-10-25 | S111: 27.5 | T111: 2021-10-25 | U111: 2022-10-25 | V111: 2022-10-21 | W111: 2022-10-25 | X111: 27.5 | Y111: 2022-10-25 | Z111: 2023-10-25 | AA111: 2023-10-23 | AB111: 2023-10-25 | AC111: 27.5 | AD111: 2023-10-25 | AE111: 2024-10-25 | AF111: 2024-10-23 | AG111: 2024-10-25 | AH111: 27.5 | AI111: 2024-10-25 | AJ111: 2025-10-25 | AK111: 2025-10-23 | AL111: 2025-10-27 | AM111: 27.5 | AN111: 2025-10-25 | AO111: 2026-10-25 | AP111: 2026-10-22 | AQ111: 2026-10-26 | AR111: 27.5 | AS111: 2026-10-25 | AT111: 2027-10-25 | AU111: 2027-10-21 | AV111: 2027-10-25 | AW111: 27.5 | AX111: 2027-10-25 | AY111: 2028-10-25 | AZ111: 2028-10-23 | BA111: 2028-10-25 | BB111: 27.5 | BC111: 2028-10-25 | BD111: 2029-10-25 | BE111: 2029-10-23 | BF111: 2029-10-25 | BG111: 27.5 | BH111: - | BI111: - | BJ111: - | BK111: - | BL111: - | BM111: - | BN111: - | BO111: - | BP111: - | BQ111: - | BR111: - | BS111: - | BT111: - | BU111: - | BV111: - | BW111: - | BX111: - | BY111: - | BZ111: - | CA111: - | CB111: - | CC111: - | CD111: - | CE111: - | CF111: - | CG111: - | CH111: - | CI111: - | CJ111: - | CK111: - | CL111: - | CM111: - | CN111: - | CO111: - | CP111: - | CQ111: - | CR111: - | CS111: - | CT111: - | CU111: - | CV111: - | CW111: - | CX111: - | CY111: - | CZ111: - | DA111: - | DB111: - | DC111: - | DD111: - | DE111: -
A112: DS1030 | B112: PL0000112736 | C112: 2030-10-25 | D112: 0.0125 | E112: 2019-10-25 | F112: 2020-10-25 | G112: 2020-10-22 | H112: 2020-10-26 | I112: 12.5 | J112: 2020-10-25 | K112: 2021-10-25 | L112: 2021-10-21 | M112: 2021-10-25 | N112: 12.5 | O112: 2021-10-25 | P112: 2022-10-25 | Q112: 2022-10-21 | R112: 2022-10-25 | S112: 12.5 | T112: 2022-10-25 | U112: 2023-10-25 | V112: 2023-10-23 | W112: 2023-10-25 | X112: 12.5 | Y112: 2023-10-25 | Z112: 2024-10-25 | AA112: 2024-10-23 | AB112: 2024-10-25 | AC112: 12.5 | AD112: 2024-10-25 | AE112: 2025-10-25 | AF112: 2025-10-23 | AG112: 2025-10-27 | AH112: 12.5 | AI112: 2025-10-25 | AJ112: 2026-10-25 | AK112: 2026-10-22 | AL112: 2026-10-26 | AM112: 12.5 | AN112: 2026-10-25 | AO112: 2027-10-25 | AP112: 2027-10-21 | AQ112: 2027-10-25 | AR112: 12.5 | AS112: 2027-10-25 | AT112: 2028-10-25 | AU112: 2028-10-23 | AV112: 2028-10-25 | AW112: 12.5 | AX112: 2028-10-25 | AY112: 2029-10-25 | AZ112: 2029-10-23 | BA112: 2029-10-25 | BB112: 12.5 | BC112: 2029-10-25 | BD112: 2030-10-25 | BE112: 2030-10-23 | BF112: 2030-10-25 | BG112: 12.5 | BH112: - | BI112: - | BJ112: - | BK112: - | BL112: - | BM112: - | BN112: - | BO112: - | BP112: - | BQ112: - | BR112: - | BS112: - | BT112: - | BU112: - | BV112: - | BW112: - | BX112: - | BY112: - | BZ112: - | CA112: - | CB112: - | CC112: - | CD112: - | CE112: - | CF112: - | CG112: - | CH112: - | CI112: - | CJ112: - | CK112: - | CL112: - | CM112: - | CN112: - | CO112: - | CP112: - | CQ112: - | CR112: - | CS112: - | CT112: - | CU112: - | CV112: - | CW112: - | CX112: - | CY112: - | CZ112: - | DA112: - | DB112: - | DC112: - | DD112: - | DE112: -
A113: DS0432 | B113: PL0000113783 | C113: 2032-04-25 | D113: 0.0175 | E113: 2021-04-25 | F113: 2022-04-25 | G113: 2022-04-21 | H113: 2022-04-25 | I113: 17.5 | J113: 2022-04-25 | K113: 2023-04-25 | L113: 2023-04-21 | M113: 2023-04-25 | N113: 17.5 | O113: 2023-04-25 | P113: 2024-04-25 | Q113: 2024-04-23 | R113: 2024-04-25 | S113: 17.5 | T113: 2024-04-25 | U113: 2025-04-25 | V113: 2025-04-23 | W113: 2025-04-25 | X113: 17.5 | Y113: 2025-04-25 | Z113: 2026-04-25 | AA113: 2026-04-23 | AB113: 2026-04-27 | AC113: 17.5 | AD113: 2026-04-25 | AE113: 2027-04-25 | AF113: 2027-04-22 | AG113: 2027-04-26 | AH113: 17.5 | AI113: 2027-04-25 | AJ113: 2028-04-25 | AK113: 2028-04-21 | AL113: 2028-04-25 | AM113: 17.5 | AN113: 2028-04-25 | AO113: 2029-04-25 | AP113: 2029-04-23 | AQ113: 2029-04-25 | AR113: 17.5 | AS113: 2029-04-25 | AT113: 2030-04-25 | AU113: 2030-04-23 | AV113: 2030-04-25 | AW113: 17.5 | AX113: 2030-04-25 | AY113: 2031-04-25 | AZ113: 2031-04-23 | BA113: 2031-04-25 | BB113: 17.5 | BC113: 2031-04-25 | BD113: 2032-04-25 | BE113: 2032-04-22 | BF113: 2032-04-26 | BG113: 17.5 | BH113: - | BI113: - | BJ113: - | BK113: - | BL113: - | BM113: - | BN113: - | BO113: - | BP113: - | BQ113: - | BR113: - | BS113: - | BT113: - | BU113: - | BV113: - | BW113: - | BX113: - | BY113: - | BZ113: - | CA113: - | CB113: - | CC113: - | CD113: - | CE113: - | CF113: - | CG113: - | CH113: - | CI113: - | CJ113: - | CK113: - | CL113: - | CM113: - | CN113: - | CO113: - | CP113: - | CQ113: - | CR113: - | CS113: - | CT113: - | CU113: - | CV113: - | CW113: - | CX113: - | CY113: - | CZ113: - | DA113: - | DB113: - | DC113: - | DD113: - | DE113: -
A114: DS1033 | B114: PL0000115291 | C114: 2033-10-25 | D114: 0.06 | E114: 2022-10-25 | F114: 2023-10-25 | G114: 2023-10-23 | H114: 2023-10-25 | I114: 60 | J114: 2023-10-25 | K114: 2024-10-25 | L114: 2024-10-23 | M114: 2024-10-25 | N114: 60 | O114: 2024-10-25 | P114: 2025-10-25 | Q114: 2025-10-23 | R114: 2025-10-27 | S114: 60 | T114: 2025-10-25 | U114: 2026-10-25 | V114: 2026-10-22 | W114: 2026-10-26 | X114: 60 | Y114: 2026-10-25 | Z114: 2027-10-25 | AA114: 2027-10-21 | AB114: 2027-10-25 | AC114: 60 | AD114: 2027-10-25 | AE114: 2028-10-25 | AF114: 2028-10-23 | AG114: 2028-10-25 | AH114: 60 | AI114: 2028-10-25 | AJ114: 2029-10-25 | AK114: 2029-10-23 | AL114: 2029-10-25 | AM114: 60 | AN114: 2029-10-25 | AO114: 2030-10-25 | AP114: 2030-10-23 | AQ114: 2030-10-25 | AR114: 60 | AS114: 2030-10-25 | AT114: 2031-10-25 | AU114: 2031-10-23 | AV114: 2031-10-27 | AW114: 60 | AX114: 2031-10-25 | AY114: 2032-10-25 | AZ114: 2032-10-21 | BA114: 2032-10-25 | BB114: 60 | BC114: 2032-10-25 | BD114: 2033-10-25 | BE114: 2032-10-21 | BF114: 2033-10-25 | BG114: 60 | BH114: - | BI114: - | BJ114: - | BK114: - | BL114: - | BM114: - | BN114: - | BO114: - | BP114: - | BQ114: - | BR114: - | BS114: - | BT114: - | BU114: - | BV114: - | BW114: - | BX114: - | BY114: - | BZ114: - | CA114: - | CB114: - | CC114: - | CD114: - | CE114: - | CF114: - | CG114: - | CH114: - | CI114: - | CJ114: - | CK114: - | CL114: - | CM114: - | CN114: - | CO114: - | CP114: -
A115: DS1034 | B115: PL0000116851 | C115: 2034-10-25 | D115: 0.05 | E115: 2023-10-25 | F115: 2024-10-25 | G115: 2024-10-23 | H115: 2024-10-25 | I115: 50 | J115: 2024-10-25 | K115: 2025-10-25 | L115: 2025-10-23 | M115: 2025-10-27 | N115: 50 | O115: 2025-10-25 | P115: 2026-10-25 | Q115: 2026-10-22 | R115: 2026-10-26 | S115: 50 | T115: 2026-10-25 | U115: 2027-10-25 | V115: 2027-10-21 | W115: 2027-10-25 | X115: 50 | Y115: 2027-10-25 | Z115: 2028-10-25 | AA115: 2028-10-23 | AB115: 2028-10-25 | AC115: 50 | AD115: 2028-10-25 | AE115: 2029-10-25 | AF115: 2029-10-23 | AG115: 2029-10-25 | AH115: 50 | AI115: 2029-10-25 | AJ115: 2030-10-25 | AK115: 2030-10-23 | AL115: 2030-10-25 | AM115: 50 | AN115: 2030-10-25 | AO115: 2031-10-25 | AP115: 2031-10-23 | AQ115: 2031-10-27 | AR115: 50 | AS115: 2031-10-25 | AT115: 2032-10-25 | AU115: 2032-10-21 | AV115: 2032-10-25 | AW115: 50 | AX115: 2032-10-25 | AY115: 2033-10-25 | AZ115: 2032-10-21 | BA115: 2033-10-25 | BB115: 50 | BC115: 2033-10-25 | BD115: 2034-10-25 | BE115: 2034-10-23 | BF115: 2034-10-25 | BG115: 50 | BH115: - | BI115: - | BJ115: - | BK115: - | BL115: - | BM115: - | BN115: - | BO115: - | BP115: - | BQ115: - | BR115: - | BS115: - | BT115: - | BU115: - | BV115: - | BW115: - | BX115: - | BY115: - | BZ115: - | CA115: - | CB115: - | CC115: - | CD115: - | CE115: - | CF115: - | CG115: - | CH115: - | CI115: - | CJ115: - | CK115: - | CL115: - | CM115: - | CN115: - | CO115: - | CP115: -
A116: DS1035 | B116: PL0000118188 | C116: 2035-10-25 | D116: 0.05 | E116: 2024-10-25 | F116: 2025-10-25 | G116: 2025-10-23 | H116: 2025-10-27 | I116: 50 | J116: 2025-10-25 | K116: 2026-10-25 | L116: 2026-10-22 | M116: 2026-10-26 | N116: 50 | O116: 2026-10-25 | P116: 2027-10-25 | Q116: 2027-10-21 | R116: 2027-10-25 | S116: 50 | T116: 2027-10-25 | U116: 2028-10-25 | V116: 2028-10-23 | W116: 2028-10-25 | X116: 50 | Y116: 2028-10-25 | Z116: 2029-10-25 | AA116: 2029-10-23 | AB116: 2029-10-25 | AC116: 50 | AD116: 2029-10-25 | AE116: 2030-10-25 | AF116: 2030-10-23 | AG116: 2030-10-25 | AH116: 50 | AI116: 2030-10-25 | AJ116: 2031-10-25 | AK116: 2031-10-23 | AL116: 2031-10-27 | AM116: 50 | AN116: 2031-10-25 | AO116: 2032-10-25 | AP116: 2032-10-21 | AQ116: 2032-10-25 | AR116: 50 | AS116: 2032-10-25 | AT116: 2033-10-25 | AU116: 2033-10-21 | AV116: 2033-10-25 | AW116: 50 | AX116: 2033-10-25 | AY116: 2034-10-25 | AZ116: 2034-10-23 | BA116: 2034-10-25 | BB116: 50 | BC116: 2034-10-25 | BD116: 2035-10-25 | BE116: 2035-10-23 | BF116: 2035-10-25 | BG116: 50
A117: WS0922 | B117: PL0000102646 | C117: 2022-09-23 | D117: 0.0575 | E117: 2001-09-23 | F117: 2002-09-23 | G117: 2002-09-18 | H117: 2002-09-23 | I117: 57.5 | J117: 2002-09-23 | K117: 2003-09-23 | L117: 2003-09-18 | M117: 2003-09-23 | N117: 57.5 | O117: 2003-09-23 | P117: 2004-09-23 | Q117: 2004-09-20 | R117: 2004-09-23 | S117: 57.5 | T117: 2004-09-23 | U117: 2005-09-23 | V117: 2005-09-20 | W117: 2005-09-23 | X117: 57.5 | Y117: 2005-09-23 | Z117: 2006-09-23 | AA117: 2006-09-20 | AB117: 2006-09-25 | AC117: 57.5 | AD117: 2006-09-23 | AE117: 2007-09-23 | AF117: 2007-09-19 | AG117: 2007-09-24 | AH117: 57.5 | AI117: 2007-09-23 | AJ117: 2008-09-23 | AK117: 2008-09-18 | AL117: 2008-09-23 | AM117: 57.5 | AN117: 2008-09-23 | AO117: 2009-09-23 | AP117: 2009-09-18 | AQ117: 2009-09-23 | AR117: 57.5 | AS117: 2009-09-23 | AT117: 2010-09-23 | AU117: 2010-09-20 | AV117: 2010-09-23 | AW117: 57.5 | AX117: 2010-09-23 | AY117: 2011-09-23 | AZ117: 2011-09-20 | BA117: 2011-09-23 | BB117: 57.5 | BC117: 2011-09-23 | BD117: 2012-09-23 | BE117: 2012-09-19 | BF117: 2012-09-24 | BG117: 57.5 | BH117: 2012-09-23 | BI117: 2013-09-23 | BJ117: 2013-09-18 | BK117: 2013-09-23 | BL117: 57.5 | BM117: 2013-09-23 | BN117: 2014-09-23 | BO117: 2014-09-18 | BP117: 2014-09-23 | BQ117: 57.5 | BR117: 2014-09-23 | BS117: 2015-09-23 | BT117: 2015-09-18 | BU117: 2015-09-23 | BV117: 57.5 | BW117: 2015-09-23 | BX117: 2016-09-23 | BY117: 2016-09-20 | BZ117: 2016-09-23 | CA117: 57.5 | CB117: 2016-09-23 | CC117: 2017-09-23 | CD117: 2017-09-20 | CE117: 2017-09-25 | CF117: 57.5 | CG117: 2017-09-23 | CH117: 2018-09-23 | CI117: 2018-09-19 | CJ117: 2018-09-24 | CK117: 57.5 | CL117: 2018-09-23 | CM117: 2019-09-23 | CN117: 2019-09-18 | CO117: 2019-09-23 | CP117: 57.5 | CQ117: 2019-09-23 | CR117: 2020-09-23 | CS117: 2020-09-18 | CT117: 2020-09-23 | CU117: 57.5 | CV117: 2020-09-23 | CW117: 2021-09-23 | CX117: 2021-09-20 | CY117: 2021-09-23 | CZ117: 57.5 | DA117: 2021-09-23 | DB117: 2022-09-23 | DC117: 2022-09-20 | DD117: 2022-09-23 | DE117: 57.5 | DF117: - | DG117: - | DH117: - | DI117: - | DJ117: - | DK117: - | DL117: - | DM117: - | DN117: - | DO117: - | DP117: - | DQ117: - | DR117: - | DS117: - | DT117: - | DU117: - | DV117: - | DW117: - | DX117: - | DY117: - | DZ117: - | EA117: - | EB117: - | EC117: - | ED117: - | EE117: - | EF117: - | EG117: - | EH117: - | EI117: - | EJ117: - | EK117: - | EL117: - | EM117: - | EN117: - | EO117: - | EP117: - | EQ117: - | ER117: - | ES117: - | ET117: - | EU117: - | EV117: - | EW117: - | EX117: -
A118: WS0428 | B118: PL0000107611 | C118: 2028-04-25 | D118: 0.0275 | E118: 2013-04-25 | F118: 2014-04-25 | G118: 2014-04-23 | H118: 2014-04-25 | I118: 27.5 | J118: 2014-04-25 | K118: 2015-04-25 | L118: 2015-04-23 | M118: 2015-04-27 | N118: 27.5 | O118: 2015-04-25 | P118: 2016-04-25 | Q118: 2016-04-21 | R118: 2016-04-25 | S118: 27.5 | T118: 2016-04-25 | U118: 2017-04-25 | V118: 2017-04-21 | W118: 2017-04-25 | X118: 27.5 | Y118: 2017-04-25 | Z118: 2018-04-25 | AA118: 2018-04-23 | AB118: 2018-04-25 | AC118: 27.5 | AD118: 2018-04-25 | AE118: 2019-04-25 | AF118: 2019-04-23 | AG118: 2019-04-25 | AH118: 27.5 | AI118: 2019-04-25 | AJ118: 2020-04-25 | AK118: 2020-04-23 | AL118: 2020-04-27 | AM118: 27.5 | AN118: 2020-04-25 | AO118: 2021-04-25 | AP118: 2021-04-22 | AQ118: 2021-04-26 | AR118: 27.5 | AS118: 2021-04-25 | AT118: 2022-04-25 | AU118: 2022-04-21 | AV118: 2022-04-25 | AW118: 27.5 | AX118: 2022-04-25 | AY118: 2023-04-25 | AZ118: 2023-04-21 | BA118: 2023-04-25 | BB118: 27.5 | BC118: 2023-04-25 | BD118: 2024-04-25 | BE118: 2024-04-23 | BF118: 2024-04-25 | BG118: 27.5 | BH118: 2024-04-25 | BI118: 2025-04-25 | BJ118: 2025-04-23 | BK118: 2025-04-25 | BL118: 27.5 | BM118: 2025-04-25 | BN118: 2026-04-25 | BO118: 2026-04-23 | BP118: 2026-04-27 | BQ118: 27.5 | BR118: 2026-04-25 | BS118: 2027-04-25 | BT118: 2027-04-22 | BU118: 2027-04-26 | BV118: 27.5 | BW118: 2027-04-25 | BX118: 2028-04-25 | BY118: 2028-04-21 | BZ118: 2028-04-25 | CA118: 27.5 | CB118: - | CC118: - | CD118: - | CE118: - | CF118: -
A119: WS0429 | B119: PL0000105391 | C119: 2029-04-25 | D119: 0.0575 | E119: 2008-04-25 | F119: 2009-04-25 | G119: 2009-04-22 | H119: 2009-04-27 | I119: 57.5 | J119: 2009-04-25 | K119: 2010-04-25 | L119: 2010-04-21 | M119: 2010-04-26 | N119: 57.5 | O119: 2010-04-25 | P119: 2011-04-25 | Q119: 2011-04-20 | R119: 2011-04-26 | S119: 57.5 | T119: 2011-04-25 | U119: 2012-04-25 | V119: 2012-04-20 | W119: 2012-04-25 | X119: 57.5 | Y119: 2012-04-25 | Z119: 2013-04-25 | AA119: 2013-04-22 | AB119: 2013-04-25 | AC119: 57.5 | AD119: 2013-04-25 | AE119: 2014-04-25 | AF119: 2014-04-22 | AG119: 2014-04-25 | AH119: 57.5 | AI119: 2014-04-25 | AJ119: 2015-04-25 | AK119: 2015-04-22 | AL119: 2015-04-27 | AM119: 57.5 | AN119: 2015-04-25 | AO119: 2016-04-25 | AP119: 2016-04-20 | AQ119: 2016-04-25 | AR119: 57.5 | AS119: 2016-04-25 | AT119: 2017-04-25 | AU119: 2017-04-20 | AV119: 2017-04-25 | AW119: 57.5 | AX119: 2017-04-25 | AY119: 2018-04-25 | AZ119: 2018-04-20 | BA119: 2018-04-25 | BB119: 57.5 | BC119: 2018-04-25 | BD119: 2019-04-25 | BE119: 2019-04-19 | BF119: 2019-04-25 | BG119: 57.5 | BH119: 2019-04-25 | BI119: 2020-04-25 | BJ119: 2020-04-22 | BK119: 2020-04-27 | BL119: 57.5 | BM119: 2020-04-25 | BN119: 2021-04-25 | BO119: 2021-04-21 | BP119: 2021-04-26 | BQ119: 57.5 | BR119: 2021-04-25 | BS119: 2022-04-25 | BT119: 2022-04-20 | BU119: 2022-04-25 | BV119: 57.5 | BW119: 2022-04-25 | BX119: 2023-04-25 | BY119: 2023-04-20 | BZ119: 2023-04-25 | CA119: 57.5 | CB119: 2023-04-25 | CC119: 2024-04-25 | CD119: 2024-04-22 | CE119: 2024-04-25 | CF119: 57.5 | CG119: 2024-04-25 | CH119: 2025-04-25 | CI119: 2025-04-22 | CJ119: 2025-04-25 | CK119: 57.5 | CL119: 2025-04-25 | CM119: 2026-04-25 | CN119: 2026-04-22 | CO119: 2026-04-27 | CP119: 57.5 | CQ119: 2026-04-25 | CR119: 2027-04-25 | CS119: 2027-04-21 | CT119: 2027-04-26 | CU119: 57.5 | CV119: 2027-04-25 | CW119: 2028-04-25 | CX119: 2028-04-20 | CY119: 2028-04-25 | CZ119: 57.5 | DA119: 2028-04-25 | DB119: 2029-04-25 | DC119: 2029-04-20 | DD119: 2029-04-25 | DE119: 57.5 | DF119: - | DG119: - | DH119: - | DI119: - | DJ119: - | DK119: - | DL119: - | DM119: - | DN119: - | DO119: - | DP119: - | DQ119: - | DR119: - | DS119: - | DT119: - | DU119: - | DV119: - | DW119: - | DX119: - | DY119: - | DZ119: - | EA119: - | EB119: - | EC119: - | ED119: - | EE119: - | EF119: - | EG119: - | EH119: - | EI119: - | EJ119: - | EK119: - | EL119: - | EM119: - | EN119: - | EO119: - | EP119: - | EQ119: - | ER119: - | ES119: - | ET119: - | EU119: - | EV119: - | EW119: - | EX119: -
A120: WS0437 | B120: PL0000104857 | C120: 2037-04-25 | D120: 0.05 | E120: 2007-04-25 | F120: 2008-04-25 | G120: 2008-04-22 | H120: 2008-04-25 | I120: 50 | J120: 2008-04-25 | K120: 2009-04-25 | L120: 2009-04-22 | M120: 2009-04-27 | N120: 50 | O120: 2009-04-25 | P120: 2010-04-25 | Q120: 2010-04-21 | R120: 2010-04-26 | S120: 50 | T120: 2010-04-25 | U120: 2011-04-25 | V120: 2011-04-20 | W120: 2011-04-26 | X120: 50 | Y120: 2011-04-25 | Z120: 2012-04-25 | AA120: 2012-04-20 | AB120: 2012-04-25 | AC120: 50 | AD120: 2012-04-25 | AE120: 2013-04-25 | AF120: 2013-04-22 | AG120: 2013-04-25 | AH120: 50 | AI120: 2013-04-25 | AJ120: 2014-04-25 | AK120: 2014-04-22 | AL120: 2014-04-25 | AM120: 50 | AN120: 2014-04-25 | AO120: 2015-04-25 | AP120: 2015-04-22 | AQ120: 2015-04-27 | AR120: 50 | AS120: 2015-04-25 | AT120: 2016-04-25 | AU120: 2016-04-20 | AV120: 2016-04-25 | AW120: 50 | AX120: 2016-04-25 | AY120: 2017-04-25 | AZ120: 2017-04-20 | BA120: 2017-04-25 | BB120: 50 | BC120: 2017-04-25 | BD120: 2018-04-25 | BE120: 2018-04-20 | BF120: 2018-04-25 | BG120: 50 | BH120: 2018-04-25 | BI120: 2019-04-25 | BJ120: 2019-04-19 | BK120: 2019-04-25 | BL120: 50 | BM120: 2019-04-25 | BN120: 2020-04-25 | BO120: 2020-04-22 | BP120: 2020-04-27 | BQ120: 50 | BR120: 2020-04-25 | BS120: 2021-04-25 | BT120: 2021-04-21 | BU120: 2021-04-26 | BV120: 50 | BW120: 2021-04-25 | BX120: 2022-04-25 | BY120: 2022-04-20 | BZ120: 2022-04-25 | CA120: 50 | CB120: 2022-04-25 | CC120: 2023-04-25 | CD120: 2023-04-20 | CE120: 2023-04-25 | CF120: 50 | CG120: 2023-04-25 | CH120: 2024-04-25 | CI120: 2024-04-22 | CJ120: 2024-04-25 | CK120: 50 | CL120: 2024-04-25 | CM120: 2025-04-25 | CN120: 2025-04-22 | CO120: 2025-04-25 | CP120: 50 | CQ120: 2025-04-25 | CR120: 2026-04-25 | CS120: 2026-04-22 | CT120: 2026-04-27 | CU120: 50 | CV120: 2026-04-25 | CW120: 2027-04-25 | CX120: 2027-04-21 | CY120: 2027-04-26 | CZ120: 50 | DA120: 2027-04-25 | DB120: 2028-04-25 | DC120: 2028-04-20 | DD120: 2028-04-25 | DE120: 50 | DF120: 2028-04-25 | DG120: 2029-04-25 | DH120: 2029-04-20 | DI120: 2029-04-25 | DJ120: 50 | DK120: 2029-04-25 | DL120: 2030-04-25 | DM120: 2030-04-19 | DN120: 2030-04-25 | DO120: 50 | DP120: 2030-04-25 | DQ120: 2031-04-25 | DR120: 2031-04-22 | DS120: 2031-04-25 | DT120: 50 | DU120: 2031-04-25 | DV120: 2032-04-25 | DW120: 2032-04-21 | DX120: 2032-04-26 | DY120: 50 | DZ120: 2032-04-25 | EA120: 2033-04-25 | EB120: 2033-04-20 | EC120: 2033-04-25 | ED120: 50 | EE120: 2033-04-25 | EF120: 2034-04-25 | EG120: 2034-04-20 | EH120: 2034-04-25 | EI120: 50 | EJ120: 2034-04-25 | EK120: 2035-04-25 | EL120: 2035-04-20 | EM120: 2035-04-25 | EN120: 50 | EO120: 2035-04-25 | EP120: 2036-04-25 | EQ120: 2036-04-22 | ER120: 2036-04-25 | ES120: 50 | ET120: 2036-04-25 | EU120: 2037-04-25 | EV120: 2037-04-22 | EW120: 2037-04-27 | EX120: 50 | EY120: - | EZ120: - | FA120: - | FB120: - | FC120: -
A121: WS0447 | B121: PL0000109765 | C121: 2047-04-25 | D121: 0.04 | E121: 2016-04-25 | F121: 2017-04-25 | G121: 2017-04-21 | H121: 2017-04-25 | I121: 40 | J121: 2017-04-25 | K121: 2018-04-25 | L121: 2018-04-23 | M121: 2018-04-25 | N121: 40 | O121: 2018-04-25 | P121: 2019-04-25 | Q121: 2019-04-23 | R121: 2019-04-25 | S121: 40 | T121: 2019-04-25 | U121: 2020-04-25 | V121: 2020-04-23 | W121: 2020-04-27 | X121: 40 | Y121: 2020-04-25 | Z121: 2021-04-25 | AA121: 2021-04-22 | AB121: 2021-04-26 | AC121: 40 | AD121: 2021-04-25 | AE121: 2022-04-25 | AF121: 2022-04-21 | AG121: 2022-04-25 | AH121: 40 | AI121: 2022-04-25 | AJ121: 2023-04-25 | AK121: 2023-04-21 | AL121: 2023-04-25 | AM121: 40 | AN121: 2023-04-25 | AO121: 2024-04-25 | AP121: 2024-04-23 | AQ121: 2024-04-25 | AR121: 40 | AS121: 2024-04-25 | AT121: 2025-04-25 | AU121: 2025-04-23 | AV121: 2025-04-25 | AW121: 40 | AX121: 2025-04-25 | AY121: 2026-04-25 | AZ121: 2026-04-23 | BA121: 2026-04-27 | BB121: 40 | BC121: 2026-04-25 | BD121: 2027-04-25 | BE121: 2027-04-22 | BF121: 2027-04-26 | BG121: 40 | BH121: 2027-04-25 | BI121: 2028-04-25 | BJ121: 2028-04-21 | BK121: 2028-04-25 | BL121: 40 | BM121: 2028-04-25 | BN121: 2029-04-25 | BO121: 2029-04-23 | BP121: 2029-04-25 | BQ121: 40 | BR121: 2029-04-25 | BS121: 2030-04-25 | BT121: 2030-04-23 | BU121: 2030-04-25 | BV121: 40 | BW121: 2030-04-25 | BX121: 2031-04-25 | BY121: 2031-04-23 | BZ121: 2031-04-25 | CA121: 40 | CB121: 2031-04-25 | CC121: 2032-04-25 | CD121: 2032-04-22 | CE121: 2032-04-26 | CF121: 40 | CG121: 2032-04-25 | CH121: 2033-04-25 | CI121: 2033-04-21 | CJ121: 2033-04-25 | CK121: 40 | CL121: 2033-04-25 | CM121: 2034-04-25 | CN121: 2034-04-21 | CO121: 2034-04-25 | CP121: 40 | CQ121: 2034-04-25 | CR121: 2035-04-25 | CS121: 2035-04-23 | CT121: 2035-04-25 | CU121: 40 | CV121: 2035-04-25 | CW121: 2036-04-25 | CX121: 2036-04-23 | CY121: 2036-04-25 | CZ121: 40 | DA121: 2036-04-25 | DB121: 2037-04-25 | DC121: 2037-04-23 | DD121: 2037-04-27 | DE121: 40 | DF121: 2037-04-25 | DG121: 2038-04-25 | DH121: 2038-04-22 | DI121: 2038-04-27 | DJ121: 40 | DK121: 2038-04-25 | DL121: 2039-04-25 | DM121: 2039-04-21 | DN121: 2039-04-25 | DO121: 40 | DP121: 2039-04-25 | DQ121: 2040-04-25 | DR121: 2040-04-23 | DS121: 2040-04-25 | DT121: 40 | DU121: 2040-04-25 | DV121: 2041-04-25 | DW121: 2041-04-23 | DX121: 2041-04-25 | DY121: 40 | DZ121: 2041-04-25 | EA121: 2042-04-25 | EB121: 2042-04-23 | EC121: 2042-04-25 | ED121: 40 | EE121: 2042-04-25 | EF121: 2043-04-25 | EG121: 2043-04-23 | EH121: 2043-04-27 | EI121: 40 | EJ121: 2043-04-25 | EK121: 2044-04-25 | EL121: 2044-04-21 | EM121: 2044-04-25 | EN121: 40 | EO121: 2044-04-25 | EP121: 2045-04-25 | EQ121: 2045-04-21 | ER121: 2045-04-25 | ES121: 40 | ET121: 2045-04-25 | EU121: 2046-04-25 | EV121: 2046-04-23 | EW121: 2046-04-25 | EX121: 40 | EY121: 2046-04-25 | EZ121: 2047-04-25 | FA121: 2047-04-23 | FB121: 2047-04-25 | FC121: 40

Sheet Zmienne
A1: Seria | B1: Kod ISIN | C1: Wykup | D1: Kupon #01 | E1: Kupon #01 | F1: Kupon #01 | G1: Kupon #01 | H1: Kupon #01 | I1: Kupon #01 | J1: Kupon #02 | K1: Kupon #02 | L1: Kupon #02 | M1: Kupon #02 | N1: Kupon #02 | O1: Kupon #02 | P1: Kupon #03 | Q1: Kupon #03 | R1: Kupon #03 | S1: Kupon #03 | T1: Kupon #03 | U1: Kupon #03 | V1: Kupon #04 | W1: Kupon #04 | X1: Kupon #04 | Y1: Kupon #04 | Z1: Kupon #04 | AA1: Kupon #04 | AB1: Kupon #05 | AC1: Kupon #05 | AD1: Kupon #05 | AE1: Kupon #05 | AF1: Kupon #05 | AG1: Kupon #05 | AH1: Kupon #06 | AI1: Kupon #06 | AJ1: Kupon #06 | AK1: Kupon #06 | AL1: Kupon #06 | AM1: Kupon #06 | AN1: Kupon #07 | AO1: Kupon #07 | AP1: Kupon #07 | AQ1: Kupon #07 | AR1: Kupon #07 | AS1: Kupon #07 | AT1: Kupon #08 | AU1: Kupon #08 | AV1: Kupon #08 | AW1: Kupon #08 | AX1: Kupon #08 | AY1: Kupon #08 | AZ1: Kupon #09 | BA1: Kupon #09 | BB1: Kupon #09 | BC1: Kupon #09 | BD1: Kupon #09 | BE1: Kupon #09 | BF1: Kupon #10 | BG1: Kupon #10 | BH1: Kupon #10 | BI1: Kupon #10 | BJ1: Kupon #10 | BK1: Kupon #10 | BL1: Kupon #11 | BM1: Kupon #11 | BN1: Kupon #11 | BO1: Kupon #11 | BP1: Kupon #11 | BQ1: Kupon #11 | BR1: Kupon #12 | BS1: Kupon #12 | BT1: Kupon #12 | BU1: Kupon #12 | BV1: Kupon #12 | BW1: Kupon #12 | BX1: Kupon #13 | BY1: Kupon #13 | BZ1: Kupon #13 | CA1: Kupon #13 | CB1: Kupon #13 | CC1: Kupon #13 | CD1: Kupon #14 | CE1: Kupon #14 | CF1: Kupon #14 | CG1: Kupon #14 | CH1: Kupon #14 | CI1: Kupon #14 | CJ1: Kupon #15 | CK1: Kupon #15 | CL1: Kupon #15 | CM1: Kupon #15 | CN1: Kupon #15 | CO1: Kupon #15 | CP1: Kupon #16 | CQ1: Kupon #16 | CR1: Kupon #16 | CS1: Kupon #16 | CT1: Kupon #16 | CU1: Kupon #16 | CV1: Kupon #17 | CW1: Kupon #17 | CX1: Kupon #17 | CY1: Kupon #17 | CZ1: Kupon #17 | DA1: Kupon #17 | DB1: Kupon #18 | DC1: Kupon #18 | DD1: Kupon #18 | DE1: Kupon #18 | DF1: Kupon #18 | DG1: Kupon #18 | DH1: Kupon #19 | DI1: Kupon #19 | DJ1: Kupon #19 | DK1: Kupon #19 | DL1: Kupon #19 | DM1: Kupon #19 | DN1: Kupon #20 | DO1: Kupon #20 | DP1: Kupon #20 | DQ1: Kupon #20 | DR1: Kupon #20 | DS1: Kupon #20 | DT1: Kupon #21 | DU1: Kupon #21 | DV1: Kupon #21 | DW1: Kupon #21 | DX1: Kupon #21 | DY1: Kupon #21 | DZ1: Kupon #22 | EA1: Kupon #22 | EB1: Kupon #22 | EC1: Kupon #22 | ED1: Kupon #22 | EE1: Kupon #22
D2: Początek okresu | E2: Koniec okresu | F2: Dzień ustalenia praw | G2: Data wymagalności | H2: Oprocentowanie | I2: Odsetki (PLN) | J2: Początek okresu | K2: Koniec okresu | L2: Dzień ustalenia praw | M2: Data wymagalności | N2: Oprocentowanie | O2: Odsetki (PLN) | P2: Początek okresu | Q2: Koniec okresu | R2: Dzień ustalenia praw | S2: Data wymagalności | T2: Oprocentowanie | U2: Odsetki (PLN) | V2: Początek okresu | W2: Koniec okresu | X2: Dzień ustalenia praw | Y2: Data wymagalności | Z2: Oprocentowanie | AA2: Odsetki (PLN) | AB2: Początek okresu | AC2: Koniec okresu | AD2: Dzień ustalenia praw | AE2: Data wymagalności | AF2: Oprocentowanie | AG2: Odsetki (PLN) | AH2: Początek okresu | AI2: Koniec okresu | AJ2: Dzień ustalenia praw | AK2: Data wymagalności | AL2: Oprocentowanie | AM2: Odsetki (PLN) | AN2: Początek okresu | AO2: Koniec okresu | AP2: Dzień ustalenia praw | AQ2: Data wymagalności | AR2: Oprocentowanie | AS2: Odsetki (PLN) | AT2: Początek okresu | AU2: Koniec okresu | AV2: Dzień ustalenia praw | AW2: Data wymagalności | AX2: Oprocentowanie | AY2: Odsetki (PLN) | AZ2: Początek okresu | BA2: Koniec okresu | BB2: Dzień ustalenia praw | BC2: Data wymagalności | BD2: Oprocentowanie | BE2: Odsetki (PLN) | BF2: Początek okresu | BG2: Koniec okresu | BH2: Dzień ustalenia praw | BI2: Data wymagalności | BJ2: Oprocentowanie | BK2: Odsetki (PLN) | BL2: Początek okresu | BM2: Koniec okresu | BN2: Dzień ustalenia praw | BO2: Data wymagalności | BP2: Oprocentowanie | BQ2: Odsetki (PLN) | BR2: Początek okresu | BS2: Koniec okresu | BT2: Dzień ustalenia praw | BU2: Data wymagalności | BV2: Oprocentowanie | BW2: Odsetki (PLN) | BX2: Początek okresu | BY2: Koniec okresu | BZ2: Dzień ustalenia praw | CA2: Data wymagalności | CB2: Oprocentowanie | CC2: Odsetki (PLN) | CD2: Początek okresu | CE2: Koniec okresu | CF2: Dzień ustalenia praw | CG2: Data wymagalności | CH2: Oprocentowanie | CI2: Odsetki (PLN) | CJ2: Początek okresu | CK2: Koniec okresu | CL2: Dzień ustalenia praw | CM2: Data wymagalności | CN2: Oprocentowanie | CO2: Odsetki (PLN) | CP2: Początek okresu | CQ2: Koniec okresu | CR2: Dzień ustalenia praw | CS2: Data wymagalności | CT2: Oprocentowanie | CU2: Odsetki (PLN) | CV2: Początek okresu | CW2: Koniec okresu | CX2: Dzień ustalenia praw | CY2: Data wymagalności | CZ2: Oprocentowanie | DA2: Odsetki (PLN) | DB2: Początek okresu | DC2: Koniec okresu | DD2: Dzień ustalenia praw | DE2: Data wymagalności | DF2: Oprocentowanie | DG2: Odsetki (PLN) | DH2: Początek okresu | DI2: Koniec okresu | DJ2: Dzień ustalenia praw | DK2: Data wymagalności | DL2: Oprocentowanie | DM2: Odsetki (PLN) | DN2: Początek okresu | DO2: Koniec okresu | DP2: Dzień ustalenia praw | DQ2: Data wymagalności | DR2: Oprocentowanie | DS2: Odsetki (PLN) | DT2: Początek okresu | DU2: Koniec okresu | DV2: Dzień ustalenia praw | DW2: Data wymagalności | DX2: Oprocentowanie | DY2: Odsetki (PLN) | DZ2: Początek okresu | EA2: Koniec okresu | EB2: Dzień ustalenia praw | EC2: Data wymagalności | ED2: Oprocentowanie | EE2: Odsetki (PLN)
A3: PPT1__ | B3: PL0000020016 | C3: 1995-08-03 | D3: 1992-08-03 | E3: 1992-11-03 | F3: 1992-11-03 | G3: 1992-11-18 | H3: 0.47223 | I3: 12.07 | J3: 1992-11-03 | K3: 1993-02-03 | L3: 1993-02-03 | M3: 1993-02-18 | N3: 0.45925 | O3: 11.74 | P3: 1993-02-03 | Q3: 1993-05-03 | R3: 1993-05-03 | S3: 1993-05-18 | T3: 0.41745 | U3: 10.32 | V3: 1993-05-03 | W3: 1993-08-03 | X3: 1993-08-03 | Y3: 1993-08-18 | Z3: 0.34276 | AA3: 8.76 | AB3: 1993-08-03 | AC3: 1993-11-03 | AD3: 1993-11-03 | AE3: 1993-11-18 | AF3: 0.36597 | AG3: 9.35 | AH3: 1993-11-03 | AI3: 1994-02-03 | AJ3: 1994-02-03 | AK3: 1994-02-18 | AL3: 0.36696 | AM3: 9.38 | AN3: 1994-02-03 | AO3: 1994-05-03 | AP3: 1994-05-03 | AQ3: 1994-05-18 | AR3: 0.36916 | AS3: 9.13 | AT3: 1994-05-03 | AU3: 1994-08-03 | AV3: 1994-08-03 | AW3: 1994-08-18 | AX3: 0.32978 | AY3: 8.43 | AZ3: 1994-08-03 | BA3: 1994-11-03 | BB3: 1994-11-03 | BC3: 1994-11-18 | BD3: 0.30591 | BE3: 7.82 | BF3: 1994-11-03 | BG3: 1995-02-03 | BH3: 1995-02-03 | BI3: 1995-02-18 | BJ3: 0.29634 | BK3: 7.57 | BL3: 1995-02-03 | BM3: 1995-05-03 | BN3: 1995-05-03 | BO3: 1995-05-18 | BP3: 0.29656 | BQ3: 7.33 | BR3: 1995-05-03 | BS3: 1995-08-03 | BT3: 1995-08-03 | BU3: 1995-08-04 | BV3: 0.30118 | BW3: 7.7
A4: PPT2__ | B4: PL0000020024 | C4: 1995-11-02 | D4: 1992-11-02 | E4: 1993-02-02 | F4: 1993-02-02 | G4: 1993-02-17 | H4: 0.46123 | I4: 11.79 | J4: 1993-02-02 | K4: 1993-05-02 | L4: 1993-05-02 | M4: 1993-05-17 | N4: 0.41745 | O4: 10.32 | P4: 1993-05-02 | Q4: 1993-08-02 | R4: 1993-08-02 | S4: 1993-08-17 | T4: 0.34276 | U4: 8.76 | V4: 1993-08-02 | W4: 1993-11-02 | X4: 1993-11-02 | Y4: 1993-11-17 | Z4: 0.36553 | AA4: 9.34 | AB4: 1993-11-02 | AC4: 1994-02-02 | AD4: 1994-02-02 | AE4: 1994-02-17 | AF4: 0.36707 | AG4: 9.38 | AH4: 1994-02-02 | AI4: 1994-05-02 | AJ4: 1994-05-02 | AK4: 1994-05-17 | AL4: 0.36916 | AM4: 9.13 | AN4: 1994-05-02 | AO4: 1994-08-02 | AP4: 1994-08-02 | AQ4: 1994-08-17 | AR4: 0.32978 | AS4: 8.43 | AT4: 1994-08-02 | AU4: 1994-11-02 | AV4: 1994-11-02 | AW4: 1994-11-17 | AX4: 0.30591 | AY4: 7.82 | AZ4: 1994-11-02 | BA4: 1995-02-02 | BB4: 1995-02-02 | BC4: 1995-02-17 | BD4: 0.29568 | BE4: 7.56 | BF4: 1995-02-02 | BG4: 1995-05-02 | BH4: 1995-05-02 | BI4: 1995-05-17 | BJ4: 0.29656 | BK4: 7.33 | BL4: 1995-05-02 | BM4: 1995-08-02 | BN4: 1995-08-02 | BO4: 1995-08-17 | BP4: 0.30118 | BQ4: 7.7 | BR4: 1995-08-02 | BS4: 1995-11-02 | BT4: 1995-11-02 | BU4: 1995-11-03 | BV4: 0.27676 | BW4: 7.07
A5: PPT3__ | B5: PL0000020032 | C5: 1996-02-03 | D5: 1993-02-03 | E5: 1993-05-03 | F5: 1993-05-03 | G5: 1993-05-18 | H5: 0.43164 | I5: 10.67 | J5: 1993-05-03 | K5: 1993-08-03 | L5: 1993-08-03 | M5: 1993-08-18 | N5: 0.34276 | O5: 8.76 | P5: 1993-08-03 | Q5: 1993-11-03 | R5: 1993-11-03 | S5: 1993-11-18 | T5: 0.36597 | U5: 9.35 | V5: 1993-11-03 | W5: 1994-02-03 | X5: 1994-02-03 | Y5: 1994-02-18 | Z5: 0.36696 | AA5: 9.38 | AB5: 1994-02-03 | AC5: 1994-05-03 | AD5: 1994-05-03 | AE5: 1994-05-18 | AF5: 0.36916 | AG5: 9.13 | AH5: 1994-05-03 | AI5: 1994-08-03 | AJ5: 1994-08-03 | AK5: 1994-08-18 | AL5: 0.32978 | AM5: 8.43 | AN5: 1994-08-03 | AO5: 1994-11-03 | AP5: 1994-11-03 | AQ5: 1994-11-18 | AR5: 0.30591 | AS5: 7.82 | AT5: 1994-11-03 | AU5: 1995-02-03 | AV5: 1995-02-03 | AW5: 1995-02-20 | AX5: 0.29634 | AY5: 7.57 | AZ5: 1995-02-03 | BA5: 1995-05-03 | BB5: 1995-05-03 | BC5: 1995-05-18 | BD5: 0.29656 | BE5: 7.33 | BF5: 1995-05-03 | BG5: 1995-08-03 | BH5: 1995-08-03 | BI5: 1995-08-18 | BJ5: 0.30118 | BK5: 7.7 | BL5: 1995-08-03 | BM5: 1995-11-03 | BN5: 1995-11-03 | BO5: 1995-11-20 | BP5: 0.27676 | BQ5: 7.07 | BR5: 1995-11-03 | BS5: 1996-02-03 | BT5: 1996-02-03 | BU5: 1996-02-05 | BV5: 0.26642 | BW5: 6.81
A6: PPT4__ | B6: PL0000100087 | C6: 1996-05-04 | D6: 1993-05-04 | E6: 1993-08-04 | F6: 1993-08-04 | G6: 1993-08-19 | H6: 0.34276 | I6: 8.76 | J6: 1993-08-04 | K6: 1993-11-04 | L6: 1993-11-04 | M6: 1993-11-19 | N6: 0.36597 | O6: 9.35 | P6: 1993-11-04 | Q6: 1994-02-04 | R6: 1994-02-04 | S6: 1994-02-21 | T6: 0.36696 | U6: 9.38 | V6: 1994-02-04 | W6: 1994-05-04 | X6: 1994-05-04 | Y6: 1994-05-19 | Z6: 0.36916 | AA6: 9.13 | AB6: 1994-05-04 | AC6: 1994-08-04 | AD6: 1994-08-04 | AE6: 1994-08-19 | AF6: 0.32978 | AG6: 8.43 | AH6: 1994-08-04 | AI6: 1994-11-04 | AJ6: 1994-11-04 | AK6: 1994-11-21 | AL6: 0.30591 | AM6: 7.82 | AN6: 1994-11-04 | AO6: 1995-02-04 | AP6: 1995-02-04 | AQ6: 1995-02-20 | AR6: 0.29634 | AS6: 7.57 | AT6: 1995-02-04 | AU6: 1995-05-04 | AV6: 1995-05-04 | AW6: 1995-05-19 | AX6: 0.29656 | AY6: 7.33 | AZ6: 1995-05-04 | BA6: 1995-08-04 | BB6: 1995-08-04 | BC6: 1995-08-21 | BD6: 0.30118 | BE6: 7.7 | BF6: 1995-08-04 | BG6: 1995-11-04 | BH6: 1995-11-04 | BI6: 1995-11-20 | BJ6: 0.27676 | BK6: 7.07 | BL6: 1995-11-04 | BM6: 1996-02-04 | BN6: 1996-02-04 | BO6: 1996-02-19 | BP6: 0.26642 | BQ6: 6.81 | BR6: 1996-02-04 | BS6: 1996-05-04 | BT6: 1996-05-04 | BU6: 1996-05-06 | BV6: 0.25047 | BW6: 6.26
A7: PPT5__ | B7: PL0000100137 | C7: 1996-08-05 | D7: 1993-08-04 | E7: 1993-11-04 | F7: 1993-11-04 | G7: 1993-11-19 | H7: 0.36553 | I7: 9.34 | J7: 1993-11-04 | K7: 1994-02-04 | L7: 1994-02-04 | M7: 1994-02-21 | N7: 0.36696 | O7: 9.38 | P7: 1994-02-04 | Q7: 1994-05-04 | R7: 1994-05-04 | S7: 1994-05-19 | T7: 0.36916 | U7: 9.13 | V7: 1994-05-04 | W7: 1994-08-04 | X7: 1994-08-04 | Y7: 1994-08-19 | Z7: 0.32978 | AA7: 8.43 | AB7: 1994-08-04 | AC7: 1994-11-04 | AD7: 1994-11-04 | AE7: 1994-11-21 | AF7: 0.30591 | AG7: 7.82 | AH7: 1994-11-04 | AI7: 1995-02-04 | AJ7: 1995-02-04 | AK7: 1995-02-20 | AL7: 0.29634 | AM7: 7.57 | AN7: 1995-02-04 | AO7: 1995-05-04 | AP7: 1995-05-04 | AQ7: 1995-05-19 | AR7: 0.29656 | AS7: 7.33 | AT7: 1995-05-04 | AU7: 1995-08-04 | AV7: 1995-08-04 | AW7: 1995-08-21 | AX7: 0.30118 | AY7: 7.7 | AZ7: 1995-08-04 | BA7: 1995-11-04 | BB7: 1995-11-04 | BC7: 1995-11-20 | BD7: 0.27676 | BE7: 7.07 | BF7: 1995-11-04 | BG7: 1996-02-04 | BH7: 1996-02-04 | BI7: 1996-02-19 | BJ7: 0.26642 | BK7: 6.81 | BL7: 1996-02-04 | BM7: 1996-05-04 | BN7: 1996-05-04 | BO7: 1996-05-20 | BP7: 0.2505 | BQ7: 6.26 | BR7: 1996-05-04 | BS7: 1996-08-04 | BT7: 1996-07-22 | BU7: 1996-08-05 | BV7: 0.2357 | BW7: 6.02
A8: PPT6__ | B8: PL0000100145 | C8: 1996-11-05 | D8: 1993-11-04 | E8: 1994-02-04 | F8: 1994-02-04 | G8: 1994-02-21 | H8: 0.36707 | I8: 9.38 | J8: 1994-02-04 | K8: 1994-05-04 | L8: 1994-05-04 | M8: 1994-05-19 | N8: 0.36916 | O8: 9.13 | P8: 1994-05-04 | Q8: 1994-08-04 | R8: 1994-08-04 | S8: 1994-08-19 | T8: 0.32978 | U8: 8.43 | V8: 1994-08-04 | W8: 1994-11-04 | X8: 1994-11-04 | Y8: 1994-11-21 | Z8: 0.30591 | AA8: 7.82 | AB8: 1994-11-04 | AC8: 1995-02-04 | AD8: 1995-02-04 | AE8: 1995-02-20 | AF8: 0.29634 | AG8: 7.57 | AH8: 1995-02-04 | AI8: 1995-05-04 | AJ8: 1995-05-04 | AK8: 1995-05-19 | AL8: 0.29656 | AM8: 7.33 | AN8: 1995-05-04 | AO8: 1995-08-04 | AP8: 1995-08-04 | AQ8: 1995-08-21 | AR8: 0.30118 | AS8: 7.7 | AT8: 1995-08-04 | AU8: 1995-11-04 | AV8: 1995-11-04 | AW8: 1995-11-20 | AX8: 0.27676 | AY8: 7.07 | AZ8: 1995-11-04 | BA8: 1996-02-04 | BB8: 1996-02-04 | BC8: 1996-02-19 | BD8: 0.26642 | BE8: 6.81 | BF8: 1996-02-04 | BG8: 1996-05-04 | BH8: 1996-05-04 | BI8: 1996-05-20 | BJ8: 0.25047 | BK8: 6.26 | BL8: 1996-05-04 | BM8: 1996-08-04 | BN8: 1996-08-04 | BO8: 1996-08-19 | BP8: 0.2357 | BQ8: 6.02 | BR8: 1996-08-04 | BS8: 1996-11-04 | BT8: 1996-10-28 | BU8: 1996-11-05 | BV8: 0.2196 | BW8: 5.61
A9: PPT7__ | B9: PL0000100152 | C9: 1997-02-05 | D9: 1994-02-04 | E9: 1994-05-04 | F9: 1994-05-04 | G9: 1994-05-19 | H9: 0.37037 | I9: 9.16 | J9: 1994-05-04 | K9: 1994-08-04 | L9: 1994-08-04 | M9: 1994-08-19 | N9: 0.32978 | O9: 8.43 | P9: 1994-08-04 | Q9: 1994-11-04 | R9: 1994-11-04 | S9: 1994-11-21 | T9: 0.30591 | U9: 7.82 | V9: 1994-11-04 | W9: 1995-02-04 | X9: 1995-02-04 | Y9: 1995-02-20 | Z9: 0.29634 | AA9: 7.57 | AB9: 1995-02-04 | AC9: 1995-05-04 | AD9: 1995-05-04 | AE9: 1995-05-19 | AF9: 0.29656 | AG9: 7.33 | AH9: 1995-05-04 | AI9: 1995-08-04 | AJ9: 1995-08-04 | AK9: 1995-08-21 | AL9: 0.30118 | AM9: 7.7 | AN9: 1995-08-04 | AO9: 1995-11-04 | AP9: 1995-11-04 | AQ9: 1995-11-20 | AR9: 0.27676 | AS9: 7.07 | AT9: 1995-11-04 | AU9: 1996-02-04 | AV9: 1996-02-04 | AW9: 1996-02-19 | AX9: 0.26642 | AY9: 6.81 | AZ9: 1996-02-04 | BA9: 1996-05-04 | BB9: 1996-05-04 | BC9: 1996-05-20 | BD9: 0.25047 | BE9: 6.26 | BF9: 1996-05-04 | BG9: 1996-08-04 | BH9: 1996-08-04 | BI9: 1996-08-19 | BJ9: 0.2357 | BK9: 6.02 | BL9: 1996-08-04 | BM9: 1996-11-04 | BN9: 1996-11-04 | BO9: 1996-11-19 | BP9: 0.2196 | BQ9: 5.61 | BR9: 1996-11-04 | BS9: 1997-02-04 | BT9: 1997-01-27 | BU9: 1997-02-05 | BV9: 0.2041 | BW9: 5.22
A10: PPT8__ | B10: PL0000100160 | C10: 1997-05-05 | D10: 1994-05-04 | E10: 1994-08-04 | F10: 1994-08-04 | G10: 1994-08-19 | H10: 0.32978 | I10: 8.43 | J10: 1994-08-04 | K10: 1994-11-04 | L10: 1994-11-04 | M10: 1994-11-21 | N10: 0.30591 | O10: 7.82 | P10: 1994-11-04 | Q10: 1995-02-04 | R10: 1995-02-04 | S10: 1995-02-20 | T10: 0.29634 | U10: 7.57 | V10: 1995-02-04 | W10: 1995-05-04 | X10: 1995-05-04 | Y10: 1995-05-19 | Z10: 0.29656 | AA10: 7.33 | AB10: 1995-05-04 | AC10: 1995-08-04 | AD10: 1995-08-04 | AE10: 1995-08-21 | AF10: 0.30118 | AG10: 7.7 | AH10: 1995-08-04 | AI10: 1995-11-04 | AJ10: 1995-11-04 | AK10: 1995-11-20 | AL10: 0.27676 | AM10: 7.07 | AN10: 1995-11-04 | AO10: 1996-02-04 | AP10: 1996-02-04 | AQ10: 1996-02-19 | AR10: 0.26642 | AS10: 6.81 | AT10: 1996-02-04 | AU10: 1996-05-04 | AV10: 1996-05-04 | AW10: 1996-05-20 | AX10: 0.25047 | AY10: 6.26 | AZ10: 1996-05-04 | BA10: 1996-08-04 | BB10: 1996-08-04 | BC10: 1996-08-19 | BD10: 0.2357 | BE10: 6.02 | BF10: 1996-08-04 | BG10: 1996-11-04 | BH10: 1996-11-04 | BI10: 1996-11-19 | BJ10: 0.2196 | BK10: 5.61 | BL10: 1996-11-04 | BM10: 1997-02-04 | BN10: 1997-02-04 | BO10: 1997-02-19 | BP10: 0.2041 | BQ10: 5.22 | BR10: 1997-02-04 | BS10: 1997-05-04 | BT10: 1997-04-21 | BU10: 1997-05-05 | BV10: 0.2149 | BW10: 5.31
A11: TZ0897 | B11: PL0000100228 | C11: 1997-08-09 | D11: 1994-08-02 | E11: 1994-11-08 | F11: 1994-10-28 | G11: 1994-11-14 | H11: 0.309 | I11: 8.41 | J11: 1994-11-08 | K11: 1995-02-08 | L11: 1995-01-26 | M11: 1995-02-09 | N11: 0.2957 | O11: 7.56 | P11: 1995-02-08 | Q11: 1995-05-08 | R11: 1995-04-25 | S11: 1995-05-09 | T11: 0.297 | U11: 7.34 | V11: 1995-05-08 | W11: 1995-08-08 | X11: 1995-07-26 | Y11: 1995-08-09 | Z11: 0.3012 | AA11: 7.7 | AB11: 1995-08-08 | AC11: 1995-11-08 | AD11: 1995-10-26 | AE11: 1995-11-09 | AF11: 0.2768 | AG11: 7.07 | AH11: 1995-11-08 | AI11: 1996-02-08 | AJ11: 1996-01-26 | AK11: 1996-02-09 | AL11: 0.2664 | AM11: 6.81 | AN11: 1996-02-08 | AO11: 1996-05-08 | AP11: 1996-04-25 | AQ11: 1996-05-09 | AR11: 0.2562 | AS11: 6.41 | AT11: 1996-05-08 | AU11: 1996-08-08 | AV11: 1996-07-26 | AW11: 1996-08-09 | AX11: 0.2355 | AY11: 6.02 | AZ11: 1996-08-08 | BA11: 1996-11-08 | BB11: 1996-10-26 | BC11: 1996-11-12 | BD11: 0.2237 | BE11: 5.72 | BF11: 1996-11-08 | BG11: 1997-02-08 | BH11: 1997-01-26 | BI11: 1997-02-10 | BJ11: 0.2041 | BK11: 5.22 | BL11: 1997-02-08 | BM11: 1997-05-08 | BN11: 1997-04-25 | BO11: 1997-05-09 | BP11: 0.2133 | BQ11: 5.27 | BR11: 1997-05-08 | BS11: 1997-08-08 | BT11: 1997-07-26 | BU11: 1997-08-11 | BV11: 0.2394 | BW11: 6.12
A12: TZ1197 | B12: PL0000100244 | C12: 1997-11-09 | D12: 1994-11-02 | E12: 1995-02-08 | F12: 1995-01-31 | G12: 1995-02-14 | H12: 0.2957 | I12: 8.05 | J12: 1995-02-08 | K12: 1995-05-08 | L12: 1995-04-25 | M12: 1995-05-09 | N12: 0.297 | O12: 7.34 | P12: 1995-05-08 | Q12: 1995-08-08 | R12: 1995-07-26 | S12: 1995-08-09 | T12: 0.3012 | U12: 7.7 | V12: 1995-08-08 | W12: 1995-11-08 | X12: 1995-10-26 | Y12: 1995-11-09 | Z12: 0.2768 | AA12: 7.07 | AB12: 1995-11-08 | AC12: 1996-02-08 | AD12: 1996-01-26 | AE12: 1996-02-09 | AF12: 0.2664 | AG12: 6.81 | AH12: 1996-02-08 | AI12: 1996-05-08 | AJ12: 1996-04-25 | AK12: 1996-05-09 | AL12: 0.2562 | AM12: 6.41 | AN12: 1996-05-08 | AO12: 1996-08-08 | AP12: 1996-07-26 | AQ12: 1996-08-09 | AR12: 0.2355 | AS12: 6.02 | AT12: 1996-08-08 | AU12: 1996-11-08 | AV12: 1996-10-26 | AW12: 1996-11-12 | AX12: 0.2237 | AY12: 5.72 | AZ12: 1996-11-08 | BA12: 1997-02-08 | BB12: 1997-01-26 | BC12: 1997-02-10 | BD12: 0.2041 | BE12: 5.22 | BF12: 1997-02-08 | BG12: 1997-05-08 | BH12: 1997-04-25 | BI12: 1997-05-09 | BJ12: 0.2133 | BK12: 5.27 | BL12: 1997-05-08 | BM12: 1997-08-08 | BN12: 1997-07-26 | BO12: 1997-08-11 | BP12: 0.2394 | BQ12: 6.12 | BR12: 1997-08-08 | BS12: 1997-11-08 | BT12: 1997-10-26 | BU12: 1997-11-10 | BV12: 0.2364 | BW12: 6.04
A13: TZ0298 | B13: PL0000100285 | C13: 1998-02-09 | D13: 1995-02-01 | E13: 1995-05-08 | F13: 1995-04-28 | G13: 1995-05-12 | H13: 0.297 | I13: 7.92 | J13: 1995-05-08 | K13: 1995-08-08 | L13: 1995-07-26 | M13: 1995-08-09 | N13: 0.3012 | O13: 7.7 | P13: 1995-08-08 | Q13: 1995-11-08 | R13: 1995-10-26 | S13: 1995-11-09 | T13: 0.2768 | U13: 7.07 | V13: 1995-11-08 | W13: 1996-02-08 | X13: 1996-01-26 | Y13: 1996-02-09 | Z13: 0.2664 | AA13: 6.81 | AB13: 1996-02-08 | AC13: 1996-05-08 | AD13: 1996-04-25 | AE13: 1996-05-09 | AF13: 0.2562 | AG13: 6.41 | AH13: 1996-05-08 | AI13: 1996-08-08 | AJ13: 1996-07-26 | AK13: 1996-08-09 | AL13: 0.2355 | AM13: 6.02 | AN13: 1996-08-08 | AO13: 1996-11-08 | AP13: 1996-10-26 | AQ13: 1996-11-12 | AR13: 0.2237 | AS13: 5.72 | AT13: 1996-11-08 | AU13: 1997-02-08 | AV13: 1997-01-26 | AW13: 1997-02-10 | AX13: 0.2041 | AY13: 5.22 | AZ13: 1997-02-08 | BA13: 1997-05-08 | BB13: 1997-04-25 | BC13: 1997-05-09 | BD13: 0.2133 | BE13: 5.27 | BF13: 1997-05-08 | BG13: 1997-08-08 | BH13: 1997-07-26 | BI13: 1997-08-11 | BJ13: 0.2394 | BK13: 6.12 | BL13: 1997-08-08 | BM13: 1997-11-08 | BN13: 1997-10-26 | BO13: 1997-11-10 | BP13: 0.2364 | BQ13: 6.04 | BR13: 1997-11-08 | BS13: 1998-02-08 | BT13: 1998-01-26 | BU13: 1998-02-09 | BV13: 0.2516 | BW13: 6.43
A14: TZ0598 | B14: PL0000100343 | C14: 1998-05-09 | D14: 1995-05-04 | E14: 1995-08-08 | F14: 1995-07-31 | G14: 1995-08-14 | H14: 0.3012 | I14: 8.03 | J14: 1995-08-08 | K14: 1995-11-08 | L14: 1995-10-26 | M14: 1995-11-09 | N14: 0.2768 | O14: 7.07 | P14: 1995-11-08 | Q14: 1996-02-08 | R14: 1996-01-26 | S14: 1996-02-09 | T14: 0.2664 | U14: 6.81 | V14: 1996-02-08 | W14: 1996-05-08 | X14: 1996-04-25 | Y14: 1996-05-09 | Z14: 0.2562 | AA14: 6.41 | AB14: 1996-05-08 | AC14: 1996-08-08 | AD14: 1996-07-26 | AE14: 1996-08-09 | AF14: 0.2355 | AG14: 6.02 | AH14: 1996-08-08 | AI14: 1996-11-08 | AJ14: 1996-10-26 | AK14: 1996-11-12 | AL14: 0.2237 | AM14: 5.72 | AN14: 1996-11-08 | AO14: 1997-02-08 | AP14: 1997-01-26 | AQ14: 1997-02-10 | AR14: 0.2041 | AS14: 5.22 | AT14: 1997-02-08 | AU14: 1997-05-08 | AV14: 1997-04-25 | AW14: 1997-05-09 | AX14: 0.2133 | AY14: 5.27 | AZ14: 1997-05-08 | BA14: 1997-08-08 | BB14: 1997-07-26 | BC14: 1997-08-11 | BD14: 0.2394 | BE14: 6.12 | BF14: 1997-08-08 | BG14: 1997-11-08 | BH14: 1997-10-26 | BI14: 1997-11-10 | BJ14: 0.2364 | BK14: 6.04 | BL14: 1997-11-08 | BM14: 1998-02-08 | BN14: 1998-01-26 | BO14: 1998-02-09 | BP14: 0.2516 | BQ14: 6.43 | BR14: 1998-02-08 | BS14: 1998-05-08 | BT14: 1998-04-25 | BU14: 1998-05-11 | BV14: 0.2551 | BW14: 6.31
A15: TZ0898 | B15: PL0000100384 | C15: 1998-08-06 | D15: 1995-08-01 | E15: 1995-11-05 | F15: 1995-10-31 | G15: 1995-11-17 | H15: 0.27676 | I15: 7.38 | J15: 1995-11-05 | K15: 1996-02-05 | L15: 1996-01-22 | M15: 1996-02-06 | N15: 0.26642 | O15: 6.81 | P15: 1996-02-05 | Q15: 1996-05-05 | R15: 1996-04-16 | S15: 1996-05-06 | T15: 0.2562 | U15: 6.41 | V15: 1996-05-05 | W15: 1996-08-05 | X15: 1996-07-22 | Y15: 1996-08-06 | Z15: 0.2355 | AA15: 6.02 | AB15: 1996-08-05 | AC15: 1996-11-05 | AD15: 1996-10-21 | AE15: 1996-11-06 | AF15: 0.2237 | AG15: 5.72 | AH15: 1996-11-05 | AI15: 1997-02-05 | AJ15: 1997-01-22 | AK15: 1997-02-06 | AL15: 0.2041 | AM15: 5.22 | AN15: 1997-02-05 | AO15: 1997-05-05 | AP15: 1997-04-17 | AQ15: 1997-05-06 | AR15: 0.2133 | AS15: 5.27 | AT15: 1997-05-05 | AU15: 1997-08-05 | AV15: 1997-07-22 | AW15: 1997-08-06 | AX15: 0.2394 | AY15: 6.12 | AZ15: 1997-08-05 | BA15: 1997-11-05 | BB15: 1997-10-22 | BC15: 1997-11-06 | BD15: 0.2364 | BE15: 6.04 | BF15: 1997-11-05 | BG15: 1998-02-05 | BH15: 1998-01-22 | BI15: 1998-02-06 | BJ15: 0.2516 | BK15: 6.43 | BL15: 1998-02-05 | BM15: 1998-05-05 | BN15: 1998-04-20 | BO15: 1998-05-06 | BP15: 0.2551 | BQ15: 6.31 | BR15: 1998-05-05 | BS15: 1998-08-05 | BT15: 1998-07-22 | BU15: 1998-08-06 | BV15: 0.2429 | BW15: 6.21
A16: TZ1198 | B16: PL0000100426 | C16: 1998-11-06 | D16: 1995-11-02 | E16: 1996-02-05 | F16: 1996-01-31 | G16: 1996-02-16 | H16: 0.2664 | I16: 7.03 | J16: 1996-02-05 | K16: 1996-05-05 | L16: 1996-04-16 | M16: 1996-05-06 | N16: 0.2562 | O16: 6.41 | P16: 1996-05-05 | Q16: 1996-08-05 | R16: 1996-07-22 | S16: 1996-08-06 | T16: 0.2355 | U16: 6.02 | V16: 1996-08-05 | W16: 1996-11-05 | X16: 1996-10-21 | Y16: 1996-11-06 | Z16: 0.2237 | AA16: 5.72 | AB16: 1996-11-05 | AC16: 1997-02-05 | AD16: 1997-01-22 | AE16: 1997-02-06 | AF16: 0.2041 | AG16: 5.22 | AH16: 1997-02-05 | AI16: 1997-05-05 | AJ16: 1997-04-17 | AK16: 1997-05-06 | AL16: 0.2133 | AM16: 5.27 | AN16: 1997-05-05 | AO16: 1997-08-05 | AP16: 1997-07-22 | AQ16: 1997-08-06 | AR16: 0.2394 | AS16: 6.12 | AT16: 1997-08-05 | AU16: 1997-11-05 | AV16: 1997-10-22 | AW16: 1997-11-06 | AX16: 0.2364 | AY16: 6.04 | AZ16: 1997-11-05 | BA16: 1998-02-05 | BB16: 1998-01-22 | BC16: 1998-02-06 | BD16: 0.2516 | BE16: 6.43 | BF16: 1998-02-05 | BG16: 1998-05-05 | BH16: 1998-04-20 | BI16: 1998-05-06 | BJ16: 0.2551 | BK16: 6.31 | BL16: 1998-05-05 | BM16: 1998-08-05 | BN16: 1998-07-22 | BO16: 1998-08-06 | BP16: 0.2429 | BQ16: 6.21 | BR16: 1998-08-05 | BS16: 1998-11-05 | BT16: 1998-10-22 | BU16: 1998-11-06 | BV16: 0.205 | BW16: 5.24
A17: TZ0299 | B17: PL0000100475 | C17: 1999-02-06 | D17: 1996-02-01 | E17: 1996-05-05 | F17: 1996-04-30 | G17: 1996-05-21 | H17: 0.2562 | I17: 6.69 | J17: 1996-05-05 | K17: 1996-08-05 | L17: 1996-07-22 | M17: 1996-08-06 | N17: 0.2355 | O17: 6.02 | P17: 1996-08-05 | Q17: 1996-11-05 | R17: 1996-10-21 | S17: 1996-11-06 | T17: 0.2237 | U17: 5.72 | V17: 1996-11-05 | W17: 1997-02-05 | X17: 1997-01-22 | Y17: 1997-02-06 | Z17: 0.2041 | AA17: 5.22 | AB17: 1997-02-05 | AC17: 1997-05-05 | AD17: 1997-04-17 | AE17: 1997-05-06 | AF17: 0.2133 | AG17: 5.27 | AH17: 1997-05-05 | AI17: 1997-08-05 | AJ17: 1997-07-22 | AK17: 1997-08-06 | AL17: 0.2394 | AM17: 6.12 | AN17: 1997-08-05 | AO17: 1997-11-05 | AP17: 1997-10-22 | AQ17: 1997-11-06 | AR17: 0.2364 | AS17: 6.04 | AT17: 1997-11-05 | AU17: 1998-02-05 | AV17: 1998-01-22 | AW17: 1998-02-06 | AX17: 0.2516 | AY17: 6.43 | AZ17: 1998-02-05 | BA17: 1998-05-05 | BB17: 1998-04-20 | BC17: 1998-05-06 | BD17: 0.2551 | BE17: 6.31 | BF17: 1998-05-05 | BG17: 1998-08-05 | BH17: 1998-07-22 | BI17: 1998-08-06 | BJ17: 0.2429 | BK17: 6.21 | BL17: 1998-08-05 | BM17: 1998-11-05 | BN17: 1998-10-22 | BO17: 1998-11-06 | BP17: 0.205 | BQ17: 5.24 | BR17: 1998-11-05 | BS17: 1999-02-05 | BT17: 1999-01-22 | BU17: 1999-02-08 | BV17: 0.1769 | BW17: 4.52
A18: TZ0599 | B18: PL0000100525 | C18: 1999-05-06 | D18: 1996-05-06 | E18: 1996-08-05 | F18: 1996-07-31 | G18: 1996-08-20 | H18: 0.2355 | I18: 5.95 | J18: 1996-08-05 | K18: 1996-11-05 | L18: 1996-10-21 | M18: 1996-11-06 | N18: 0.2237 | O18: 5.72 | P18: 1996-11-05 | Q18: 1997-02-05 | R18: 1997-01-22 | S18: 1997-02-06 | T18: 0.2041 | U18: 5.22 | V18: 1997-02-05 | W18: 1997-05-05 | X18: 1997-04-17 | Y18: 1997-05-06 | Z18: 0.2133 | AA18: 5.27 | AB18: 1997-05-05 | AC18: 1997-08-05 | AD18: 1997-07-22 | AE18: 1997-08-06 | AF18: 0.2394 | AG18: 6.12 | AH18: 1997-08-05 | AI18: 1997-11-05 | AJ18: 1997-10-22 | AK18: 1997-11-06 | AL18: 0.2364 | AM18: 6.04 | AN18: 1997-11-05 | AO18: 1998-02-05 | AP18: 1998-01-22 | AQ18: 1998-02-06 | AR18: 0.2516 | AS18: 6.43 | AT18: 1998-02-05 | AU18: 1998-05-05 | AV18: 1998-04-20 | AW18: 1998-05-06 | AX18: 0.2551 | AY18: 6.31 | AZ18: 1998-05-05 | BA18: 1998-08-05 | BB18: 1998-07-22 | BC18: 1998-08-06 | BD18: 0.2429 | BE18: 6.21 | BF18: 1998-08-05 | BG18: 1998-11-05 | BH18: 1998-10-22 | BI18: 1998-11-06 | BJ18: 0.205 | BK18: 5.24 | BL18: 1998-11-05 | BM18: 1999-02-05 | BN18: 1999-01-22 | BO18: 1999-02-08 | BP18: 0.1769 | BQ18: 4.52 | BR18: 1999-02-05 | BS18: 1999-05-05 | BT18: 1999-04-20 | BU18: 1999-05-06 | BV18: 0.1466 | BW18: 3.62
A19: TZ0899 | B19: PL0000100608 | C19: 1999-08-06 | D19: 1996-08-01 | E19: 1996-11-05 | F19: 1996-10-31 | G19: 1996-11-18 | H19: 0.2171 | I19: 5.79 | J19: 1996-11-05 | K19: 1997-02-05 | L19: 1997-01-24 | M19: 1997-02-06 | N19: 0.1948 | O19: 4.98 | P19: 1997-02-05 | Q19: 1997-05-05 | R19: 1997-04-22 | S19: 1997-05-06 | T19: 0.2017 | U19: 4.99 | V19: 1997-05-05 | W19: 1997-08-05 | X19: 1997-07-25 | Y19: 1997-08-06 | Z19: 0.2285 | AA19: 5.84 | AB19: 1997-08-05 | AC19: 1997-11-05 | AD19: 1997-10-27 | AE19: 1997-11-06 | AF19: 0.2238 | AG19: 5.72 | AH19: 1997-11-05 | AI19: 1998-02-05 | AJ19: 1998-01-27 | AK19: 1998-02-06 | AL19: 0.2399 | AM19: 6.13 | AN19: 1998-02-05 | AO19: 1998-05-05 | AP19: 1998-04-23 | AQ19: 1998-05-06 | AR19: 0.2464 | AS19: 6.09 | AT19: 1998-05-05 | AU19: 1998-08-05 | AV19: 1998-07-27 | AW19: 1998-08-06 | AX19: 0.2318 | AY19: 5.92 | AZ19: 1998-08-05 | BA19: 1998-11-05 | BB19: 1998-10-27 | BC19: 1998-11-06 | BD19: 0.204 | BE19: 5.21 | BF19: 1998-11-05 | BG19: 1999-02-05 | BH19: 1999-01-27 | BI19: 1999-02-08 | BJ19: 0.1708 | BK19: 4.36 | BL19: 1999-02-05 | BM19: 1999-05-05 | BN19: 1999-04-23 | BO19: 1999-05-06 | BP19: 0.1441 | BQ19: 3.56 | BR19: 1999-05-05 | BS19: 1999-08-05 | BT19: 1999-07-27 | BU19: 1999-08-06 | BV19: 0.1299 | BW19: 3.32
A20: TZ1199 | B20: PL0000100640 | C20: 1999-11-06 | D20: 1996-11-04 | E20: 1997-02-05 | F20: 1997-01-31 | G20: 1997-02-20 | H20: 0.1948 | I20: 5.03 | J20: 1997-02-05 | K20: 1997-05-05 | L20: 1997-04-22 | M20: 1997-05-06 | N20: 0.2017 | O20: 4.99 | P20: 1997-05-05 | Q20: 1997-08-05 | R20: 1997-07-25 | S20: 1997-08-06 | T20: 0.2285 | U20: 5.84 | V20: 1997-08-05 | W20: 1997-11-05 | X20: 1997-10-27 | Y20: 1997-11-06 | Z20: 0.2238 | AA20: 5.72 | AB20: 1997-11-05 | AC20: 1998-02-05 | AD20: 1998-01-27 | AE20: 1998-02-06 | AF20: 0.2399 | AG20: 6.13 | AH20: 1998-02-05 | AI20: 1998-05-05 | AJ20: 1998-04-23 | AK20: 1998-05-06 | AL20: 0.2464 | AM20: 6.09 | AN20: 1998-05-05 | AO20: 1998-08-05 | AP20: 1998-07-27 | AQ20: 1998-08-06 | AR20: 0.2318 | AS20: 5.92 | AT20: 1998-08-05 | AU20: 1998-11-05 | AV20: 1998-10-27 | AW20: 1998-11-06 | AX20: 0.204 | AY20: 5.21 | AZ20: 1998-11-05 | BA20: 1999-02-05 | BB20: 1999-01-27 | BC20: 1999-02-08 | BD20: 0.1708 | BE20: 4.36 | BF20: 1999-02-05 | BG20: 1999-05-05 | BH20: 1999-04-23 | BI20: 1999-05-06 | BJ20: 0.1441 | BK20: 3.56 | BL20: 1999-05-05 | BM20: 1999-08-05 | BN20: 1999-07-27 | BO20: 1999-08-06 | BP20: 0.1299 | BQ20: 3.32 | BR20: 1999-08-05 | BS20: 1999-11-05 | BT20: 1999-10-26 | BU20: 1999-11-08 | BV20: 0.1289 | BW20: 3.29
A21: TZ0200 | B21: PL0000100699 | C21: 2000-02-06 | D21: 1997-02-03 | E21: 1997-05-05 | F21: 1997-04-30 | G21: 1997-05-21 | H21: 0.2017 | I21: 5.1 | J21: 1997-05-05 | K21: 1997-08-05 | L21: 1997-07-25 | M21: 1997-08-06 | N21: 0.2285 | O21: 5.84 | P21: 1997-08-05 | Q21: 1997-11-05 | R21: 1997-10-27 | S21: 1997-11-06 | T21: 0.2238 | U21: 5.72 | V21: 1997-11-05 | W21: 1998-02-05 | X21: 1998-01-27 | Y21: 1998-02-06 | Z21: 0.2399 | AA21: 6.13 | AB21: 1998-02-05 | AC21: 1998-05-05 | AD21: 1998-04-23 | AE21: 1998-05-06 | AF21: 0.2464 | AG21: 6.09 | AH21: 1998-05-05 | AI21: 1998-08-05 | AJ21: 1998-07-27 | AK21: 1998-08-06 | AL21: 0.2318 | AM21: 5.92 | AN21: 1998-08-05 | AO21: 1998-11-05 | AP21: 1998-10-27 | AQ21: 1998-11-06 | AR21: 0.204 | AS21: 5.21 | AT21: 1998-11-05 | AU21: 1999-02-05 | AV21: 1999-01-27 | AW21: 1999-02-08 | AX21: 0.1708 | AY21: 4.36 | AZ21: 1999-02-05 | BA21: 1999-05-05 | BB21: 1999-04-23 | BC21: 1999-05-06 | BD21: 0.1441 | BE21: 3.56 | BF21: 1999-05-05 | BG21: 1999-08-05 | BH21: 1999-07-27 | BI21: 1999-08-06 | BJ21: 0.1299 | BK21: 3.32 | BL21: 1999-08-05 | BM21: 1999-11-05 | BN21: 1999-10-26 | BO21: 1999-11-08 | BP21: 0.1289 | BQ21: 3.29 | BR21: 1999-11-05 | BS21: 2000-02-05 | BT21: 2000-01-26 | BU21: 2000-02-07 | BV21: 0.1339 | BW21: 3.42
A22: TZ0500 | B22: PL0000100749 | C22: 2000-05-06 | D22: 1997-05-05 | E22: 1997-08-05 | F22: 1997-07-31 | G22: 1997-08-21 | H22: 0.2285 | I22: 5.84 | J22: 1997-08-05 | K22: 1997-11-05 | L22: 1997-10-27 | M22: 1997-11-06 | N22: 0.2238 | O22: 5.72 | P22: 1997-11-05 | Q22: 1998-02-05 | R22: 1998-01-27 | S22: 1998-02-06 | T22: 0.2399 | U22: 6.13 | V22: 1998-02-05 | W22: 1998-05-05 | X22: 1998-04-23 | Y22: 1998-05-06 | Z22: 0.2464 | AA22: 6.09 | AB22: 1998-05-05 | AC22: 1998-08-05 | AD22: 1998-07-27 | AE22: 1998-08-06 | AF22: 0.2318 | AG22: 5.92 | AH22: 1998-08-05 | AI22: 1998-11-05 | AJ22: 1998-10-27 | AK22: 1998-11-06 | AL22: 0.204 | AM22: 5.21 | AN22: 1998-11-05 | AO22: 1999-02-05 | AP22: 1999-01-27 | AQ22: 1999-02-08 | AR22: 0.1708 | AS22: 4.36 | AT22: 1999-02-05 | AU22: 1999-05-05 | AV22: 1999-04-23 | AW22: 1999-05-06 | AX22: 0.1441 | AY22: 3.56 | AZ22: 1999-05-05 | BA22: 1999-08-05 | BB22: 1999-07-27 | BC22: 1999-08-06 | BD22: 0.1299 | BE22: 3.32 | BF22: 1999-08-05 | BG22: 1999-11-05 | BH22: 1999-10-26 | BI22: 1999-11-08 | BJ22: 0.1289 | BK22: 3.29 | BL22: 1999-11-05 | BM22: 2000-02-05 | BN22: 2000-01-26 | BO22: 2000-02-07 | BP22: 0.1339 | BQ22: 3.42 | BR22: 2000-02-05 | BS22: 2000-05-05 | BT22: 2000-04-21 | BU22: 2000-05-08 | BV22: 0.1685 | BW22: 4.21
A23: TZ0800 | B23: PL0000100798 | C23: 2000-08-06 | D23: 1997-08-01 | E23: 1997-11-05 | F23: 1997-10-31 | G23: 1997-11-21 | H23: 0.2219 | I23: 5.92 | J23: 1997-11-05 | K23: 1998-02-05 | L23: 1998-01-26 | M23: 1998-02-06 | N23: 0.2399 | O23: 6.13 | P23: 1998-02-05 | Q23: 1998-05-05 | R23: 1998-04-22 | S23: 1998-05-06 | T23: 0.2464 | U23: 6.09 | V23: 1998-05-05 | W23: 1998-08-05 | X23: 1998-07-24 | Y23: 1998-08-06 | Z23: 0.2318 | AA23: 5.92 | AB23: 1998-08-05 | AC23: 1998-11-05 | AD23: 1998-10-26 | AE23: 1998-11-06 | AF23: 0.204 | AG23: 5.21 | AH23: 1998-11-05 | AI23: 1999-02-05 | AJ23: 1999-01-26 | AK23: 1999-02-08 | AL23: 0.1708 | AM23: 4.36 | AN23: 1999-02-05 | AO23: 1999-05-05 | AP23: 1999-04-22 | AQ23: 1999-05-06 | AR23: 0.1441 | AS23: 3.56 | AT23: 1999-05-05 | AU23: 1999-08-05 | AV23: 1999-07-26 | AW23: 1999-08-06 | AX23: 0.1299 | AY23: 3.32 | AZ23: 1999-08-05 | BA23: 1999-11-05 | BB23: 1999-10-25 | BC23: 1999-11-08 | BD23: 0.1289 | BE23: 3.29 | BF23: 1999-11-05 | BG23: 2000-02-05 | BH23: 2000-01-25 | BI23: 2000-02-07 | BJ23: 0.1339 | BK23: 3.42 | BL23: 2000-02-05 | BM23: 2000-05-05 | BN23: 2000-04-20 | BO23: 2000-05-08 | BP23: 0.1685 | BQ23: 4.21 | BR23: 2000-05-05 | BS23: 2000-08-05 | BT23: 2000-07-25 | BU23: 2000-08-07 | BV23: 0.1714 | BW23: 4.38
A24: TZ1100 | B24: PL0000100848 | C24: 2000-11-06 | D24: 1997-11-03 | E24: 1998-02-05 | F24: 1998-01-30 | G24: 1998-02-19 | H24: 0.2399 | I24: 6.26 | J24: 1998-02-05 | K24: 1998-05-05 | L24: 1998-04-22 | M24: 1998-05-06 | N24: 0.2464 | O24: 6.09 | P24: 1998-05-05 | Q24: 1998-08-05 | R24: 1998-07-24 | S24: 1998-08-06 | T24: 0.2318 | U24: 5.92 | V24: 1998-08-05 | W24: 1998-11-05 | X24: 1998-10-26 | Y24: 1998-11-06 | Z24: 0.204 | AA24: 5.21 | AB24: 1998-11-05 | AC24: 1999-02-05 | AD24: 1999-01-26 | AE24: 1999-02-08 | AF24: 0.1708 | AG24: 4.36 | AH24: 1999-02-05 | AI24: 1999-05-05 | AJ24: 1999-04-22 | AK24: 1999-05-06 | AL24: 0.1441 | AM24: 3.56 | AN24: 1999-05-05 | AO24: 1999-08-05 | AP24: 1999-07-26 | AQ24: 1999-08-06 | AR24: 0.1299 | AS24: 3.32 | AT24: 1999-08-05 | AU24: 1999-11-05 | AV24: 1999-10-25 | AW24: 1999-11-08 | AX24: 0.1289 | AY24: 3.29 | AZ24: 1999-11-05 | BA24: 2000-02-05 | BB24: 2000-01-25 | BC24: 2000-02-07 | BD24: 0.1339 | BE24: 3.42 | BF24: 2000-02-05 | BG24: 2000-05-05 | BH24: 2000-04-20 | BI24: 2000-05-08 | BJ24: 0.1685 | BK24: 4.21 | BL24: 2000-05-05 | BM24: 2000-08-05 | BN24: 2000-07-25 | BO24: 2000-08-07 | BP24: 0.1714 | BQ24: 4.38 | BR24: 2000-08-05 | BS24: 2000-11-05 | BT24: 2000-10-23 | BU24: 2000-11-06 | BV24: 0.1706 | BW24: 4.36
A25: TZ0201 | B25: PL0000100905 | C25: 2001-02-06 | D25: 1998-02-02 | E25: 1998-05-05 | F25: 1998-04-30 | G25: 1998-05-21 | H25: 0.2464 | I25: 6.3 | J25: 1998-05-05 | K25: 1998-08-05 | L25: 1998-07-24 | M25: 1998-08-06 | N25: 0.2318 | O25: 5.92 | P25: 1998-08-05 | Q25: 1998-11-05 | R25: 1998-10-26 | S25: 1998-11-06 | T25: 0.204 | U25: 5.21 | V25: 1998-11-05 | W25: 1999-02-05 | X25: 1999-01-26 | Y25: 1999-02-08 | Z25: 0.1708 | AA25: 4.36 | AB25: 1999-02-05 | AC25: 1999-05-05 | AD25: 1999-04-22 | AE25: 1999-05-06 | AF25: 0.1441 | AG25: 3.56 | AH25: 1999-05-05 | AI25: 1999-08-05 | AJ25: 1999-07-26 | AK25: 1999-08-06 | AL25: 0.1299 | AM25: 3.32 | AN25: 1999-08-05 | AO25: 1999-11-05 | AP25: 1999-10-25 | AQ25: 1999-11-08 | AR25: 0.1289 | AS25: 3.29 | AT25: 1999-11-05 | AU25: 2000-02-05 | AV25: 2000-01-25 | AW25: 2000-02-07 | AX25: 0.1339 | AY25: 3.42 | AZ25: 2000-02-05 | BA25: 2000-05-05 | BB25: 2000-04-20 | BC25: 2000-05-08 | BD25: 0.1685 | BE25: 4.21 | BF25: 2000-05-05 | BG25: 2000-08-05 | BH25: 2000-07-25 | BI25: 2000-08-07 | BJ25: 0.1714 | BK25: 4.38 | BL25: 2000-08-05 | BM25: 2000-11-05 | BN25: 2000-10-23 | BO25: 2000-11-06 | BP25: 0.1706 | BQ25: 4.36 | BR25: 2000-11-05 | BS25: 2001-02-05 | BT25: 2001-01-24 | BU25: 2001-02-06 | BV25: 0.1793 | BW25: 4.58
A26: TZ0501 | B26: PL0000100939 | C26: 2001-05-06 | D26: 1998-05-04 | E26: 1998-08-05 | F26: 1998-07-31 | G26: 1998-08-20 | H26: 0.2318 | I26: 5.99 | J26: 1998-08-05 | K26: 1998-11-05 | L26: 1998-10-26 | M26: 1998-11-06 | N26: 0.204 | O26: 5.21 | P26: 1998-11-05 | Q26: 1999-02-05 | R26: 1999-01-26 | S26: 1999-02-08 | T26: 0.1708 | U26: 4.36 | V26: 1999-02-05 | W26: 1999-05-05 | X26: 1999-04-22 | Y26: 1999-05-06 | Z26: 0.1441 | AA26: 3.56 | AB26: 1999-05-05 | AC26: 1999-08-05 | AD26: 1999-07-26 | AE26: 1999-08-06 | AF26: 0.1299 | AG26: 3.32 | AH26: 1999-08-05 | AI26: 1999-11-05 | AJ26: 1999-10-25 | AK26: 1999-11-08 | AL26: 0.1289 | AM26: 3.29 | AN26: 1999-11-05 | AO26: 2000-02-05 | AP26: 2000-01-25 | AQ26: 2000-02-07 | AR26: 0.1339 | AS26: 3.42 | AT26: 2000-02-05 | AU26: 2000-05-05 | AV26: 2000-04-20 | AW26: 2000-05-08 | AX26: 0.1685 | AY26: 4.21 | AZ26: 2000-05-05 | BA26: 2000-08-05 | BB26: 2000-07-25 | BC26: 2000-08-07 | BD26: 0.1714 | BE26: 4.38 | BF26: 2000-08-05 | BG26: 2000-11-05 | BH26: 2000-10-23 | BI26: 2000-11-06 | BJ26: 0.1706 | BK26: 4.36 | BL26: 2000-11-05 | BM26: 2001-02-05 | BN26: 2001-01-24 | BO26: 2001-02-06 | BP26: 0.1793 | BQ26: 4.58 | BR26: 2001-02-05 | BS26: 2001-05-05 | BT26: 2001-04-20 | BU26: 2001-05-07 | BV26: 0.1768 | BW26: 4.37
A27: TZ0801 | B27: PL0000101069 | C27: 2001-08-06 | D27: 1998-08-04 | E27: 1998-11-05 | F27: 1998-10-30 | G27: 1998-11-20 | H27: 0.204 | I27: 5.27 | J27: 1998-11-05 | K27: 1999-02-05 | L27: 1999-01-26 | M27: 1999-02-08 | N27: 0.1708 | O27: 4.36 | P27: 1999-02-05 | Q27: 1999-05-05 | R27: 1999-04-22 | S27: 1999-05-06 | T27: 0.1441 | U27: 3.56 | V27: 1999-05-05 | W27: 1999-08-05 | X27: 1999-07-26 | Y27: 1999-08-06 | Z27: 0.1299 | AA27: 3.32 | AB27: 1999-08-05 | AC27: 1999-11-05 | AD27: 1999-10-25 | AE27: 1999-11-08 | AF27: 0.1289 | AG27: 3.29 | AH27: 1999-11-05 | AI27: 2000-02-05 | AJ27: 2000-01-25 | AK27: 2000-02-07 | AL27: 0.1339 | AM27: 3.42 | AN27: 2000-02-05 | AO27: 2000-05-05 | AP27: 2000-04-20 | AQ27: 2000-05-08 | AR27: 0.1685 | AS27: 4.21 | AT27: 2000-05-05 | AU27: 2000-08-05 | AV27: 2000-07-25 | AW27: 2000-08-07 | AX27: 0.1714 | AY27: 4.38 | AZ27: 2000-08-05 | BA27: 2000-11-05 | BB27: 2000-10-23 | BC27: 2000-11-06 | BD27: 0.1706 | BE27: 4.36 | BF27: 2000-11-05 | BG27: 2001-02-05 | BH27: 2001-01-24 | BI27: 2001-02-06 | BJ27: 0.1793 | BK27: 4.58 | BL27: 2001-02-05 | BM27: 2001-05-05 | BN27: 2001-04-20 | BO27: 2001-05-07 | BP27: 0.1768 | BQ27: 4.37 | BR27: 2001-05-05 | BS27: 2001-08-05 | BT27: 2001-07-24 | BU27: 2001-08-07 | BV27: 0.1734 | BW27: 4.43
A28: TZ1101 | B28: PL0000101077 | C28: 2001-11-06 | D28: 1998-11-03 | E28: 1999-02-05 | F28: 1999-01-29 | G28: 1999-02-18 | H28: 0.1708 | I28: 4.46 | J28: 1999-02-05 | K28: 1999-05-05 | L28: 1999-04-22 | M28: 1999-05-06 | N28: 0.1441 | O28: 3.56 | P28: 1999-05-05 | Q28: 1999-08-05 | R28: 1999-07-26 | S28: 1999-08-06 | T28: 0.1299 | U28: 3.32 | V28: 1999-08-05 | W28: 1999-11-05 | X28: 1999-10-25 | Y28: 1999-11-08 | Z28: 0.1289 | AA28: 3.29 | AB28: 1999-11-05 | AC28: 2000-02-05 | AD28: 2000-01-25 | AE28: 2000-02-07 | AF28: 0.1339 | AG28: 3.42 | AH28: 2000-02-05 | AI28: 2000-05-05 | AJ28: 2000-04-20 | AK28: 2000-05-08 | AL28: 0.1685 | AM28: 4.21 | AN28: 2000-05-05 | AO28: 2000-08-05 | AP28: 2000-07-25 | AQ28: 2000-08-07 | AR28: 0.1714 | AS28: 4.38 | AT28: 2000-08-05 | AU28: 2000-11-05 | AV28: 2000-10-23 | AW28: 2000-11-06 | AX28: 0.1706 | AY28: 4.36 | AZ28: 2000-11-05 | BA28: 2001-02-05 | BB28: 2001-01-24 | BC28: 2001-02-06 | BD28: 0.1793 | BE28: 4.58 | BF28: 2001-02-05 | BG28: 2001-05-05 | BH28: 2001-04-20 | BI28: 2001-05-07 | BJ28: 0.1768 | BK28: 4.37 | BL28: 2001-05-05 | BM28: 2001-08-05 | BN28: 2001-07-24 | BO28: 2001-08-06 | BP28: 0.1734 | BQ28: 4.43 | BR28: 2001-08-05 | BS28: 2001-11-05 | BT28: 2001-10-23 | BU28: 2001-11-06 | BV28: 0.1587 | BW28: 4.06
A29: TZ0202 | B29: PL0000101085 | C29: 2002-02-06 | D29: 1999-02-02 | E29: 1999-05-05 | F29: 1999-04-30 | G29: 1999-05-21 | H29: 0.1441 | I29: 3.68 | J29: 1999-05-05 | K29: 1999-08-05 | L29: 1999-07-26 | M29: 1999-08-06 | N29: 0.1299 | O29: 3.32 | P29: 1999-08-05 | Q29: 1999-11-05 | R29: 1999-10-25 | S29: 1999-11-08 | T29: 0.1289 | U29: 3.29 | V29: 1999-11-05 | W29: 2000-02-05 | X29: 2000-01-25 | Y29: 2000-02-07 | Z29: 0.1339 | AA29: 3.42 | AB29: 2000-02-05 | AC29: 2000-05-05 | AD29: 2000-04-20 | AE29: 2000-05-08 | AF29: 0.1685 | AG29: 4.21 | AH29: 2000-05-05 | AI29: 2000-08-05 | AJ29: 2000-07-25 | AK29: 2000-08-07 | AL29: 0.1714 | AM29: 4.38 | AN29: 2000-08-05 | AO29: 2000-11-05 | AP29: 2000-10-23 | AQ29: 2000-11-06 | AR29: 0.1706 | AS29: 4.36 | AT29: 2000-11-05 | AU29: 2001-02-05 | AV29: 2001-01-24 | AW29: 2001-02-06 | AX29: 0.1793 | AY29: 4.58 | AZ29: 2001-02-05 | BA29: 2001-05-05 | BB29: 2001-04-20 | BC29: 2001-05-07 | BD29: 0.1768 | BE29: 4.37 | BF29: 2001-05-05 | BG29: 2001-08-05 | BH29: 2001-07-24 | BI29: 2001-08-06 | BJ29: 0.1734 | BK29: 4.43 | BL29: 2001-08-05 | BM29: 2001-11-05 | BN29: 2001-10-23 | BO29: 2001-11-06 | BP29: 0.1587 | BQ29: 4.06 | BR29: 2001-11-05 | BS29: 2002-02-05 | BT29: 2002-01-24 | BU29: 2002-02-06 | BV29: 0.1393 | BW29: 3.56
A30: TZ0502 | B30: PL0000101093 | C30: 2002-05-06 | D30: 1999-05-04 | E30: 1999-08-05 | F30: 1999-07-30 | G30: 1999-08-19 | H30: 0.1299 | I30: 3.36 | J30: 1999-08-05 | K30: 1999-11-05 | L30: 1999-10-25 | M30: 1999-11-08 | N30: 0.1289 | O30: 3.29 | P30: 1999-11-05 | Q30: 2000-02-05 | R30: 2000-01-25 | S30: 2000-02-07 | T30: 0.1339 | U30: 3.42 | V30: 2000-02-05 | W30: 2000-05-05 | X30: 2000-04-20 | Y30: 2000-05-08 | Z30: 0.1685 | AA30: 4.21 | AB30: 2000-05-05 | AC30: 2000-08-05 | AD30: 2000-07-25 | AE30: 2000-08-07 | AF30: 0.1714 | AG30: 4.38 | AH30: 2000-08-05 | AI30: 2000-11-05 | AJ30: 2000-10-23 | AK30: 2000-11-06 | AL30: 0.1706 | AM30: 4.36 | AN30: 2000-11-05 | AO30: 2001-02-05 | AP30: 2001-01-24 | AQ30: 2001-02-06 | AR30: 0.1793 | AS30: 4.58 | AT30: 2001-02-05 | AU30: 2001-05-05 | AV30: 2001-04-20 | AW30: 2001-05-07 | AX30: 0.1768 | AY30: 4.37 | AZ30: 2001-05-05 | BA30: 2001-08-05 | BB30: 2001-07-24 | BC30: 2001-08-06 | BD30: 0.1734 | BE30: 4.43 | BF30: 2001-08-05 | BG30: 2001-11-05 | BH30: 2001-10-23 | BI30: 2001-11-06 | BJ30: 0.1587 | BK30: 4.06 | BL30: 2001-11-05 | BM30: 2002-02-05 | BN30: 2002-01-24 | BO30: 2002-02-06 | BP30: 0.1393 | BQ30: 3.56 | BR30: 2002-02-05 | BS30: 2002-05-05 | BT30: 2002-04-19 | BU30: 2002-05-06 | BV30: 0.1092 | BW30: 2.7
A31: TZ0802 | B31: PL0000101283 | C31: 2002-08-05 | D31: 1999-08-05 | E31: 1999-11-05 | F31: 1999-11-02 | G31: 1999-11-18 | H31: 0.1277 | I31: 3.22 | J31: 1999-11-05 | K31: 2000-02-05 | L31: 2000-01-25 | M31: 2000-02-05 | N31: 0.1326 | O31: 3.34 | P31: 2000-02-05 | Q31: 2000-05-05 | R31: 2000-04-19 | S31: 2000-05-05 | T31: 0.1669 | U31: 4.1 | V31: 2000-05-05 | W31: 2000-08-05 | X31: 2000-07-25 | Y31: 2000-08-05 | Z31: 0.1697 | AA31: 4.27 | AB31: 2000-08-05 | AC31: 2000-11-05 | AD31: 2000-10-23 | AE31: 2000-11-05 | AF31: 0.169 | AG31: 4.25 | AH31: 2000-11-05 | AI31: 2001-02-05 | AJ31: 2001-01-23 | AK31: 2001-02-05 | AL31: 0.1776 | AM31: 4.46 | AN31: 2001-02-05 | AO31: 2001-05-05 | AP31: 2001-04-20 | AQ31: 2001-05-05 | AR31: 0.1751 | AS31: 4.27 | AT31: 2001-05-05 | AU31: 2001-08-05 | AV31: 2001-07-24 | AW31: 2001-08-05 | AX31: 0.1717 | AY31: 4.33 | AZ31: 2001-08-05 | BA31: 2001-11-05 | BB31: 2001-10-22 | BC31: 2001-11-05 | BD31: 0.1571 | BE31: 3.96 | BF31: 2001-11-05 | BG31: 2002-02-05 | BH31: 2002-01-23 | BI31: 2002-02-05 | BJ31: 0.138 | BK31: 3.48 | BL31: 2002-02-05 | BM31: 2002-05-05 | BN31: 2002-04-19 | BO31: 2002-05-05 | BP31: 0.1082 | BQ31: 2.64 | BR31: 2002-05-05 | BS31: 2002-08-05 | BT31: 2002-07-23 | BU31: 2002-08-05 | BV31: 0.1007 | BW31: 2.54
A32: TZ1102 | B32: PL0000101341 | C32: 2002-11-05 | D32: 1999-11-05 | E32: 2000-02-05 | F32: 2000-02-04 | G32: 2000-02-20 | H32: 0.1326 | I32: 3.34 | J32: 2000-02-05 | K32: 2000-05-05 | L32: 2000-04-19 | M32: 2000-05-05 | N32: 0.1669 | O32: 4.1 | P32: 2000-05-05 | Q32: 2000-08-05 | R32: 2000-07-25 | S32: 2000-08-05 | T32: 0.1697 | U32: 4.27 | V32: 2000-08-05 | W32: 2000-11-05 | X32: 2000-10-23 | Y32: 2000-11-05 | Z32: 0.169 | AA32: 4.25 | AB32: 2000-11-05 | AC32: 2001-02-05 | AD32: 2001-01-23 | AE32: 2001-02-05 | AF32: 0.1776 | AG32: 4.46 | AH32: 2001-02-05 | AI32: 2001-05-05 | AJ32: 2001-04-20 | AK32: 2001-05-05 | AL32: 0.1751 | AM32: 4.27 | AN32: 2001-05-05 | AO32: 2001-08-05 | AP32: 2001-07-24 | AQ32: 2001-08-05 | AR32: 0.1717 | AS32: 4.33 | AT32: 2001-08-05 | AU32: 2001-11-05 | AV32: 2001-10-22 | AW32: 2001-11-05 | AX32: 0.1571 | AY32: 3.96 | AZ32: 2001-11-05 | BA32: 2002-02-05 | BB32: 2002-01-23 | BC32: 2002-02-05 | BD32: 0.138 | BE32: 3.48 | BF32: 2002-02-05 | BG32: 2002-05-05 | BH32: 2002-04-19 | BI32: 2002-05-05 | BJ32: 0.1082 | BK32: 2.64 | BL32: 2002-05-05 | BM32: 2002-08-05 | BN32: 2002-07-23 | BO32: 2002-08-05 | BP32: 0.1007 | BQ32: 2.54 | BR32: 2002-08-05 | BS32: 2002-11-05 | BT32: 2002-10-23 | BU32: 2000-11-05 | BV32: 0.0891 | BW32: 2.25
A33: TZ0203 | B33: PL0000101515 | C33: 2003-02-05 | D33: 2000-02-05 | E33: 2000-05-05 | F33: 2000-05-08 | G33: 2000-05-19 | H33: 0.1669 | I33: 4.1 | J33: 2000-05-05 | K33: 2000-08-05 | L33: 2000-07-25 | M33: 2000-08-05 | N33: 0.1697 | O33: 4.27 | P33: 2000-08-05 | Q33: 2000-11-05 | R33: 2000-10-23 | S33: 2000-11-05 | T33: 0.169 | U33: 4.25 | V33: 2000-11-05 | W33: 2001-02-05 | X33: 2001-01-23 | Y33: 2001-02-05 | Z33: 0.1776 | AA33: 4.46 | AB33: 2001-02-05 | AC33: 2001-05-05 | AD33: 2001-04-20 | AE33: 2001-05-05 | AF33: 0.1751 | AG33: 4.27 | AH33: 2001-05-05 | AI33: 2001-08-05 | AJ33: 2001-07-24 | AK33: 2001-08-05 | AL33: 0.1717 | AM33: 4.33 | AN33: 2001-08-05 | AO33: 2001-11-05 | AP33: 2001-10-22 | AQ33: 2001-11-05 | AR33: 0.1571 | AS33: 3.96 | AT33: 2001-11-05 | AU33: 2002-02-05 | AV33: 2002-01-23 | AW33: 2002-02-05 | AX33: 0.138 | AY33: 3.48 | AZ33: 2002-02-05 | BA33: 2002-05-05 | BB33: 2002-04-19 | BC33: 2002-05-05 | BD33: 0.1082 | BE33: 2.64 | BF33: 2002-05-05 | BG33: 2002-08-05 | BH33: 2002-07-23 | BI33: 2002-08-05 | BJ33: 0.1007 | BK33: 2.54 | BL33: 2002-08-05 | BM33: 2002-11-05 | BN33: 2002-10-23 | BO33: 2002-11-05 | BP33: 0.0891 | BQ33: 2.25 | BR33: 2002-11-05 | BS33: 2003-02-05 | BT33: 2003-01-23 | BU33: 2003-02-05 | BV33: 0.075 | BW33: 1.89
A34: TZ0503 | B34: PL0000101671 | C34: 2003-05-05 | D34: 2000-05-05 | E34: 2000-08-05 | F34: 2000-08-04 | G34: 2000-08-18 | H34: 0.1697 | I34: 4.27 | J34: 2000-08-05 | K34: 2000-11-05 | L34: 2000-10-23 | M34: 2000-11-05 | N34: 0.169 | O34: 4.25 | P34: 2000-11-05 | Q34: 2001-02-05 | R34: 2001-01-23 | S34: 2001-02-05 | T34: 0.1776 | U34: 4.46 | V34: 2001-02-05 | W34: 2001-05-05 | X34: 2001-04-20 | Y34: 2001-05-05 | Z34: 0.1751 | AA34: 4.27 | AB34: 2001-05-05 | AC34: 2001-08-05 | AD34: 2001-07-24 | AE34: 2001-08-05 | AF34: 0.1717 | AG34: 4.33 | AH34: 2001-08-05 | AI34: 2001-11-05 | AJ34: 2001-10-22 | AK34: 2001-11-05 | AL34: 0.1571 | AM34: 3.96 | AN34: 2001-11-05 | AO34: 2002-02-05 | AP34: 2002-01-23 | AQ34: 2002-02-05 | AR34: 0.138 | AS34: 3.48 | AT34: 2002-02-05 | AU34: 2002-05-05 | AV34: 2002-04-19 | AW34: 2002-05-05 | AX34: 0.1082 | AY34: 2.64 | AZ34: 2002-05-05 | BA34: 2002-08-05 | BB34: 2002-07-23 | BC34: 2002-08-05 | BD34: 0.1007 | BE34: 2.54 | BF34: 2002-08-05 | BG34: 2002-11-05 | BH34: 2002-10-23 | BI34: 2002-11-05 | BJ34: 0.0891 | BK34: 2.25 | BL34: 2002-11-05 | BM34: 2003-02-05 | BN34: 2003-01-23 | BO34: 2003-02-05 | BP34: 0.075 | BQ34: 1.89 | BR34: 2003-02-05 | BS34: 2003-05-05 | BT34: 2003-04-18 | BU34: 2003-05-05 | BV34: 0.0633 | BW34: 1.54
A35: TZ0803 | B35: PL0000101762 | C35: 2003-08-05 | D35: 2000-08-04 | E35: 2000-11-05 | F35: 2000-11-03 | G35: 2000-11-20 | H35: 0.1625 | I35: 4.13 | J35: 2000-11-05 | K35: 2001-02-05 | L35: 2001-01-23 | M35: 2001-02-05 | N35: 0.1708 | O35: 4.29 | P35: 2001-02-05 | Q35: 2001-05-05 | R35: 2001-04-20 | S35: 2001-05-05 | T35: 0.1684 | U35: 4.11 | V35: 2001-05-05 | W35: 2001-08-05 | X35: 2001-07-24 | Y35: 2001-08-05 | Z35: 0.1651 | AA35: 4.16 | AB35: 2001-08-05 | AC35: 2001-11-05 | AD35: 2001-10-22 | AE35: 2001-11-05 | AF35: 0.1511 | AG35: 3.81 | AH35: 2001-11-05 | AI35: 2002-02-05 | AJ35: 2002-01-23 | AK35: 2002-02-05 | AL35: 0.1327 | AM35: 3.34 | AN35: 2002-02-05 | AO35: 2002-05-05 | AP35: 2002-04-19 | AQ35: 2002-05-05 | AR35: 0.104 | AS35: 2.54 | AT35: 2002-05-05 | AU35: 2002-08-05 | AV35: 2002-07-23 | AW35: 2002-08-05 | AX35: 0.0968 | AY35: 2.44 | AZ35: 2002-08-05 | BA35: 2002-11-05 | BB35: 2002-10-23 | BC35: 2002-11-05 | BD35: 0.0857 | BE35: 2.16 | BF35: 2002-11-05 | BG35: 2003-02-05 | BH35: 2003-01-23 | BI35: 2003-02-05 | BJ35: 0.0721 | BK35: 1.82 | BL35: 2003-02-05 | BM35: 2003-05-05 | BN35: 2003-04-18 | BO35: 2003-05-05 | BP35: 0.0609 | BQ35: 1.48 | BR35: 2003-05-05 | BS35: 2003-08-05 | BT35: 2003-07-23 | BU35: 2003-08-05 | BV35: 0.057 | BW35: 1.44
A36: TZ1103 | B36: PL0000101895 | C36: 2003-11-05 | D36: 2000-11-02 | E36: 2001-02-05 | F36: 2001-01-31 | G36: 2001-02-14 | H36: 0.1708 | I36: 4.43 | J36: 2001-02-05 | K36: 2001-05-05 | L36: 2001-04-20 | M36: 2001-05-05 | N36: 0.1684 | O36: 4.11 | P36: 2001-05-05 | Q36: 2001-08-05 | R36: 2001-07-24 | S36: 2001-08-05 | T36: 0.1651 | U36: 4.16 | V36: 2001-08-05 | W36: 2001-11-05 | X36: 2001-10-22 | Y36: 2001-11-05 | Z36: 0.1511 | AA36: 3.81 | AB36: 2001-11-05 | AC36: 2002-02-05 | AD36: 2002-01-23 | AE36: 2002-02-05 | AF36: 0.1327 | AG36: 3.34 | AH36: 2002-02-05 | AI36: 2002-05-05 | AJ36: 2002-04-19 | AK36: 2002-05-05 | AL36: 0.104 | AM36: 2.54 | AN36: 2002-05-05 | AO36: 2002-08-05 | AP36: 2002-07-23 | AQ36: 2002-08-05 | AR36: 0.0968 | AS36: 2.44 | AT36: 2002-08-05 | AU36: 2002-11-05 | AV36: 2002-10-23 | AW36: 2002-11-05 | AX36: 0.0857 | AY36: 2.16 | AZ36: 2002-11-05 | BA36: 2003-02-05 | BB36: 2003-01-23 | BC36: 2003-02-05 | BD36: 0.0721 | BE36: 1.82 | BF36: 2003-02-05 | BG36: 2003-05-05 | BH36: 2003-04-18 | BI36: 2003-05-05 | BJ36: 0.0609 | BK36: 1.48 | BL36: 2003-05-05 | BM36: 2003-08-05 | BN36: 2003-07-23 | BO36: 2003-08-05 | BP36: 0.057 | BQ36: 1.44 | BR36: 2003-08-05 | BS36: 2003-11-05 | BT36: 2003-10-23 | BU36: 2003-11-05 | BV36: 0.0505 | BW36: 1.27
A37: TZ0204 | B37: PL0000101994 | C37: 2004-02-05 | D37: 2001-02-01 | E37: 2001-05-05 | F37: 2001-04-25 | G37: 2001-05-14 | H37: 0.1684 | I37: 4.29 | J37: 2001-05-05 | K37: 2001-08-05 | L37: 2001-07-24 | M37: 2001-08-05 | N37: 0.1651 | O37: 4.16 | P37: 2001-08-05 | Q37: 2001-11-05 | R37: 2001-10-22 | S37: 2001-11-05 | T37: 0.1511 | U37: 3.81 | V37: 2001-11-05 | W37: 2002-02-05 | X37: 2002-01-23 | Y37: 2002-02-05 | Z37: 0.1327 | AA37: 3.34 | AB37: 2002-02-05 | AC37: 2002-05-05 | AD37: 2002-04-19 | AE37: 2002-05-05 | AF37: 0.104 | AG37: 2.54 | AH37: 2002-05-05 | AI37: 2002-08-05 | AJ37: 2002-07-23 | AK37: 2002-08-05 | AL37: 0.0968 | AM37: 2.44 | AN37: 2002-08-05 | AO37: 2002-11-05 | AP37: 2002-10-23 | AQ37: 2002-11-05 | AR37: 0.0857 | AS37: 2.16 | AT37: 2002-11-05 | AU37: 2003-02-05 | AV37: 2003-01-23 | AW37: 2003-02-05 | AX37: 0.0721 | AY37: 1.82 | AZ37: 2003-02-05 | BA37: 2003-05-05 | BB37: 2003-04-18 | BC37: 2003-05-05 | BD37: 0.0609 | BE37: 1.48 | BF37: 2003-05-05 | BG37: 2003-08-05 | BH37: 2003-07-23 | BI37: 2003-08-05 | BJ37: 0.057 | BK37: 1.44 | BL37: 2003-08-05 | BM37: 2003-11-05 | BN37: 2003-10-23 | BO37: 2003-11-05 | BP37: 0.0505 | BQ37: 1.27 | BR37: 2003-11-05 | BS37: 2004-02-05 | BT37: 2004-01-23 | BU37: 2004-02-05 | BV37: 0.0504 | BW37: 1.27
A38: TZ0504 | B38: PL0000102091 | C38: 2004-05-05 | D38: 2001-05-04 | E38: 2001-08-05 | F38: 2001-08-01 | G38: 2001-08-14 | H38: 0.1651 | I38: 4.21 | J38: 2001-08-05 | K38: 2001-11-05 | L38: 2001-10-22 | M38: 2001-11-05 | N38: 0.1511 | O38: 3.81 | P38: 2001-11-05 | Q38: 2002-02-05 | R38: 2002-01-23 | S38: 2002-02-05 | T38: 0.1327 | U38: 3.34 | V38: 2002-02-05 | W38: 2002-05-05 | X38: 2002-04-19 | Y38: 2002-05-05 | Z38: 0.104 | AA38: 2.54 | AB38: 2002-05-05 | AC38: 2002-08-05 | AD38: 2002-07-23 | AE38: 2002-08-05 | AF38: 0.0968 | AG38: 2.44 | AH38: 2002-08-05 | AI38: 2002-11-05 | AJ38: 2002-10-23 | AK38: 2002-11-05 | AL38: 0.0857 | AM38: 2.16 | AN38: 2002-11-05 | AO38: 2003-02-05 | AP38: 2003-01-23 | AQ38: 2003-02-05 | AR38: 0.0721 | AS38: 1.82 | AT38: 2003-02-05 | AU38: 2003-05-05 | AV38: 2003-04-18 | AW38: 2003-05-05 | AX38: 0.0609 | AY38: 1.48 | AZ38: 2003-05-05 | BA38: 2003-08-05 | BB38: 2003-07-23 | BC38: 2003-08-05 | BD38: 0.057 | BE38: 1.44 | BF38: 2003-08-05 | BG38: 2003-11-05 | BH38: 2003-10-23 | BI38: 2003-11-05 | BJ38: 0.0505 | BK38: 1.27 | BL38: 2003-11-05 | BM38: 2004-02-05 | BN38: 2004-01-23 | BO38: 2004-02-05 | BP38: 0.0504 | BQ38: 1.27 | BR38: 2004-02-05 | BS38: 2004-05-05 | BT38: 2004-04-20 | BU38: 2004-05-05 | BV38: 0.053 | BW38: 1.3 | BX38: - | BY38: - | BZ38: - | CA38: - | CB38: - | CC38: - | CD38: - | CE38: - | CF38: - | CG38: - | CH38: - | CI38: - | CJ38: - | CK38: - | CL38: - | CM38: - | CN38: - | CO38: - | CP38: - | CQ38: - | CR38: - | CS38: - | CT38: - | CU38: -
A39: TZ0804 | B39: PL0000102182 | C39: 2004-08-05 | D39: 2001-08-01 | E39: 2001-11-05 | F39: 2001-10-25 | G39: 2001-11-12 | H39: 0.1435 | I39: 3.77 | J39: 2001-11-05 | K39: 2002-02-05 | L39: 2002-01-23 | M39: 2002-02-05 | N39: 0.1261 | O39: 3.18 | P39: 2002-02-05 | Q39: 2002-05-05 | R39: 2002-04-19 | S39: 2002-05-05 | T39: 0.0988 | U39: 2.41 | V39: 2002-05-05 | W39: 2002-08-05 | X39: 2002-07-23 | Y39: 2002-08-05 | Z39: 0.092 | AA39: 2.32 | AB39: 2002-08-05 | AC39: 2002-11-05 | AD39: 2002-10-23 | AE39: 2002-11-05 | AF39: 0.0814 | AG39: 2.05 | AH39: 2002-11-05 | AI39: 2003-02-05 | AJ39: 2003-01-23 | AK39: 2003-02-05 | AL39: 0.0685 | AM39: 1.73 | AN39: 2003-02-05 | AO39: 2003-05-05 | AP39: 2003-04-18 | AQ39: 2003-05-05 | AR39: 0.0579 | AS39: 1.41 | AT39: 2003-05-05 | AU39: 2003-08-05 | AV39: 2003-07-23 | AW39: 2003-08-05 | AX39: 0.0542 | AY39: 1.37 | AZ39: 2003-08-05 | BA39: 2003-11-05 | BB39: 2003-10-23 | BC39: 2003-11-05 | BD39: 0.048 | BE39: 1.21 | BF39: 2003-11-05 | BG39: 2004-02-05 | BH39: 2004-01-23 | BI39: 2004-02-05 | BJ39: 0.0479 | BK39: 1.21 | BL39: 2004-02-05 | BM39: 2004-05-05 | BN39: 2004-04-20 | BO39: 2004-05-05 | BP39: 0.0504 | BQ39: 1.24 | BR39: 2004-05-05 | BS39: 2004-08-05 | BT39: 2004-07-23 | BU39: 2004-08-05 | BV39: 0.0507 | BW39: 1.27 | BX39: - | BY39: - | BZ39: - | CA39: - | CB39: - | CC39: - | CD39: - | CE39: - | CF39: - | CG39: - | CH39: - | CI39: - | CJ39: - | CK39: - | CL39: - | CM39: - | CN39: - | CO39: - | CP39: - | CQ39: - | CR39: - | CS39: - | CT39: - | CU39: -
A40: TZ1104 | B40: PL0000102281 | C40: 2004-11-05 | D40: 2001-11-02 | E40: 2002-02-05 | F40: 2002-01-31 | G40: 2002-02-14 | H40: 0.1261 | I40: 3.28 | J40: 2002-02-05 | K40: 2002-05-05 | L40: 2002-04-19 | M40: 2002-05-05 | N40: 0.0988 | O40: 2.41 | P40: 2002-05-05 | Q40: 2002-08-05 | R40: 2002-07-23 | S40: 2002-08-05 | T40: 0.092 | U40: 2.32 | V40: 2002-08-05 | W40: 2002-11-05 | X40: 2002-10-23 | Y40: 2002-11-05 | Z40: 0.0814 | AA40: 2.05 | AB40: 2002-11-05 | AC40: 2003-02-05 | AD40: 2003-01-23 | AE40: 2003-02-05 | AF40: 0.0685 | AG40: 1.73 | AH40: 2003-02-05 | AI40: 2003-05-05 | AJ40: 2003-04-18 | AK40: 2003-05-05 | AL40: 0.0579 | AM40: 1.41 | AN40: 2003-05-05 | AO40: 2003-08-05 | AP40: 2003-07-23 | AQ40: 2003-08-05 | AR40: 0.0542 | AS40: 1.37 | AT40: 2003-08-05 | AU40: 2003-11-05 | AV40: 2003-10-23 | AW40: 2003-11-05 | AX40: 0.048 | AY40: 1.21 | AZ40: 2003-11-05 | BA40: 2004-02-05 | BB40: 2004-01-23 | BC40: 2004-02-05 | BD40: 0.0479 | BE40: 1.21 | BF40: 2004-02-05 | BG40: 2004-05-05 | BH40: 2004-04-20 | BI40: 2004-05-05 | BJ40: 0.0504 | BK40: 1.24 | BL40: 2004-05-05 | BM40: 2004-08-05 | BN40: 2004-07-23 | BO40: 2004-08-05 | BP40: 0.0507 | BQ40: 1.27 | BR40: 2004-08-05 | BS40: 2004-11-05 | BT40: 2004-10-22 | BU40: 2004-11-05 | BV40: 0.0551 | BW40: 1.39 | BX40: - | BY40: - | BZ40: - | CA40: - | CB40: - | CC40: - | CD40: - | CE40: - | CF40: - | CG40: - | CH40: - | CI40: - | CJ40: - | CK40: - | CL40: - | CM40: - | CN40: - | CO40: - | CP40: - | CQ40: - | CR40: - | CS40: - | CT40: - | CU40: -
A41: TZ0205 | B41: PL0000102406 | C41: 2005-02-05 | D41: 2002-02-01 | E41: 2002-05-05 | F41: 2002-04-25 | G41: 2002-05-13 | H41: 0.1015 | I41: 2.59 | J41: 2002-05-05 | K41: 2002-08-05 | L41: 2002-07-23 | M41: 2002-08-05 | N41: 0.092 | O41: 2.32 | P41: 2002-08-05 | Q41: 2002-11-05 | R41: 2002-10-23 | S41: 2002-11-05 | T41: 0.0814 | U41: 2.05 | V41: 2002-11-05 | W41: 2003-02-05 | X41: 2003-01-23 | Y41: 2003-02-05 | Z41: 0.0685 | AA41: 1.73 | AB41: 2003-02-05 | AC41: 2003-05-05 | AD41: 2003-04-18 | AE41: 2003-05-05 | AF41: 0.0579 | AG41: 1.41 | AH41: 2003-05-05 | AI41: 2003-08-05 | AJ41: 2003-07-23 | AK41: 2003-08-05 | AL41: 0.0542 | AM41: 1.37 | AN41: 2003-08-05 | AO41: 2003-11-05 | AP41: 2003-10-23 | AQ41: 2003-11-05 | AR41: 0.048 | AS41: 1.21 | AT41: 2003-11-05 | AU41: 2004-02-05 | AV41: 2004-01-23 | AW41: 2004-02-05 | AX41: 0.0479 | AY41: 1.21 | AZ41: 2004-02-05 | BA41: 2004-05-05 | BB41: 2004-04-20 | BC41: 2004-05-05 | BD41: 0.0504 | BE41: 1.24 | BF41: 2004-05-05 | BG41: 2004-08-05 | BH41: 2004-07-23 | BI41: 2004-08-05 | BJ41: 0.0507 | BK41: 1.27 | BL41: 2004-08-05 | BM41: 2004-11-05 | BN41: 2004-10-22 | BO41: 2004-11-05 | BP41: 0.0551 | BQ41: 1.39 | BR41: 2004-11-05 | BS41: 2005-02-05 | BT41: 2005-01-24 | BU41: 2005-02-05 | BV41: 0.0629 | BW41: 1.58 | BX41: - | BY41: - | BZ41: - | CA41: - | CB41: - | CC41: - | CD41: - | CE41: - | CF41: - | CG41: - | CH41: - | CI41: - | CJ41: - | CK41: - | CL41: - | CM41: - | CN41: - | CO41: - | CP41: - | CQ41: - | CR41: - | CS41: - | CT41: - | CU41: -
A42: TZ0505 | B42: PL0000102596 | C42: 2005-05-05 | D42: 2002-05-06 | E42: 2002-08-05 | F42: 2002-07-25 | G42: 2002-08-08 | H42: 0.092 | I42: 2.29 | J42: 2002-08-05 | K42: 2002-11-05 | L42: 2002-10-23 | M42: 2002-11-05 | N42: 0.0814 | O42: 2.05 | P42: 2002-11-05 | Q42: 2003-02-05 | R42: 2003-01-23 | S42: 2003-02-05 | T42: 0.0685 | U42: 1.73 | V42: 2003-02-05 | W42: 2003-05-05 | X42: 2003-04-18 | Y42: 2003-05-05 | Z42: 0.0579 | AA42: 1.41 | AB42: 2003-05-05 | AC42: 2003-08-05 | AD42: 2003-07-23 | AE42: 2003-08-05 | AF42: 0.0542 | AG42: 1.37 | AH42: 2003-08-05 | AI42: 2003-11-05 | AJ42: 2003-10-23 | AK42: 2003-11-05 | AL42: 0.048 | AM42: 1.21 | AN42: 2003-11-05 | AO42: 2004-02-05 | AP42: 2004-01-23 | AQ42: 2004-02-05 | AR42: 0.0479 | AS42: 1.21 | AT42: 2004-02-05 | AU42: 2004-05-05 | AV42: 2004-04-20 | AW42: 2004-05-05 | AX42: 0.0504 | AY42: 1.24 | AZ42: 2004-05-05 | BA42: 2004-08-05 | BB42: 2004-07-23 | BC42: 2004-08-05 | BD42: 0.0507 | BE42: 1.27 | BF42: 2004-08-05 | BG42: 2004-11-05 | BH42: 2004-10-22 | BI42: 2004-11-05 | BJ42: 0.0551 | BK42: 1.39 | BL42: 2004-11-05 | BM42: 2005-02-05 | BN42: 2005-01-24 | BO42: 2005-02-05 | BP42: 0.0629 | BQ42: 1.58 | BR42: 2005-02-05 | BS42: 2005-05-05 | BT42: 2005-04-20 | BU42: 2005-05-05 | BV42: 0.0596 | BW42: 1.45 | BX42: - | BY42: - | BZ42: - | CA42: - | CB42: - | CC42: - | CD42: - | CE42: - | CF42: - | CG42: - | CH42: - | CI42: - | CJ42: - | CK42: - | CL42: - | CM42: - | CN42: - | CO42: - | CP42: - | CQ42: - | CR42: - | CS42: - | CT42: - | CU42: -
A43: TZ0805 | B43: PL0000102711 | C43: 2005-08-05 | D43: 2002-08-01 | E43: 2002-11-05 | F43: 2002-10-31 | G43: 2002-11-15 | H43: 0.0814 | I43: 2.14 | J43: 2002-11-05 | K43: 2003-02-05 | L43: 2003-01-23 | M43: 2003-02-05 | N43: 0.0685 | O43: 1.73 | P43: 2003-02-05 | Q43: 2003-05-05 | R43: 2003-04-18 | S43: 2003-05-05 | T43: 0.0579 | U43: 1.41 | V43: 2003-05-05 | W43: 2003-08-05 | X43: 2003-07-23 | Y43: 2003-08-05 | Z43: 0.0542 | AA43: 1.37 | AB43: 2003-08-05 | AC43: 2003-11-05 | AD43: 2003-10-23 | AE43: 2003-11-05 | AF43: 0.048 | AG43: 1.21 | AH43: 2003-11-05 | AI43: 2004-02-05 | AJ43: 2004-01-23 | AK43: 2004-02-05 | AL43: 0.0479 | AM43: 1.21 | AN43: 2004-02-05 | AO43: 2004-05-05 | AP43: 2004-04-20 | AQ43: 2004-05-05 | AR43: 0.0504 | AS43: 1.24 | AT43: 2004-05-05 | AU43: 2004-08-05 | AV43: 2004-07-23 | AW43: 2004-08-05 | AX43: 0.0507 | AY43: 1.27 | AZ43: 2004-08-05 | BA43: 2004-11-05 | BB43: 2004-10-22 | BC43: 2004-11-05 | BD43: 0.0551 | BE43: 1.39 | BF43: 2004-11-05 | BG43: 2005-02-05 | BH43: 2005-01-24 | BI43: 2005-02-05 | BJ43: 0.0629 | BK43: 1.58 | BL43: 2005-02-05 | BM43: 2005-05-05 | BN43: 2005-04-20 | BO43: 2005-05-05 | BP43: 0.0596 | BQ43: 1.45 | BR43: 2005-05-05 | BS43: 2005-08-05 | BT43: 2005-07-22 | BU43: 2005-08-05 | BV43: 0.0524 | BW43: 1.32 | BX43: - | BY43: - | BZ43: - | CA43: - | CB43: - | CC43: - | CD43: - | CE43: - | CF43: - | CG43: - | CH43: - | CI43: - | CJ43: - | CK43: - | CL43: - | CM43: - | CN43: - | CO43: - | CP43: - | CQ43: - | CR43: - | CS43: - | CT43: - | CU43: -
A44: TZ1105 | B44: PL0000102802 | C44: 2005-11-05 | D44: 2002-11-04 | E44: 2003-02-05 | F44: 2003-01-30 | G44: 2003-02-13 | H44: 0.0685 | I44: 1.75 | J44: 2003-02-05 | K44: 2003-05-05 | L44: 2003-04-18 | M44: 2003-05-05 | N44: 0.0579 | O44: 1.41 | P44: 2003-05-05 | Q44: 2003-08-05 | R44: 2003-07-23 | S44: 2003-08-05 | T44: 0.0542 | U44: 1.37 | V44: 2003-08-05 | W44: 2003-11-05 | X44: 2003-10-23 | Y44: 2003-11-05 | Z44: 0.048 | AA44: 1.21 | AB44: 2003-11-05 | AC44: 2004-02-05 | AD44: 2004-01-23 | AE44: 2004-02-05 | AF44: 0.0479 | AG44: 1.21 | AH44: 2004-02-05 | AI44: 2004-05-05 | AJ44: 2004-04-20 | AK44: 2004-05-05 | AL44: 0.0504 | AM44: 1.24 | AN44: 2004-05-05 | AO44: 2004-08-05 | AP44: 2004-07-23 | AQ44: 2004-08-05 | AR44: 0.0507 | AS44: 1.27 | AT44: 2004-08-05 | AU44: 2004-11-05 | AV44: 2004-10-22 | AW44: 2004-11-05 | AX44: 0.0551 | AY44: 1.39 | AZ44: 2004-11-05 | BA44: 2005-02-05 | BB44: 2005-01-24 | BC44: 2005-02-05 | BD44: 0.0629 | BE44: 1.58 | BF44: 2005-02-05 | BG44: 2005-05-05 | BH44: 2005-04-20 | BI44: 2005-05-05 | BJ44: 0.0596 | BK44: 1.45 | BL44: 2005-05-05 | BM44: 2005-08-05 | BN44: 2005-07-22 | BO44: 2005-08-05 | BP44: 0.0524 | BQ44: 1.32 | BR44: 2005-08-05 | BS44: 2005-11-05 | BT44: 2005-10-24 | BU44: 2005-11-05 | BV44: 0.0427 | BW44: 1.08 | BX44: - | BY44: - | BZ44: - | CA44: - | CB44: - | CC44: - | CD44: - | CE44: - | CF44: - | CG44: - | CH44: - | CI44: - | CJ44: - | CK44: - | CL44: - | CM44: - | CN44: - | CO44: - | CP44: - | CQ44: - | CR44: - | CS44: - | CT44: - | CU44: -
A45: TZ0206 | B45: PL0000102919 | C45: 2006-02-05 | D45: 2003-02-03 | E45: 2003-05-05 | F45: 2003-04-25 | G45: 2003-05-09 | H45: 0.0579 | I45: 1.44 | J45: 2003-05-05 | K45: 2003-08-05 | L45: 2003-07-23 | M45: 2003-08-05 | N45: 0.0542 | O45: 1.37 | P45: 2003-08-05 | Q45: 2003-11-05 | R45: 2003-10-23 | S45: 2003-11-05 | T45: 0.048 | U45: 1.21 | V45: 2003-11-05 | W45: 2004-02-05 | X45: 2004-01-23 | Y45: 2004-02-05 | Z45: 0.0479 | AA45: 1.21 | AB45: 2004-02-05 | AC45: 2004-05-05 | AD45: 2004-04-20 | AE45: 2004-05-05 | AF45: 0.0504 | AG45: 1.24 | AH45: 2004-05-05 | AI45: 2004-08-05 | AJ45: 2004-07-23 | AK45: 2004-08-05 | AL45: 0.0507 | AM45: 1.27 | AN45: 2004-08-05 | AO45: 2004-11-05 | AP45: 2004-10-22 | AQ45: 2004-11-05 | AR45: 0.0551 | AS45: 1.39 | AT45: 2004-11-05 | AU45: 2005-02-05 | AV45: 2005-01-24 | AW45: 2005-02-05 | AX45: 0.0629 | AY45: 1.58 | AZ45: 2005-02-05 | BA45: 2005-05-05 | BB45: 2005-04-20 | BC45: 2005-05-05 | BD45: 0.0596 | BE45: 1.45 | BF45: 2005-05-05 | BG45: 2005-08-05 | BH45: 2005-07-22 | BI45: 2005-08-05 | BJ45: 0.0524 | BK45: 1.32 | BL45: 2005-08-05 | BM45: 2005-11-05 | BN45: 2005-10-24 | BO45: 2005-11-05 | BP45: 0.0427 | BQ45: 1.08 | BR45: 2005-11-05 | BS45: 2006-02-05 | BT45: 2006-01-23 | BU45: 2006-02-05 | BV45: 0.0397 | BW45: 1 | BX45: - | BY45: - | BZ45: - | CA45: - | CB45: - | CC45: - | CD45: - | CE45: - | CF45: - | CG45: - | CH45: - | CI45: - | CJ45: - | CK45: - | CL45: - | CM45: - | CN45: - | CO45: - | CP45: - | CQ45: - | CR45: - | CS45: - | CT45: - | CU45: -
A46: TZ0506 | B46: PL0000102992 | C46: 2006-05-05 | D46: 2003-05-05 | E46: 2003-08-05 | F46: 2003-07-31 | G46: 2003-08-14 | H46: 0.0542 | I46: 1.37 | J46: 2003-08-05 | K46: 2003-11-05 | L46: 2003-10-23 | M46: 2003-11-05 | N46: 0.048 | O46: 1.21 | P46: 2003-11-05 | Q46: 2004-02-05 | R46: 2004-01-23 | S46: 2004-02-05 | T46: 0.0479 | U46: 1.21 | V46: 2004-02-05 | W46: 2004-05-05 | X46: 2004-04-20 | Y46: 2004-05-05 | Z46: 0.0504 | AA46: 1.24 | AB46: 2004-05-05 | AC46: 2004-08-05 | AD46: 2004-07-23 | AE46: 2004-08-05 | AF46: 0.0507 | AG46: 1.27 | AH46: 2004-08-05 | AI46: 2004-11-05 | AJ46: 2004-10-22 | AK46: 2004-11-05 | AL46: 0.0551 | AM46: 1.39 | AN46: 2004-11-05 | AO46: 2005-02-05 | AP46: 2005-01-24 | AQ46: 2005-02-05 | AR46: 0.0629 | AS46: 1.58 | AT46: 2005-02-05 | AU46: 2005-05-05 | AV46: 2005-04-20 | AW46: 2005-05-05 | AX46: 0.0596 | AY46: 1.45 | AZ46: 2005-05-05 | BA46: 2005-08-05 | BB46: 2005-07-22 | BC46: 2005-08-05 | BD46: 0.0524 | BE46: 1.32 | BF46: 2005-08-05 | BG46: 2005-11-05 | BH46: 2005-10-24 | BI46: 2005-11-05 | BJ46: 0.0427 | BK46: 1.08 | BL46: 2005-11-05 | BM46: 2006-02-05 | BN46: 2006-01-23 | BO46: 2006-02-05 | BP46: 0.0397 | BQ46: 1 | BR46: 2006-02-05 | BS46: 2006-05-05 | BT46: 2006-04-19 | BU46: 2006-05-05 | BV46: 0.0405 | BW46: 0.99 | BX46: - | BY46: - | BZ46: - | CA46: - | CB46: - | CC46: - | CD46: - | CE46: - | CF46: - | CG46: - | CH46: - | CI46: - | CJ46: - | CK46: - | CL46: - | CM46: - | CN46: - | CO46: - | CP46: - | CQ46: - | CR46: - | CS46: - | CT46: - | CU46: -
A47: TZ0806 | B47: PL0000103115 | C47: 2006-08-05 | D47: 2003-08-01 | E47: 2004-02-05 | F47: 2004-01-29 | G47: 2004-02-05 | H47: 0.0464 | I47: 2.39 | J47: 2004-02-05 | K47: 2004-08-05 | L47: 2004-07-29 | M47: 2004-08-05 | N47: 0.0497 | O47: 2.47 | P47: 2004-08-05 | Q47: 2005-02-05 | R47: 2005-01-31 | S47: 2005-02-05 | T47: 0.0615 | U47: 3.09 | V47: 2005-02-05 | W47: 2005-08-05 | X47: 2005-07-29 | Y47: 2005-08-05 | Z47: 0.0594 | AA47: 2.95 | AB47: 2005-08-05 | AC47: 2006-02-05 | AD47: 2006-01-30 | AE47: 2006-02-05 | AF47: 0.0413 | AG47: 2.08 | AH47: 2006-02-05 | AI47: 2006-08-05 | AJ47: 2006-07-31 | AK47: 2006-08-05 | AL47: 0.0397 | AM47: 1.97 | AN47: - | AO47: - | AP47: - | AQ47: - | AR47: - | AS47: - | AT47: - | AU47: - | AV47: - | AW47: - | AX47: - | AY47: - | AZ47: - | BA47: - | BB47: - | BC47: - | BD47: - | BE47: - | BF47: - | BG47: - | BH47: - | BI47: - | BJ47: - | BK47: - | BL47: - | BM47: - | BN47: - | BO47: - | BP47: - | BQ47: - | BR47: - | BS47: - | BT47: - | BU47: - | BV47: - | BW47: - | BX47: - | BY47: - | BZ47: - | CA47: - | CB47: - | CC47: - | CD47: - | CE47: - | CF47: - | CG47: - | CH47: - | CI47: - | CJ47: - | CK47: - | CL47: - | CM47: - | CN47: - | CO47: - | CP47: - | CQ47: - | CR47: - | CS47: - | CT47: - | CU47: -
A48: TZ1106 | B48: PL0000103214 | C48: 2006-11-05 | D48: 2003-11-03 | E48: 2004-05-05 | F48: 2004-04-27 | G48: 2004-05-05 | H48: 0.0535 | I48: 2.7 | J48: 2004-05-05 | K48: 2004-11-05 | L48: 2004-10-28 | M48: 2004-11-05 | N48: 0.0581 | O48: 2.92 | P48: 2004-11-05 | Q48: 2005-05-05 | R48: 2005-04-27 | S48: 2005-05-05 | T48: 0.0685 | U48: 3.39 | V48: 2005-05-05 | W48: 2005-11-05 | X48: 2005-10-28 | Y48: 2005-11-05 | Z48: 0.0545 | AA48: 2.75 | AB48: 2005-11-05 | AC48: 2006-05-05 | AD48: 2006-04-26 | AE48: 2006-05-05 | AF48: 0.0444 | AG48: 2.2 | AH48: 2006-05-05 | AI48: 2006-11-05 | AJ48: 2006-10-27 | AK48: 2006-11-05 | AL48: 0.0407 | AM48: 2.05 | AN48: - | AO48: - | AP48: - | AQ48: - | AR48: - | AS48: - | AT48: - | AU48: - | AV48: - | AW48: - | AX48: - | AY48: - | AZ48: - | BA48: - | BB48: - | BC48: - | BD48: - | BE48: - | BF48: - | BG48: - | BH48: - | BI48: - | BJ48: - | BK48: - | BL48: - | BM48: - | BN48: - | BO48: - | BP48: - | BQ48: - | BR48: - | BS48: - | BT48: - | BU48: - | BV48: - | BW48: - | BX48: - | BY48: - | BZ48: - | CA48: - | CB48: - | CC48: - | CD48: - | CE48: - | CF48: - | CG48: - | CH48: - | CI48: - | CJ48: - | CK48: - | CL48: - | CM48: - | CN48: - | CO48: - | CP48: - | CQ48: - | CR48: - | CS48: - | CT48: - | CU48: -
A49: TZ0207 | B49: PL0000103339 | C49: 2007-02-05 | D49: 2004-02-02 | E49: 2004-08-05 | F49: 2004-07-28 | G49: 2004-08-05 | H49: 0.0548 | I49: 2.77 | J49: 2004-08-05 | K49: 2005-02-05 | L49: 2005-01-28 | M49: 2005-02-05 | N49: 0.0676 | O49: 3.41 | P49: 2005-02-05 | Q49: 2005-08-05 | R49: 2005-07-28 | S49: 2005-08-05 | T49: 0.0653 | U49: 3.24 | V49: 2005-08-05 | W49: 2006-02-05 | X49: 2006-01-27 | Y49: 2006-02-05 | Z49: 0.0454 | AA49: 2.29 | AB49: 2006-02-05 | AC49: 2006-08-05 | AD49: 2006-07-28 | AE49: 2006-08-05 | AF49: 0.0437 | AG49: 2.17 | AH49: 2006-08-05 | AI49: 2007-02-05 | AJ49: 2007-01-26 | AK49: 2007-02-05 | AL49: 0.0422 | AM49: 2.13 | AN49: - | AO49: - | AP49: - | AQ49: - | AR49: - | AS49: - | AT49: - | AU49: - | AV49: - | AW49: - | AX49: - | AY49: - | AZ49: - | BA49: - | BB49: - | BC49: - | BD49: - | BE49: - | BF49: - | BG49: - | BH49: - | BI49: - | BJ49: - | BK49: - | BL49: - | BM49: - | BN49: - | BO49: - | BP49: - | BQ49: - | BR49: - | BS49: - | BT49: - | BU49: - | BV49: - | BW49: - | BX49: - | BY49: - | BZ49: - | CA49: - | CB49: - | CC49: - | CD49: - | CE49: - | CF49: - | CG49: - | CH49: - | CI49: - | CJ49: - | CK49: - | CL49: - | CM49: - | CN49: - | CO49: - | CP49: - | CQ49: - | CR49: - | CS49: - | CT49: - | CU49: -
A50: TZ0507 | B50: PL0000103420 | C50: 2007-05-05 | D50: 2004-05-04 | E50: 2004-11-05 | F50: 2004-10-27 | G50: 2004-11-05 | H50: 0.0592 | I50: 2.99 | J50: 2004-11-05 | K50: 2005-05-05 | L50: 2005-04-26 | M50: 2005-05-05 | N50: 0.0699 | O50: 3.47 | P50: 2005-05-05 | Q50: 2005-11-05 | R50: 2005-10-27 | S50: 2005-11-05 | T50: 0.0556 | U50: 2.8 | V50: 2005-11-05 | W50: 2006-05-05 | X50: 2006-04-25 | Y50: 2006-05-05 | Z50: 0.0453 | AA50: 2.25 | AB50: 2006-05-05 | AC50: 2006-11-05 | AD50: 2006-10-26 | AE50: 2006-11-05 | AF50: 0.0415 | AG50: 2.09 | AH50: 2006-11-05 | AI50: 2007-05-05 | AJ50: 2007-04-25 | AK50: 2007-05-05 | AL50: 0.0437 | AM50: 2.17 | AN50: - | AO50: - | AP50: - | AQ50: - | AR50: - | AS50: - | AT50: - | AU50: - | AV50: - | AW50: - | AX50: - | AY50: - | AZ50: - | BA50: - | BB50: - | BC50: - | BD50: - | BE50: - | BF50: - | BG50: - | BH50: - | BI50: - | BJ50: - | BK50: - | BL50: - | BM50: - | BN50: - | BO50: - | BP50: - | BQ50: - | BR50: - | BS50: - | BT50: - | BU50: - | BV50: - | BW50: - | BX50: - | BY50: - | BZ50: - | CA50: - | CB50: - | CC50: - | CD50: - | CE50: - | CF50: - | CG50: - | CH50: - | CI50: - | CJ50: - | CK50: - | CL50: - | CM50: - | CN50: - | CO50: - | CP50: - | CQ50: - | CR50: - | CS50: - | CT50: - | CU50: -
A51: TZ0807 | B51: PL0000103495 | C51: 2007-08-05 | D51: 2004-08-02 | E51: 2005-02-05 | F51: 2005-01-28 | G51: 2005-02-05 | H51: 0.0683 | I51: 3.5 | J51: 2005-02-05 | K51: 2005-08-05 | L51: 2005-07-28 | M51: 2005-08-05 | N51: 0.066 | O51: 3.27 | P51: 2005-08-05 | Q51: 2006-02-05 | R51: 2006-01-27 | S51: 2006-02-05 | T51: 0.0459 | U51: 2.31 | V51: 2006-02-05 | W51: 2006-08-05 | X51: 2006-07-28 | Y51: 2006-08-05 | Z51: 0.0441 | AA51: 2.19 | AB51: 2006-08-05 | AC51: 2007-02-05 | AD51: 2007-01-26 | AE51: 2007-02-05 | AF51: 0.0426 | AG51: 2.15 | AH51: 2007-02-05 | AI51: 2007-08-05 | AJ51: 2007-07-27 | AK51: 2007-08-05 | AL51: 0.0428 | AM51: 2.12
A52: TZ1107 | B52: PL0000103636 | C52: 2007-11-05 | D52: 2004-11-02 | E52: 2005-05-05 | F52: 2005-04-26 | G52: 2005-05-05 | H52: 0.0698 | I52: 3.52 | J52: 2005-05-05 | K52: 2005-11-05 | L52: 2005-10-27 | M52: 2005-11-05 | N52: 0.0556 | O52: 2.8 | P52: 2005-11-05 | Q52: 2006-05-05 | R52: 2006-04-25 | S52: 2006-05-05 | T52: 0.0453 | U52: 2.25 | V52: 2006-05-05 | W52: 2006-11-05 | X52: 2006-10-26 | Y52: 2006-11-05 | Z52: 0.0415 | AA52: 2.09 | AB52: 2006-11-05 | AC52: 2007-05-05 | AD52: 2007-04-25 | AE52: 2007-05-05 | AF52: 0.0437 | AG52: 2.17 | AH52: 2007-05-05 | AI52: 2007-11-05 | AJ52: 2007-10-25 | AK52: 2007-11-05 | AL52: 0.0452 | AM52: 2.28
A53: TZ0208 | B53: PL0000103768 | C53: 2008-02-05 | D53: 2005-02-01 | E53: 2005-08-05 | F53: 2005-07-28 | G53: 2005-08-05 | H53: 0.0662 | I53: 3.36 | J53: 2005-08-05 | K53: 2006-02-05 | L53: 2006-01-27 | M53: 2006-02-05 | N53: 0.0459 | O53: 2.31 | P53: 2006-02-05 | Q53: 2006-08-05 | R53: 2006-07-28 | S53: 2006-08-05 | T53: 0.0441 | U53: 2.19 | V53: 2006-08-05 | W53: 2007-02-05 | X53: 2007-01-26 | Y53: 2007-02-05 | Z53: 0.0426 | AA53: 2.15 | AB53: 2007-02-05 | AC53: 2007-08-05 | AD53: 2007-07-27 | AE53: 2007-08-05 | AF53: 0.0428 | AG53: 2.12 | AH53: 2007-08-05 | AI53: 2008-02-05 | AJ53: 2008-01-28 | AK53: 2008-02-05 | AL53: 0.0494 | AM53: 2.48
A54: TZ0508 | B54: PL0000103891 | C54: 2008-05-05 | D54: 2005-05-02 | E54: 2005-11-05 | F54: 2005-10-27 | G54: 2005-11-05 | H54: 0.0555 | I54: 2.84 | J54: 2005-11-05 | K54: 2006-05-05 | L54: 2006-04-25 | M54: 2006-05-05 | N54: 0.0448 | O54: 2.22 | P54: 2006-05-05 | Q54: 2006-11-05 | R54: 2006-10-26 | S54: 2006-11-05 | T54: 0.0411 | U54: 2.07 | V54: 2006-11-05 | W54: 2007-05-05 | X54: 2007-04-25 | Y54: 2007-05-05 | Z54: 0.0433 | AA54: 2.15 | AB54: 2007-05-05 | AC54: 2007-11-05 | AD54: 2007-10-25 | AE54: 2007-11-05 | AF54: 0.0447 | AG54: 2.25 | AH54: 2007-11-05 | AI54: 2008-05-05 | AJ54: 2008-04-24 | AK54: 2008-05-05 | AL54: 0.0527 | AM54: 2.62
A55: TZ0808 | B55: PL0000104006 | C55: 2008-08-05 | D55: 2005-08-01 | E55: 2006-02-05 | F55: 2006-01-27 | G55: 2006-02-05 | H55: 0.044 | I55: 2.27 | J55: 2006-02-05 | K55: 2006-08-05 | L55: 2006-07-28 | M55: 2006-08-05 | N55: 0.0432 | O55: 2.14 | P55: 2006-08-05 | Q55: 2007-02-05 | R55: 2007-01-26 | S55: 2007-02-05 | T55: 0.0417 | U55: 2.1 | V55: 2007-02-05 | W55: 2007-08-05 | X55: 2007-07-27 | Y55: 2007-08-05 | Z55: 0.0419 | AA55: 2.08 | AB55: 2007-08-05 | AC55: 2008-02-05 | AD55: 2008-01-28 | AE55: 2008-02-05 | AF55: 0.0484 | AG55: 2.43 | AH55: 2008-02-05 | AI55: 2008-08-05 | AJ55: 2008-07-28 | AK55: 2008-08-05 | AL55: 0.0576 | AM55: 2.86
A56: TZ1108 | B56: PL0000104121 | C56: 2008-11-05 | D56: 2005-11-02 | E56: 2006-05-05 | F56: 2006-04-25 | G56: 2006-05-05 | H56: 0.0431 | I56: 2.17 | J56: 2006-05-05 | K56: 2006-11-05 | L56: 2006-10-26 | M56: 2006-11-05 | N56: 0.0398 | O56: 2.01 | P56: 2006-11-05 | Q56: 2007-05-05 | R56: 2007-04-25 | S56: 2007-05-05 | T56: 0.042 | U56: 2.08 | V56: 2007-05-05 | W56: 2007-11-05 | X56: 2007-10-25 | Y56: 2007-11-05 | Z56: 0.0434 | AA56: 2.19 | AB56: 2007-11-05 | AC56: 2008-05-05 | AD56: 2008-04-24 | AE56: 2008-05-05 | AF56: 0.0511 | AG56: 2.54 | AH56: 2008-05-05 | AI56: 2008-11-05 | AJ56: 2008-10-28 | AK56: 2008-11-05 | AL56: 0.0625 | AM56: 3.14
A57: TZ0209 | B57: PL0000104246 | C57: 2009-02-05 | D57: 2006-02-01 | E57: 2006-08-05 | F57: 2006-07-28 | G57: 2006-08-05 | H57: 0.0409 | I57: 2.07 | J57: 2006-08-05 | K57: 2007-02-05 | L57: 2007-01-26 | M57: 2007-02-05 | N57: 0.0392 | O57: 1.98 | P57: 2007-02-05 | Q57: 2007-08-05 | R57: 2007-07-27 | S57: 2007-08-05 | T57: 0.0394 | U57: 1.95 | V57: 2007-08-05 | W57: 2008-02-05 | X57: 2008-01-28 | Y57: 2008-02-05 | Z57: 0.0454 | AA57: 2.28 | AB57: 2008-02-05 | AC57: 2008-08-05 | AD57: 2008-07-28 | AE57: 2008-08-05 | AF57: 0.0541 | AG57: 2.69 | AH57: 2008-08-05 | AI57: 2009-02-05 | AJ57: 2009-01-28 | AK57: 2009-02-05 | AL57: 0.0615 | AM57: 3.1
A58: TZ0509 | B58: PL0000104329 | C58: 2009-05-05 | D58: 2006-05-02 | E58: 2006-11-05 | F58: 2006-10-26 | G58: 2006-11-05 | H58: 0.0381 | I58: 1.95 | J58: 2006-11-05 | K58: 2007-05-05 | L58: 2007-04-25 | M58: 2007-05-05 | N58: 0.0402 | O58: 1.99 | P58: 2007-05-05 | Q58: 2007-11-05 | R58: 2007-10-25 | S58: 2007-11-05 | T58: 0.0416 | U58: 2.1 | V58: 2007-11-05 | W58: 2008-05-05 | X58: 2008-04-24 | Y58: 2008-05-05 | Z58: 0.0489 | AA58: 2.43 | AB58: 2008-05-05 | AC58: 2008-11-05 | AD58: 2008-10-28 | AE58: 2008-11-05 | AF58: 0.0599 | AG58: 3.01 | AH58: 2008-11-05 | AI58: 2009-05-05 | AJ58: 2009-04-24 | AK58: 2009-05-05 | AL58: 0.0632 | AM58: 3.13
A59: TZ0809 | B59: PL0000104436 | C59: 2009-08-01 | D59: 2006-08-01 | E59: 2007-02-01 | F59: 2007-01-24 | G59: 2007-02-01 | H59: 0.0397 | I59: 1.99 | J59: 2007-02-01 | K59: 2007-08-01 | L59: 2007-07-24 | M59: 2007-08-01 | N59: 0.0398 | O59: 1.99 | P59: 2007-08-01 | Q59: 2008-02-01 | R59: 2008-01-24 | S59: 2008-02-01 | T59: 0.0458 | U59: 2.29 | V59: 2008-02-01 | W59: 2008-08-01 | X59: 2008-07-24 | Y59: 2008-08-01 | Z59: 0.0551 | AA59: 2.76 | AB59: 2008-08-01 | AC59: 2009-02-01 | AD59: 2009-01-23 | AE59: 2009-02-01 | AF59: 0.0624 | AG59: 3.12 | AH59: 2009-02-01 | AI59: 2009-08-01 | AJ59: 2009-07-24 | AK59: 2009-08-01 | AL59: 0.0519 | AM59: 2.6
A60: TZ1109 | B60: PL0000104550 | C60: 2009-11-02 | D60: 2006-11-02 | E60: 2007-05-02 | F60: 2007-04-23 | G60: 2007-05-02 | H60: 0.0407 | I60: 2.04 | J60: 2007-05-02 | K60: 2007-11-02 | L60: 2007-10-24 | M60: 2007-11-02 | N60: 0.0419 | O60: 2.1 | P60: 2007-11-02 | Q60: 2008-05-02 | R60: 2008-04-23 | S60: 2008-05-02 | T60: 0.0495 | U60: 2.48 | V60: 2008-05-02 | W60: 2008-11-02 | X60: 2008-10-24 | Y60: 2008-11-02 | Z60: 0.0605 | AA60: 3.03 | AB60: 2008-11-02 | AC60: 2009-05-02 | AD60: 2009-04-23 | AE60: 2009-05-02 | AF60: 0.0638 | AG60: 3.19 | AH60: 2009-05-02 | AI60: 2009-11-02 | AJ60: 2009-10-23 | AK60: 2009-11-02 | AL60: 0.0405 | AM60: 2.03
A61: TZ0210 | B61: PL0000104667 | C61: 2010-02-01 | D61: 2007-02-01 | E61: 2007-08-01 | F61: 2007-07-24 | G61: 2007-08-01 | H61: 0.0398 | I61: 1.99 | J61: 2007-08-01 | K61: 2008-02-01 | L61: 2008-01-24 | M61: 2008-02-01 | N61: 0.0458 | O61: 2.29 | P61: 2008-02-01 | Q61: 2008-08-01 | R61: 2008-07-24 | S61: 2008-08-01 | T61: 0.0551 | U61: 2.76 | V61: 2008-08-01 | W61: 2009-02-01 | X61: 2009-01-23 | Y61: 2009-02-01 | Z61: 0.0624 | AA61: 3.12 | AB61: 2009-02-01 | AC61: 2009-08-01 | AD61: 2009-07-24 | AE61: 2009-08-01 | AF61: 0.0519 | AG61: 2.6 | AH61: 2009-08-01 | AI61: 2010-02-01 | AJ61: 2010-01-22 | AK61: 2010-02-01 | AL61: 0.0408 | AM61: 2.04
A62: TZ0510 | B62: PL0000104782 | C62: 2010-05-02 | D62: 2007-05-02 | E62: 2007-11-02 | F62: 2007-10-24 | G62: 2007-11-02 | H62: 0.0419 | I62: 2.1 | J62: 2007-11-02 | K62: 2008-05-02 | L62: 2008-04-23 | M62: 2008-05-02 | N62: 0.0495 | O62: 2.48 | P62: 2008-05-02 | Q62: 2008-11-02 | R62: 2008-10-24 | S62: 2008-11-02 | T62: 0.0605 | U62: 3.03 | V62: 2008-11-02 | W62: 2009-05-02 | X62: 2009-04-23 | Y62: 2009-05-02 | Z62: 0.0638 | AA62: 3.19 | AB62: 2009-05-02 | AC62: 2009-11-02 | AD62: 2009-10-23 | AE62: 2009-11-02 | AF62: 0.0405 | AG62: 2.03 | AH62: 2009-11-02 | AI62: 2010-05-02 | AJ62: 2009-04-23 | AK62: 2010-05-02 | AL62: 0.0402 | AM62: 2.01
A63: TZ0810 | B63: PL0000104923 | C63: 2010-08-01 | D63: 2007-08-01 | E63: 2008-02-01 | F63: 2008-01-24 | G63: 2008-02-01 | H63: 0.0458 | I63: 2.29 | J63: 2008-02-01 | K63: 2008-08-01 | L63: 2008-07-24 | M63: 2008-08-01 | N63: 0.0551 | O63: 2.76 | P63: 2008-08-01 | Q63: 2009-02-01 | R63: 2009-01-23 | S63: 2009-02-01 | T63: 0.0624 | U63: 3.12 | V63: 2009-02-01 | W63: 2009-08-01 | X63: 2009-07-24 | Y63: 2009-08-01 | Z63: 0.0519 | AA63: 2.6 | AB63: 2009-08-01 | AC63: 2010-02-01 | AD63: 2010-01-22 | AE63: 2010-02-01 | AF63: 0.0408 | AG63: 2.04 | AH63: 2010-02-01 | AI63: 2010-08-01 | AJ63: 2010-07-23 | AK63: 2010-08-01 | AL63: 0.0405 | AM63: 2.03
A64: TZ1110 | B64: PL0000104998 | C64: 2010-11-02 | D64: 2007-11-02 | E64: 2008-05-02 | F64: 2008-04-23 | G64: 2008-05-02 | H64: 0.0495 | I64: 2.48 | J64: 2008-05-02 | K64: 2008-11-02 | L64: 2008-10-24 | M64: 2008-11-02 | N64: 0.0605 | O64: 3.03 | P64: 2008-11-02 | Q64: 2009-05-02 | R64: 2009-04-23 | S64: 2009-05-02 | T64: 0.0638 | U64: 3.19 | V64: 2009-05-02 | W64: 2009-11-02 | X64: 2009-10-23 | Y64: 2009-11-02 | Z64: 0.0405 | AA64: 2.03 | AB64: 2009-11-02 | AC64: 2010-05-02 | AD64: 2010-04-23 | AE64: 2010-05-02 | AF64: 0.0402 | AG64: 2.01 | AH64: 2010-05-02 | AI64: 2010-11-02 | AJ64: 2010-10-22 | AK64: 2010-11-02 | AL64: 0.0377 | AM64: 1.89
A65: TZ0211 | B65: PL0000105110 | C65: 2011-02-01 | D65: 2008-02-01 | E65: 2008-08-01 | F65: 2008-07-24 | G65: 2008-08-01 | H65: 0.0551 | I65: 2.76 | J65: 2008-08-01 | K65: 2009-02-01 | L65: 2009-01-23 | M65: 2009-02-01 | N65: 0.0624 | O65: 3.12 | P65: 2009-02-01 | Q65: 2009-08-01 | R65: 2009-07-24 | S65: 2009-08-01 | T65: 0.0519 | U65: 2.6 | V65: 2009-08-01 | W65: 2010-02-01 | X65: 2010-01-22 | Y65: 2010-02-01 | Z65: 0.0408 | AA65: 2.04 | AB65: 2010-02-01 | AC65: 2010-08-01 | AD65: 2010-07-23 | AE65: 2010-08-01 | AF65: 0.0405 | AG65: 2.03 | AH65: 2010-08-01 | AI65: 2011-02-01 | AJ65: 2011-01-24 | AK65: 2011-02-01 | AL65: 0.0371 | AM65: 1.86
A66: TZ0511 | B66: PL0000105219 | C66: 2011-05-02 | D66: 2008-05-02 | E66: 2008-11-02 | F66: 2008-10-24 | G66: 2008-11-02 | H66: 0.0605 | I66: 3.03 | J66: 2008-11-02 | K66: 2009-05-02 | L66: 2009-04-23 | M66: 2009-05-02 | N66: 0.0638 | O66: 3.19 | P66: 2009-05-02 | Q66: 2009-11-02 | R66: 2009-10-23 | S66: 2009-11-02 | T66: 0.0405 | U66: 2.03 | V66: 2009-11-02 | W66: 2010-05-02 | X66: 2010-04-23 | Y66: 2010-05-02 | Z66: 0.0402 | AA66: 2.01 | AB66: 2010-05-02 | AC66: 2010-11-02 | AD66: 2010-10-22 | AE66: 2010-11-02 | AF66: 0.0377 | AG66: 1.89 | AH66: 2010-11-02 | AI66: 2011-05-02 | AJ66: 2011-04-21 | AK66: 2011-05-02 | AL66: 0.0377 | AM66: 1.89
A67: TZ0811 | B67: PL0000105342 | C67: 2011-08-01 | D67: 2008-08-01 | E67: 2009-02-01 | F67: 2009-01-23 | G67: 2009-02-01 | H67: 0.0624 | I67: 3.12 | J67: 2009-02-01 | K67: 2009-08-01 | L67: 2009-07-24 | M67: 2009-08-01 | N67: 0.0519 | O67: 2.6 | P67: 2009-08-01 | Q67: 2010-02-01 | R67: 2010-01-22 | S67: 2010-02-01 | T67: 0.0408 | U67: 2.04 | V67: 2010-02-01 | W67: 2010-08-01 | X67: 2010-07-23 | Y67: 2010-08-01 | Z67: 0.0405 | AA67: 2.03 | AB67: 2010-08-01 | AC67: 2011-02-01 | AD67: 2011-01-24 | AE67: 2011-02-01 | AF67: 0.0371 | AG67: 1.86 | AH67: 2011-02-01 | AI67: 2011-08-01 | AJ67: 2011-07-22 | AK67: 2011-08-01 | AL67: 0.0398 | AM67: 1.99
A68: TZ1111 | B68: PL0000105458 | C68: 2011-11-02 | D68: 2008-11-02 | E68: 2009-05-02 | F68: 2009-04-23 | G68: 2009-05-02 | H68: 0.0638 | I68: 3.19 | J68: 2009-05-02 | K68: 2009-11-02 | L68: 2009-10-23 | M68: 2009-11-02 | N68: 0.0405 | O68: 2.03 | P68: 2009-11-02 | Q68: 2010-05-02 | R68: 2010-04-23 | S68: 2010-05-02 | T68: 0.0402 | U68: 2.01 | V68: 2010-05-02 | W68: 2010-11-02 | X68: 2010-10-22 | Y68: 2010-11-02 | Z68: 0.0377 | AA68: 1.89 | AB68: 2010-11-02 | AC68: 2011-05-02 | AD68: 2011-04-21 | AE68: 2011-05-02 | AF68: 0.0377 | AG68: 1.89 | AH68: 2011-05-02 | AI68: 2011-11-02 | AJ68: 2011-10-24 | AK68: 2011-11-02 | AL68: 0.0419 | AM68: 2.1
A69: TZ0212 | B69: PL0000105565 | C69: 2012-02-01 | D69: 2009-02-01 | E69: 2009-08-01 | F69: 2009-07-24 | G69: 2009-08-01 | H69: 0.0519 | I69: 2.6 | J69: 2009-08-01 | K69: 2010-02-01 | L69: 2010-01-22 | M69: 2010-02-01 | N69: 0.0408 | O69: 2.04 | P69: 2010-02-01 | Q69: 2010-08-01 | R69: 2010-07-23 | S69: 2010-08-01 | T69: 0.0405 | U69: 2.03 | V69: 2010-08-01 | W69: 2011-02-01 | X69: 2011-01-24 | Y69: 2011-02-01 | Z69: 0.0371 | AA69: 1.86 | AB69: 2011-02-01 | AC69: 2011-08-01 | AD69: 2011-07-22 | AE69: 2011-08-01 | AF69: 0.0398 | AG69: 1.99 | AH69: 2011-08-01 | AI69: 2012-02-01 | AJ69: 2012-01-24 | AK69: 2012-02-01 | AL69: 0.0445 | AM69: 2.23
A70: TZ0512 | B70: PL0000105664 | C70: 2012-05-02 | D70: 2009-05-02 | E70: 2009-11-02 | F70: 2009-10-23 | G70: 2009-11-02 | H70: 0.0431 | I70: 2.16 | J70: 2009-11-02 | K70: 2010-05-02 | L70: 2010-04-23 | M70: 2010-05-02 | N70: 0.0428 | O70: 2.14 | P70: 2010-05-02 | Q70: 2010-11-02 | R70: 2010-10-22 | S70: 2010-11-02 | T70: 0.0401 | U70: 2.01 | V70: 2010-11-02 | W70: 2011-05-02 | X70: 2011-04-21 | Y70: 2011-05-02 | Z70: 0.0401 | AA70: 2.01 | AB70: 2011-05-02 | AC70: 2011-11-02 | AD70: 2011-10-24 | AE70: 2011-11-02 | AF70: 0.0446 | AG70: 2.23 | AH70: 2011-11-02 | AI70: 2012-05-02 | AJ70: 2012-04-23 | AK70: 2012-05-02 | AL70: 0.0484 | AM70: 2.42
A71: TZ0812 | B71: PL0000105771 | C71: 2012-08-01 | D71: 2009-08-01 | E71: 2010-02-01 | F71: 2010-01-22 | G71: 2010-02-01 | H71: 0.0417 | I71: 2.09 | J71: 2010-02-01 | K71: 2010-08-01 | L71: 2010-07-23 | M71: 2010-08-01 | N71: 0.0413 | O71: 2.07 | P71: 2010-08-01 | Q71: 2011-02-01 | R71: 2011-01-24 | S71: 2011-02-01 | T71: 0.0379 | U71: 1.9 | V71: 2011-02-01 | W71: 2011-08-01 | X71: 2011-07-22 | Y71: 2011-08-01 | Z71: 0.0407 | AA71: 2.04 | AB71: 2011-08-01 | AC71: 2012-02-01 | AD71: 2012-01-24 | AE71: 2012-02-01 | AF71: 0.0454 | AG71: 2.27 | AH71: 2012-02-01 | AI71: 2012-08-01 | AJ71: 2012-07-24 | AK71: 2012-08-01 | AL71: 0.0476 | AM71: 2.38
A72: TZ1112 | B72: PL0000105904 | C72: 2012-11-02 | D72: 2009-11-02 | E72: 2010-05-02 | F72: 2010-04-23 | G72: 2010-05-02 | H72: 0.041 | I72: 2.05 | J72: 2010-05-02 | K72: 2010-11-02 | L72: 2010-10-22 | M72: 2010-11-02 | N72: 0.0385 | O72: 1.93 | P72: 2010-11-02 | Q72: 2011-05-02 | R72: 2011-04-21 | S72: 2011-05-02 | T72: 0.0385 | U72: 1.93 | V72: 2011-05-02 | W72: 2011-11-02 | X72: 2011-10-24 | Y72: 2011-11-02 | Z72: 0.0428 | AA72: 2.14 | AB72: 2011-11-02 | AC72: 2012-05-02 | AD72: 2012-04-23 | AE72: 2012-05-02 | AF72: 0.0465 | AG72: 2.33 | AH72: 2012-05-02 | AI72: 2012-11-02 | AJ72: 2012-10-24 | AK72: 2012-11-02 | AL72: 0.0472 | AM72: 2.36
A73: TZ0213 | B73: PL0000105995 | C73: 2013-02-01 | D73: 2010-02-01 | E73: 2010-08-01 | F73: 2010-07-23 | G73: 2010-08-01 | H73: 0.0413 | I73: 2.07 | J73: 2010-08-01 | K73: 2011-02-01 | L73: 2011-01-24 | M73: 2011-02-01 | N73: 0.0379 | O73: 1.9 | P73: 2011-02-01 | Q73: 2011-08-01 | R73: 2011-07-22 | S73: 2011-08-01 | T73: 0.0407 | U73: 2.04 | V73: 2011-08-01 | W73: 2012-02-01 | X73: 2011-01-24 | Y73: 2012-02-01 | Z73: 0.0454 | AA73: 2.27 | AB73: 2012-02-01 | AC73: 2012-08-01 | AD73: 2012-07-23 | AE73: 2012-08-01 | AF73: 0.0476 | AG73: 2.38 | AH73: 2012-08-01 | AI73: 2013-02-01 | AJ73: 2013-01-24 | AK73: 2013-02-01 | AL73: 0.0489 | AM73: 2.45
A74: TZ0513 | B74: PL0000106118 | C74: 2013-05-02 | D74: 2010-05-02 | E74: 2010-11-02 | F74: 2010-10-22 | G74: 2010-11-02 | H74: 0.0385 | I74: 1.93 | J74: 2010-11-02 | K74: 2011-05-02 | L74: 2011-04-21 | M74: 2011-05-02 | N74: 0.0385 | O74: 1.93 | P74: 2011-05-02 | Q74: 2011-11-02 | R74: 2011-10-24 | S74: 2011-11-02 | T74: 0.0428 | U74: 2.14 | V74: 2011-11-02 | W74: 2012-05-02 | X74: 2012-04-23 | Y74: 2012-05-02 | Z74: 0.0465 | AA74: 2.33 | AB74: 2012-05-02 | AC74: 2012-11-02 | AD74: 2012-10-24 | AE74: 2012-11-02 | AF74: 0.0472 | AG74: 2.36 | AH74: 2012-11-02 | AI74: 2013-05-02 | AJ74: 2013-04-23 | AK74: 2013-05-02 | AL74: 0.0453 | AM74: 2.27
A75: TZ0813 | B75: PL0000106225 | C75: 2013-08-01 | D75: 2010-08-01 | E75: 2011-02-01 | F75: 2011-01-24 | G75: 2011-02-01 | H75: 0.0379 | I75: 1.9 | J75: 2011-02-01 | K75: 2011-08-01 | L75: 2011-07-22 | M75: 2011-08-01 | N75: 0.0407 | O75: 2.04 | P75: 2011-08-01 | Q75: 2012-02-01 | R75: 2011-01-24 | S75: 2012-02-01 | T75: 0.0454 | U75: 2.27 | V75: 2012-02-01 | W75: 2012-08-01 | X75: 2012-07-23 | Y75: 2012-08-01 | Z75: 0.0476 | AA75: 2.38 | AB75: 2012-08-01 | AC75: 2013-02-01 | AD75: 2013-01-24 | AE75: 2013-02-01 | AF75: 0.0489 | AG75: 2.45 | AH75: 2013-02-01 | AI75: 2013-08-01 | AJ75: 2013-07-24 | AK75: 2013-08-01 | AL75: 0.0378 | AM75: 1.89
A76: TZ1113 | B76: PL0000106332 | C76: 2013-11-02 | D76: 2010-11-02 | E76: 2011-05-02 | F76: 2011-04-21 | G76: 2011-05-02 | H76: 0.0385 | I76: 1.93 | J76: 2011-05-02 | K76: 2011-11-02 | L76: 2011-10-24 | M76: 2011-11-02 | N76: 0.0428 | O76: 2.14 | P76: 2011-11-02 | Q76: 2012-05-02 | R76: 2012-04-23 | S76: 2012-05-02 | T76: 0.0465 | U76: 2.33 | V76: 2012-05-02 | W76: 2012-11-02 | X76: 2012-10-24 | Y76: 2012-11-02 | Z76: 0.0472 | AA76: 2.36 | AB76: 2012-11-02 | AC76: 2013-05-02 | AD76: 2013-04-23 | AE76: 2013-05-02 | AF76: 0.0453 | AG76: 2.27 | AH76: 2013-05-02 | AI76: 2013-11-02 | AJ76: 2013-10-24 | AK76: 2013-11-02 | AL76: 0.031 | AM76: 1.55
A77: TZ0214 | B77: PL0000106449 | C77: 2014-02-01 | D77: 2011-02-01 | E77: 2011-08-01 | F77: 2011-07-22 | G77: 2011-08-01 | H77: 0.0407 | I77: 2.04 | J77: 2011-08-01 | K77: 2012-02-01 | L77: 2011-01-24 | M77: 2012-02-01 | N77: 0.0454 | O77: 2.27 | P77: 2012-02-01 | Q77: 2012-08-01 | R77: 2012-07-23 | S77: 2012-08-01 | T77: 0.0476 | U77: 2.38 | V77: 2012-08-01 | W77: 2013-02-01 | X77: 2013-01-24 | Y77: 2013-02-01 | Z77: 0.0489 | AA77: 2.45 | AB77: 2013-02-01 | AC77: 2013-08-01 | AD77: 2013-07-24 | AE77: 2013-08-01 | AF77: 0.0378 | AG77: 1.89 | AH77: 2013-08-01 | AI77: 2014-02-01 | AJ77: 2014-01-24 | AK77: 2014-02-01 | AL77: 0.0257 | AM77: 1.29
A78: TZ0514 | B78: PL0000106555 | C78: 2014-05-02 | D78: 2011-05-02 | E78: 2011-11-02 | F78: 2011-10-24 | G78: 2011-11-02 | H78: 0.0428 | I78: 2.14 | J78: 2011-11-02 | K78: 2012-05-02 | L78: 2012-04-23 | M78: 2012-05-02 | N78: 0.0465 | O78: 2.33 | P78: 2012-05-02 | Q78: 2012-11-02 | R78: 2012-10-24 | S78: 2012-11-02 | T78: 0.0472 | U78: 2.36 | V78: 2012-11-02 | W78: 2013-05-02 | X78: 2013-04-23 | Y78: 2013-05-02 | Z78: 0.0453 | AA78: 2.27 | AB78: 2013-05-02 | AC78: 2013-11-02 | AD78: 2013-10-24 | AE78: 2013-11-02 | AF78: 0.031 | AG78: 1.55 | AH78: 2013-11-02 | AI78: 2014-05-02 | AJ78: 2014-04-23 | AK78: 2014-05-02 | AL78: 0.0257 | AM78: 1.29
A79: TZ0814 | B79: PL0000106662 | C79: 2014-08-01 | D79: 2011-08-01 | E79: 2012-02-01 | F79: 2011-01-24 | G79: 2012-02-01 | H79: 0.0454 | I79: 2.27 | J79: 2012-02-01 | K79: 2012-08-01 | L79: 2012-07-23 | M79: 2012-08-01 | N79: 0.0476 | O79: 2.38 | P79: 2012-08-01 | Q79: 2013-02-01 | R79: 2013-01-24 | S79: 2013-02-01 | T79: 0.0489 | U79: 2.45 | V79: 2013-02-01 | W79: 2013-08-01 | X79: 2013-07-24 | Y79: 2013-08-01 | Z79: 0.0378 | AA79: 1.89 | AB79: 2013-08-01 | AC79: 2014-02-01 | AD79: 2014-01-24 | AE79: 2014-02-01 | AF79: 0.0257 | AG79: 1.29 | AH79: 2014-02-01 | AI79: 2014-08-01 | AJ79: 2014-07-24 | AK79: 2014-08-01 | AL79: 0.0258 | AM79: 1.29
A80: TZ1114 | B80: PL0000106787 | C80: 2014-11-02 | D80: 2011-11-02 | E80: 2012-05-02 | F80: 2012-04-23 | G80: 2012-05-02 | H80: 0.0465 | I80: 2.33 | J80: 2012-05-02 | K80: 2012-11-02 | L80: 2012-10-24 | M80: 2012-11-02 | N80: 0.0472 | O80: 2.36 | P80: 2012-11-02 | Q80: 2013-05-02 | R80: 2013-04-23 | S80: 2013-05-02 | T80: 0.0453 | U80: 2.27 | V80: 2013-05-02 | W80: 2013-11-02 | X80: 2013-10-24 | Y80: 2013-11-02 | Z80: 0.031 | AA80: 1.55 | AB80: 2013-11-02 | AC80: 2014-05-02 | AD80: 2014-04-23 | AE80: 2014-05-02 | AF80: 0.0257 | AG80: 1.29 | AH80: 2014-05-02 | AI80: 2014-11-02 | AJ80: 2014-10-24 | AK80: 2014-11-02 | AL80: 0.026 | AM80: 1.3
A81: TZ0215 | B81: PL0000106894 | C81: 2015-02-01 | D81: 2012-02-01 | E81: 2012-08-01 | F81: 2012-07-23 | G81: 2012-08-01 | H81: 0.0501 | I81: 2.51 | J81: 2012-08-01 | K81: 2013-02-01 | L81: 2013-01-24 | M81: 2013-02-01 | N81: 0.0515 | O81: 2.58 | P81: 2013-02-01 | Q81: 2013-08-01 | R81: 2013-07-24 | S81: 2013-08-01 | T81: 0.0398 | U81: 1.99 | V81: 2013-08-01 | W81: 2014-02-01 | X81: 2014-01-24 | Y81: 2014-02-01 | Z81: 0.0271 | AA81: 1.36 | AB81: 2014-02-01 | AC81: 2014-08-01 | AD81: 2014-07-24 | AE81: 2014-08-01 | AF81: 0.0272 | AG81: 1.36 | AH81: 2014-08-01 | AI81: 2015-02-01 | AJ81: 2015-01-23 | AK81: 2015-02-01 | AL81: 0.0269 | AM81: 1.35
A82: WZ0307 | B82: PL0000103297 | C82: 2007-03-24 | D82: 2003-12-24 | E82: 2004-03-24 | F82: 2004-03-19 | G82: 2004-03-24 | H82: 0.0559 | I82: 13.94 | J82: 2004-03-24 | K82: 2004-06-24 | L82: 2004-06-21 | M82: 2004-06-24 | N82: 0.0547 | O82: 13.75 | P82: 2004-06-24 | Q82: 2004-09-24 | R82: 2004-09-21 | S82: 2004-09-24 | T82: 0.0595 | U82: 14.96 | V82: 2004-09-24 | W82: 2004-12-24 | X82: 2004-12-21 | Y82: 2004-12-24 | Z82: 0.0712 | AA82: 17.7 | AB82: 2004-12-24 | AC82: 2005-03-24 | AD82: 2005-03-21 | AE82: 2005-03-24 | AF82: 0.0675 | AG82: 16.6 | AH82: 2005-03-24 | AI82: 2005-06-24 | AJ82: 2005-06-21 | AK82: 2005-06-24 | AL82: 0.0612 | AM82: 15.43 | AN82: 2005-06-24 | AO82: 2005-09-24 | AP82: 2005-09-21 | AQ82: 2005-09-26 | AR82: 0.0523 | AS82: 13.18 | AT82: 2005-09-24 | AU82: 2005-12-24 | AV82: 2005-12-21 | AW82: 2005-12-27 | AX82: 0.0449 | AY82: 11.19 | AZ82: 2005-12-24 | BA82: 2006-03-24 | BB82: 2006-03-21 | BC82: 2006-03-24 | BD82: 0.0462 | BE82: 11.39 | BF82: 2006-03-24 | BG82: 2006-06-24 | BH82: 2006-06-21 | BI82: 2006-06-26 | BJ82: 0.0412 | BK82: 10.38 | BL82: 2006-06-24 | BM82: 2006-09-24 | BN82: 2006-09-20 | BO82: 2006-09-25 | BP82: 0.0417 | BQ82: 10.51 | BR82: 2006-09-24 | BS82: 2006-12-24 | BT82: 2006-12-20 | BU82: 2006-12-27 | BV82: 0.0422 | BW82: 10.52 | BX82: 2006-12-24 | BY82: 2007-03-24 | BZ82: 2007-03-21 | CA82: 2007-03-26 | CB82: 0.042 | CC82: 10.36 | CD82: - | CE82: - | CF82: - | CG82: - | CH82: - | CI82: - | CJ82: - | CK82: - | CL82: - | CM82: - | CN82: - | CO82: - | CP82: - | CQ82: - | CR82: - | CS82: - | CT82: - | CU82: -
A83: WZ0911 | B83: PL0000103305 | C83: 2011-09-24 | D83: 2003-12-24 | E83: 2004-03-24 | F83: 2004-03-19 | G83: 2004-03-24 | H83: 0.0559 | I83: 13.94 | J83: 2004-03-24 | K83: 2004-09-24 | L83: 2004-09-21 | M83: 2004-09-24 | N83: 0.0562 | O83: 28.25 | P83: 2004-09-24 | Q83: 2005-03-24 | R83: 2005-03-21 | S83: 2005-03-24 | T83: 0.0732 | U83: 36.2 | V83: 2005-03-24 | W83: 2005-09-24 | X83: 2005-09-21 | Y83: 2005-09-26 | Z83: 0.0592 | AA83: 29.84 | AB83: 2005-09-24 | AC83: 2006-03-24 | AD83: 2006-03-21 | AE83: 2006-03-24 | AF83: 0.0439 | AG83: 21.77 | AH83: 2006-03-24 | AI83: 2006-09-24 | AJ83: 2006-09-20 | AK83: 2006-09-25 | AL83: 0.0411 | AM83: 20.72 | AN83: 2006-09-24 | AO83: 2007-03-24 | AP83: 2007-03-21 | AQ83: 2007-03-26 | AR83: 0.0441 | AS83: 21.87 | AT83: 2007-03-24 | AU83: 2007-09-24 | AV83: 2007-09-19 | AW83: 2007-09-24 | AX83: 0.0439 | AY83: 22.13 | AZ83: 2007-09-24 | BA83: 2008-03-24 | BB83: 2008-03-19 | BC83: 2008-03-24 | BD83: 0.0523 | BE83: 26.08 | BF83: 2008-03-24 | BG83: 2008-09-24 | BH83: 2008-09-19 | BI83: 2008-09-24 | BJ83: 0.0633 | BK83: 31.82 | BL83: 2008-09-24 | BM83: 2009-03-24 | BN83: 2009-03-19 | BO83: 2009-03-24 | BP83: 0.0664 | BQ83: 32.84 | BR83: 2009-03-24 | BS83: 2009-09-24 | BT83: 2009-09-21 | BU83: 2009-09-24 | BV83: 0.0435 | BW83: 21.93 | BX83: 2009-09-24 | BY83: 2010-03-24 | BZ83: 2010-03-19 | CA83: 2010-03-24 | CB83: 0.0434 | CC83: 21.52 | CD83: 2010-03-24 | CE83: 2010-09-24 | CF83: 2010-09-21 | CG83: 2010-09-24 | CH83: 0.0423 | CI83: 21.32 | CJ83: 2010-09-24 | CK83: 2011-03-24 | CL83: 2011-03-21 | CM83: 2011-03-24 | CN83: 0.0403 | CO83: 19.98 | CP83: 2011-03-24 | CQ83: 2011-09-24 | CR83: 2011-09-21 | CS83: 2011-09-26 | CT83: 0.0441 | CU83: 22.23
A84: WZ0115 | B84: PL0000106480 | C84: 2015-01-25 | D84: 2011-01-25 | E84: 2011-07-25 | F84: 2011-07-20 | G84: 2011-07-25 | H84: 0.0427 | I84: 21.35 | J84: 2011-07-25 | K84: 2012-01-25 | L84: 2012-01-20 | M84: 2012-01-25 | N84: 0.0477 | O84: 23.85 | P84: 2012-01-25 | Q84: 2012-07-25 | R84: 2012-07-20 | S84: 2012-07-25 | T84: 0.0501 | U84: 25.05 | V84: 2012-07-25 | W84: 2013-01-25 | X84: 2013-01-22 | Y84: 2013-01-25 | Z84: 0.0515 | AA84: 25.75 | AB84: 2013-01-25 | AC84: 2013-07-25 | AD84: 2013-07-22 | AE84: 2013-07-25 | AF84: 0.0398 | AG84: 19.9 | AH84: 2013-07-25 | AI84: 2014-01-25 | AJ84: 2014-01-22 | AK84: 2014-01-27 | AL84: 0.0271 | AM84: 13.55 | AN84: 2014-01-25 | AO84: 2014-07-25 | AP84: 2014-07-22 | AQ84: 2014-07-25 | AR84: 0.0272 | AS84: 13.6 | AT84: 2014-07-25 | AU84: 2015-01-25 | AV84: 2015-01-21 | AW84: 2015-01-26 | AX84: 0.0269 | AY84: 13.45
A85: WZ0117 | B85: PL0000106936 | C85: 2017-01-25 | D85: 2012-01-25 | E85: 2012-07-25 | F85: 2012-07-20 | G85: 2012-07-25 | H85: 0.0501 | I85: 25.05 | J85: 2012-07-25 | K85: 2013-01-25 | L85: 2013-01-22 | M85: 2013-01-25 | N85: 0.0515 | O85: 25.75 | P85: 2013-01-25 | Q85: 2013-07-25 | R85: 2013-07-22 | S85: 2013-07-25 | T85: 0.0398 | U85: 19.9 | V85: 2013-07-25 | W85: 2014-01-25 | X85: 2014-01-22 | Y85: 2014-01-27 | Z85: 0.0271 | AA85: 13.55 | AB85: 2014-01-25 | AC85: 2014-07-25 | AD85: 2014-07-22 | AE85: 2014-07-25 | AF85: 0.0272 | AG85: 13.6 | AH85: 2014-07-25 | AI85: 2015-01-25 | AJ85: 2015-01-21 | AK85: 2015-01-26 | AL85: 0.0269 | AM85: 13.45 | AN85: 2015-01-25 | AO85: 2015-07-25 | AP85: 2015-07-22 | AQ85: 2015-07-27 | AR85: 0.0201 | AS85: 10.05 | AT85: 2015-07-25 | AU85: 2016-01-25 | AV85: 2016-01-20 | AW85: 2016-01-25 | AX85: 0.0179 | AY85: 8.95 | AZ85: 2016-01-25 | BA85: 2016-07-25 | BB85: 2016-07-20 | BC85: 2016-07-25 | BD85: 0.0175 | BE85: 8.75 | BF85: 2016-07-25 | BG85: 2017-01-25 | BH85: 2017-01-20 | BI85: 2017-01-25 | BJ85: 0.0179 | BK85: 8.95
A86: WZ0118 | B86: PL0000104717 | C86: 2018-01-25 | D86: 2007-01-25 | E86: 2007-07-25 | F86: 2007-07-20 | G86: 2007-07-25 | H86: 0.0429 | I86: 21.45 | J86: 2007-07-25 | K86: 2008-01-25 | L86: 2008-01-22 | M86: 2008-01-25 | N86: 0.0493 | O86: 24.65 | P86: 2008-01-25 | Q86: 2008-07-25 | R86: 2008-07-22 | S86: 2008-07-25 | T86: 0.0596 | U86: 29.8 | V86: 2008-07-25 | W86: 2009-01-25 | X86: 2009-01-21 | Y86: 2009-01-26 | Z86: 0.0672 | AA86: 33.6 | AB86: 2009-01-25 | AC86: 2009-07-25 | AD86: 2009-07-22 | AE86: 2009-07-27 | AF86: 0.0564 | AG86: 28.2 | AH86: 2009-07-25 | AI86: 2010-01-25 | AJ86: 2010-01-20 | AK86: 2010-01-25 | AL86: 0.044 | AM86: 22 | AN86: 2010-01-25 | AO86: 2010-07-25 | AP86: 2010-07-21 | AQ86: 2010-07-26 | AR86: 0.0436 | AS86: 21.8 | AT86: 2010-07-25 | AU86: 2011-01-25 | AV86: 2011-01-20 | AW86: 2011-01-25 | AX86: 0.0399 | AY86: 19.95 | AZ86: 2011-01-25 | BA86: 2011-07-25 | BB86: 2011-07-20 | BC86: 2011-07-25 | BD86: 0.0427 | BE86: 21.35 | BF86: 2011-07-25 | BG86: 2012-01-25 | BH86: 2012-01-20 | BI86: 2012-01-25 | BJ86: 0.0477 | BK86: 23.85 | BL86: 2012-01-25 | BM86: 2012-07-25 | BN86: 2012-07-20 | BO86: 2012-07-25 | BP86: 0.0501 | BQ86: 25.05 | BR86: 2012-07-25 | BS86: 2013-01-25 | BT86: 2013-01-22 | BU86: 2013-01-25 | BV86: 0.0515 | BW86: 25.75 | BX86: 2013-01-25 | BY86: 2013-07-25 | BZ86: 2013-07-22 | CA86: 2013-07-25 | CB86: 0.0398 | CC86: 19.9 | CD86: 2013-07-25 | CE86: 2014-01-25 | CF86: 2014-01-22 | CG86: 2014-01-27 | CH86: 0.0271 | CI86: 13.55 | CJ86: 2014-01-25 | CK86: 2014-07-25 | CL86: 2014-07-22 | CM86: 2014-07-25 | CN86: 0.0272 | CO86: 13.6 | CP86: 2014-07-25 | CQ86: 2015-01-25 | CR86: 2015-01-21 | CS86: 2015-01-26 | CT86: 0.0269 | CU86: 13.45 | CV86: 2015-01-25 | CW86: 2015-07-25 | CX86: 2015-07-22 | CY86: 2015-07-27 | CZ86: 0.0201 | DA86: 10.05 | DB86: 2015-07-25 | DC86: 2016-01-25 | DD86: 2016-01-20 | DE86: 2016-01-25 | DF86: 0.0179 | DG86: 8.95 | DH86: 2016-01-25 | DI86: 2016-07-25 | DJ86: 2016-07-20 | DK86: 2016-07-25 | DL86: 0.0175 | DM86: 8.75 | DN86: 2016-07-25 | DO86: 2017-01-25 | DP86: 2017-01-20 | DQ86: 2017-01-25 | DR86: 0.0179 | DS86: 8.95 | DT86: 2017-01-25 | DU86: 2017-07-25 | DV86: 2017-07-20 | DW86: 2017-07-25 | DX86: 0.0181 | DY86: 9.05 | DZ86: 2017-07-25 | EA86: 2018-01-25 | EB86: 2018-01-22 | EC86: 2018-01-25 | ED86: 0.0181 | EE86: 9.05
A87: WZ0119 | B87: PL0000107603 | C87: 2019-01-25 | D87: 2013-01-25 | E87: 2013-07-25 | F87: 2013-07-22 | G87: 2013-07-25 | H87: 0.0398 | I87: 19.9 | J87: 2013-07-25 | K87: 2014-01-25 | L87: 2014-01-22 | M87: 2014-01-27 | N87: 0.0271 | O87: 13.55 | P87: 2014-01-25 | Q87: 2014-07-25 | R87: 2014-07-22 | S87: 2014-07-25 | T87: 0.0272 | U87: 13.6 | V87: 2014-07-25 | W87: 2015-01-25 | X87: 2015-01-21 | Y87: 2015-01-26 | Z87: 0.0269 | AA87: 13.45 | AB87: 2015-01-25 | AC87: 2015-07-25 | AD87: 2015-07-22 | AE87: 2015-07-27 | AF87: 0.0201 | AG87: 10.05 | AH87: 2015-07-25 | AI87: 2016-01-25 | AJ87: 2016-01-20 | AK87: 2016-01-25 | AL87: 0.0179 | AM87: 8.95 | AN87: 2016-01-25 | AO87: 2016-07-25 | AP87: 2016-07-20 | AQ87: 2016-07-25 | AR87: 0.0175 | AS87: 8.75 | AT87: 2016-07-25 | AU87: 2017-01-25 | AV87: 2017-01-20 | AW87: 2017-01-25 | AX87: 0.0179 | AY87: 8.95 | AZ87: 2017-01-25 | BA87: 2017-07-25 | BB87: 2017-07-20 | BC87: 2017-07-25 | BD87: 0.0181 | BE87: 9.05 | BF87: 2017-07-25 | BG87: 2018-01-25 | BH87: 2018-01-22 | BI87: 2018-01-25 | BJ87: 0.0181 | BK87: 9.05 | BL87: 2018-01-25 | BM87: 2018-07-25 | BN87: 2018-07-20 | BO87: 2018-07-25 | BP87: 0.0181 | BQ87: 9.05 | BR87: 2018-07-25 | BS87: 2019-01-25 | BT87: 2019-01-22 | BU87: 2019-01-25 | BV87: 0.0178 | BW87: 8.9
A88: WZ0120 | B88: PL0000108601 | C88: 2020-01-25 | D88: 2015-01-25 | E88: 2015-07-25 | F88: 2015-07-22 | G88: 2015-07-27 | H88: 0.0201 | I88: 10.05 | J88: 2015-07-25 | K88: 2016-01-25 | L88: 2016-01-20 | M88: 2016-01-25 | N88: 0.0179 | O88: 8.95 | P88: 2016-01-25 | Q88: 2016-07-25 | R88: 2016-07-20 | S88: 2016-07-25 | T88: 0.0175 | U88: 8.75 | V88: 2016-07-25 | W88: 2017-01-25 | X88: 2017-01-20 | Y88: 2017-01-25 | Z88: 0.0179 | AA88: 8.95 | AB88: 2017-01-25 | AC88: 2017-07-25 | AD88: 2017-07-20 | AE88: 2017-07-25 | AF88: 0.0181 | AG88: 9.05 | AH88: 2017-07-25 | AI88: 2018-01-25 | AJ88: 2018-01-22 | AK88: 2018-01-25 | AL88: 0.0181 | AM88: 9.05 | AN88: 2018-01-25 | AO88: 2018-07-25 | AP88: 2018-07-20 | AQ88: 2018-07-25 | AR88: 0.0181 | AS88: 9.05 | AT88: 2018-07-25 | AU88: 2019-01-25 | AV88: 2019-01-22 | AW88: 2019-01-25 | AX88: 0.0178 | AY88: 8.9 | AZ88: 2019-01-25 | BA88: 2019-07-25 | BB88: 2019-07-22 | BC88: 2019-07-25 | BD88: 0.0179 | BE88: 8.95 | BF88: 2019-07-25 | BG88: 2020-01-25 | BH88: 2020-01-22 | BI88: 2020-01-27 | BJ88: 0.0179 | BK88: 8.95
A89: WZ0121 | B89: PL0000106068 | C89: 2021-01-25 | D89: 2010-01-25 | E89: 2010-07-25 | F89: 2010-07-21 | G89: 2010-07-26 | H89: 0.0436 | I89: 21.8 | J89: 2010-07-25 | K89: 2011-01-25 | L89: 2011-01-20 | M89: 2011-01-25 | N89: 0.0399 | O89: 19.95 | P89: 2011-01-25 | Q89: 2011-07-25 | R89: 2011-07-20 | S89: 2011-07-25 | T89: 0.0427 | U89: 21.35 | V89: 2011-07-25 | W89: 2012-01-25 | X89: 2012-01-20 | Y89: 2012-01-25 | Z89: 0.0477 | AA89: 23.85 | AB89: 2012-01-25 | AC89: 2012-07-25 | AD89: 2012-07-20 | AE89: 2012-07-25 | AF89: 0.0501 | AG89: 25.05 | AH89: 2012-07-25 | AI89: 2013-01-25 | AJ89: 2013-01-22 | AK89: 2013-01-25 | AL89: 0.0515 | AM89: 25.75 | AN89: 2013-01-25 | AO89: 2013-07-25 | AP89: 2013-07-22 | AQ89: 2013-07-25 | AR89: 0.0398 | AS89: 19.9 | AT89: 2013-07-25 | AU89: 2014-01-25 | AV89: 2014-01-22 | AW89: 2014-01-27 | AX89: 0.0271 | AY89: 13.55 | AZ89: 2014-01-25 | BA89: 2014-07-25 | BB89: 2014-07-22 | BC89: 2014-07-25 | BD89: 0.0272 | BE89: 13.6 | BF89: 2014-07-25 | BG89: 2015-01-25 | BH89: 2015-01-21 | BI89: 2015-01-26 | BJ89: 0.0269 | BK89: 13.45 | BL89: 2015-01-25 | BM89: 2015-07-25 | BN89: 2015-07-22 | BO89: 2015-07-27 | BP89: 0.0201 | BQ89: 10.05 | BR89: 2015-07-25 | BS89: 2016-01-25 | BT89: 2016-01-20 | BU89: 2016-01-25 | BV89: 0.0179 | BW89: 8.95 | BX89: 2016-01-25 | BY89: 2016-07-25 | BZ89: 2016-07-20 | CA89: 2016-07-25 | CB89: 0.0175 | CC89: 8.75 | CD89: 2016-07-25 | CE89: 2017-01-25 | CF89: 2017-01-20 | CG89: 2017-01-25 | CH89: 0.0179 | CI89: 8.95 | CJ89: 2017-01-25 | CK89: 2017-07-25 | CL89: 2017-07-20 | CM89: 2017-07-25 | CN89: 0.0181 | CO89: 9.05 | CP89: 2017-07-25 | CQ89: 2018-01-25 | CR89: 2018-01-22 | CS89: 2018-01-25 | CT89: 0.0181 | CU89: 9.05 | CV89: 2018-01-25 | CW89: 2018-07-25 | CX89: 2018-07-20 | CY89: 2018-07-25 | CZ89: 0.0181 | DA89: 9.05 | DB89: 2018-07-25 | DC89: 2019-01-25 | DD89: 2019-01-22 | DE89: 2019-01-25 | DF89: 0.0178 | DG89: 8.9 | DH89: 2019-01-25 | DI89: 2019-07-25 | DJ89: 2019-07-22 | DK89: 2019-07-25 | DL89: 0.0179 | DM89: 8.95 | DN89: 2019-07-25 | DO89: 2020-01-25 | DP89: 2020-01-22 | DQ89: 2020-01-27 | DR89: 0.0179 | DS89: 8.95 | DT89: 2020-01-25 | DU89: 2020-07-25 | DV89: 2020-07-22 | DW89: 2020-07-27 | DX89: 0.0179 | DY89: 8.95 | DZ89: 2020-07-25 | EA89: 2021-01-25 | EB89: 2021-01-20 | EC89: 2021-01-25 | ED89: 0.0028 | EE89: 1.4
A90: WZ1122 | B90: PL0000109377 | C90: 2022-11-25 | D90: 2016-05-25 | E90: 2016-11-25 | F90: 2016-11-22 | G90: 2016-11-25 | H90: 0.0174 | I90: 8.7 | J90: 2016-11-25 | K90: 2017-05-25 | L90: 2017-05-22 | M90: 2017-05-25 | N90: 0.0181 | O90: 9.05 | P90: 2017-05-25 | Q90: 2017-11-25 | R90: 2017-11-22 | S90: 2017-11-27 | T90: 0.0181 | U90: 9.05 | V90: 2017-11-25 | W90: 2018-05-25 | X90: 2018-05-22 | Y90: 2018-05-25 | Z90: 0.0181 | AA90: 9.05 | AB90: 2018-05-25 | AC90: 2018-11-25 | AD90: 2018-11-21 | AE90: 2018-11-26 | AF90: 0.0178 | AG90: 8.9 | AH90: 2018-11-25 | AI90: 2019-05-25 | AJ90: 2019-05-22 | AK90: 2019-05-27 | AL90: 0.0179 | AM90: 8.95 | AN90: 2019-05-25 | AO90: 2019-11-25 | AP90: 2019-11-20 | AQ90: 2019-11-25 | AR90: 0.0179 | AS90: 8.95 | AT90: 2019-11-25 | AU90: 2020-05-25 | AV90: 2020-05-20 | AW90: 2020-05-25 | AX90: 0.0179 | AY90: 8.95 | AZ90: 2020-05-25 | BA90: 2020-11-25 | BB90: 2020-11-20 | BC90: 2020-11-25 | BD90: 0.0069 | BE90: 3.45 | BF90: 2020-11-25 | BG90: 2021-05-25 | BH90: 2021-05-20 | BI90: 2021-05-25 | BJ90: 0.0025 | BK90: 1.25 | BL90: 2021-05-25 | BM90: 2021-11-25 | BN90: 2021-11-22 | BO90: 2021-11-25 | BP90: 0.0025 | BQ90: 1.25 | BR90: 2021-11-25 | BS90: 2022-05-25 | BT90: 2022-05-20 | BU90: 2022-05-25 | BV90: 0.0202 | BW90: 10.1 | BX90: 2022-05-25 | BY90: 2022-11-25 | BZ90: 2022-11-22 | CA90: 2022-11-25 | CB90: 0.0668 | CC90: 33.4
A91: WZ0124 | B91: PL0000107454 | C91: 2024-01-25 | D91: 2013-01-25 | E91: 2013-07-25 | F91: 2013-07-22 | G91: 2013-07-25 | H91: 0.0398 | I91: 19.9 | J91: 2013-07-25 | K91: 2014-01-25 | L91: 2014-01-22 | M91: 2014-01-27 | N91: 0.0271 | O91: 13.55 | P91: 2014-01-25 | Q91: 2014-07-25 | R91: 2014-07-22 | S91: 2014-07-25 | T91: 0.0272 | U91: 13.6 | V91: 2014-07-25 | W91: 2015-01-25 | X91: 2015-01-21 | Y91: 2015-01-26 | Z91: 0.0269 | AA91: 13.45 | AB91: 2015-01-25 | AC91: 2015-07-25 | AD91: 2015-07-22 | AE91: 2015-07-27 | AF91: 0.0201 | AG91: 10.05 | AH91: 2015-07-25 | AI91: 2016-01-25 | AJ91: 2016-01-20 | AK91: 2016-01-25 | AL91: 0.0179 | AM91: 8.95 | AN91: 2016-01-25 | AO91: 2016-07-25 | AP91: 2016-07-20 | AQ91: 2016-07-25 | AR91: 0.0175 | AS91: 8.75 | AT91: 2016-07-25 | AU91: 2017-01-25 | AV91: 2017-01-20 | AW91: 2017-01-25 | AX91: 0.0179 | AY91: 8.95 | AZ91: 2017-01-25 | BA91: 2017-07-25 | BB91: 2017-07-20 | BC91: 2017-07-25 | BD91: 0.0181 | BE91: 9.05 | BF91: 2017-07-25 | BG91: 2018-01-25 | BH91: 2018-01-22 | BI91: 2018-01-25 | BJ91: 0.0181 | BK91: 9.05 | BL91: 2018-01-25 | BM91: 2018-07-25 | BN91: 2018-07-20 | BO91: 2018-07-25 | BP91: 0.0181 | BQ91: 9.05 | BR91: 2018-07-25 | BS91: 2019-01-25 | BT91: 2019-01-22 | BU91: 2019-01-25 | BV91: 0.0178 | BW91: 8.9 | BX91: 2019-01-25 | BY91: 2019-07-25 | BZ91: 2019-07-22 | CA91: 2019-07-25 | CB91: 0.0179 | CC91: 8.95 | CD91: 2019-07-25 | CE91: 2020-01-25 | CF91: 2020-01-22 | CG91: 2020-01-27 | CH91: 0.0179 | CI91: 8.95 | CJ91: 2020-01-25 | CK91: 2020-07-25 | CL91: 2020-07-22 | CM91: 2020-07-27 | CN91: 0.0179 | CO91: 8.95 | CP91: 2020-07-25 | CQ91: 2021-01-25 | CR91: 2021-01-20 | CS91: 2021-01-25 | CT91: 0.0028 | CU91: 1.4 | CV91: 2021-01-25 | CW91: 2021-07-25 | CX91: 2021-07-21 | CY91: 2021-07-26 | CZ91: 0.0025 | DA91: 1.25 | DB91: 2021-07-25 | DC91: 2022-01-25 | DD91: 2022-01-20 | DE91: 2022-01-25 | DF91: 0.0025 | DG91: 1.25 | DH91: 2022-01-25 | DI91: 2022-07-25 | DJ91: 2022-07-20 | DK91: 2022-07-25 | DL91: 0.0321 | DM91: 16.05 | DN91: 2022-07-25 | DO91: 2023-01-25 | DP91: 2023-01-20 | DQ91: 2023-01-25 | DR91: 0.073 | DS91: 36.5 | DT91: 2023-01-25 | DU91: 2023-07-25 | DV91: 2023-07-20 | DW91: 2023-07-25 | DX91: 0.0699 | DY91: 34.95 | DZ91: 2023-07-25 | EA91: 2024-01-25 | EB91: 2024-01-22 | EC91: 2024-01-25 | ED91: 0.067 | EE91: 33.5
A92: WZ0524 | B92: PL0000110615 | C92: 2024-05-25 | D92: 2017-11-25 | E92: 2018-05-25 | F92: 2018-05-22 | G92: 2018-05-25 | H92: 0.0181 | I92: 9.05 | J92: 2018-05-25 | K92: 2018-11-25 | L92: 2018-11-21 | M92: 2018-11-26 | N92: 0.0178 | O92: 8.9 | P92: 2018-11-25 | Q92: 2019-05-25 | R92: 2019-05-22 | S92: 2019-05-27 | T92: 0.0179 | U92: 8.95 | V92: 2019-05-25 | W92: 2019-11-25 | X92: 2019-11-20 | Y92: 2019-11-25 | Z92: 0.0179 | AA92: 8.95 | AB92: 2019-11-25 | AC92: 2020-05-25 | AD92: 2020-05-20 | AE92: 2020-05-25 | AF92: 0.0179 | AG92: 8.95 | AH92: 2020-05-25 | AI92: 2020-11-25 | AJ92: 2020-11-20 | AK92: 2020-11-25 | AL92: 0.0069 | AM92: 3.45 | AN92: 2020-11-25 | AO92: 2021-05-25 | AP92: 2021-05-20 | AQ92: 2021-05-25 | AR92: 0.0025 | AS92: 1.25 | AT92: 2021-05-25 | AU92: 2021-11-25 | AV92: 2021-11-22 | AW92: 2021-11-25 | AX92: 0.0025 | AY92: 1.25 | AZ92: 2021-11-25 | BA92: 2022-05-25 | BB92: 2022-05-20 | BC92: 2022-05-25 | BD92: 0.0202 | BE92: 10.1 | BF92: 2022-05-25 | BG92: 2022-11-25 | BH92: 2022-11-22 | BI92: 2022-11-25 | BJ92: 0.0668 | BK92: 33.4 | BL92: 2022-11-25 | BM92: 2023-05-25 | BN92: 2023-05-22 | BO92: 2023-05-25 | BP92: 0.0756 | BQ92: 37.8 | BR92: 2023-05-25 | BS92: 2023-11-25 | BT92: 2023-11-22 | BU92: 2023-11-27 | BV92: 0.0695 | BW92: 34.75 | BX92: 2023-11-25 | BY92: 2024-05-25 | BZ92: 2024-05-22 | CA92: 2024-05-27 | CB92: 0.0579 | CC92: 28.95
